Workbook

Sheet Game Picker
C1: College Crosse Presents:
A2: Air Force | B2: Yes | C2: DIVISION I LACROSSE GAME PICKER
A3: Albany | B3: No | D3: Home | E3: Away | F3: Team A Probability | G3: Team B Probability | H3: Team A SRS | I3: TEAM B SRS | J3: TEAM A SPREAD | K3: TEAM B SPREAD | L3: HFA | M3: STDEV | O3: Notes
A4: Army | D4: Maryland | E4: Brown | F4: =NORMDIST(0,J4,M4,TRUE) -> 0.2878744367 | G4: =NORMDIST(0,K4,M4,TRUE) -> 0.7121255633 | H4: =VLOOKUP(D4,Sheet1!$A$1:$E$71,4,FALSE) -> 5.775430824 | I4: =VLOOKUP(E4,Sheet1!$A$1:$E$71,4,FALSE) -> 7.805770702 | J4: =I4-H4 -> 2.030339878 | K4: =H4-I4 -> -2.030339878 | L4: =Games!C542 -> 1.283367556 | M4: =Games!C539 -> 3.628165885 | O4: * Predictions are based on a Simple Ratings Systems application to
A5: Bellarmine | C5: Neutral Site? | D5: Yes | O5: Division I men's NCAA lacrosse. These ratings are similar to the
A6: Binghamton | C6: Spread | D6: =IF(D5="Yes",ROUND((I4-H4)/0.5,0)*0.5,ROUND((I4-H4-L4)/0.5,0)*0.5) -> 2 | E6: =IF(D5="Yes",ROUND((H4-I4)/0.5,0)*0.5,ROUND((H4-I4+L4)/0.5,0)*0.5) -> -2 | O6: LaxPower ratings in conceptual approach.
A7: Boston | C7: Favorite/Underdog/Pick 'Em | D7: =IF(D6>1,"Underdog",IF(D6<-1,"Favorite","Pick 'Em")) -> Underdog | E7: =IF(E6>1,"Underdog",IF(E6<-1,"Favorite","Pick 'Em")) -> Favorite | O7: * Please only populate the fields shaded in yellow and use the drop-
A8: Brown | C8: SRS Ranking | D8: =VLOOKUP(D4,Sheet1!$A:$E,5,FALSE) -> 2 | E8: =VLOOKUP(E4,Sheet1!$A:$E,5,FALSE) -> 1 | O8: down menus provided for those cells. Messing with other cells with
A9: Bryant | O9: cause Earth to explode.
A10: Bucknell | O10: * Pick 'Em designations are reserved for games with a predicted
A11: Canisius | O11: margin of less than one (1) goal. This may deviate slightly from
A12: Colgate | O12: an analysis based on probability bands.
A13: Cornell | O13: * Division I Lacrosse Game Picker is up to date through games
A14: Dartmouth | O14: played on May 22, 2016. It only considers games between Division I
A15: Delaware | O15: opponents.
A16: Denver
A17: Detroit
A18: Drexel
A19: Duke
A20: Fairfield
A21: Furman
A22: Georgetown
A23: Hampton
A24: Hartford
A25: Harvard
A26: High Point
A27: Hobart
A28: Hofstra
A29: Holy Cross
A30: Jacksonville
A31: Johns Hopkins
A32: Lafayette
A33: Lehigh
A34: Lowell
A35: Loyola
A36: Manhattan
A37: Marist
A38: Marquette
A39: Maryland
A40: Massachusetts
A41: Mercer
A42: Michigan
A43: Monmouth
A44: Mt. St. Marys
A45: Navy
A46: NJIT
A47: North Carolina
A48: Notre Dame
A49: Ohio State
A50: Penn
A51: Penn State
A52: Princeton
A53: Providence
A54: Quinnipiac
A55: Richmond
A56: Robert Morris
A57: Rutgers
A58: Sacred Heart
A59: Siena
A60: St. Johns
A61: St. Josephs
A62: Stony Brook
A63: Syracuse
A64: Towson
A65: UMBC
A66: Vermont
A67: Villanova
A68: Virginia
A69: VMI
A70: Wagner
A71: Yale

Sheet Games (hidden)
A1: Home | B1: Away | C1: Home | D1: Away | E1: MOV | F1: W/L | G1: N? | H1: HSRS | I1: ASRS | J1: Exp. | K1: Err. | L1: H % | M1: A % | N1: % W/L | O1: BAND | P1: BAND | Q1: G W/L | R1: Marg
A2: Furman | B2: Ohio State | C2: 7 | D2: 8 | E2: =IF(C2-D2<-10,-10,(IF(C2-D2>10,10,C2-D2))) -> -1 | F2: =IF(C2>D2,"W","L") -> L | H2: =VLOOKUP(A2,Sheet1!$A:$D,4,FALSE) -> -4.484832878 | I2: =VLOOKUP(B2,Sheet1!$A:$D,4,FALSE) -> 1.474575448 | J2: =IF(G2="N",H2-I2,(H2-I2+'Game Picker'!$L$4)) -> -4.676040769 | K2: =E2-J2 -> 3.676040769 | L2: =IF(G2="N",NORMDIST(0,I2-H2,$C$539,TRUE),NORMDIST(0,I2-H2-$C$542,$C$539,TRUE)) -> 0.09873091006 | M2: =IF(G2="N",NORMDIST(0,H2-I2,$C$539,TRUE),NORMDIST(0,H2-I2+$C$542,$C$539,TRUE)) -> 0.9012690899 | N2: =IF(E2<0,IF(L2<0.5,"W"),IF(E2>0,IF(L2>0.5,"W"),"L")) -> W | O2: =IF(M2>L2,M2,L2) -> 0.9012690899 | P2: =IF(AND(O2>=0.9,O2<1.01),"0.9-1",IF(AND(O2>=0.8,O2<0.9),"0.8-.89",IF(AND(O2>=0.7,O2<0.8),"0.7-.79",IF(AND(O2>=0.6,O2<0.7),"0.6-.69",IF(AND(O2>=0.5,O2<0.6),"0.5-.59"))))) -> 0.9-1 | Q2: =IF(AND(J2<=1,J2>=-1,K2<=3,K2>-3),"W",IF(AND(E2<=-1,J2<=-1),"W",IF(AND(E2>=1,J2>=1),"W","L"))) -> W | R2: =IF(K2<0,-K2,K2) -> 3.676040769
A3: Lehigh | B3: NJIT | C3: 21 | D3: 4 | E3: =IF(C3-D3<-10,-10,(IF(C3-D3>10,10,C3-D3))) -> 10 | F3: =IF(C3>D3,"W","L") -> W | H3: =VLOOKUP(A3,Sheet1!$A:$D,4,FALSE) -> -0.8891448847 | I3: =VLOOKUP(B3,Sheet1!$A:$D,4,FALSE) -> -8.638075186 | J3: =IF(G3="N",H3-I3,(H3-I3+'Game Picker'!$L$4)) -> 9.032297858 | K3: =E3-J3 -> 0.9677021423 | L3: 0.9936037494 | M3: 0.006396250635 | N3: W | O3: =IF(M3>L3,M3,L3) -> 0.9936037494 | P3: =IF(AND(O3>=0.9,O3<1.01),"0.9-1",IF(AND(O3>=0.8,O3<0.9),"0.8-.89",IF(AND(O3>=0.7,O3<0.8),"0.7-.79",IF(AND(O3>=0.6,O3<0.7),"0.6-.69",IF(AND(O3>=0.5,O3<0.6),"0.5-.59"))))) -> 0.9-1 | Q3: =IF(AND(J3<=1,J3>=-1,K3<=3,K3>-3),"W",IF(AND(E3<=-1,J3<=-1),"W",IF(AND(E3>=1,J3>=1),"W","L"))) -> W | R3: =IF(K3<0,-K3,K3) -> 0.9677021423
A4: Navy | B4: Air Force | C4: 10 | D4: 6 | E4: 4 | F4: W | H4: =VLOOKUP(A4,Sheet1!$A:$D,4,FALSE) -> 3.64940015 | I4: =VLOOKUP(B4,Sheet1!$A:$D,4,FALSE) -> 0.8520259553 | J4: =IF(G4="N",H4-I4,(H4-I4+'Game Picker'!$L$4)) -> 4.080741751 | K4: -0.08074175112 | L4: 0.8696502966 | M4: 0.1303497034 | N4: W | O4: 0.8696502966 | P4: 0.8-.89 | Q4: W | R4: 0.08074175112
A5: Penn State | B5: Robert Morris | C5: 20 | D5: 7 | E5: 10 | F5: W | H5: =VLOOKUP(A5,Sheet1!$A:$D,4,FALSE) -> 2.508502072 | I5: =VLOOKUP(B5,Sheet1!$A:$D,4,FALSE) -> -1.284958311 | J5: =IF(G5="N",H5-I5,(H5-I5+'Game Picker'!$L$4)) -> 5.076827939 | K5: 4.923172061 | L5: 0.9191358123 | M5: 0.0808641877 | N5: W | O5: 0.9191358123 | P5: 0.9-1 | Q5: W | R5: 4.923172061
A6: Bryant | B6: Manhattan | C6: 16 | D6: 3 | E6: 10 | F6: W | H6: =VLOOKUP(A6,Sheet1!$A:$D,4,FALSE) -> 1.889930725 | I6: =VLOOKUP(B6,Sheet1!$A:$D,4,FALSE) -> -6.623228534 | J6: =IF(G6="N",H6-I6,(H6-I6+'Game Picker'!$L$4)) -> 9.796526815 | K6: 0.2034731847 | L6: 0.9965344015 | M6: 0.003465598462 | N6: W | O6: 0.9965344015 | P6: 0.9-1 | Q6: W | R6: 0.2034731847
A7: Boston | B7: Providence | C7: 9 | D7: 5 | E7: 4 | F7: W | H7: =VLOOKUP(A7,Sheet1!$A:$D,4,FALSE) -> -0.4476388759 | I7: =VLOOKUP(B7,Sheet1!$A:$D,4,FALSE) -> -0.5324792673 | J7: =IF(G7="N",H7-I7,(H7-I7+'Game Picker'!$L$4)) -> 1.368207948 | K7: 2.631792052 | L7: 0.6469530778 | M7: 0.3530469222 | N7: W | O7: 0.6469530778 | P7: 0.6-.69 | Q7: W | R7: 2.631792052
A8: Jacksonville | B8: Vermont | C8: 17 | D8: 16 | E8: 1 | F8: W | H8: =VLOOKUP(A8,Sheet1!$A:$D,4,FALSE) -> -5.30087846 | I8: =VLOOKUP(B8,Sheet1!$A:$D,4,FALSE) -> -0.3404077904 | J8: =IF(G8="N",H8-I8,(H8-I8+'Game Picker'!$L$4)) -> -3.677103113 | K8: 4.677103113 | L8: 0.1554135279 | M8: 0.8445864721 | N8: FALSE | O8: 0.8445864721 | P8: 0.8-.89 | Q8: L | R8: 4.677103113
A9: North Carolina | B9: Michigan | C9: 20 | D9: 10 | E9: 10 | F9: W | H9: =VLOOKUP(A9,Sheet1!$A:$D,4,FALSE) -> 4.211880999 | I9: =VLOOKUP(B9,Sheet1!$A:$D,4,FALSE) -> -1.733023756 | J9: =IF(G9="N",H9-I9,(H9-I9+'Game Picker'!$L$4)) -> 7.228272311 | K9: 2.771727689 | L9: 0.9768290717 | M9: 0.02317092832 | N9: W | O9: 0.9768290717 | P9: 0.9-1 | Q9: W | R9: 2.771727689
A10: Bucknell | B10: Delaware | C10: 13 | D10: 5 | E10: 8 | F10: W | H10: =VLOOKUP(A10,Sheet1!$A:$D,4,FALSE) -> 2.444763683 | I10: =VLOOKUP(B10,Sheet1!$A:$D,4,FALSE) -> -2.337195547 | J10: =IF(G10="N",H10-I10,(H10-I10+'Game Picker'!$L$4)) -> 6.065326786 | K10: 1.934673214 | L10: 0.9527115665 | M10: 0.04728843352 | N10: W | O10: 0.9527115665 | P10: 0.9-1 | Q10: W | R10: 1.934673214
A11: Navy | B11: Johns Hopkins | C11: 11 | D11: 12 | E11: -1 | F11: L | H11: =VLOOKUP(A11,Sheet1!$A:$D,4,FALSE) -> 3.64940015 | I11: =VLOOKUP(B11,Sheet1!$A:$D,4,FALSE) -> 3.298359288 | J11: =IF(G11="N",H11-I11,(H11-I11+'Game Picker'!$L$4)) -> 1.634408418 | K11: -2.634408418 | L11: 0.6738170441 | M11: 0.3261829559 | N11: FALSE | O11: 0.6738170441 | P11: 0.6-.69 | Q11: L | R11: 2.634408418
A12: Boston | B12: Lowell | C12: 8 | D12: 5 | E12: 3 | F12: W | H12: =VLOOKUP(A12,Sheet1!$A:$D,4,FALSE) -> -0.4476388759 | I12: =VLOOKUP(B12,Sheet1!$A:$D,4,FALSE) -> -5.018299136 | J12: =IF(G12="N",H12-I12,(H12-I12+'Game Picker'!$L$4)) -> 5.854027817 | K12: -2.854027817 | L12: 0.9466815047 | M12: 0.05331849529 | N12: W | O12: 0.9466815047 | P12: 0.9-1 | Q12: W | R12: 2.854027817
A13: Delaware | B13: Mt. St. Marys | C13: 11 | D13: 14 | E13: -3 | F13: L | H13: =VLOOKUP(A13,Sheet1!$A:$D,4,FALSE) -> -2.337195547 | I13: =VLOOKUP(B13,Sheet1!$A:$D,4,FALSE) -> -2.359246425 | J13: =IF(G13="N",H13-I13,(H13-I13+'Game Picker'!$L$4)) -> 1.305418435 | K13: -4.305418435 | L13: 0.6405020967 | M13: 0.3594979033 | N13: FALSE | O13: 0.6405020967 | P13: 0.6-.69 | Q13: L | R13: 4.305418435
A14: Army | B14: Massachusetts | C14: 9 | D14: 5 | E14: 4 | F14: W | H14: =VLOOKUP(A14,Sheet1!$A:$D,4,FALSE) -> 2.926934471 | I14: =VLOOKUP(B14,Sheet1!$A:$D,4,FALSE) -> 1.141787934 | J14: =IF(G14="N",H14-I14,(H14-I14+'Game Picker'!$L$4)) -> 3.068514094 | K14: 0.9314859062 | L14: 0.8011533342 | M14: 0.1988466658 | N14: W | O14: 0.8011533342 | P14: 0.8-.89 | Q14: W | R14: 0.9314859062
A15: Rutgers | B15: St. Johns | C15: 19 | D15: 11 | E15: 8 | F15: W | H15: =VLOOKUP(A15,Sheet1!$A:$D,4,FALSE) -> 2.641567062 | I15: =VLOOKUP(B15,Sheet1!$A:$D,4,FALSE) -> -3.765456536 | J15: =IF(G15="N",H15-I15,(H15-I15+'Game Picker'!$L$4)) -> 7.690391154 | K15: 0.3096088459 | L15: 0.9829816245 | M15: 0.01701837552 | N15: W | O15: 0.9829816245 | P15: 0.9-1 | Q15: W | R15: 0.3096088459
A16: Wagner | B16: Manhattan | C16: 15 | D16: 8 | E16: 7 | F16: W | H16: =VLOOKUP(A16,Sheet1!$A:$D,4,FALSE) -> -5.842365931 | I16: =VLOOKUP(B16,Sheet1!$A:$D,4,FALSE) -> -6.623228534 | J16: =IF(G16="N",H16-I16,(H16-I16+'Game Picker'!$L$4)) -> 2.06423016 | K16: 4.93576984 | L16: 0.7153035778 | M16: 0.2846964222 | N16: W | O16: 0.7153035778 | P16: 0.7-.79 | Q16: W | R16: 4.93576984
A17: Lafayette | B17: Sacred Heart | C17: 8 | D17: 12 | E17: -4 | F17: L | H17: =VLOOKUP(A17,Sheet1!$A:$D,4,FALSE) -> -4.802015289 | I17: =VLOOKUP(B17,Sheet1!$A:$D,4,FALSE) -> -4.317467372 | J17: =IF(G17="N",H17-I17,(H17-I17+'Game Picker'!$L$4)) -> 0.7988196391 | K17: -4.798819639 | L17: 0.5871313022 | M17: 0.4128686978 | N17: FALSE | O17: 0.5871313022 | P17: 0.5-.59 | Q17: L | R17: 4.798819639
A18: Providence | B18: Holy Cross | C18: 12 | D18: 8 | E18: 4 | F18: W | H18: =VLOOKUP(A18,Sheet1!$A:$D,4,FALSE) -> -0.5324792673 | I18: =VLOOKUP(B18,Sheet1!$A:$D,4,FALSE) -> -1.62525355 | J18: =IF(G18="N",H18-I18,(H18-I18+'Game Picker'!$L$4)) -> 2.376141839 | K18: 1.623858161 | L18: 0.743738899 | M18: 0.256261101 | N18: W | O18: 0.743738899 | P18: 0.7-.79 | Q18: W | R18: 1.623858161
A19: Towson | B19: Mercer | C19: 11 | D19: 2 | E19: 9 | F19: W | H19: =VLOOKUP(A19,Sheet1!$A:$D,4,FALSE) -> 3.601420652 | I19: =VLOOKUP(B19,Sheet1!$A:$D,4,FALSE) -> -3.606529156 | J19: =IF(G19="N",H19-I19,(H19-I19+'Game Picker'!$L$4)) -> 8.491317364 | K19: 0.5086826356 | L19: 0.9903681528 | M19: 0.009631847244 | N19: W | O19: 0.9903681528 | P19: 0.9-1 | Q19: W | R19: 0.5086826356
A20: Duke | B20: High Point | C20: 17 | D20: 6 | E20: 10 | F20: W | H20: =VLOOKUP(A20,Sheet1!$A:$D,4,FALSE) -> 4.523283353 | I20: =VLOOKUP(B20,Sheet1!$A:$D,4,FALSE) -> -1.175909064 | J20: =IF(G20="N",H20-I20,(H20-I20+'Game Picker'!$L$4)) -> 6.982559973 | K20: 3.017440027 | L20: 0.9728566997 | M20: 0.02714330029 | N20: W | O20: 0.9728566997 | P20: 0.9-1 | Q20: W | R20: 3.017440027
A21: Ohio State | B21: Detroit | C21: 16 | D21: 5 | E21: 10 | F21: W | H21: =VLOOKUP(A21,Sheet1!$A:$D,4,FALSE) -> 1.474575448 | I21: =VLOOKUP(B21,Sheet1!$A:$D,4,FALSE) -> -4.740561426 | J21: =IF(G21="N",H21-I21,(H21-I21+'Game Picker'!$L$4)) -> 7.498504431 | K21: 2.501495569 | L21: 0.9806210452 | M21: 0.01937895485 | N21: W | O21: 0.9806210452 | P21: 0.9-1 | Q21: W | R21: 2.501495569
A22: Air Force | B22: Denver | C22: 9 | D22: 10 | E22: -1 | F22: L | H22: =VLOOKUP(A22,Sheet1!$A:$D,4,FALSE) -> 0.8520259553 | I22: =VLOOKUP(B22,Sheet1!$A:$D,4,FALSE) -> 5.203220463 | J22: =IF(G22="N",H22-I22,(H22-I22+'Game Picker'!$L$4)) -> -3.067826951 | K22: 2.067826951 | L22: 0.198899508 | M22: 0.801100492 | N22: W | O22: 0.801100492 | P22: 0.8-.89 | Q22: W | R22: 2.067826951
A23: Bellarmine | B23: Robert Morris | C23: 11 | D23: 10 | E23: 1 | F23: W | H23: =VLOOKUP(A23,Sheet1!$A:$D,4,FALSE) -> -1.813156631 | I23: =VLOOKUP(B23,Sheet1!$A:$D,4,FALSE) -> -1.284958311 | J23: =IF(G23="N",H23-I23,(H23-I23+'Game Picker'!$L$4)) -> 0.7551692358 | K23: 0.2448307642 | L23: 0.5824404723 | M23: 0.4175595277 | N23: W | O23: 0.5824404723 | P23: 0.5-.59 | Q23: W | R23: 0.2448307642
A24: Syracuse | B24: Siena | C24: 18 | D24: 5 | E24: 10 | F24: W | H24: =VLOOKUP(A24,Sheet1!$A:$D,4,FALSE) -> 4.926891772 | I24: =VLOOKUP(B24,Sheet1!$A:$D,4,FALSE) -> -4.860827426 | J24: =IF(G24="N",H24-I24,(H24-I24+'Game Picker'!$L$4)) -> 11.07108676 | K24: -1.071086755 | L24: 0.9988612215 | M24: 0.001138778547 | N24: W | O24: 0.9988612215 | P24: 0.9-1 | Q24: W | R24: 1.071086755
A25: North Carolina | B25: Furman | C25: 14 | D25: 6 | E25: 8 | F25: W | H25: =VLOOKUP(A25,Sheet1!$A:$D,4,FALSE) -> 4.211880999 | I25: =VLOOKUP(B25,Sheet1!$A:$D,4,FALSE) -> -4.484832878 | J25: =IF(G25="N",H25-I25,(H25-I25+'Game Picker'!$L$4)) -> 9.980081433 | K25: -1.980081433 | L25: 0.9970268101 | M25: 0.002973189904 | N25: W | O25: 0.9970268101 | P25: 0.9-1 | Q25: W | R25: 1.980081433
A26: Virginia | B26: Loyola | C26: 4 | D26: 11 | E26: -7 | F26: L | H26: =VLOOKUP(A26,Sheet1!$A:$D,4,FALSE) -> 1.736397307 | I26: =VLOOKUP(B26,Sheet1!$A:$D,4,FALSE) -> 4.137803658 | J26: =IF(G26="N",H26-I26,(H26-I26+'Game Picker'!$L$4)) -> -1.118038795 | K26: -5.881961205 | L26: 0.3789820559 | M26: 0.6210179441 | N26: W | O26: 0.6210179441 | P26: 0.6-.69 | Q26: W | R26: 5.881961205
A27: Penn State | B27: Hobart | C27: 17 | D27: 12 | E27: 5 | F27: W | H27: =VLOOKUP(A27,Sheet1!$A:$D,4,FALSE) -> 2.508502072 | I27: =VLOOKUP(B27,Sheet1!$A:$D,4,FALSE) -> -1.066500325 | J27: =IF(G27="N",H27-I27,(H27-I27+'Game Picker'!$L$4)) -> 4.858369954 | K27: 0.1416300457 | L27: 0.9097261407 | M27: 0.09027385932 | N27: W | O27: 0.9097261407 | P27: 0.9-1 | Q27: W | R27: 0.1416300457
A28: Bryant | B28: Bucknell | C28: 10 | D28: 11 | E28: -1 | F28: L | G28: N | H28: =VLOOKUP(A28,Sheet1!$A:$D,4,FALSE) -> 1.889930725 | I28: =VLOOKUP(B28,Sheet1!$A:$D,4,FALSE) -> 2.444763683 | J28: =IF(G28="N",H28-I28,(H28-I28+'Game Picker'!$L$4)) -> -0.5548329581 | K28: -0.4451670419 | L28: 0.4392291787 | M28: 0.5607708213 | N28: W | O28: 0.5607708213 | P28: 0.5-.59 | Q28: W | R28: 0.4451670419
A29: Duke | B29: Lehigh | C29: 13 | D29: 11 | E29: 2 | F29: W | H29: =VLOOKUP(A29,Sheet1!$A:$D,4,FALSE) -> 4.523283353 | I29: =VLOOKUP(B29,Sheet1!$A:$D,4,FALSE) -> -0.8891448847 | J29: =IF(G29="N",H29-I29,(H29-I29+'Game Picker'!$L$4)) -> 6.695795794 | K29: -4.695795794 | L29: 0.9675178943 | M29: 0.03248210573 | N29: W | O29: 0.9675178943 | P29: 0.9-1 | Q29: W | R29: 4.695795794
A30: Michigan | B30: Colgate | C30: 9 | D30: 8 | E30: 1 | F30: W | H30: =VLOOKUP(A30,Sheet1!$A:$D,4,FALSE) -> -1.733023756 | I30: =VLOOKUP(B30,Sheet1!$A:$D,4,FALSE) -> -2.133759999 | J30: =IF(G30="N",H30-I30,(H30-I30+'Game Picker'!$L$4)) -> 1.6841038 | K30: -0.6841037996 | L30: 0.6787388046 | M30: 0.3212611954 | N30: W | O30: 0.6787388046 | P30: 0.6-.69 | Q30: W | R30: 0.6841037996
A31: Jacksonville | B31: Monmouth | C31: 5 | D31: 11 | E31: -6 | F31: L | H31: =VLOOKUP(A31,Sheet1!$A:$D,4,FALSE) -> -5.30087846 | I31: =VLOOKUP(B31,Sheet1!$A:$D,4,FALSE) -> -2.650516634 | J31: =IF(G31="N",H31-I31,(H31-I31+'Game Picker'!$L$4)) -> -1.36699427 | K31: -4.63300573 | L31: 0.3531712229 | M31: 0.6468287771 | N31: W | O31: 0.6468287771 | P31: 0.6-.69 | Q31: W | R31: 4.63300573
A32: Fairfield | B32: Richmond | C32: 10 | D32: 11 | E32: -1 | F32: L | H32: =VLOOKUP(A32,Sheet1!$A:$D,4,FALSE) -> 0.7439204973 | I32: =VLOOKUP(B32,Sheet1!$A:$D,4,FALSE) -> 0.08869566067 | J32: =IF(G32="N",H32-I32,(H32-I32+'Game Picker'!$L$4)) -> 1.938592393 | K32: -2.938592393 | L32: 0.7034390441 | M32: 0.2965609559 | N32: FALSE | O32: 0.7034390441 | P32: 0.7-.79 | Q32: L | R32: 2.938592393
A33: NJIT | B33: Vermont | C33: 5 | D33: 19 | E33: -10 | F33: L | G33: N | H33: =VLOOKUP(A33,Sheet1!$A:$D,4,FALSE) -> -8.638075186 | I33: =VLOOKUP(B33,Sheet1!$A:$D,4,FALSE) -> -0.3404077904 | J33: =IF(G33="N",H33-I33,(H33-I33+'Game Picker'!$L$4)) -> -8.297667395 | K33: -1.702332605 | L33: 0.01109749314 | M33: 0.9889025069 | N33: W | O33: 0.9889025069 | P33: 0.9-1 | Q33: W | R33: 1.702332605
A34: High Point | B34: Boston | C34: 10 | D34: 13 | E34: -3 | F34: L | H34: =VLOOKUP(A34,Sheet1!$A:$D,4,FALSE) -> -1.175909064 | I34: =VLOOKUP(B34,Sheet1!$A:$D,4,FALSE) -> -0.4476388759 | J34: =IF(G34="N",H34-I34,(H34-I34+'Game Picker'!$L$4)) -> 0.5550973687 | K34: -3.555097369 | L34: 0.560799557 | M34: 0.439200443 | N34: FALSE | O34: 0.560799557 | P34: 0.5-.59 | Q34: L | R34: 3.555097369
A35: Stony Brook | B35: Sacred Heart | C35: 17 | D35: 8 | E35: 9 | F35: W | H35: =VLOOKUP(A35,Sheet1!$A:$D,4,FALSE) -> 3.79124802 | I35: =VLOOKUP(B35,Sheet1!$A:$D,4,FALSE) -> -4.317467372 | J35: =IF(G35="N",H35-I35,(H35-I35+'Game Picker'!$L$4)) -> 9.392082949 | K35: -0.3920829489 | L35: 0.9951824722 | M35: 0.004817527813 | N35: W | O35: 0.9951824722 | P35: 0.9-1 | Q35: W | R35: 0.3920829489
A36: St. Johns | B36: Jacksonville | C36: 7 | D36: 8 | E36: -1 | F36: L | H36: =VLOOKUP(A36,Sheet1!$A:$D,4,FALSE) -> -3.765456536 | I36: =VLOOKUP(B36,Sheet1!$A:$D,4,FALSE) -> -5.30087846 | J36: =IF(G36="N",H36-I36,(H36-I36+'Game Picker'!$L$4)) -> 2.818789481 | K36: -3.818789481 | L36: 0.7813965952 | M36: 0.2186034048 | N36: FALSE | O36: 0.7813965952 | P36: 0.7-.79 | Q36: L | R36: 3.818789481
A37: Lafayette | B37: Wagner | C37: 12 | D37: 7 | E37: 5 | F37: W | H37: =VLOOKUP(A37,Sheet1!$A:$D,4,FALSE) -> -4.802015289 | I37: =VLOOKUP(B37,Sheet1!$A:$D,4,FALSE) -> -5.842365931 | J37: =IF(G37="N",H37-I37,(H37-I37+'Game Picker'!$L$4)) -> 2.323718198 | K37: 2.676281802 | L37: 0.7390652737 | M37: 0.2609347263 | N37: W | O37: 0.7390652737 | P37: 0.7-.79 | Q37: W | R37: 2.676281802
A38: Furman | B38: Lehigh | C38: 7 | D38: 15 | E38: -8 | F38: L | H38: =VLOOKUP(A38,Sheet1!$A:$D,4,FALSE) -> -4.484832878 | I38: =VLOOKUP(B38,Sheet1!$A:$D,4,FALSE) -> -0.8891448847 | J38: =IF(G38="N",H38-I38,(H38-I38+'Game Picker'!$L$4)) -> -2.312320437 | K38: -5.687679563 | L38: 0.2619566196 | M38: 0.7380433804 | N38: W | O38: 0.7380433804 | P38: 0.7-.79 | Q38: W | R38: 5.687679563
A39: Robert Morris | B39: Manhattan | C39: 19 | D39: 6 | E39: 10 | F39: W | H39: =VLOOKUP(A39,Sheet1!$A:$D,4,FALSE) -> -1.284958311 | I39: =VLOOKUP(B39,Sheet1!$A:$D,4,FALSE) -> -6.623228534 | J39: =IF(G39="N",H39-I39,(H39-I39+'Game Picker'!$L$4)) -> 6.62163778 | K39: 3.37836222 | L39: 0.966004373 | M39: 0.03399562699 | N39: W | O39: 0.966004373 | P39: 0.9-1 | Q39: W | R39: 3.37836222
A40: Georgetown | B40: Notre Dame | C40: 7 | D40: 12 | E40: -5 | F40: L | G40: N | H40: =VLOOKUP(A40,Sheet1!$A:$D,4,FALSE) -> -1.436486274 | I40: =VLOOKUP(B40,Sheet1!$A:$D,4,FALSE) -> 5.34856419 | J40: =IF(G40="N",H40-I40,(H40-I40+'Game Picker'!$L$4)) -> -6.785050464 | K40: 1.785050464 | L40: 0.03073463251 | M40: 0.9692653675 | N40: W | O40: 0.9692653675 | P40: 0.9-1 | Q40: W | R40: 1.785050464
A41: Fairfield | B41: Bucknell | C41: 8 | D41: 13 | E41: -5 | F41: L | H41: =VLOOKUP(A41,Sheet1!$A:$D,4,FALSE) -> 0.7439204973 | I41: =VLOOKUP(B41,Sheet1!$A:$D,4,FALSE) -> 2.444763683 | J41: =IF(G41="N",H41-I41,(H41-I41+'Game Picker'!$L$4)) -> -0.417475629 | K41: -4.582524371 | L41: 0.454196722 | M41: 0.545803278 | N41: W | O41: 0.545803278 | P41: 0.5-.59 | Q41: L | R41: 4.582524371
A42: Harvard | B42: Villanova | C42: 13 | D42: 12 | E42: 1 | F42: W | H42: =VLOOKUP(A42,Sheet1!$A:$D,4,FALSE) -> 3.02736856 | I42: =VLOOKUP(B42,Sheet1!$A:$D,4,FALSE) -> 4.405170203 | J42: =IF(G42="N",H42-I42,(H42-I42+'Game Picker'!$L$4)) -> -0.09443408708 | K42: 1.094434087 | L42: 0.4896174822 | M42: 0.5103825178 | N42: FALSE | O42: 0.5103825178 | P42: 0.5-.59 | Q42: W | R42: 1.094434087
A43: Marist | B43: Air Force | C43: 6 | D43: 7 | E43: -1 | F43: L | H43: =VLOOKUP(A43,Sheet1!$A:$D,4,FALSE) -> -1.337627557 | I43: =VLOOKUP(B43,Sheet1!$A:$D,4,FALSE) -> 0.8520259553 | J43: =IF(G43="N",H43-I43,(H43-I43+'Game Picker'!$L$4)) -> -0.9062859561 | K43: -0.09371404385 | L43: 0.4013741947 | M43: 0.5986258053 | N43: W | O43: 0.5986258053 | P43: 0.5-.59 | Q43: W | R43: 0.09371404385
A44: Quinnipiac | B44: Brown | C44: 7 | D44: 20 | E44: -10 | F44: L | H44: =VLOOKUP(A44,Sheet1!$A:$D,4,FALSE) -> 0.3551132287 | I44: =VLOOKUP(B44,Sheet1!$A:$D,4,FALSE) -> 7.805770702 | J44: =IF(G44="N",H44-I44,(H44-I44+'Game Picker'!$L$4)) -> -6.167289917 | K44: -3.832710083 | L44: 0.04458081294 | M44: 0.9554191871 | N44: W | O44: 0.9554191871 | P44: 0.9-1 | Q44: W | R44: 3.832710083
A45: Massachusetts | B45: Ohio State | C45: 16 | D45: 9 | E45: 7 | F45: W | H45: =VLOOKUP(A45,Sheet1!$A:$D,4,FALSE) -> 1.141787934 | I45: =VLOOKUP(B45,Sheet1!$A:$D,4,FALSE) -> 1.474575448 | J45: =IF(G45="N",H45-I45,(H45-I45+'Game Picker'!$L$4)) -> 0.9505800425 | K45: 6.049419958 | L45: 0.6033393406 | M45: 0.3966606594 | N45: W | O45: 0.6033393406 | P45: 0.6-.69 | Q45: L | R45: 6.049419958
A46: UMBC | B46: Richmond | C46: 5 | D46: 7 | E46: -2 | F46: L | H46: =VLOOKUP(A46,Sheet1!$A:$D,4,FALSE) -> -2.541740474 | I46: =VLOOKUP(B46,Sheet1!$A:$D,4,FALSE) -> 0.08869566067 | J46: =IF(G46="N",H46-I46,(H46-I46+'Game Picker'!$L$4)) -> -1.347068578 | K46: -0.6529314218 | L46: 0.3552141732 | M46: 0.6447858268 | N46: W | O46: 0.6447858268 | P46: 0.6-.69 | Q46: W | R46: 0.6529314218
A47: Maryland | B47: High Point | C47: 15 | D47: 10 | E47: 5 | F47: W | H47: =VLOOKUP(A47,Sheet1!$A:$D,4,FALSE) -> 5.775430824 | I47: =VLOOKUP(B47,Sheet1!$A:$D,4,FALSE) -> -1.175909064 | J47: =IF(G47="N",H47-I47,(H47-I47+'Game Picker'!$L$4)) -> 8.234707444 | K47: -3.234707444 | L47: 0.9883859273 | M47: 0.01161407273 | N47: W | O47: 0.9883859273 | P47: 0.9-1 | Q47: W | R47: 3.234707444
A48: Boston | B48: Hartford | C48: 10 | D48: 16 | E48: -6 | F48: L | H48: =VLOOKUP(A48,Sheet1!$A:$D,4,FALSE) -> -0.4476388759 | I48: =VLOOKUP(B48,Sheet1!$A:$D,4,FALSE) -> -0.3692835887 | J48: =IF(G48="N",H48-I48,(H48-I48+'Game Picker'!$L$4)) -> 1.205012269 | K48: -7.205012269 | L48: 0.630103362 | M48: 0.369896638 | N48: FALSE | O48: 0.630103362 | P48: 0.6-.69 | Q48: L | R48: 7.205012269
A49: Colgate | B49: Binghamton | C49: 11 | D49: 4 | E49: 7 | F49: W | H49: =VLOOKUP(A49,Sheet1!$A:$D,4,FALSE) -> -2.133759999 | I49: =VLOOKUP(B49,Sheet1!$A:$D,4,FALSE) -> -2.893866393 | J49: =IF(G49="N",H49-I49,(H49-I49+'Game Picker'!$L$4)) -> 2.04347395 | K49: 4.95652605 | L49: 0.7133591799 | M49: 0.2866408201 | N49: W | O49: 0.7133591799 | P49: 0.7-.79 | Q49: W | R49: 4.95652605
A50: Drexel | B50: Virginia | C50: 7 | D50: 14 | E50: -7 | F50: L | H50: =VLOOKUP(A50,Sheet1!$A:$D,4,FALSE) -> 0.605883128 | I50: =VLOOKUP(B50,Sheet1!$A:$D,4,FALSE) -> 1.736397307 | J50: =IF(G50="N",H50-I50,(H50-I50+'Game Picker'!$L$4)) -> 0.1528533779 | K50: -7.152853378 | L50: 0.5168023302 | M50: 0.4831976698 | N50: FALSE | O50: 0.5168023302 | P50: 0.5-.59 | Q50: L | R50: 7.152853378
A51: Loyola | B51: Johns Hopkins | C51: 9 | D51: 8 | E51: 1 | F51: W | H51: =VLOOKUP(A51,Sheet1!$A:$D,4,FALSE) -> 4.137803658 | I51: =VLOOKUP(B51,Sheet1!$A:$D,4,FALSE) -> 3.298359288 | J51: =IF(G51="N",H51-I51,(H51-I51+'Game Picker'!$L$4)) -> 2.122811927 | K51: -1.122811927 | L51: 0.7207571724 | M51: 0.2792428276 | N51: W | O51: 0.7207571724 | P51: 0.7-.79 | Q51: W | R51: 1.122811927
A52: Mercer | B52: Detroit | C52: 9 | D52: 8 | E52: 1 | F52: W | H52: =VLOOKUP(A52,Sheet1!$A:$D,4,FALSE) -> -3.606529156 | I52: =VLOOKUP(B52,Sheet1!$A:$D,4,FALSE) -> -4.740561426 | J52: =IF(G52="N",H52-I52,(H52-I52+'Game Picker'!$L$4)) -> 2.417399827 | K52: -1.417399827 | L52: 0.747386169 | M52: 0.252613831 | N52: W | O52: 0.747386169 | P52: 0.7-.79 | Q52: W | R52: 1.417399827
A53: Marquette | B53: Bellarmine | C53: 9 | D53: 7 | E53: 2 | F53: W | H53: =VLOOKUP(A53,Sheet1!$A:$D,4,FALSE) -> 2.852862235 | I53: =VLOOKUP(B53,Sheet1!$A:$D,4,FALSE) -> -1.813156631 | J53: =IF(G53="N",H53-I53,(H53-I53+'Game Picker'!$L$4)) -> 5.949386423 | K53: -3.949386423 | L53: 0.9494743279 | M53: 0.05052567207 | N53: W | O53: 0.9494743279 | P53: 0.9-1 | Q53: W | R53: 3.949386423
A54: Providence | B54: Bryant | C54: 10 | D54: 12 | E54: -2 | F54: L | H54: =VLOOKUP(A54,Sheet1!$A:$D,4,FALSE) -> -0.5324792673 | I54: =VLOOKUP(B54,Sheet1!$A:$D,4,FALSE) -> 1.889930725 | J54: =IF(G54="N",H54-I54,(H54-I54+'Game Picker'!$L$4)) -> -1.139042436 | K54: -0.8609575645 | L54: 0.3767816261 | M54: 0.6232183739 | N54: W | O54: 0.6232183739 | P54: 0.6-.69 | Q54: W | R54: 0.8609575645
A55: Sacred Heart | B55: Dartmouth | C55: 10 | D55: 8 | E55: 2 | F55: W | H55: =VLOOKUP(A55,Sheet1!$A:$D,4,FALSE) -> -4.317467372 | I55: =VLOOKUP(B55,Sheet1!$A:$D,4,FALSE) -> -5.795251217 | J55: =IF(G55="N",H55-I55,(H55-I55+'Game Picker'!$L$4)) -> 2.761151401 | K55: -0.7611514011 | L55: 0.7766811103 | M55: 0.2233188897 | N55: W | O55: 0.7766811103 | P55: 0.7-.79 | Q55: W | R55: 0.7611514011
A56: St. Josephs | B56: VMI | C56: 15 | D56: 5 | E56: 10 | F56: W | H56: =VLOOKUP(A56,Sheet1!$A:$D,4,FALSE) -> 2.152350014 | I56: =VLOOKUP(B56,Sheet1!$A:$D,4,FALSE) -> -9.895063579 | J56: =IF(G56="N",H56-I56,(H56-I56+'Game Picker'!$L$4)) -> 13.33078115 | K56: -3.330781149 | L56: 0.9998807245 | M56: 0.000119275487 | N56: W | O56: 0.9998807245 | P56: 0.9-1 | Q56: W | R56: 3.330781149
A57: Lowell | B57: Yale | C57: 7 | D57: 17 | E57: -10 | F57: L | H57: =VLOOKUP(A57,Sheet1!$A:$D,4,FALSE) -> -5.018299136 | I57: =VLOOKUP(B57,Sheet1!$A:$D,4,FALSE) -> 4.774854864 | J57: =IF(G57="N",H57-I57,(H57-I57+'Game Picker'!$L$4)) -> -8.509786444 | K57: -1.490213556 | L57: 0.009501327663 | M57: 0.9904986723 | N57: W | O57: 0.9904986723 | P57: 0.9-1 | Q57: W | R57: 1.490213556
A58: Duke | B58: Denver | C58: 12 | D58: 14 | E58: -2 | F58: L | G58: N | H58: =VLOOKUP(A58,Sheet1!$A:$D,4,FALSE) -> 4.523283353 | I58: =VLOOKUP(B58,Sheet1!$A:$D,4,FALSE) -> 5.203220463 | J58: =IF(G58="N",H58-I58,(H58-I58+'Game Picker'!$L$4)) -> -0.6799371102 | K58: -1.32006289 | L58: 0.4256714776 | M58: 0.5743285224 | N58: W | O58: 0.5743285224 | P58: 0.5-.59 | Q58: W | R58: 1.32006289
A59: Towson | B59: Mt. St. Marys | C59: 9 | D59: 5 | E59: 4 | F59: W | H59: =VLOOKUP(A59,Sheet1!$A:$D,4,FALSE) -> 3.601420652 | I59: =VLOOKUP(B59,Sheet1!$A:$D,4,FALSE) -> -2.359246425 | J59: =IF(G59="N",H59-I59,(H59-I59+'Game Picker'!$L$4)) -> 7.244034634 | K59: -3.244034634 | L59: 0.9770662523 | M59: 0.02293374769 | N59: W | O59: 0.9770662523 | P59: 0.9-1 | Q59: W | R59: 3.244034634
A60: North Carolina | B60: Hofstra | C60: 5 | D60: 10 | E60: -5 | F60: L | H60: =VLOOKUP(A60,Sheet1!$A:$D,4,FALSE) -> 4.211880999 | I60: =VLOOKUP(B60,Sheet1!$A:$D,4,FALSE) -> 1.060232161 | J60: =IF(G60="N",H60-I60,(H60-I60+'Game Picker'!$L$4)) -> 4.435016394 | K60: -9.435016394 | L60: 0.8892190092 | M60: 0.1107809908 | N60: FALSE | O60: 0.8892190092 | P60: 0.8-.89 | Q60: L | R60: 9.435016394
A61: Army | B61: Rutgers | C61: 11 | D61: 13 | E61: -2 | F61: L | H61: =VLOOKUP(A61,Sheet1!$A:$D,4,FALSE) -> 2.926934471 | I61: =VLOOKUP(B61,Sheet1!$A:$D,4,FALSE) -> 2.641567062 | J61: =IF(G61="N",H61-I61,(H61-I61+'Game Picker'!$L$4)) -> 1.568734966 | K61: -3.568734966 | L61: 0.6672662326 | M61: 0.3327337674 | N61: FALSE | O61: 0.6672662326 | P61: 0.6-.69 | Q61: L | R61: 3.568734966
A62: Cornell | B62: Penn State | C62: 7 | D62: 8 | E62: -1 | F62: L | H62: =VLOOKUP(A62,Sheet1!$A:$D,4,FALSE) -> 0.7550888591 | I62: =VLOOKUP(B62,Sheet1!$A:$D,4,FALSE) -> 2.508502072 | J62: =IF(G62="N",H62-I62,(H62-I62+'Game Picker'!$L$4)) -> -0.4700456568 | K62: -0.5299543432 | L62: 0.4484594038 | M62: 0.5515405962 | N62: W | O62: 0.5515405962 | P62: 0.5-.59 | Q62: W | R62: 0.5299543432
A63: Holy Cross | B63: Vermont | C63: 8 | D63: 14 | E63: -6 | F63: L | H63: =VLOOKUP(A63,Sheet1!$A:$D,4,FALSE) -> -1.62525355 | I63: =VLOOKUP(B63,Sheet1!$A:$D,4,FALSE) -> -0.3404077904 | J63: =IF(G63="N",H63-I63,(H63-I63+'Game Picker'!$L$4)) -> -0.001478203031 | K63: -5.998521797 | L63: 0.4998374612 | M63: 0.5001625388 | N63: W | O63: 0.5001625388 | P63: 0.5-.59 | Q63: L | R63: 5.998521797
A64: Princeton | B64: NJIT | C64: 21 | D64: 4 | E64: 10 | F64: W | H64: =VLOOKUP(A64,Sheet1!$A:$D,4,FALSE) -> -0.3610541581 | I64: =VLOOKUP(B64,Sheet1!$A:$D,4,FALSE) -> -8.638075186 | J64: =IF(G64="N",H64-I64,(H64-I64+'Game Picker'!$L$4)) -> 9.560388584 | K64: 0.4396114158 | L64: 0.9957937216 | M64: 0.004206278424 | N64: W | O64: 0.9957937216 | P64: 0.9-1 | Q64: W | R64: 0.4396114158
A65: Penn | B65: Michigan | C65: 12 | D65: 10 | E65: 2 | F65: W | H65: =VLOOKUP(A65,Sheet1!$A:$D,4,FALSE) -> 1.698846892 | I65: =VLOOKUP(B65,Sheet1!$A:$D,4,FALSE) -> -1.733023756 | J65: =IF(G65="N",H65-I65,(H65-I65+'Game Picker'!$L$4)) -> 4.715238204 | K65: -2.715238204 | L65: 0.9031344386 | M65: 0.09686556136 | N65: W | O65: 0.9031344386 | P65: 0.9-1 | Q65: W | R65: 2.715238204
A66: Hobart | B66: Siena | C66: 12 | D66: 9 | E66: 3 | F66: W | G66: N | H66: =VLOOKUP(A66,Sheet1!$A:$D,4,FALSE) -> -1.066500325 | I66: =VLOOKUP(B66,Sheet1!$A:$D,4,FALSE) -> -4.860827426 | J66: =IF(G66="N",H66-I66,(H66-I66+'Game Picker'!$L$4)) -> 3.794327101 | K66: -0.794327101 | L66: =IF(G66="N",NORMDIST(0,I66-H66,$C$539,TRUE),NORMDIST(0,I66-H66-$C$542,$C$539,TRUE)) -> 0.8521727506 | M66: =IF(G66="N",NORMDIST(0,H66-I66,$C$539,TRUE),NORMDIST(0,H66-I66+$C$542,$C$539,TRUE)) -> 0.1478272494 | N66: =IF(E66<0,IF(L66<0.5,"W"),IF(E66>0,IF(L66>0.5,"W"),"L")) -> W | O66: 0.8521727506 | P66: 0.8-.89 | Q66: W | R66: 0.794327101
A67: Army | B67: VMI | C67: 22 | D67: 3 | E67: =IF(C67-D67<-10,-10,(IF(C67-D67>10,10,C67-D67))) -> 10 | F67: =IF(C67>D67,"W","L") -> W | H67: =VLOOKUP(A67,Sheet1!$A:$D,4,FALSE) -> 2.926934471 | I67: =VLOOKUP(B67,Sheet1!$A:$D,4,FALSE) -> -9.895063579 | J67: =IF(G67="N",H67-I67,(H67-I67+'Game Picker'!$L$4)) -> 14.10536561 | K67: =E67-J67 -> -4.105365606 | L67: 0.999949409 | M67: 5.059096374e-05 | N67: W | O67: =IF(M67>L67,M67,L67) -> 0.999949409 | P67: =IF(AND(O67>=0.9,O67<1.01),"0.9-1",IF(AND(O67>=0.8,O67<0.9),"0.8-.89",IF(AND(O67>=0.7,O67<0.8),"0.7-.79",IF(AND(O67>=0.6,O67<0.7),"0.6-.69",IF(AND(O67>=0.5,O67<0.6),"0.5-.59"))))) -> 0.9-1 | Q67: =IF(AND(J67<=1,J67>=-1,K67<=3,K67>-3),"W",IF(AND(E67<=-1,J67<=-1),"W",IF(AND(E67>=1,J67>=1),"W","L"))) -> W | R67: =IF(K67<0,-K67,K67) -> 4.105365606
A68: Navy | B68: Delaware | C68: 5 | D68: 1 | E68: 4 | F68: W | H68: =VLOOKUP(A68,Sheet1!$A:$D,4,FALSE) -> 3.64940015 | I68: =VLOOKUP(B68,Sheet1!$A:$D,4,FALSE) -> -2.337195547 | J68: =IF(G68="N",H68-I68,(H68-I68+'Game Picker'!$L$4)) -> 7.269963253 | K68: -3.269963253 | L68: 0.9774519583 | M68: 0.02254804169 | N68: W | O68: 0.9774519583 | P68: 0.9-1 | Q68: W | R68: 3.269963253
A69: Stony Brook | B69: St. Johns | C69: 14 | D69: 6 | E69: 8 | F69: W | H69: =VLOOKUP(A69,Sheet1!$A:$D,4,FALSE) -> 3.79124802 | I69: =VLOOKUP(B69,Sheet1!$A:$D,4,FALSE) -> -3.765456536 | J69: =IF(G69="N",H69-I69,(H69-I69+'Game Picker'!$L$4)) -> 8.840072113 | K69: -0.8400721129 | L69: 0.9925851748 | M69: 0.007414825161 | N69: W | O69: 0.9925851748 | P69: 0.9-1 | Q69: W | R69: 0.8400721129
A70: Syracuse | B70: Albany | C70: 16 | D70: 7 | E70: 9 | F70: W | H70: =VLOOKUP(A70,Sheet1!$A:$D,4,FALSE) -> 4.926891772 | I70: =VLOOKUP(B70,Sheet1!$A:$D,4,FALSE) -> 3.583233584 | J70: =IF(G70="N",H70-I70,(H70-I70+'Game Picker'!$L$4)) -> 2.627025745 | K70: 6.372974255 | L70: 0.7654868997 | M70: 0.2345131003 | N70: W | O70: 0.7654868997 | P70: 0.7-.79 | Q70: W | R70: 6.372974255
A71: Wagner | B71: Monmouth | C71: 4 | D71: 8 | E71: -4 | F71: L | H71: =VLOOKUP(A71,Sheet1!$A:$D,4,FALSE) -> -5.842365931 | I71: =VLOOKUP(B71,Sheet1!$A:$D,4,FALSE) -> -2.650516634 | J71: =IF(G71="N",H71-I71,(H71-I71+'Game Picker'!$L$4)) -> -1.90848174 | K71: -2.09151826 | L71: 0.2994377375 | M71: 0.7005622625 | N71: W | O71: 0.7005622625 | P71: 0.7-.79 | Q71: W | R71: 2.09151826
A72: Harvard | B72: Holy Cross | C72: 11 | D72: 10 | E72: 1 | F72: W | H72: =VLOOKUP(A72,Sheet1!$A:$D,4,FALSE) -> 3.02736856 | I72: =VLOOKUP(B72,Sheet1!$A:$D,4,FALSE) -> -1.62525355 | J72: =IF(G72="N",H72-I72,(H72-I72+'Game Picker'!$L$4)) -> 5.935989666 | K72: -4.935989666 | L72: 0.9490891548 | M72: 0.0509108452 | N72: W | O72: 0.9490891548 | P72: 0.9-1 | Q72: W | R72: 4.935989666
A73: Richmond | B73: Mt. St. Marys | C73: 9 | D73: 6 | E73: 3 | F73: W | H73: =VLOOKUP(A73,Sheet1!$A:$D,4,FALSE) -> 0.08869566067 | I73: =VLOOKUP(B73,Sheet1!$A:$D,4,FALSE) -> -2.359246425 | J73: =IF(G73="N",H73-I73,(H73-I73+'Game Picker'!$L$4)) -> 3.731309643 | K73: -0.7313096426 | L73: 0.8481258748 | M73: 0.1518741252 | N73: W | O73: 0.8481258748 | P73: 0.8-.89 | Q73: W | R73: 0.7313096426
A74: Mercer | B74: Siena | C74: 12 | D74: 11 | E74: 1 | F74: W | H74: =VLOOKUP(A74,Sheet1!$A:$D,4,FALSE) -> -3.606529156 | I74: =VLOOKUP(B74,Sheet1!$A:$D,4,FALSE) -> -4.860827426 | J74: =IF(G74="N",H74-I74,(H74-I74+'Game Picker'!$L$4)) -> 2.537665827 | K74: -1.537665827 | L74: 0.7578598568 | M74: 0.2421401432 | N74: W | O74: 0.7578598568 | P74: 0.7-.79 | Q74: W | R74: 1.537665827
A75: Virginia | B75: High Point | C75: 11 | D75: 12 | E75: -1 | F75: L | H75: =VLOOKUP(A75,Sheet1!$A:$D,4,FALSE) -> 1.736397307 | I75: =VLOOKUP(B75,Sheet1!$A:$D,4,FALSE) -> -1.175909064 | J75: =IF(G75="N",H75-I75,(H75-I75+'Game Picker'!$L$4)) -> 4.195673927 | K75: -5.195673927 | L75: 0.876244753 | M75: 0.123755247 | N75: FALSE | O75: 0.876244753 | P75: 0.8-.89 | Q75: L | R75: 5.195673927
A76: Notre Dame | B76: Bellarmine | C76: 11 | D76: 6 | E76: 5 | F76: W | H76: =VLOOKUP(A76,Sheet1!$A:$D,4,FALSE) -> 5.34856419 | I76: =VLOOKUP(B76,Sheet1!$A:$D,4,FALSE) -> -1.813156631 | J76: =IF(G76="N",H76-I76,(H76-I76+'Game Picker'!$L$4)) -> 8.445088378 | K76: -3.445088378 | L76: 0.9900345644 | M76: 0.009965435553 | N76: W | O76: 0.9900345644 | P76: 0.9-1 | Q76: W | R76: 3.445088378
A77: Ohio State | B77: UMBC | C77: 12 | D77: 7 | E77: 5 | F77: W | H77: =VLOOKUP(A77,Sheet1!$A:$D,4,FALSE) -> 1.474575448 | I77: =VLOOKUP(B77,Sheet1!$A:$D,4,FALSE) -> -2.541740474 | J77: =IF(G77="N",H77-I77,(H77-I77+'Game Picker'!$L$4)) -> 5.299683478 | K77: -0.2996834782 | L77: 0.9279519216 | M77: 0.07204807841 | N77: W | O77: 0.9279519216 | P77: 0.9-1 | Q77: W | R77: 0.2996834782
A78: Air Force | B78: Dartmouth | C78: 9 | D78: 3 | E78: 6 | F78: W | G78: N | H78: =VLOOKUP(A78,Sheet1!$A:$D,4,FALSE) -> 0.8520259553 | I78: =VLOOKUP(B78,Sheet1!$A:$D,4,FALSE) -> -5.795251217 | J78: =IF(G78="N",H78-I78,(H78-I78+'Game Picker'!$L$4)) -> 6.647277172 | K78: -0.647277172 | L78: 0.9665340878 | M78: 0.03346591223 | N78: W | O78: 0.9665340878 | P78: 0.9-1 | Q78: W | R78: 0.647277172
A79: Robert Morris | B79: High Point | C79: 10 | D79: 15 | E79: -5 | F79: L | H79: =VLOOKUP(A79,Sheet1!$A:$D,4,FALSE) -> -1.284958311 | I79: =VLOOKUP(B79,Sheet1!$A:$D,4,FALSE) -> -1.175909064 | J79: =IF(G79="N",H79-I79,(H79-I79+'Game Picker'!$L$4)) -> 1.17431831 | K79: -6.17431831 | L79: 0.6269049988 | M79: 0.3730950012 | N79: FALSE | O79: 0.6269049988 | P79: 0.6-.69 | Q79: L | R79: 6.17431831
A80: Albany | B80: Drexel | C80: 20 | D80: 14 | E80: 6 | F80: W | H80: =VLOOKUP(A80,Sheet1!$A:$D,4,FALSE) -> 3.583233584 | I80: =VLOOKUP(B80,Sheet1!$A:$D,4,FALSE) -> 0.605883128 | J80: =IF(G80="N",H80-I80,(H80-I80+'Game Picker'!$L$4)) -> 4.260718012 | K80: 1.739281988 | L80: 0.8798715421 | M80: 0.1201284579 | N80: W | O80: 0.8798715421 | P80: 0.8-.89 | Q80: W | R80: 1.739281988
A81: Bellarmine | B81: Quinnipiac | C81: 6 | D81: 12 | E81: -6 | F81: L | H81: =VLOOKUP(A81,Sheet1!$A:$D,4,FALSE) -> -1.813156631 | I81: =VLOOKUP(B81,Sheet1!$A:$D,4,FALSE) -> 0.3551132287 | J81: =IF(G81="N",H81-I81,(H81-I81+'Game Picker'!$L$4)) -> -0.8849023034 | K81: -5.115097697 | L81: 0.4036549197 | M81: 0.5963450803 | N81: W | O81: 0.5963450803 | P81: 0.5-.59 | Q81: L | R81: 5.115097697
A82: Colgate | B82: Bucknell | C82: 11 | D82: 10 | E82: 1 | F82: W | H82: =VLOOKUP(A82,Sheet1!$A:$D,4,FALSE) -> -2.133759999 | I82: =VLOOKUP(B82,Sheet1!$A:$D,4,FALSE) -> 2.444763683 | J82: =IF(G82="N",H82-I82,(H82-I82+'Game Picker'!$L$4)) -> -3.295156125 | K82: 4.295156125 | L82: 0.181882215 | M82: 0.818117785 | N82: FALSE | O82: 0.818117785 | P82: 0.8-.89 | Q82: L | R82: 4.295156125
A83: Lehigh | B83: Holy Cross | C83: 12 | D83: 11 | E83: 1 | F83: W | H83: =VLOOKUP(A83,Sheet1!$A:$D,4,FALSE) -> -0.8891448847 | I83: =VLOOKUP(B83,Sheet1!$A:$D,4,FALSE) -> -1.62525355 | J83: =IF(G83="N",H83-I83,(H83-I83+'Game Picker'!$L$4)) -> 2.019476222 | K83: -1.019476222 | L83: 0.7111033045 | M83: 0.2888966955 | N83: W | O83: 0.7111033045 | P83: 0.7-.79 | Q83: W | R83: 1.019476222
A84: Richmond | B84: Marquette | C84: 2 | D84: 7 | E84: -5 | F84: L | H84: =VLOOKUP(A84,Sheet1!$A:$D,4,FALSE) -> 0.08869566067 | I84: =VLOOKUP(B84,Sheet1!$A:$D,4,FALSE) -> 2.852862235 | J84: =IF(G84="N",H84-I84,(H84-I84+'Game Picker'!$L$4)) -> -1.480799018 | K84: -3.519200982 | L84: 0.3415855088 | M84: 0.6584144912 | N84: W | O84: 0.6584144912 | P84: 0.6-.69 | Q84: W | R84: 3.519200982
A85: St. Josephs | B85: Manhattan | C85: 16 | D85: 9 | E85: 7 | F85: W | H85: =VLOOKUP(A85,Sheet1!$A:$D,4,FALSE) -> 2.152350014 | I85: =VLOOKUP(B85,Sheet1!$A:$D,4,FALSE) -> -6.623228534 | J85: =IF(G85="N",H85-I85,(H85-I85+'Game Picker'!$L$4)) -> 10.0589461 | K85: -3.058946104 | L85: 0.9972182853 | M85: 0.002781714723 | N85: W | O85: 0.9972182853 | P85: 0.9-1 | Q85: W | R85: 3.058946104
A86: Towson | B86: Georgetown | C86: 10 | D86: 7 | E86: 3 | F86: W | H86: =VLOOKUP(A86,Sheet1!$A:$D,4,FALSE) -> 3.601420652 | I86: =VLOOKUP(B86,Sheet1!$A:$D,4,FALSE) -> -1.436486274 | J86: =IF(G86="N",H86-I86,(H86-I86+'Game Picker'!$L$4)) -> 6.321274482 | K86: -3.321274482 | L86: 0.9592701157 | M86: 0.04072988432 | N86: W | O86: 0.9592701157 | P86: 0.9-1 | Q86: W | R86: 3.321274482
A87: Boston | B87: Navy | C87: 10 | D87: 9 | E87: 1 | F87: W | H87: =VLOOKUP(A87,Sheet1!$A:$D,4,FALSE) -> -0.4476388759 | I87: =VLOOKUP(B87,Sheet1!$A:$D,4,FALSE) -> 3.64940015 | J87: =IF(G87="N",H87-I87,(H87-I87+'Game Picker'!$L$4)) -> -2.813671469 | K87: 3.813671469 | L87: 0.2190197863 | M87: 0.7809802137 | N87: FALSE | O87: 0.7809802137 | P87: 0.7-.79 | Q87: L | R87: 3.813671469
A88: Hartford | B88: Bryant | C88: 11 | D88: 16 | E88: -5 | F88: L | H88: =VLOOKUP(A88,Sheet1!$A:$D,4,FALSE) -> -0.3692835887 | I88: =VLOOKUP(B88,Sheet1!$A:$D,4,FALSE) -> 1.889930725 | J88: =IF(G88="N",H88-I88,(H88-I88+'Game Picker'!$L$4)) -> -0.9758467569 | K88: -4.024153243 | L88: 0.3939786137 | M88: 0.6060213863 | N88: W | O88: 0.6060213863 | P88: 0.6-.69 | Q88: L | R88: 4.024153243
A89: Jacksonville | B89: Duke | C89: 5 | D89: 18 | E89: -10 | F89: L | H89: =VLOOKUP(A89,Sheet1!$A:$D,4,FALSE) -> -5.30087846 | I89: =VLOOKUP(B89,Sheet1!$A:$D,4,FALSE) -> 4.523283353 | J89: =IF(G89="N",H89-I89,(H89-I89+'Game Picker'!$L$4)) -> -8.540794257 | K89: -1.459205743 | L89: 0.009285673714 | M89: 0.9907143263 | N89: W | O89: 0.9907143263 | P89: 0.9-1 | Q89: W | R89: 1.459205743
A90: Loyola | B90: Lafayette | C90: 12 | D90: 8 | E90: 4 | F90: W | H90: =VLOOKUP(A90,Sheet1!$A:$D,4,FALSE) -> 4.137803658 | I90: =VLOOKUP(B90,Sheet1!$A:$D,4,FALSE) -> -4.802015289 | J90: =IF(G90="N",H90-I90,(H90-I90+'Game Picker'!$L$4)) -> 10.2231865 | K90: -6.223186504 | L90: 0.9975817658 | M90: 0.002418234179 | N90: W | O90: 0.9975817658 | P90: 0.9-1 | Q90: W | R90: 6.223186504
A91: Penn State | B91: Villanova | C91: 9 | D91: 19 | E91: -10 | F91: L | H91: =VLOOKUP(A91,Sheet1!$A:$D,4,FALSE) -> 2.508502072 | I91: =VLOOKUP(B91,Sheet1!$A:$D,4,FALSE) -> 4.405170203 | J91: =IF(G91="N",H91-I91,(H91-I91+'Game Picker'!$L$4)) -> -0.6133005742 | K91: -9.386699426 | L91: 0.4328830865 | M91: 0.5671169135 | N91: W | O91: 0.5671169135 | P91: 0.5-.59 | Q91: L | R91: 9.386699426
A92: Siena | B92: Lowell | C92: 11 | D92: 7 | E92: 4 | F92: W | H92: =VLOOKUP(A92,Sheet1!$A:$D,4,FALSE) -> -4.860827426 | I92: =VLOOKUP(B92,Sheet1!$A:$D,4,FALSE) -> -5.018299136 | J92: =IF(G92="N",H92-I92,(H92-I92+'Game Picker'!$L$4)) -> 1.440839266 | K92: 2.559160734 | L92: 0.6543627526 | M92: 0.3456372474 | N92: W | O92: 0.6543627526 | P92: 0.6-.69 | Q92: W | R92: 2.559160734
A93: Stony Brook | B93: Brown | C93: 14 | D93: 16 | E93: -2 | F93: L | H93: =VLOOKUP(A93,Sheet1!$A:$D,4,FALSE) -> 3.79124802 | I93: =VLOOKUP(B93,Sheet1!$A:$D,4,FALSE) -> 7.805770702 | J93: =IF(G93="N",H93-I93,(H93-I93+'Game Picker'!$L$4)) -> -2.731155126 | K93: 0.7311551255 | L93: 0.2257956678 | M93: 0.7742043322 | N93: W | O93: 0.7742043322 | P93: 0.7-.79 | Q93: W | R93: 0.7311551255
A94: Vermont | B94: Providence | C94: 8 | D94: 11 | E94: -3 | F94: L | H94: =VLOOKUP(A94,Sheet1!$A:$D,4,FALSE) -> -0.3404077904 | I94: =VLOOKUP(B94,Sheet1!$A:$D,4,FALSE) -> -0.5324792673 | J94: =IF(G94="N",H94-I94,(H94-I94+'Game Picker'!$L$4)) -> 1.475439033 | K94: -4.475439033 | L94: 0.6578720592 | M94: 0.3421279408 | N94: FALSE | O94: 0.6578720592 | P94: 0.6-.69 | Q94: L | R94: 4.475439033
A95: Yale | B95: Maryland | C95: 8 | D95: 5 | E95: 3 | F95: W | H95: =VLOOKUP(A95,Sheet1!$A:$D,4,FALSE) -> 4.774854864 | I95: =VLOOKUP(B95,Sheet1!$A:$D,4,FALSE) -> 5.775430824 | J95: =IF(G95="N",H95-I95,(H95-I95+'Game Picker'!$L$4)) -> 0.2827915964 | K95: 2.717208404 | L95: 0.5310634632 | M95: 0.4689365368 | N95: W | O95: 0.5310634632 | P95: 0.5-.59 | Q95: W | R95: 2.717208404
A96: Cornell | B96: Hobart | C96: 10 | D96: 8 | E96: 2 | F96: W | G96: N | H96: =VLOOKUP(A96,Sheet1!$A:$D,4,FALSE) -> 0.7550888591 | I96: =VLOOKUP(B96,Sheet1!$A:$D,4,FALSE) -> -1.066500325 | J96: =IF(G96="N",H96-I96,(H96-I96+'Game Picker'!$L$4)) -> 1.821589185 | K96: 0.1784108154 | L96: 0.6921904653 | M96: 0.3078095347 | N96: W | O96: 0.6921904653 | P96: 0.6-.69 | Q96: W | R96: 0.1784108154
A97: Denver | B97: Sacred Heart | C97: 18 | D97: 7 | E97: 10 | F97: W | H97: =VLOOKUP(A97,Sheet1!$A:$D,4,FALSE) -> 5.203220463 | I97: =VLOOKUP(B97,Sheet1!$A:$D,4,FALSE) -> -4.317467372 | J97: =IF(G97="N",H97-I97,(H97-I97+'Game Picker'!$L$4)) -> 10.80405539 | K97: -0.8040553917 | L97: 0.9985485076 | M97: 0.001451492353 | N97: W | O97: 0.9985485076 | P97: 0.9-1 | Q97: W | R97: 0.8040553917
A98: Marist | B98: Binghamton | C98: 10 | D98: 8 | E98: 2 | F98: W | H98: =VLOOKUP(A98,Sheet1!$A:$D,4,FALSE) -> -1.337627557 | I98: =VLOOKUP(B98,Sheet1!$A:$D,4,FALSE) -> -2.893866393 | J98: =IF(G98="N",H98-I98,(H98-I98+'Game Picker'!$L$4)) -> 2.839606392 | K98: -0.8396063917 | L98: 0.7830854745 | M98: 0.2169145255 | N98: W | O98: 0.7830854745 | P98: 0.7-.79 | Q98: W | R98: 0.8396063917
A99: Notre Dame | B99: Detroit | C99: 14 | D99: 5 | E99: 9 | F99: W | H99: =VLOOKUP(A99,Sheet1!$A:$D,4,FALSE) -> 5.34856419 | I99: =VLOOKUP(B99,Sheet1!$A:$D,4,FALSE) -> -4.740561426 | J99: =IF(G99="N",H99-I99,(H99-I99+'Game Picker'!$L$4)) -> 11.37249317 | K99: -2.372493173 | L99: 0.9991392696 | M99: 0.0008607304424 | N99: W | O99: 0.9991392696 | P99: 0.9-1 | Q99: W | R99: 2.372493173
A100: Hofstra | B100: Princeton | C100: 11 | D100: 10 | E100: 1 | F100: W | H100: =VLOOKUP(A100,Sheet1!$A:$D,4,FALSE) -> 1.060232161 | I100: =VLOOKUP(B100,Sheet1!$A:$D,4,FALSE) -> -0.3610541581 | J100: =IF(G100="N",H100-I100,(H100-I100+'Game Picker'!$L$4)) -> 2.704653876 | K100: -1.704653876 | L100: 0.7720032693 | M100: 0.2279967307 | N100: W | O100: 0.7720032693 | P100: 0.7-.79 | Q100: W | R100: 1.704653876
A101: Rutgers | B101: Fairfield | C101: 12 | D101: 6 | E101: 6 | F101: W | H101: =VLOOKUP(A101,Sheet1!$A:$D,4,FALSE) -> 2.641567062 | I101: =VLOOKUP(B101,Sheet1!$A:$D,4,FALSE) -> 0.7439204973 | J101: =IF(G101="N",H101-I101,(H101-I101+'Game Picker'!$L$4)) -> 3.181014121 | K101: 2.818985879 | L101: 0.8096902523 | M101: 0.1903097477 | N101: W | O101: 0.8096902523 | P101: 0.8-.89 | Q101: W | R101: 2.818985879
A102: Massachusetts | B102: Harvard | C102: 9 | D102: 10 | E102: -1 | F102: L | H102: =VLOOKUP(A102,Sheet1!$A:$D,4,FALSE) -> 1.141787934 | I102: =VLOOKUP(B102,Sheet1!$A:$D,4,FALSE) -> 3.02736856 | J102: =IF(G102="N",H102-I102,(H102-I102+'Game Picker'!$L$4)) -> -0.6022130694 | K102: -0.3977869306 | L102: 0.4340852498 | M102: 0.5659147502 | N102: W | O102: 0.5659147502 | P102: 0.5-.59 | Q102: W | R102: 0.3977869306
A103: NJIT | B103: VMI | C103: 7 | D103: 10 | E103: -3 | F103: L | G103: N | H103: =VLOOKUP(A103,Sheet1!$A:$D,4,FALSE) -> -8.638075186 | I103: =VLOOKUP(B103,Sheet1!$A:$D,4,FALSE) -> -9.895063579 | J103: =IF(G103="N",H103-I103,(H103-I103+'Game Picker'!$L$4)) -> 1.256988393 | K103: -4.256988393 | L103: 0.6354987917 | M103: 0.3645012083 | N103: FALSE | O103: 0.6354987917 | P103: 0.6-.69 | Q103: L | R103: 4.256988393
A104: Michigan | B104: Delaware | C104: 10 | D104: 7 | E104: 3 | F104: W | G104: N | H104: =VLOOKUP(A104,Sheet1!$A:$D,4,FALSE) -> -1.733023756 | I104: =VLOOKUP(B104,Sheet1!$A:$D,4,FALSE) -> -2.337195547 | J104: =IF(G104="N",H104-I104,(H104-I104+'Game Picker'!$L$4)) -> 0.6041717912 | K104: 2.395828209 | L104: 0.5661271693 | M104: 0.4338728307 | N104: W | O104: 0.5661271693 | P104: 0.5-.59 | Q104: W | R104: 2.395828209
A105: Air Force | B105: Sacred Heart | C105: 13 | D105: 10 | E105: 3 | F105: W | G105: N | H105: =VLOOKUP(A105,Sheet1!$A:$D,4,FALSE) -> 0.8520259553 | I105: =VLOOKUP(B105,Sheet1!$A:$D,4,FALSE) -> -4.317467372 | J105: =IF(G105="N",H105-I105,(H105-I105+'Game Picker'!$L$4)) -> 5.169493327 | K105: -2.169493327 | L105: 0.9228957792 | M105: 0.07710422083 | N105: W | O105: 0.9228957792 | P105: 0.9-1 | Q105: W | R105: 2.169493327
A106: Johns Hopkins | B106: North Carolina | C106: 11 | D106: 15 | E106: -4 | F106: L | H106: =VLOOKUP(A106,Sheet1!$A:$D,4,FALSE) -> 3.298359288 | I106: =VLOOKUP(B106,Sheet1!$A:$D,4,FALSE) -> 4.211880999 | J106: =IF(G106="N",H106-I106,(H106-I106+'Game Picker'!$L$4)) -> 0.3698458456 | K106: -4.369845846 | L106: 0.5405968235 | M106: 0.4594031765 | N106: FALSE | O106: 0.5405968235 | P106: 0.5-.59 | Q106: L | R106: 4.369845846
A107: Virginia | B107: Penn | C107: 15 | D107: 10 | E107: 5 | F107: W | H107: =VLOOKUP(A107,Sheet1!$A:$D,4,FALSE) -> 1.736397307 | I107: =VLOOKUP(B107,Sheet1!$A:$D,4,FALSE) -> 1.698846892 | J107: =IF(G107="N",H107-I107,(H107-I107+'Game Picker'!$L$4)) -> 1.320917971 | K107: 3.679082029 | L107: 0.6420983264 | M107: 0.3579016736 | N107: W | O107: 0.6420983264 | P107: 0.6-.69 | Q107: W | R107: 3.679082029
A108: Denver | B108: Dartmouth | C108: 16 | D108: 6 | E108: 10 | F108: W | H108: =VLOOKUP(A108,Sheet1!$A:$D,4,FALSE) -> 5.203220463 | I108: =VLOOKUP(B108,Sheet1!$A:$D,4,FALSE) -> -5.795251217 | J108: =IF(G108="N",H108-I108,(H108-I108+'Game Picker'!$L$4)) -> 12.28183924 | K108: -2.281839236 | L108: 0.9996442865 | M108: 0.0003557134522 | N108: W | O108: 0.9996442865 | P108: 0.9-1 | Q108: W | R108: 2.281839236
A109: Syracuse | B109: Army | C109: 9 | D109: 8 | E109: 1 | F109: W | H109: =VLOOKUP(A109,Sheet1!$A:$D,4,FALSE) -> 4.926891772 | I109: =VLOOKUP(B109,Sheet1!$A:$D,4,FALSE) -> 2.926934471 | J109: =IF(G109="N",H109-I109,(H109-I109+'Game Picker'!$L$4)) -> 3.283324858 | K109: -2.283324858 | L109: 0.8172552402 | M109: 0.1827447598 | N109: W | O109: 0.8172552402 | P109: 0.8-.89 | Q109: W | R109: 2.283324858
A110: Duke | B110: Mercer | C110: 19 | D110: 9 | E110: 10 | F110: W | H110: =VLOOKUP(A110,Sheet1!$A:$D,4,FALSE) -> 4.523283353 | I110: =VLOOKUP(B110,Sheet1!$A:$D,4,FALSE) -> -3.606529156 | J110: =IF(G110="N",H110-I110,(H110-I110+'Game Picker'!$L$4)) -> 9.413180065 | K110: 0.5868199347 | L110: 0.9952632035 | M110: 0.004736796491 | N110: W | O110: 0.9952632035 | P110: 0.9-1 | Q110: W | R110: 0.5868199347
A111: Villanova | B111: Drexel | C111: 14 | D111: 9 | E111: 5 | F111: W | H111: =VLOOKUP(A111,Sheet1!$A:$D,4,FALSE) -> 4.405170203 | I111: =VLOOKUP(B111,Sheet1!$A:$D,4,FALSE) -> 0.605883128 | J111: =IF(G111="N",H111-I111,(H111-I111+'Game Picker'!$L$4)) -> 5.082654632 | K111: -0.08265463155 | L111: 0.9193762401 | M111: 0.08062375991 | N111: W | O111: 0.9193762401 | P111: 0.9-1 | Q111: W | R111: 0.08265463155
A112: Fairfield | B112: Lowell | C112: 12 | D112: 10 | E112: 2 | F112: W | H112: =VLOOKUP(A112,Sheet1!$A:$D,4,FALSE) -> 0.7439204973 | I112: =VLOOKUP(B112,Sheet1!$A:$D,4,FALSE) -> -5.018299136 | J112: =IF(G112="N",H112-I112,(H112-I112+'Game Picker'!$L$4)) -> 7.04558719 | K112: -5.04558719 | L112: 0.9739262616 | M112: 0.02607373839 | N112: W | O112: 0.9739262616 | P112: 0.9-1 | Q112: W | R112: 5.04558719
A113: Georgetown | B113: Mt. St. Marys | C113: 8 | D113: 11 | E113: -3 | F113: L | H113: =VLOOKUP(A113,Sheet1!$A:$D,4,FALSE) -> -1.436486274 | I113: =VLOOKUP(B113,Sheet1!$A:$D,4,FALSE) -> -2.359246425 | J113: =IF(G113="N",H113-I113,(H113-I113+'Game Picker'!$L$4)) -> 2.206127708 | K113: -5.206127708 | L113: 0.7284248034 | M113: 0.2715751966 | N113: FALSE | O113: 0.7284248034 | P113: 0.7-.79 | Q113: L | R113: 5.206127708
A114: Delaware | B114: VMI | C114: 14 | D114: 6 | E114: 8 | F114: W | H114: =VLOOKUP(A114,Sheet1!$A:$D,4,FALSE) -> -2.337195547 | I114: =VLOOKUP(B114,Sheet1!$A:$D,4,FALSE) -> -9.895063579 | J114: =IF(G114="N",H114-I114,(H114-I114+'Game Picker'!$L$4)) -> 8.841235588 | K114: -0.8412355883 | L114: 0.9925917468 | M114: 0.007408253192 | N114: W | O114: 0.9925917468 | P114: 0.9-1 | Q114: W | R114: 0.8412355883
A115: Massachusetts | B115: Hartford | C115: 11 | D115: 3 | E115: 8 | F115: W | H115: =VLOOKUP(A115,Sheet1!$A:$D,4,FALSE) -> 1.141787934 | I115: =VLOOKUP(B115,Sheet1!$A:$D,4,FALSE) -> -0.3692835887 | J115: =IF(G115="N",H115-I115,(H115-I115+'Game Picker'!$L$4)) -> 2.794439079 | K115: 5.205560921 | L115: 0.7794114698 | M115: 0.2205885302 | N115: W | O115: 0.7794114698 | P115: 0.7-.79 | Q115: W | R115: 5.205560921
A116: Wagner | B116: Rutgers | C116: 7 | D116: 15 | E116: -8 | F116: L | H116: =VLOOKUP(A116,Sheet1!$A:$D,4,FALSE) -> -5.842365931 | I116: =VLOOKUP(B116,Sheet1!$A:$D,4,FALSE) -> 2.641567062 | J116: =IF(G116="N",H116-I116,(H116-I116+'Game Picker'!$L$4)) -> -7.200565436 | K116: -0.799434564 | L116: 0.02359284788 | M116: 0.9764071521 | N116: W | O116: 0.9764071521 | P116: 0.9-1 | Q116: W | R116: 0.799434564
A117: Hofstra | B117: NJIT | C117: 19 | D117: 4 | E117: 10 | F117: W | H117: =VLOOKUP(A117,Sheet1!$A:$D,4,FALSE) -> 1.060232161 | I117: =VLOOKUP(B117,Sheet1!$A:$D,4,FALSE) -> -8.638075186 | J117: =IF(G117="N",H117-I117,(H117-I117+'Game Picker'!$L$4)) -> 10.9816749 | K117: -0.9816749035 | L117: 0.998764148 | M117: 0.001235852045 | N117: W | O117: 0.998764148 | P117: 0.9-1 | Q117: W | R117: 0.9816749035
A118: Loyola | B118: Towson | C118: 8 | D118: 10 | E118: -2 | F118: L | H118: =VLOOKUP(A118,Sheet1!$A:$D,4,FALSE) -> 4.137803658 | I118: =VLOOKUP(B118,Sheet1!$A:$D,4,FALSE) -> 3.601420652 | J118: =IF(G118="N",H118-I118,(H118-I118+'Game Picker'!$L$4)) -> 1.819750563 | K118: -3.819750563 | L118: 0.6920122136 | M118: 0.3079877864 | N118: FALSE | O118: 0.6920122136 | P118: 0.6-.69 | Q118: L | R118: 3.819750563
A119: St. Josephs | B119: St. Johns | C119: 16 | D119: 8 | E119: 8 | F119: W | H119: =VLOOKUP(A119,Sheet1!$A:$D,4,FALSE) -> 2.152350014 | I119: =VLOOKUP(B119,Sheet1!$A:$D,4,FALSE) -> -3.765456536 | J119: =IF(G119="N",H119-I119,(H119-I119+'Game Picker'!$L$4)) -> 7.201174106 | K119: 0.7988258937 | L119: 0.9764164899 | M119: 0.02358351012 | N119: W | O119: 0.9764164899 | P119: 0.9-1 | Q119: W | R119: 0.7988258937
A120: Detroit | B120: Bellarmine | C120: 6 | D120: 7 | E120: -1 | F120: L | G120: N | H120: =VLOOKUP(A120,Sheet1!$A:$D,4,FALSE) -> -4.740561426 | I120: =VLOOKUP(B120,Sheet1!$A:$D,4,FALSE) -> -1.813156631 | J120: =IF(G120="N",H120-I120,(H120-I120+'Game Picker'!$L$4)) -> -2.927404795 | K120: 1.927404795 | L120: 0.2098749335 | M120: 0.7901250665 | N120: W | O120: 0.7901250665 | P120: 0.7-.79 | Q120: W | R120: 1.927404795
A121: Virginia | B121: Syracuse | C121: 13 | D121: 14 | E121: -1 | F121: L | H121: =VLOOKUP(A121,Sheet1!$A:$D,4,FALSE) -> 1.736397307 | I121: =VLOOKUP(B121,Sheet1!$A:$D,4,FALSE) -> 4.926891772 | J121: =IF(G121="N",H121-I121,(H121-I121+'Game Picker'!$L$4)) -> -1.907126909 | K121: 0.9071269093 | L121: 0.2995674755 | M121: 0.7004325245 | N121: W | O121: 0.7004325245 | P121: 0.7-.79 | Q121: W | R121: 0.9071269093
A122: Ohio State | B122: Marquette | C122: 12 | D122: 8 | E122: 4 | F122: W | H122: =VLOOKUP(A122,Sheet1!$A:$D,4,FALSE) -> 1.474575448 | I122: =VLOOKUP(B122,Sheet1!$A:$D,4,FALSE) -> 2.852862235 | J122: =IF(G122="N",H122-I122,(H122-I122+'Game Picker'!$L$4)) -> -0.09491923116 | K122: 4.094919231 | L122: 0.4895641554 | M122: 0.5104358446 | N122: FALSE | O122: 0.5104358446 | P122: 0.5-.59 | Q122: L | R122: 4.094919231
A123: Robert Morris | B123: Air Force | C123: 10 | D123: 11 | E123: -1 | F123: L | H123: =VLOOKUP(A123,Sheet1!$A:$D,4,FALSE) -> -1.284958311 | I123: =VLOOKUP(B123,Sheet1!$A:$D,4,FALSE) -> 0.8520259553 | J123: =IF(G123="N",H123-I123,(H123-I123+'Game Picker'!$L$4)) -> -0.8536167094 | K123: -0.1463832906 | L123: 0.4069976509 | M123: 0.5930023491 | N123: W | O123: 0.5930023491 | P123: 0.5-.59 | Q123: W | R123: 0.1463832906
A124: Hofstra | B124: Georgetown | C124: 6 | D124: 11 | E124: -5 | F124: L | H124: =VLOOKUP(A124,Sheet1!$A:$D,4,FALSE) -> 1.060232161 | I124: =VLOOKUP(B124,Sheet1!$A:$D,4,FALSE) -> -1.436486274 | J124: =IF(G124="N",H124-I124,(H124-I124+'Game Picker'!$L$4)) -> 3.780085991 | K124: -8.780085991 | L124: 0.8512645851 | M124: 0.1487354149 | N124: FALSE | O124: 0.8512645851 | P124: 0.8-.89 | Q124: L | R124: 8.780085991
A125: High Point | B125: Marist | C125: 11 | D125: 9 | E125: 2 | F125: W | H125: =VLOOKUP(A125,Sheet1!$A:$D,4,FALSE) -> -1.175909064 | I125: =VLOOKUP(B125,Sheet1!$A:$D,4,FALSE) -> -1.337627557 | J125: =IF(G125="N",H125-I125,(H125-I125+'Game Picker'!$L$4)) -> 1.44508605 | K125: 0.5549139499 | L125: 0.6547942081 | M125: 0.3452057919 | N125: W | O125: 0.6547942081 | P125: 0.6-.69 | Q125: W | R125: 0.5549139499
A126: Lafayette | B126: Army | C126: 5 | D126: 14 | E126: -9 | F126: L | H126: =VLOOKUP(A126,Sheet1!$A:$D,4,FALSE) -> -4.802015289 | I126: =VLOOKUP(B126,Sheet1!$A:$D,4,FALSE) -> 2.926934471 | J126: =IF(G126="N",H126-I126,(H126-I126+'Game Picker'!$L$4)) -> -6.445582204 | K126: -2.554417796 | L126: 0.03782196884 | M126: 0.9621780312 | N126: W | O126: 0.9621780312 | P126: 0.9-1 | Q126: W | R126: 2.554417796
A127: Lehigh | B127: Colgate | C127: 12 | D127: 9 | E127: 3 | F127: W | H127: =VLOOKUP(A127,Sheet1!$A:$D,4,FALSE) -> -0.8891448847 | I127: =VLOOKUP(B127,Sheet1!$A:$D,4,FALSE) -> -2.133759999 | J127: =IF(G127="N",H127-I127,(H127-I127+'Game Picker'!$L$4)) -> 2.527982671 | K127: 0.4720173295 | L127: 0.7570253798 | M127: 0.2429746202 | N127: W | O127: 0.7570253798 | P127: 0.7-.79 | Q127: W | R127: 0.4720173295
A128: Mt. St. Marys | B128: Furman | C128: 10 | D128: 8 | E128: 2 | F128: W | H128: =VLOOKUP(A128,Sheet1!$A:$D,4,FALSE) -> -2.359246425 | I128: =VLOOKUP(B128,Sheet1!$A:$D,4,FALSE) -> -4.484832878 | J128: =IF(G128="N",H128-I128,(H128-I128+'Game Picker'!$L$4)) -> 3.408954009 | K128: -1.408954009 | L128: 0.8262836153 | M128: 0.1737163847 | N128: W | O128: 0.8262836153 | P128: 0.8-.89 | Q128: W | R128: 1.408954009
A129: Quinnipiac | B129: NJIT | C129: 9 | D129: 7 | E129: 2 | F129: W | H129: =VLOOKUP(A129,Sheet1!$A:$D,4,FALSE) -> 0.3551132287 | I129: =VLOOKUP(B129,Sheet1!$A:$D,4,FALSE) -> -8.638075186 | J129: =IF(G129="N",H129-I129,(H129-I129+'Game Picker'!$L$4)) -> 10.27655597 | K129: -8.276555971 | L129: 0.9976902759 | M129: 0.002309724095 | N129: W | O129: 0.9976902759 | P129: 0.9-1 | Q129: W | R129: 8.276555971
A130: Towson | B130: UMBC | C130: 14 | D130: 6 | E130: 8 | F130: W | H130: =VLOOKUP(A130,Sheet1!$A:$D,4,FALSE) -> 3.601420652 | I130: =VLOOKUP(B130,Sheet1!$A:$D,4,FALSE) -> -2.541740474 | J130: =IF(G130="N",H130-I130,(H130-I130+'Game Picker'!$L$4)) -> 7.426528683 | K130: 0.5734713175 | L130: =IF(G130="N",NORMDIST(0,I130-H130,$C$539,TRUE),NORMDIST(0,I130-H130-$C$542,$C$539,TRUE)) -> 0.9796665342 | M130: =IF(G130="N",NORMDIST(0,H130-I130,$C$539,TRUE),NORMDIST(0,H130-I130+$C$542,$C$539,TRUE)) -> 0.02033346575 | N130: =IF(E130<0,IF(L130<0.5,"W"),IF(E130>0,IF(L130>0.5,"W"),"L")) -> W | O130: 0.9796665342 | P130: 0.9-1 | Q130: W | R130: 0.5734713175
A131: Penn | B131: Penn State | C131: 11 | D131: 7 | E131: =IF(C131-D131<-10,-10,(IF(C131-D131>10,10,C131-D131))) -> 4 | F131: =IF(C131>D131,"W","L") -> W | H131: =VLOOKUP(A131,Sheet1!$A:$D,4,FALSE) -> 1.698846892 | I131: =VLOOKUP(B131,Sheet1!$A:$D,4,FALSE) -> 2.508502072 | J131: =IF(G131="N",H131-I131,(H131-I131+'Game Picker'!$L$4)) -> 0.4737123757 | K131: =E131-J131 -> 3.526287624 | L131: 0.551940382 | M131: 0.448059618 | N131: W | O131: =IF(M131>L131,M131,L131) -> 0.551940382 | P131: =IF(AND(O131>=0.9,O131<1.01),"0.9-1",IF(AND(O131>=0.8,O131<0.9),"0.8-.89",IF(AND(O131>=0.7,O131<0.8),"0.7-.79",IF(AND(O131>=0.6,O131<0.7),"0.6-.69",IF(AND(O131>=0.5,O131<0.6),"0.5-.59"))))) -> 0.5-.59 | Q131: =IF(AND(J131<=1,J131>=-1,K131<=3,K131>-3),"W",IF(AND(E131<=-1,J131<=-1),"W",IF(AND(E131>=1,J131>=1),"W","L"))) -> L | R131: =IF(K131<0,-K131,K131) -> 3.526287624
A132: Albany | B132: Cornell | C132: 12 | D132: 8 | E132: 4 | F132: W | H132: =VLOOKUP(A132,Sheet1!$A:$D,4,FALSE) -> 3.583233584 | I132: =VLOOKUP(B132,Sheet1!$A:$D,4,FALSE) -> 0.7550888591 | J132: =IF(G132="N",H132-I132,(H132-I132+'Game Picker'!$L$4)) -> 4.111512281 | K132: -0.1115122809 | L132: 0.871439185 | M132: 0.128560815 | N132: W | O132: 0.871439185 | P132: 0.8-.89 | Q132: W | R132: 0.1115122809
A133: Brown | B133: Massachusetts | C133: 15 | D133: 7 | E133: 8 | F133: W | H133: =VLOOKUP(A133,Sheet1!$A:$D,4,FALSE) -> 7.805770702 | I133: =VLOOKUP(B133,Sheet1!$A:$D,4,FALSE) -> 1.141787934 | J133: =IF(G133="N",H133-I133,(H133-I133+'Game Picker'!$L$4)) -> 7.947350325 | K133: 0.05264967496 | L133: 0.9857545345 | M133: 0.01424546551 | N133: W | O133: 0.9857545345 | P133: 0.9-1 | Q133: W | R133: 0.05264967496
A134: Bryant | B134: Yale | C134: 4 | D134: 14 | E134: -10 | F134: L | H134: =VLOOKUP(A134,Sheet1!$A:$D,4,FALSE) -> 1.889930725 | I134: =VLOOKUP(B134,Sheet1!$A:$D,4,FALSE) -> 4.774854864 | J134: =IF(G134="N",H134-I134,(H134-I134+'Game Picker'!$L$4)) -> -1.601556583 | K134: -8.398443417 | L134: 0.329453326 | M134: 0.670546674 | N134: W | O134: 0.670546674 | P134: 0.6-.69 | Q134: W | R134: 8.398443417
A135: Bucknell | B135: Navy | C135: 6 | D135: 13 | E135: -7 | F135: L | H135: =VLOOKUP(A135,Sheet1!$A:$D,4,FALSE) -> 2.444763683 | I135: =VLOOKUP(B135,Sheet1!$A:$D,4,FALSE) -> 3.64940015 | J135: =IF(G135="N",H135-I135,(H135-I135+'Game Picker'!$L$4)) -> 0.07873108929 | K135: -7.078731089 | L135: 0.508656356 | M135: 0.491343644 | N135: FALSE | O135: 0.508656356 | P135: 0.5-.59 | Q135: L | R135: 7.078731089
A136: Canisius | B136: Boston | C136: 8 | D136: 10 | E136: -2 | F136: L | H136: =VLOOKUP(A136,Sheet1!$A:$D,4,FALSE) -> -3.877992235 | I136: =VLOOKUP(B136,Sheet1!$A:$D,4,FALSE) -> -0.4476388759 | J136: =IF(G136="N",H136-I136,(H136-I136+'Game Picker'!$L$4)) -> -2.146985802 | K136: 0.1469858023 | L136: 0.2770072843 | M136: 0.7229927157 | N136: W | O136: 0.7229927157 | P136: 0.7-.79 | Q136: W | R136: 0.1469858023
A137: Dartmouth | B137: Wagner | C137: 6 | D137: 7 | E137: -1 | F137: L | H137: =VLOOKUP(A137,Sheet1!$A:$D,4,FALSE) -> -5.795251217 | I137: =VLOOKUP(B137,Sheet1!$A:$D,4,FALSE) -> -5.842365931 | J137: =IF(G137="N",H137-I137,(H137-I137+'Game Picker'!$L$4)) -> 1.330482271 | K137: -2.330482271 | L137: 0.6430820758 | M137: 0.3569179242 | N137: FALSE | O137: 0.6430820758 | P137: 0.6-.69 | Q137: L | R137: 2.330482271
A138: Fairfield | B138: Stony Brook | C138: 6 | D138: 9 | E138: -3 | F138: L | H138: =VLOOKUP(A138,Sheet1!$A:$D,4,FALSE) -> 0.7439204973 | I138: =VLOOKUP(B138,Sheet1!$A:$D,4,FALSE) -> 3.79124802 | J138: =IF(G138="N",H138-I138,(H138-I138+'Game Picker'!$L$4)) -> -1.763959967 | K138: -1.236040033 | L138: 0.3134179895 | M138: 0.6865820105 | N138: W | O138: 0.6865820105 | P138: 0.6-.69 | Q138: W | R138: 1.236040033
A139: Holy Cross | B139: Loyola | C139: 9 | D139: 10 | E139: -1 | F139: L | H139: =VLOOKUP(A139,Sheet1!$A:$D,4,FALSE) -> -1.62525355 | I139: =VLOOKUP(B139,Sheet1!$A:$D,4,FALSE) -> 4.137803658 | J139: =IF(G139="N",H139-I139,(H139-I139+'Game Picker'!$L$4)) -> -4.479689652 | K139: 3.479689652 | L139: 0.1084714351 | M139: 0.8915285649 | N139: W | O139: 0.8915285649 | P139: 0.8-.89 | Q139: W | R139: 3.479689652
A140: Johns Hopkins | B140: Princeton | C140: 17 | D140: 7 | E140: 10 | F140: W | H140: =VLOOKUP(A140,Sheet1!$A:$D,4,FALSE) -> 3.298359288 | I140: =VLOOKUP(B140,Sheet1!$A:$D,4,FALSE) -> -0.3610541581 | J140: =IF(G140="N",H140-I140,(H140-I140+'Game Picker'!$L$4)) -> 4.942781003 | K140: 5.057218997 | L140: 0.9134540645 | M140: 0.08654593552 | N140: W | O140: 0.9134540645 | P140: 0.9-1 | Q140: W | R140: 5.057218997
A141: Michigan | B141: Vermont | C141: 15 | D141: 13 | E141: 2 | F141: W | H141: =VLOOKUP(A141,Sheet1!$A:$D,4,FALSE) -> -1.733023756 | I141: =VLOOKUP(B141,Sheet1!$A:$D,4,FALSE) -> -0.3404077904 | J141: =IF(G141="N",H141-I141,(H141-I141+'Game Picker'!$L$4)) -> -0.1092484087 | K141: 2.109248409 | L141: 0.4879891864 | M141: 0.5120108136 | N141: FALSE | O141: 0.5120108136 | P141: 0.5-.59 | Q141: W | R141: 2.109248409
A142: Sacred Heart | B142: Providence | C142: 8 | D142: 11 | E142: -3 | F142: L | H142: =VLOOKUP(A142,Sheet1!$A:$D,4,FALSE) -> -4.317467372 | I142: =VLOOKUP(B142,Sheet1!$A:$D,4,FALSE) -> -0.5324792673 | J142: =IF(G142="N",H142-I142,(H142-I142+'Game Picker'!$L$4)) -> -2.501620548 | K142: -0.4983794516 | L142: 0.2452543218 | M142: 0.7547456782 | N142: W | O142: 0.7547456782 | P142: 0.7-.79 | Q142: W | R142: 0.4983794516
A143: St. Johns | B143: SIena | C143: 10 | D143: 9 | E143: 1 | F143: W | H143: =VLOOKUP(A143,Sheet1!$A:$D,4,FALSE) -> -3.765456536 | I143: =VLOOKUP(B143,Sheet1!$A:$D,4,FALSE) -> -4.860827426 | J143: =IF(G143="N",H143-I143,(H143-I143+'Game Picker'!$L$4)) -> 2.378738447 | K143: -1.378738447 | L143: 0.74396925 | M143: 0.25603075 | N143: W | O143: 0.74396925 | P143: 0.7-.79 | Q143: W | R143: 1.378738447
A144: St. Josephs | B144: Drexel | C144: 9 | D144: 10 | E144: -1 | F144: L | H144: =VLOOKUP(A144,Sheet1!$A:$D,4,FALSE) -> 2.152350014 | I144: =VLOOKUP(B144,Sheet1!$A:$D,4,FALSE) -> 0.605883128 | J144: =IF(G144="N",H144-I144,(H144-I144+'Game Picker'!$L$4)) -> 2.829834442 | K144: -3.829834442 | L144: 0.7822936157 | M144: 0.2177063843 | N144: FALSE | O144: 0.7822936157 | P144: 0.7-.79 | Q144: L | R144: 3.829834442
A145: Lowell | B145: Jacksonville | C145: 12 | D145: 9 | E145: 3 | F145: W | H145: =VLOOKUP(A145,Sheet1!$A:$D,4,FALSE) -> -5.018299136 | I145: =VLOOKUP(B145,Sheet1!$A:$D,4,FALSE) -> -5.30087846 | J145: =IF(G145="N",H145-I145,(H145-I145+'Game Picker'!$L$4)) -> 1.565946881 | K145: 1.434053119 | L145: 0.6669869747 | M145: 0.3330130253 | N145: W | O145: 0.6669869747 | P145: 0.6-.69 | Q145: W | R145: 1.434053119
A146: North Carolina | B146: Denver | C146: 12 | D146: 13 | E146: -1 | F146: L | H146: =VLOOKUP(A146,Sheet1!$A:$D,4,FALSE) -> 4.211880999 | I146: =VLOOKUP(B146,Sheet1!$A:$D,4,FALSE) -> 5.203220463 | J146: =IF(G146="N",H146-I146,(H146-I146+'Game Picker'!$L$4)) -> 0.2920280923 | K146: -1.292028092 | L146: 0.5320758988 | M146: 0.4679241012 | N146: FALSE | O146: 0.5320758988 | P146: 0.5-.59 | Q146: W | R146: 1.292028092
A147: Hobart | B147: Binghamton | C147: 12 | D147: 6 | E147: 6 | F147: W | H147: =VLOOKUP(A147,Sheet1!$A:$D,4,FALSE) -> -1.066500325 | I147: =VLOOKUP(B147,Sheet1!$A:$D,4,FALSE) -> -2.893866393 | J147: =IF(G147="N",H147-I147,(H147-I147+'Game Picker'!$L$4)) -> 3.110733624 | K147: 2.889266376 | L147: 0.8043838215 | M147: 0.1956161785 | N147: W | O147: 0.8043838215 | P147: 0.8-.89 | Q147: W | R147: 2.889266376
A148: Monmouth | B148: Rutgers | C148: 6 | D148: 12 | E148: -6 | F148: L | H148: =VLOOKUP(A148,Sheet1!$A:$D,4,FALSE) -> -2.650516634 | I148: =VLOOKUP(B148,Sheet1!$A:$D,4,FALSE) -> 2.641567062 | J148: =IF(G148="N",H148-I148,(H148-I148+'Game Picker'!$L$4)) -> -4.008716139 | K148: -1.991283861 | L148: 0.1346041097 | M148: 0.8653958903 | N148: W | O148: 0.8653958903 | P148: 0.8-.89 | Q148: W | R148: 1.991283861
A149: Manhattan | B149: Hartford | C149: 4 | D149: 16 | E149: -10 | F149: L | H149: =VLOOKUP(A149,Sheet1!$A:$D,4,FALSE) -> -6.623228534 | I149: =VLOOKUP(B149,Sheet1!$A:$D,4,FALSE) -> -0.3692835887 | J149: =IF(G149="N",H149-I149,(H149-I149+'Game Picker'!$L$4)) -> -4.970577389 | K149: -5.029422611 | L149: 0.08534387557 | M149: 0.9146561244 | N149: W | O149: 0.9146561244 | P149: 0.9-1 | Q149: W | R149: 5.029422611
A150: Harvard | B150: Duke | C150: 14 | D150: 9 | E150: 5 | F150: W | G150: N | H150: =VLOOKUP(A150,Sheet1!$A:$D,4,FALSE) -> 3.02736856 | I150: =VLOOKUP(B150,Sheet1!$A:$D,4,FALSE) -> 4.523283353 | J150: =IF(G150="N",H150-I150,(H150-I150+'Game Picker'!$L$4)) -> -1.495914793 | K150: 6.495914793 | L150: 0.3400575525 | M150: 0.6599424475 | N150: FALSE | O150: 0.6599424475 | P150: 0.6-.69 | Q150: L | R150: 6.495914793
A151: Delaware | B151: Villanova | C151: 13 | D151: 23 | E151: -10 | F151: L | H151: =VLOOKUP(A151,Sheet1!$A:$D,4,FALSE) -> -2.337195547 | I151: =VLOOKUP(B151,Sheet1!$A:$D,4,FALSE) -> 4.405170203 | J151: =IF(G151="N",H151-I151,(H151-I151+'Game Picker'!$L$4)) -> -5.458998194 | K151: -4.541001806 | L151: 0.06621135304 | M151: 0.933788647 | N151: W | O151: 0.933788647 | P151: 0.9-1 | Q151: W | R151: 4.541001806
A152: VMI | B152: Richmond | C152: 6 | D152: 11 | E152: -5 | F152: L | H152: =VLOOKUP(A152,Sheet1!$A:$D,4,FALSE) -> -9.895063579 | I152: =VLOOKUP(B152,Sheet1!$A:$D,4,FALSE) -> 0.08869566067 | J152: =IF(G152="N",H152-I152,(H152-I152+'Game Picker'!$L$4)) -> -8.700391683 | K152: 3.700391683 | L152: 0.008242123199 | M152: 0.9917578768 | N152: W | O152: 0.9917578768 | P152: 0.9-1 | Q152: W | R152: 3.700391683
A153: Notre Dame | B153: Maryland | C153: 9 | D153: 4 | E153: 5 | F153: W | G153: N | H153: =VLOOKUP(A153,Sheet1!$A:$D,4,FALSE) -> 5.34856419 | I153: =VLOOKUP(B153,Sheet1!$A:$D,4,FALSE) -> 5.775430824 | J153: =IF(G153="N",H153-I153,(H153-I153+'Game Picker'!$L$4)) -> -0.4268666342 | K153: 5.426866634 | L153: 0.4531710823 | M153: 0.5468289177 | N153: FALSE | O153: 0.5468289177 | P153: 0.5-.59 | Q153: L | R153: 5.426866634
A154: Detroit | B154: Marquette | C154: 8 | D154: 10 | E154: -2 | F154: L | G154: N | H154: =VLOOKUP(A154,Sheet1!$A:$D,4,FALSE) -> -4.740561426 | I154: =VLOOKUP(B154,Sheet1!$A:$D,4,FALSE) -> 2.852862235 | J154: =IF(G154="N",H154-I154,(H154-I154+'Game Picker'!$L$4)) -> -7.593423662 | K154: 5.593423662 | L154: 0.01817860701 | M154: 0.981821393 | N154: W | O154: 0.981821393 | P154: 0.9-1 | Q154: W | R154: 5.593423662
A155: Ohio State | B155: Bellarmine | C155: 9 | D155: 5 | E155: 4 | F155: W | H155: =VLOOKUP(A155,Sheet1!$A:$D,4,FALSE) -> 1.474575448 | I155: =VLOOKUP(B155,Sheet1!$A:$D,4,FALSE) -> -1.813156631 | J155: =IF(G155="N",H155-I155,(H155-I155+'Game Picker'!$L$4)) -> 4.571099635 | K155: -0.5710996354 | L155: 0.8961459599 | M155: 0.1038540401 | N155: W | O155: 0.8961459599 | P155: 0.8-.89 | Q155: W | R155: 0.5710996354
A156: Duke | B156: Richmond | C156: 10 | D156: 12 | E156: -2 | F156: L | H156: =VLOOKUP(A156,Sheet1!$A:$D,4,FALSE) -> 4.523283353 | I156: =VLOOKUP(B156,Sheet1!$A:$D,4,FALSE) -> 0.08869566067 | J156: =IF(G156="N",H156-I156,(H156-I156+'Game Picker'!$L$4)) -> 5.717955249 | K156: -7.717955249 | L156: 0.9424860126 | M156: 0.05751398735 | N156: FALSE | O156: 0.9424860126 | P156: 0.9-1 | Q156: L | R156: 7.717955249
A157: Furman | B157: Penn State | C157: 7 | D157: 16 | E157: -9 | F157: L | H157: =VLOOKUP(A157,Sheet1!$A:$D,4,FALSE) -> -4.484832878 | I157: =VLOOKUP(B157,Sheet1!$A:$D,4,FALSE) -> 2.508502072 | J157: =IF(G157="N",H157-I157,(H157-I157+'Game Picker'!$L$4)) -> -5.709967394 | K157: -3.290032606 | L157: 0.05776812427 | M157: 0.9422318757 | N157: W | O157: 0.9422318757 | P157: 0.9-1 | Q157: W | R157: 3.290032606
A158: Mercer | B158: Robert Morris | C158: 10 | D158: 11 | E158: -1 | F158: L | H158: =VLOOKUP(A158,Sheet1!$A:$D,4,FALSE) -> -3.606529156 | I158: =VLOOKUP(B158,Sheet1!$A:$D,4,FALSE) -> -1.284958311 | J158: =IF(G158="N",H158-I158,(H158-I158+'Game Picker'!$L$4)) -> -1.038203289 | K158: 0.03820328887 | L158: 0.3873812365 | M158: 0.6126187635 | N158: W | O158: 0.6126187635 | P158: 0.6-.69 | Q158: W | R158: 0.03820328887
A159: Canisius | B159: Vermont | C159: 11 | D159: 6 | E159: 5 | F159: W | G159: N | H159: =VLOOKUP(A159,Sheet1!$A:$D,4,FALSE) -> -3.877992235 | I159: =VLOOKUP(B159,Sheet1!$A:$D,4,FALSE) -> -0.3404077904 | J159: =IF(G159="N",H159-I159,(H159-I159+'Game Picker'!$L$4)) -> -3.537584444 | K159: 8.537584444 | L159: 0.164771742 | M159: 0.835228258 | N159: FALSE | O159: 0.835228258 | P159: 0.8-.89 | Q159: L | R159: 8.537584444
A160: Georgetown | B160: Fairfield | C160: 9 | D160: 13 | E160: -4 | F160: L | H160: =VLOOKUP(A160,Sheet1!$A:$D,4,FALSE) -> -1.436486274 | I160: =VLOOKUP(B160,Sheet1!$A:$D,4,FALSE) -> 0.7439204973 | J160: =IF(G160="N",H160-I160,(H160-I160+'Game Picker'!$L$4)) -> -0.8970392147 | K160: -3.102960785 | L160: 0.4023600208 | M160: 0.5976399792 | N160: W | O160: 0.5976399792 | P160: 0.5-.59 | Q160: L | R160: 3.102960785
A161: Holy Cross | B161: Brown | C161: 7 | D161: 20 | E161: -10 | F161: L | H161: =VLOOKUP(A161,Sheet1!$A:$D,4,FALSE) -> -1.62525355 | I161: =VLOOKUP(B161,Sheet1!$A:$D,4,FALSE) -> 7.805770702 | J161: =IF(G161="N",H161-I161,(H161-I161+'Game Picker'!$L$4)) -> -8.147656696 | K161: -1.852343304 | L161: 0.01236263475 | M161: 0.9876373652 | N161: W | O161: 0.9876373652 | P161: 0.9-1 | Q161: W | R161: 1.852343304
A162: Manhattan | B162: Delaware | C162: 5 | D162: 6 | E162: -1 | F162: L | H162: =VLOOKUP(A162,Sheet1!$A:$D,4,FALSE) -> -6.623228534 | I162: =VLOOKUP(B162,Sheet1!$A:$D,4,FALSE) -> -2.337195547 | J162: =IF(G162="N",H162-I162,(H162-I162+'Game Picker'!$L$4)) -> -3.002665431 | K162: 2.002665431 | L162: 0.2039488976 | M162: 0.7960511024 | N162: W | O162: 0.7960511024 | P162: 0.7-.79 | Q162: W | R162: 2.002665431
A163: Monmouth | B163: NJIT | C163: 12 | D163: 5 | E163: 7 | F163: W | H163: =VLOOKUP(A163,Sheet1!$A:$D,4,FALSE) -> -2.650516634 | I163: =VLOOKUP(B163,Sheet1!$A:$D,4,FALSE) -> -8.638075186 | J163: =IF(G163="N",H163-I163,(H163-I163+'Game Picker'!$L$4)) -> 7.270926108 | K163: -0.2709261082 | L163: 0.9774661755 | M163: 0.02253382452 | N163: W | O163: 0.9774661755 | P163: 0.9-1 | Q163: W | R163: 0.2709261082
A164: Massachusetts | B164: Albany | C164: 4 | D164: 16 | E164: -10 | F164: L | H164: =VLOOKUP(A164,Sheet1!$A:$D,4,FALSE) -> 1.141787934 | I164: =VLOOKUP(B164,Sheet1!$A:$D,4,FALSE) -> 3.583233584 | J164: =IF(G164="N",H164-I164,(H164-I164+'Game Picker'!$L$4)) -> -1.158078093 | K164: -8.841921907 | L164: 0.3747908201 | M164: 0.6252091799 | N164: W | O164: 0.6252091799 | P164: 0.6-.69 | Q164: W | R164: 8.841921907
A165: Hobart | B165: Colgate | C165: 6 | D165: 7 | E165: -1 | F165: L | H165: =VLOOKUP(A165,Sheet1!$A:$D,4,FALSE) -> -1.066500325 | I165: =VLOOKUP(B165,Sheet1!$A:$D,4,FALSE) -> -2.133759999 | J165: =IF(G165="N",H165-I165,(H165-I165+'Game Picker'!$L$4)) -> 2.35062723 | K165: -3.35062723 | L165: 0.7414697072 | M165: 0.2585302928 | N165: FALSE | O165: 0.7414697072 | P165: 0.7-.79 | Q165: L | R165: 3.35062723
A166: Penn | B166: Lafayette | C166: 12 | D166: 6 | E166: 6 | F166: W | H166: =VLOOKUP(A166,Sheet1!$A:$D,4,FALSE) -> 1.698846892 | I166: =VLOOKUP(B166,Sheet1!$A:$D,4,FALSE) -> -4.802015289 | J166: =IF(G166="N",H166-I166,(H166-I166+'Game Picker'!$L$4)) -> 7.784229738 | K166: -1.784229738 | L166: 0.9840435524 | M166: 0.01595644757 | N166: W | O166: 0.9840435524 | P166: 0.9-1 | Q166: W | R166: 1.784229738
A167: VMI | B167: Wagner | C167: 6 | D167: 7 | E167: -1 | F167: L | H167: =VLOOKUP(A167,Sheet1!$A:$D,4,FALSE) -> -9.895063579 | I167: =VLOOKUP(B167,Sheet1!$A:$D,4,FALSE) -> -5.842365931 | J167: =IF(G167="N",H167-I167,(H167-I167+'Game Picker'!$L$4)) -> -2.769330091 | K167: 1.769330091 | L167: 0.2226462715 | M167: 0.7773537285 | N167: W | O167: 0.7773537285 | P167: 0.7-.79 | Q167: W | R167: 1.769330091
A168: Bryant | B168: Harvard | C168: 12 | D168: 9 | E168: 3 | F168: W | H168: =VLOOKUP(A168,Sheet1!$A:$D,4,FALSE) -> 1.889930725 | I168: =VLOOKUP(B168,Sheet1!$A:$D,4,FALSE) -> 3.02736856 | J168: =IF(G168="N",H168-I168,(H168-I168+'Game Picker'!$L$4)) -> 0.1459297216 | K168: 2.854070278 | L168: 0.5160416708 | M168: 0.4839583292 | N168: W | O168: 0.5160416708 | P168: 0.5-.59 | Q168: W | R168: 2.854070278
A169: Drexel | B169: Maryland | C169: 8 | D169: 12 | E169: -4 | F169: L | H169: =VLOOKUP(A169,Sheet1!$A:$D,4,FALSE) -> 0.605883128 | I169: =VLOOKUP(B169,Sheet1!$A:$D,4,FALSE) -> 5.775430824 | J169: =IF(G169="N",H169-I169,(H169-I169+'Game Picker'!$L$4)) -> -3.88618014 | K169: -0.1138198604 | L169: 0.1420590334 | M169: 0.8579409666 | N169: W | O169: 0.8579409666 | P169: 0.8-.89 | Q169: W | R169: 0.1138198604
A170: Virginia | B170: St. Josephs | C170: 9 | D170: 7 | E170: 2 | F170: W | H170: =VLOOKUP(A170,Sheet1!$A:$D,4,FALSE) -> 1.736397307 | I170: =VLOOKUP(B170,Sheet1!$A:$D,4,FALSE) -> 2.152350014 | J170: =IF(G170="N",H170-I170,(H170-I170+'Game Picker'!$L$4)) -> 0.8674148493 | K170: 1.132585151 | L170: 0.5944774717 | M170: 0.4055225283 | N170: W | O170: 0.5944774717 | P170: 0.5-.59 | Q170: W | R170: 1.132585151
A171: Yale | B171: St. Johns | C171: 13 | D171: 8 | E171: 5 | F171: W | H171: =VLOOKUP(A171,Sheet1!$A:$D,4,FALSE) -> 4.774854864 | I171: =VLOOKUP(B171,Sheet1!$A:$D,4,FALSE) -> -3.765456536 | J171: =IF(G171="N",H171-I171,(H171-I171+'Game Picker'!$L$4)) -> 9.823678957 | K171: -4.823678957 | L171: 0.9966115779 | M171: 0.0033884221 | N171: W | O171: 0.9966115779 | P171: 0.9-1 | Q171: W | R171: 4.823678957
A172: Hampton | B172: Wagner | C172: 4 | D172: 18 | E172: -10 | F172: L | G172: N | H172: =VLOOKUP(A172,Sheet1!$A:$D,4,FALSE) -> -17.86871475 | I172: =VLOOKUP(B172,Sheet1!$A:$D,4,FALSE) -> -5.842365931 | J172: =IF(G172="N",H172-I172,(H172-I172+'Game Picker'!$L$4)) -> -12.02634882 | K172: 2.026348824 | L172: 0.0004586771611 | M172: 0.9995413228 | N172: W | O172: 0.9995413228 | P172: 0.9-1 | Q172: W | R172: 2.026348824
A173: Stony Brook | B173: Rutgers | C173: 15 | D173: 6 | E173: 9 | F173: W | H173: =VLOOKUP(A173,Sheet1!$A:$D,4,FALSE) -> 3.79124802 | I173: =VLOOKUP(B173,Sheet1!$A:$D,4,FALSE) -> 2.641567062 | J173: =IF(G173="N",H173-I173,(H173-I173+'Game Picker'!$L$4)) -> 2.433048515 | K173: 6.566951485 | L173: 0.7487623503 | M173: 0.2512376497 | N173: W | O173: 0.7487623503 | P173: 0.7-.79 | Q173: W | R173: 6.566951485
A174: Penn State | B174: Harvard | C174: 13 | D174: 12 | E174: 1 | F174: W | H174: =VLOOKUP(A174,Sheet1!$A:$D,4,FALSE) -> 2.508502072 | I174: =VLOOKUP(B174,Sheet1!$A:$D,4,FALSE) -> 3.02736856 | J174: =IF(G174="N",H174-I174,(H174-I174+'Game Picker'!$L$4)) -> 0.7645010693 | K174: 0.2354989307 | L174: 0.5834443153 | M174: 0.4165556847 | N174: W | O174: 0.5834443153 | P174: 0.5-.59 | Q174: W | R174: 0.2354989307
A175: High Point | B175: Providence | C175: 13 | D175: 12 | E175: 1 | F175: W | H175: =VLOOKUP(A175,Sheet1!$A:$D,4,FALSE) -> -1.175909064 | I175: =VLOOKUP(B175,Sheet1!$A:$D,4,FALSE) -> -0.5324792673 | J175: =IF(G175="N",H175-I175,(H175-I175+'Game Picker'!$L$4)) -> 0.6399377601 | K175: 0.3600622399 | L175: 0.5700024935 | M175: 0.4299975065 | N175: W | O175: 0.5700024935 | P175: 0.5-.59 | Q175: W | R175: 0.3600622399
A176: Loyola | B176: Duke | C176: 6 | D176: 15 | E176: -9 | F176: L | H176: =VLOOKUP(A176,Sheet1!$A:$D,4,FALSE) -> 4.137803658 | I176: =VLOOKUP(B176,Sheet1!$A:$D,4,FALSE) -> 4.523283353 | J176: =IF(G176="N",H176-I176,(H176-I176+'Game Picker'!$L$4)) -> 0.8978878617 | K176: -9.897887862 | L176: 0.5977304823 | M176: 0.4022695177 | N176: FALSE | O176: 0.5977304823 | P176: 0.5-.59 | Q176: L | R176: 9.897887862
A177: Air Force | B177: Furman | C177: 14 | D177: 4 | E177: 10 | F177: W | H177: =VLOOKUP(A177,Sheet1!$A:$D,4,FALSE) -> 0.8520259553 | I177: =VLOOKUP(B177,Sheet1!$A:$D,4,FALSE) -> -4.484832878 | J177: =IF(G177="N",H177-I177,(H177-I177+'Game Picker'!$L$4)) -> 6.62022639 | K177: 3.37977361 | L177: 0.9659750143 | M177: 0.03402498569 | N177: W | O177: 0.9659750143 | P177: 0.9-1 | Q177: W | R177: 3.37977361
A178: Army | B178: Lehigh | C178: 13 | D178: 10 | E178: 3 | F178: W | H178: =VLOOKUP(A178,Sheet1!$A:$D,4,FALSE) -> 2.926934471 | I178: =VLOOKUP(B178,Sheet1!$A:$D,4,FALSE) -> -0.8891448847 | J178: =IF(G178="N",H178-I178,(H178-I178+'Game Picker'!$L$4)) -> 5.099446912 | K178: -2.099446912 | L178: 0.9200661226 | M178: 0.07993387742 | N178: W | O178: 0.9200661226 | P178: 0.9-1 | Q178: W | R178: 2.099446912
A179: Cornell | B179: Virginia | C179: 14 | D179: 10 | E179: 4 | F179: W | H179: =VLOOKUP(A179,Sheet1!$A:$D,4,FALSE) -> 0.7550888591 | I179: =VLOOKUP(B179,Sheet1!$A:$D,4,FALSE) -> 1.736397307 | J179: =IF(G179="N",H179-I179,(H179-I179+'Game Picker'!$L$4)) -> 0.302059109 | K179: 3.697940891 | L179: 0.5331751886 | M179: 0.4668248114 | N179: W | O179: 0.5331751886 | P179: 0.5-.59 | Q179: L | R179: 3.697940891
A180: Georgetown | B180: Hobart | C180: 9 | D180: 10 | E180: -1 | F180: L | H180: =VLOOKUP(A180,Sheet1!$A:$D,4,FALSE) -> -1.436486274 | I180: =VLOOKUP(B180,Sheet1!$A:$D,4,FALSE) -> -1.066500325 | J180: =IF(G180="N",H180-I180,(H180-I180+'Game Picker'!$L$4)) -> 0.913381608 | K180: -1.913381608 | L180: 0.5993818714 | M180: 0.4006181286 | N180: FALSE | O180: 0.5993818714 | P180: 0.5-.59 | Q180: W | R180: 1.913381608
A181: Hofstra | B181: Ohio State | C181: 8 | D181: 5 | E181: 3 | F181: W | H181: =VLOOKUP(A181,Sheet1!$A:$D,4,FALSE) -> 1.060232161 | I181: =VLOOKUP(B181,Sheet1!$A:$D,4,FALSE) -> 1.474575448 | J181: =IF(G181="N",H181-I181,(H181-I181+'Game Picker'!$L$4)) -> 0.8690242698 | K181: 2.13097573 | L181: 0.5946494436 | M181: 0.4053505564 | N181: W | O181: 0.5946494436 | P181: 0.5-.59 | Q181: W | R181: 2.13097573
A182: Mt. St. Marys | B182: VMI | C182: 14 | D182: 2 | E182: 10 | F182: W | H182: =VLOOKUP(A182,Sheet1!$A:$D,4,FALSE) -> -2.359246425 | I182: =VLOOKUP(B182,Sheet1!$A:$D,4,FALSE) -> -9.895063579 | J182: =IF(G182="N",H182-I182,(H182-I182+'Game Picker'!$L$4)) -> 8.81918471 | K182: 1.18081529 | L182: 0.9924663138 | M182: 0.007533686185 | N182: W | O182: 0.9924663138 | P182: 0.9-1 | Q182: W | R182: 1.18081529
A183: Princeton | B183: Maryland | C183: 5 | D183: 17 | E183: -10 | F183: L | H183: =VLOOKUP(A183,Sheet1!$A:$D,4,FALSE) -> -0.3610541581 | I183: =VLOOKUP(B183,Sheet1!$A:$D,4,FALSE) -> 5.775430824 | J183: =IF(G183="N",H183-I183,(H183-I183+'Game Picker'!$L$4)) -> -4.853117426 | K183: -5.146882574 | L183: 0.09050971339 | M183: 0.9094902866 | N183: W | O183: 0.9094902866 | P183: 0.9-1 | Q183: W | R183: 5.146882574
A184: UMBC | B184: Marist | C184: 9 | D184: 8 | E184: 1 | F184: W | H184: =VLOOKUP(A184,Sheet1!$A:$D,4,FALSE) -> -2.541740474 | I184: =VLOOKUP(B184,Sheet1!$A:$D,4,FALSE) -> -1.337627557 | J184: =IF(G184="N",H184-I184,(H184-I184+'Game Picker'!$L$4)) -> 0.07925463979 | K184: 0.9207453602 | L184: 0.5087139104 | M184: 0.4912860896 | N184: W | O184: 0.5087139104 | P184: 0.5-.59 | Q184: W | R184: 0.9207453602
A185: Bellarmine | B185: Mercer | C185: 11 | D185: 7 | E185: 4 | F185: W | H185: =VLOOKUP(A185,Sheet1!$A:$D,4,FALSE) -> -1.813156631 | I185: =VLOOKUP(B185,Sheet1!$A:$D,4,FALSE) -> -3.606529156 | J185: =IF(G185="N",H185-I185,(H185-I185+'Game Picker'!$L$4)) -> 3.076740081 | K185: 0.9232599189 | L185: 0.8017852673 | M185: 0.1982147327 | N185: W | O185: 0.8017852673 | P185: 0.8-.89 | Q185: W | R185: 0.9232599189
A186: Binghamton | B186: Delaware | C186: 11 | D186: 12 | E186: -1 | F186: L | H186: =VLOOKUP(A186,Sheet1!$A:$D,4,FALSE) -> -2.893866393 | I186: =VLOOKUP(B186,Sheet1!$A:$D,4,FALSE) -> -2.337195547 | J186: =IF(G186="N",H186-I186,(H186-I186+'Game Picker'!$L$4)) -> 0.7266967108 | K186: -1.726696711 | L186: 0.5793743334 | M186: 0.4206256666 | N186: FALSE | O186: 0.5793743334 | P186: 0.5-.59 | Q186: W | R186: 1.726696711
A187: Brown | B187: Michigan | C187: 22 | D187: 8 | E187: 10 | F187: W | H187: =VLOOKUP(A187,Sheet1!$A:$D,4,FALSE) -> 7.805770702 | I187: =VLOOKUP(B187,Sheet1!$A:$D,4,FALSE) -> -1.733023756 | J187: =IF(G187="N",H187-I187,(H187-I187+'Game Picker'!$L$4)) -> 10.82216201 | K187: -0.8221620144 | L187: 0.9985719656 | M187: 0.001428034371 | N187: W | O187: 0.9985719656 | P187: 0.9-1 | Q187: W | R187: 0.8221620144
A188: Bryant | B188: Drexel | C188: 5 | D188: 14 | E188: -9 | F188: L | H188: =VLOOKUP(A188,Sheet1!$A:$D,4,FALSE) -> 1.889930725 | I188: =VLOOKUP(B188,Sheet1!$A:$D,4,FALSE) -> 0.605883128 | J188: =IF(G188="N",H188-I188,(H188-I188+'Game Picker'!$L$4)) -> 2.567415153 | K188: -11.56741515 | L188: 0.7604138517 | M188: 0.2395861483 | N188: FALSE | O188: 0.7604138517 | P188: 0.7-.79 | Q188: L | R188: 11.56741515
A189: Boston | B189: Colgate | C189: 11 | D189: 6 | E189: 5 | F189: W | H189: =VLOOKUP(A189,Sheet1!$A:$D,4,FALSE) -> -0.4476388759 | I189: =VLOOKUP(B189,Sheet1!$A:$D,4,FALSE) -> -2.133759999 | J189: =IF(G189="N",H189-I189,(H189-I189+'Game Picker'!$L$4)) -> 2.969488679 | K189: 2.030511321 | L189: 0.7934511424 | M189: 0.2065488576 | N189: W | O189: 0.7934511424 | P189: 0.7-.79 | Q189: W | R189: 2.030511321
A190: Fairfield | B190: Yale | C190: 5 | D190: 10 | E190: -5 | F190: L | H190: =VLOOKUP(A190,Sheet1!$A:$D,4,FALSE) -> 0.7439204973 | I190: =VLOOKUP(B190,Sheet1!$A:$D,4,FALSE) -> 4.774854864 | J190: =IF(G190="N",H190-I190,(H190-I190+'Game Picker'!$L$4)) -> -2.74756681 | K190: -2.25243319 | L190: 0.2244386426 | M190: 0.7755613574 | N190: W | O190: 0.7755613574 | P190: 0.7-.79 | Q190: W | R190: 2.25243319
A191: Hartford | B191: Quinnipiac | C191: 10 | D191: 11 | E191: -1 | F191: L | H191: =VLOOKUP(A191,Sheet1!$A:$D,4,FALSE) -> -0.3692835887 | I191: =VLOOKUP(B191,Sheet1!$A:$D,4,FALSE) -> 0.3551132287 | J191: =IF(G191="N",H191-I191,(H191-I191+'Game Picker'!$L$4)) -> 0.5589707391 | K191: -1.558970739 | L191: 0.561220471 | M191: 0.438779529 | N191: FALSE | O191: 0.561220471 | P191: 0.5-.59 | Q191: W | R191: 1.558970739
A192: Holy Cross | B192: Bucknell | C192: 12 | D192: 18 | E192: -6 | F192: L | H192: =VLOOKUP(A192,Sheet1!$A:$D,4,FALSE) -> -1.62525355 | I192: =VLOOKUP(B192,Sheet1!$A:$D,4,FALSE) -> 2.444763683 | J192: =IF(G192="N",H192-I192,(H192-I192+'Game Picker'!$L$4)) -> -2.786649676 | K192: -3.213350324 | L192: 0.2212257218 | M192: 0.7787742782 | N192: W | O192: 0.7787742782 | P192: 0.7-.79 | Q192: W | R192: 3.213350324
A193: Monmouth | B193: St. Josephs | C193: 8 | D193: 18 | E193: -10 | F193: L | H193: =VLOOKUP(A193,Sheet1!$A:$D,4,FALSE) -> -2.650516634 | I193: =VLOOKUP(B193,Sheet1!$A:$D,4,FALSE) -> 2.152350014 | J193: =IF(G193="N",H193-I193,(H193-I193+'Game Picker'!$L$4)) -> -3.519499091 | K193: -6.480500909 | L193: 0.1660110065 | M193: 0.8339889935 | N193: W | O193: 0.8339889935 | P193: 0.8-.89 | Q193: W | R193: 6.480500909
A194: Marquette | B194: Robert Morris | C194: 13 | D194: 5 | E194: 8 | F194: W | H194: =VLOOKUP(A194,Sheet1!$A:$D,4,FALSE) -> 2.852862235 | I194: =VLOOKUP(B194,Sheet1!$A:$D,4,FALSE) -> -1.284958311 | J194: =IF(G194="N",H194-I194,(H194-I194+'Game Picker'!$L$4)) -> 5.421188102 | K194: 2.578811898 | L194: =IF(G194="N",NORMDIST(0,I194-H194,$C$539,TRUE),NORMDIST(0,I194-H194-$C$542,$C$539,TRUE)) -> 0.9324376985 | M194: =IF(G194="N",NORMDIST(0,H194-I194,$C$539,TRUE),NORMDIST(0,H194-I194+$C$542,$C$539,TRUE)) -> 0.06756230154 | N194: =IF(E194<0,IF(L194<0.5,"W"),IF(E194>0,IF(L194>0.5,"W"),"L")) -> W | O194: 0.9324376985 | P194: 0.9-1 | Q194: W | R194: 2.578811898
A195: Richmond | B195: Jacksonville | C195: 12 | D195: 6 | E195: =IF(C195-D195<-10,-10,(IF(C195-D195>10,10,C195-D195))) -> 6 | F195: =IF(C195>D195,"W","L") -> W | H195: =VLOOKUP(A195,Sheet1!$A:$D,4,FALSE) -> 0.08869566067 | I195: =VLOOKUP(B195,Sheet1!$A:$D,4,FALSE) -> -5.30087846 | J195: =IF(G195="N",H195-I195,(H195-I195+'Game Picker'!$L$4)) -> 6.672941678 | K195: =E195-J195 -> -0.6729416775 | L195: 0.9670574973 | M195: 0.03294250273 | N195: W | O195: =IF(M195>L195,M195,L195) -> 0.9670574973 | P195: =IF(AND(O195>=0.9,O195<1.01),"0.9-1",IF(AND(O195>=0.8,O195<0.9),"0.8-.89",IF(AND(O195>=0.7,O195<0.8),"0.7-.79",IF(AND(O195>=0.6,O195<0.7),"0.6-.69",IF(AND(O195>=0.5,O195<0.6),"0.5-.59"))))) -> 0.9-1 | Q195: =IF(AND(J195<=1,J195>=-1,K195<=3,K195>-3),"W",IF(AND(E195<=-1,J195<=-1),"W",IF(AND(E195>=1,J195>=1),"W","L"))) -> W | R195: =IF(K195<0,-K195,K195) -> 0.6729416775
A196: Massachusetts | B196: North Carolina | C196: 14 | D196: 9 | E196: 5 | F196: W | H196: =VLOOKUP(A196,Sheet1!$A:$D,4,FALSE) -> 1.141787934 | I196: =VLOOKUP(B196,Sheet1!$A:$D,4,FALSE) -> 4.211880999 | J196: =IF(G196="N",H196-I196,(H196-I196+'Game Picker'!$L$4)) -> -1.786725509 | K196: 6.786725509 | L196: 0.3111971998 | M196: 0.6888028002 | N196: FALSE | O196: 0.6888028002 | P196: 0.6-.69 | Q196: L | R196: 6.786725509
A197: Lowell | B197: Manhattan | C197: 5 | D197: 8 | E197: -3 | F197: L | H197: =VLOOKUP(A197,Sheet1!$A:$D,4,FALSE) -> -5.018299136 | I197: =VLOOKUP(B197,Sheet1!$A:$D,4,FALSE) -> -6.623228534 | J197: =IF(G197="N",H197-I197,(H197-I197+'Game Picker'!$L$4)) -> 2.888296954 | K197: -5.888296954 | L197: 0.7870061622 | M197: 0.2129938378 | N197: FALSE | O197: 0.7870061622 | P197: 0.7-.79 | Q197: L | R197: 5.888296954
A198: Vermont | B198: Sacred Heart | C198: 9 | D198: 8 | E198: 1 | F198: W | H198: =VLOOKUP(A198,Sheet1!$A:$D,4,FALSE) -> -0.3404077904 | I198: =VLOOKUP(B198,Sheet1!$A:$D,4,FALSE) -> -4.317467372 | J198: =IF(G198="N",H198-I198,(H198-I198+'Game Picker'!$L$4)) -> 5.260427138 | K198: -4.260427138 | L198: 0.9264548523 | M198: 0.07354514771 | N198: W | O198: 0.9264548523 | P198: 0.9-1 | Q198: W | R198: 4.260427138
A199: Johns Hopkins | B199: Towson | C199: 14 | D199: 8 | E199: 6 | F199: W | H199: =VLOOKUP(A199,Sheet1!$A:$D,4,FALSE) -> 3.298359288 | I199: =VLOOKUP(B199,Sheet1!$A:$D,4,FALSE) -> 3.601420652 | J199: =IF(G199="N",H199-I199,(H199-I199+'Game Picker'!$L$4)) -> 0.9803061924 | K199: 5.019693808 | L199: 0.6064942349 | M199: 0.3935057651 | N199: W | O199: 0.6064942349 | P199: 0.6-.69 | Q199: L | R199: 5.019693808
A200: Syracuse | B200: St. Johns | C200: 15 | D200: 4 | E200: 10 | F200: W | H200: =VLOOKUP(A200,Sheet1!$A:$D,4,FALSE) -> 4.926891772 | I200: =VLOOKUP(B200,Sheet1!$A:$D,4,FALSE) -> -3.765456536 | J200: =IF(G200="N",H200-I200,(H200-I200+'Game Picker'!$L$4)) -> 9.975715865 | K200: 0.02428413508 | L200: 0.997015872 | M200: 0.002984128013 | N200: W | O200: 0.997015872 | P200: 0.9-1 | Q200: W | R200: 0.02428413508
... 351 more rows

Sheet Sheet1 (hidden)
A1: Team | B1: MOV | C1: SOS | D1: SRS | E1: RANK | F1: SOS RANK | G1: GF | H1: GA | I1: Pyth. % | J1: W/L % | K1: SRS Win% | L1: RANK | M1: League
A2: Brown | B2: =((SUMIF(Games!$A:$A,A2,Games!$E:$E))+-(SUMIF(Games!$B:$B,A2,Games!$E:$E)))/((COUNTIF(Games!$A:$A,A2))+(COUNTIF(Games!$B:$B,A2))) -> 6.5 | C2: =((SUMIF(Games!$A:$A,A2,Games!$I:$I))+(SUMIF(Games!$B:$B,A2,Games!$H:$H)))/((COUNTIF(Games!$A:$A,A2))+(COUNTIF(Games!$B:$B,A2))) -> 1.305770702 | D2: =B2+C2 -> 7.805770702 | E2: =RANK(D2,$D$2:$D$71) -> 1 | F2: =RANK(C2,$C$2:$C$71,0) -> 20 | G2: =(((SUMIF(Games!A:A,A2,Games!C:C)+(SUMIF(Games!B:B,A2,Games!D:D)))))/(COUNTIF(Games!A:A,A2)+COUNTIF(Games!B:B,A2)) -> 16.44444444 | H2: =(((SUMIF(Games!A:A,A2,Games!D:D)+(SUMIF(Games!B:B,A2,Games!C:C)))))/(COUNTIF(Games!A:A,A2)+COUNTIF(Games!B:B,A2)) -> 8.666666667 | I2: =(G2^3.12)/((G2^3.12)+(H2^3.12)) -> 0.8806259115 | J2: =((COUNTIFS(Games!$A:$A,A2,Games!$F:$F,"W"))+(COUNTIFS(Games!$B:$B,A2,Games!$F:$F,"L")))/(COUNTIF(Games!$A:$A,A2)+COUNTIF(Games!$B:$B,A2)) -> 0.8888888889 | K2: =Brown!$AC$17 -> 0.9294669566 | L2: =RANK(K2,$K$2:$K$71,0) -> 1 | M2: Ivy
A3: Maryland | B3: =((SUMIF(Games!$A:$A,A3,Games!$E:$E))+-(SUMIF(Games!$B:$B,A3,Games!$E:$E)))/((COUNTIF(Games!$A:$A,A3))+(COUNTIF(Games!$B:$B,A3))) -> 3.5 | C3: =((SUMIF(Games!$A:$A,A3,Games!$I:$I))+(SUMIF(Games!$B:$B,A3,Games!$H:$H)))/((COUNTIF(Games!$A:$A,A3))+(COUNTIF(Games!$B:$B,A3))) -> 2.275430824 | D3: 5.775430824 | E3: 2 | F3: 4 | G3: =(((SUMIF(Games!A:A,A3,Games!C:C)+(SUMIF(Games!B:B,A3,Games!D:D)))))/(COUNTIF(Games!A:A,A3)+COUNTIF(Games!B:B,A3)) -> 11.33333333 | H3: =(((SUMIF(Games!A:A,A3,Games!D:D)+(SUMIF(Games!B:B,A3,Games!C:C)))))/(COUNTIF(Games!A:A,A3)+COUNTIF(Games!B:B,A3)) -> 7.722222222 | I3: 0.7679863422 | J3: =((COUNTIFS(Games!$A:$A,A3,Games!$F:$F,"W"))+(COUNTIFS(Games!$B:$B,A3,Games!$F:$F,"L")))/(COUNTIF(Games!$A:$A,A3)+COUNTIF(Games!$B:$B,A3)) -> 0.8888888889 | K3: =Maryland!$AC$17 -> 0.7956143442 | L3: 4 | M3: Big Ten
A4: Notre Dame | B4: =((SUMIF(Games!$A:$A,A4,Games!$E:$E))+-(SUMIF(Games!$B:$B,A4,Games!$E:$E)))/((COUNTIF(Games!$A:$A,A4))+(COUNTIF(Games!$B:$B,A4))) -> 3 | C4: =((SUMIF(Games!$A:$A,A4,Games!$I:$I))+(SUMIF(Games!$B:$B,A4,Games!$H:$H)))/((COUNTIF(Games!$A:$A,A4))+(COUNTIF(Games!$B:$B,A4))) -> 2.34856419 | D4: 5.34856419 | E4: 3 | F4: 2 | G4: =(((SUMIF(Games!A:A,A4,Games!C:C)+(SUMIF(Games!B:B,A4,Games!D:D)))))/(COUNTIF(Games!A:A,A4)+COUNTIF(Games!B:B,A4)) -> 11 | H4: =(((SUMIF(Games!A:A,A4,Games!D:D)+(SUMIF(Games!B:B,A4,Games!C:C)))))/(COUNTIF(Games!A:A,A4)+COUNTIF(Games!B:B,A4)) -> 8 | I4: 0.7297935996 | J4: =((COUNTIFS(Games!$A:$A,A4,Games!$F:$F,"W"))+(COUNTIFS(Games!$B:$B,A4,Games!$F:$F,"L")))/(COUNTIF(Games!$A:$A,A4)+COUNTIF(Games!$B:$B,A4)) -> 0.7333333333 | K4: ='Notre Dame'!$AC$17 -> 0.7470112734 | L4: 8 | M4: ACC
A5: Denver | B5: =((SUMIF(Games!$A:$A,A5,Games!$E:$E))+-(SUMIF(Games!$B:$B,A5,Games!$E:$E)))/((COUNTIF(Games!$A:$A,A5))+(COUNTIF(Games!$B:$B,A5))) -> 4.1875 | C5: =((SUMIF(Games!$A:$A,A5,Games!$I:$I))+(SUMIF(Games!$B:$B,A5,Games!$H:$H)))/((COUNTIF(Games!$A:$A,A5))+(COUNTIF(Games!$B:$B,A5))) -> 1.015720463 | D5: 5.203220463 | E5: 4 | F5: 25 | G5: =(((SUMIF(Games!A:A,A5,Games!C:C)+(SUMIF(Games!B:B,A5,Games!D:D)))))/(COUNTIF(Games!A:A,A5)+COUNTIF(Games!B:B,A5)) -> 13.5625 | H5: =(((SUMIF(Games!A:A,A5,Games!D:D)+(SUMIF(Games!B:B,A5,Games!C:C)))))/(COUNTIF(Games!A:A,A5)+COUNTIF(Games!B:B,A5)) -> 9.125 | I5: 0.7749414841 | J5: =((COUNTIFS(Games!$A:$A,A5,Games!$F:$F,"W"))+(COUNTIFS(Games!$B:$B,A5,Games!$F:$F,"L")))/(COUNTIF(Games!$A:$A,A5)+COUNTIF(Games!$B:$B,A5)) -> 0.8125 | K5: =Denver!$AC$17 -> 0.7818680695 | L5: 5 | M5: Big East
A6: Syracuse | B6: =((SUMIF(Games!$A:$A,A6,Games!$E:$E))+-(SUMIF(Games!$B:$B,A6,Games!$E:$E)))/((COUNTIF(Games!$A:$A,A6))+(COUNTIF(Games!$B:$B,A6))) -> 3.176470588 | C6: =((SUMIF(Games!$A:$A,A6,Games!$I:$I))+(SUMIF(Games!$B:$B,A6,Games!$H:$H)))/((COUNTIF(Games!$A:$A,A6))+(COUNTIF(Games!$B:$B,A6))) -> 1.750421184 | D6: 4.926891772 | E6: 5 | F6: 11 | G6: =(((SUMIF(Games!A:A,A6,Games!C:C)+(SUMIF(Games!B:B,A6,Games!D:D)))))/(COUNTIF(Games!A:A,A6)+COUNTIF(Games!B:B,A6)) -> 12.47058824 | H6: =(((SUMIF(Games!A:A,A6,Games!D:D)+(SUMIF(Games!B:B,A6,Games!C:C)))))/(COUNTIF(Games!A:A,A6)+COUNTIF(Games!B:B,A6)) -> 8.764705882 | I6: 0.7503044539 | J6: =((COUNTIFS(Games!$A:$A,A6,Games!$F:$F,"W"))+(COUNTIFS(Games!$B:$B,A6,Games!$F:$F,"L")))/(COUNTIF(Games!$A:$A,A6)+COUNTIF(Games!$B:$B,A6)) -> 0.7058823529 | K6: =Syracuse!$AC$17 -> 0.734374466 | L6: 10 | M6: ACC
A7: Yale | B7: =((SUMIF(Games!$A:$A,A7,Games!$E:$E))+-(SUMIF(Games!$B:$B,A7,Games!$E:$E)))/((COUNTIF(Games!$A:$A,A7))+(COUNTIF(Games!$B:$B,A7))) -> 3.875 | C7: =((SUMIF(Games!$A:$A,A7,Games!$I:$I))+(SUMIF(Games!$B:$B,A7,Games!$H:$H)))/((COUNTIF(Games!$A:$A,A7))+(COUNTIF(Games!$B:$B,A7))) -> 0.899854864 | D7: 4.774854864 | E7: 6 | F7: 26 | G7: =(((SUMIF(Games!A:A,A7,Games!C:C)+(SUMIF(Games!B:B,A7,Games!D:D)))))/(COUNTIF(Games!A:A,A7)+COUNTIF(Games!B:B,A7)) -> 12.375 | H7: =(((SUMIF(Games!A:A,A7,Games!D:D)+(SUMIF(Games!B:B,A7,Games!C:C)))))/(COUNTIF(Games!A:A,A7)+COUNTIF(Games!B:B,A7)) -> 8.125 | I7: 0.7879622153 | J7: =((COUNTIFS(Games!$A:$A,A7,Games!$F:$F,"W"))+(COUNTIFS(Games!$B:$B,A7,Games!$F:$F,"L")))/(COUNTIF(Games!$A:$A,A7)+COUNTIF(Games!$B:$B,A7)) -> 0.8125 | K7: =Yale!$AC$17 -> 0.7768878206 | L7: 6 | M7: Ivy
A8: Duke | B8: =((SUMIF(Games!$A:$A,A8,Games!$E:$E))+-(SUMIF(Games!$B:$B,A8,Games!$E:$E)))/((COUNTIF(Games!$A:$A,A8))+(COUNTIF(Games!$B:$B,A8))) -> 2.736842105 | C8: =((SUMIF(Games!$A:$A,A8,Games!$I:$I))+(SUMIF(Games!$B:$B,A8,Games!$H:$H)))/((COUNTIF(Games!$A:$A,A8))+(COUNTIF(Games!$B:$B,A8))) -> 1.786441248 | D8: 4.523283353 | E8: 7 | F8: 9 | G8: =(((SUMIF(Games!A:A,A8,Games!C:C)+(SUMIF(Games!B:B,A8,Games!D:D)))))/(COUNTIF(Games!A:A,A8)+COUNTIF(Games!B:B,A8)) -> 13.36842105 | H8: =(((SUMIF(Games!A:A,A8,Games!D:D)+(SUMIF(Games!B:B,A8,Games!C:C)))))/(COUNTIF(Games!A:A,A8)+COUNTIF(Games!B:B,A8)) -> 9.947368421 | I8: 0.7154967187 | J8: =((COUNTIFS(Games!$A:$A,A8,Games!$F:$F,"W"))+(COUNTIFS(Games!$B:$B,A8,Games!$F:$F,"L")))/(COUNTIF(Games!$A:$A,A8)+COUNTIF(Games!$B:$B,A8)) -> 0.5789473684 | K8: =Duke!$AC$17 -> 0.7016438399 | L8: 12 | M8: ACC
A9: Villanova | B9: =((SUMIF(Games!$A:$A,A9,Games!$E:$E))+-(SUMIF(Games!$B:$B,A9,Games!$E:$E)))/((COUNTIF(Games!$A:$A,A9))+(COUNTIF(Games!$B:$B,A9))) -> 2.857142857 | C9: =((SUMIF(Games!$A:$A,A9,Games!$I:$I))+(SUMIF(Games!$B:$B,A9,Games!$H:$H)))/((COUNTIF(Games!$A:$A,A9))+(COUNTIF(Games!$B:$B,A9))) -> 1.548027346 | D9: 4.405170203 | E9: 8 | F9: 12 | G9: =(((SUMIF(Games!A:A,A9,Games!C:C)+(SUMIF(Games!B:B,A9,Games!D:D)))))/(COUNTIF(Games!A:A,A9)+COUNTIF(Games!B:B,A9)) -> 13.57142857 | H9: =(((SUMIF(Games!A:A,A9,Games!D:D)+(SUMIF(Games!B:B,A9,Games!C:C)))))/(COUNTIF(Games!A:A,A9)+COUNTIF(Games!B:B,A9)) -> 10.64285714 | I9: 0.6810068272 | J9: =((COUNTIFS(Games!$A:$A,A9,Games!$F:$F,"W"))+(COUNTIFS(Games!$B:$B,A9,Games!$F:$F,"L")))/(COUNTIF(Games!$A:$A,A9)+COUNTIF(Games!$B:$B,A9)) -> 0.6428571429 | K9: =Villanova!$AC$17 -> 0.7285331324 | L9: 11 | M9: Big East
A10: North Carolina | B10: =((SUMIF(Games!$A:$A,A10,Games!$E:$E))+-(SUMIF(Games!$B:$B,A10,Games!$E:$E)))/((COUNTIF(Games!$A:$A,A10))+(COUNTIF(Games!$B:$B,A10))) -> 2.125 | C10: =((SUMIF(Games!$A:$A,A10,Games!$I:$I))+(SUMIF(Games!$B:$B,A10,Games!$H:$H)))/((COUNTIF(Games!$A:$A,A10))+(COUNTIF(Games!$B:$B,A10))) -> 2.086880999 | D10: 4.211880999 | E10: 9 | F10: 6 | G10: =(((SUMIF(Games!A:A,A10,Games!C:C)+(SUMIF(Games!B:B,A10,Games!D:D)))))/(COUNTIF(Games!A:A,A10)+COUNTIF(Games!B:B,A10)) -> 12.6875 | H10: =(((SUMIF(Games!A:A,A10,Games!D:D)+(SUMIF(Games!B:B,A10,Games!C:C)))))/(COUNTIF(Games!A:A,A10)+COUNTIF(Games!B:B,A10)) -> 10.1875 | I10: 0.6647873321 | J10: =((COUNTIFS(Games!$A:$A,A10,Games!$F:$F,"W"))+(COUNTIFS(Games!$B:$B,A10,Games!$F:$F,"L")))/(COUNTIF(Games!$A:$A,A10)+COUNTIF(Games!$B:$B,A10)) -> 0.625 | K10: ='North Carolina'!$AC$17 -> 0.6274314733 | L10: 21 | M10: ACC
A11: Loyola | B11: =((SUMIF(Games!$A:$A,A11,Games!$E:$E))+-(SUMIF(Games!$B:$B,A11,Games!$E:$E)))/((COUNTIF(Games!$A:$A,A11))+(COUNTIF(Games!$B:$B,A11))) -> 2.705882353 | C11: =((SUMIF(Games!$A:$A,A11,Games!$I:$I))+(SUMIF(Games!$B:$B,A11,Games!$H:$H)))/((COUNTIF(Games!$A:$A,A11))+(COUNTIF(Games!$B:$B,A11))) -> 1.431921305 | D11: 4.137803658 | E11: 10 | F11: 17 | G11: =(((SUMIF(Games!A:A,A11,Games!C:C)+(SUMIF(Games!B:B,A11,Games!D:D)))))/(COUNTIF(Games!A:A,A11)+COUNTIF(Games!B:B,A11)) -> 10.82352941 | H11: =(((SUMIF(Games!A:A,A11,Games!D:D)+(SUMIF(Games!B:B,A11,Games!C:C)))))/(COUNTIF(Games!A:A,A11)+COUNTIF(Games!B:B,A11)) -> 8.058823529 | I11: 0.7150948911 | J11: =((COUNTIFS(Games!$A:$A,A11,Games!$F:$F,"W"))+(COUNTIFS(Games!$B:$B,A11,Games!$F:$F,"L")))/(COUNTIF(Games!$A:$A,A11)+COUNTIF(Games!$B:$B,A11)) -> 0.8235294118 | K11: =Loyola!$AC$17 -> 0.7347977834 | L11: 9 | M11: Patriot
A12: Stony Brook | B12: =((SUMIF(Games!$A:$A,A12,Games!$E:$E))+-(SUMIF(Games!$B:$B,A12,Games!$E:$E)))/((COUNTIF(Games!$A:$A,A12))+(COUNTIF(Games!$B:$B,A12))) -> 4.1875 | C12: =((SUMIF(Games!$A:$A,A12,Games!$I:$I))+(SUMIF(Games!$B:$B,A12,Games!$H:$H)))/((COUNTIF(Games!$A:$A,A12))+(COUNTIF(Games!$B:$B,A12))) -> -0.3962519797 | D12: 3.79124802 | E12: 11 | F12: 44 | G12: =(((SUMIF(Games!A:A,A12,Games!C:C)+(SUMIF(Games!B:B,A12,Games!D:D)))))/(COUNTIF(Games!A:A,A12)+COUNTIF(Games!B:B,A12)) -> 13.3125 | H12: =(((SUMIF(Games!A:A,A12,Games!D:D)+(SUMIF(Games!B:B,A12,Games!C:C)))))/(COUNTIF(Games!A:A,A12)+COUNTIF(Games!B:B,A12)) -> 9.125 | I12: 0.7646562 | J12: =((COUNTIFS(Games!$A:$A,A12,Games!$F:$F,"W"))+(COUNTIFS(Games!$B:$B,A12,Games!$F:$F,"L")))/(COUNTIF(Games!$A:$A,A12)+COUNTIF(Games!$B:$B,A12)) -> 0.75 | K12: ='Stony Brook'!$AC$17 -> 0.8206266352 | L12: 2 | M12: America East
A13: Navy | B13: =((SUMIF(Games!$A:$A,A13,Games!$E:$E))+-(SUMIF(Games!$B:$B,A13,Games!$E:$E)))/((COUNTIF(Games!$A:$A,A13))+(COUNTIF(Games!$B:$B,A13))) -> 2.5 | C13: =((SUMIF(Games!$A:$A,A13,Games!$I:$I))+(SUMIF(Games!$B:$B,A13,Games!$H:$H)))/((COUNTIF(Games!$A:$A,A13))+(COUNTIF(Games!$B:$B,A13))) -> 1.14940015 | D13: 3.64940015 | E13: 12 | F13: 22 | G13: =(((SUMIF(Games!A:A,A13,Games!C:C)+(SUMIF(Games!B:B,A13,Games!D:D)))))/(COUNTIF(Games!A:A,A13)+COUNTIF(Games!B:B,A13)) -> 9.875 | H13: =(((SUMIF(Games!A:A,A13,Games!D:D)+(SUMIF(Games!B:B,A13,Games!C:C)))))/(COUNTIF(Games!A:A,A13)+COUNTIF(Games!B:B,A13)) -> 7.375 | I13: 0.7131557542 | J13: =((COUNTIFS(Games!$A:$A,A13,Games!$F:$F,"W"))+(COUNTIFS(Games!$B:$B,A13,Games!$F:$F,"L")))/(COUNTIF(Games!$A:$A,A13)+COUNTIF(Games!$B:$B,A13)) -> 0.6875 | K13: =Navy!$AC$17 -> 0.6751649033 | L13: 14 | M13: Patriot
A14: Towson | B14: =((SUMIF(Games!$A:$A,A14,Games!$E:$E))+-(SUMIF(Games!$B:$B,A14,Games!$E:$E)))/((COUNTIF(Games!$A:$A,A14))+(COUNTIF(Games!$B:$B,A14))) -> 3.473684211 | C14: =((SUMIF(Games!$A:$A,A14,Games!$I:$I))+(SUMIF(Games!$B:$B,A14,Games!$H:$H)))/((COUNTIF(Games!$A:$A,A14))+(COUNTIF(Games!$B:$B,A14))) -> 0.1277364415 | D14: 3.601420652 | E14: 13 | F14: 35 | G14: =(((SUMIF(Games!A:A,A14,Games!C:C)+(SUMIF(Games!B:B,A14,Games!D:D)))))/(COUNTIF(Games!A:A,A14)+COUNTIF(Games!B:B,A14)) -> 10.89473684 | H14: =(((SUMIF(Games!A:A,A14,Games!D:D)+(SUMIF(Games!B:B,A14,Games!C:C)))))/(COUNTIF(Games!A:A,A14)+COUNTIF(Games!B:B,A14)) -> 7.263157895 | I14: 0.7798944073 | J14: =((COUNTIFS(Games!$A:$A,A14,Games!$F:$F,"W"))+(COUNTIFS(Games!$B:$B,A14,Games!$F:$F,"L")))/(COUNTIF(Games!$A:$A,A14)+COUNTIF(Games!$B:$B,A14)) -> 0.8421052632 | K14: =Towson!$AC$17 -> 0.7649203872 | L14: 7 | M14: CAA
A15: Albany | B15: =((SUMIF(Games!$A:$A,A15,Games!$E:$E))+-(SUMIF(Games!$B:$B,A15,Games!$E:$E)))/((COUNTIF(Games!$A:$A,A15))+(COUNTIF(Games!$B:$B,A15))) -> 2.75 | C15: =((SUMIF(Games!$A:$A,A15,Games!$I:$I))+(SUMIF(Games!$B:$B,A15,Games!$H:$H)))/((COUNTIF(Games!$A:$A,A15))+(COUNTIF(Games!$B:$B,A15))) -> 0.8332335835 | D15: 3.583233584 | E15: 14 | F15: 27 | G15: =(((SUMIF(Games!A:A,A15,Games!C:C)+(SUMIF(Games!B:B,A15,Games!D:D)))))/(COUNTIF(Games!A:A,A15)+COUNTIF(Games!B:B,A15)) -> 12.9375 | H15: =(((SUMIF(Games!A:A,A15,Games!D:D)+(SUMIF(Games!B:B,A15,Games!C:C)))))/(COUNTIF(Games!A:A,A15)+COUNTIF(Games!B:B,A15)) -> 10.0625 | I15: 0.6865633031 | J15: =((COUNTIFS(Games!$A:$A,A15,Games!$F:$F,"W"))+(COUNTIFS(Games!$B:$B,A15,Games!$F:$F,"L")))/(COUNTIF(Games!$A:$A,A15)+COUNTIF(Games!$B:$B,A15)) -> 0.75 | K15: =Albany!$AC$17 -> 0.6907657803 | L15: 13 | M15: America East
A16: Johns Hopkins | B16: =((SUMIF(Games!$A:$A,A16,Games!$E:$E))+-(SUMIF(Games!$B:$B,A16,Games!$E:$E)))/((COUNTIF(Games!$A:$A,A16))+(COUNTIF(Games!$B:$B,A16))) -> 0.6 | C16: =((SUMIF(Games!$A:$A,A16,Games!$I:$I))+(SUMIF(Games!$B:$B,A16,Games!$H:$H)))/((COUNTIF(Games!$A:$A,A16))+(COUNTIF(Games!$B:$B,A16))) -> 2.698359288 | D16: 3.298359288 | E16: 15 | F16: 1 | G16: =(((SUMIF(Games!A:A,A16,Games!C:C)+(SUMIF(Games!B:B,A16,Games!D:D)))))/(COUNTIF(Games!A:A,A16)+COUNTIF(Games!B:B,A16)) -> 12.33333333 | H16: =(((SUMIF(Games!A:A,A16,Games!D:D)+(SUMIF(Games!B:B,A16,Games!C:C)))))/(COUNTIF(Games!A:A,A16)+COUNTIF(Games!B:B,A16)) -> 11.6 | I16: 0.5476691892 | J16: =((COUNTIFS(Games!$A:$A,A16,Games!$F:$F,"W"))+(COUNTIFS(Games!$B:$B,A16,Games!$F:$F,"L")))/(COUNTIF(Games!$A:$A,A16)+COUNTIF(Games!$B:$B,A16)) -> 0.5333333333 | K16: ='Johns Hopkins'!$AC$17 -> 0.5513934947 | L16: 29 | M16: Big Ten
A17: Harvard | B17: =((SUMIF(Games!$A:$A,A17,Games!$E:$E))+-(SUMIF(Games!$B:$B,A17,Games!$E:$E)))/((COUNTIF(Games!$A:$A,A17))+(COUNTIF(Games!$B:$B,A17))) -> 0.6875 | C17: =((SUMIF(Games!$A:$A,A17,Games!$I:$I))+(SUMIF(Games!$B:$B,A17,Games!$H:$H)))/((COUNTIF(Games!$A:$A,A17))+(COUNTIF(Games!$B:$B,A17))) -> 2.33986856 | D17: 3.02736856 | E17: 16 | F17: 3 | G17: =(((SUMIF(Games!A:A,A17,Games!C:C)+(SUMIF(Games!B:B,A17,Games!D:D)))))/(COUNTIF(Games!A:A,A17)+COUNTIF(Games!B:B,A17)) -> 11.4375 | H17: =(((SUMIF(Games!A:A,A17,Games!D:D)+(SUMIF(Games!B:B,A17,Games!C:C)))))/(COUNTIF(Games!A:A,A17)+COUNTIF(Games!B:B,A17)) -> 10.75 | I17: 0.5482033311 | J17: =((COUNTIFS(Games!$A:$A,A17,Games!$F:$F,"W"))+(COUNTIFS(Games!$B:$B,A17,Games!$F:$F,"L")))/(COUNTIF(Games!$A:$A,A17)+COUNTIF(Games!$B:$B,A17)) -> 0.5 | K17: =Harvard!$AC$17 -> 0.5126186138 | L17: 32 | M17: Ivy
A18: Army | B18: =((SUMIF(Games!$A:$A,A18,Games!$E:$E))+-(SUMIF(Games!$B:$B,A18,Games!$E:$E)))/((COUNTIF(Games!$A:$A,A18))+(COUNTIF(Games!$B:$B,A18))) -> 2.764705882 | C18: =((SUMIF(Games!$A:$A,A18,Games!$I:$I))+(SUMIF(Games!$B:$B,A18,Games!$H:$H)))/((COUNTIF(Games!$A:$A,A18))+(COUNTIF(Games!$B:$B,A18))) -> 0.1622285887 | D18: 2.926934471 | E18: 17 | F18: 34 | G18: =(((SUMIF(Games!A:A,A18,Games!C:C)+(SUMIF(Games!B:B,A18,Games!D:D)))))/(COUNTIF(Games!A:A,A18)+COUNTIF(Games!B:B,A18)) -> 11.35294118 | H18: =(((SUMIF(Games!A:A,A18,Games!D:D)+(SUMIF(Games!B:B,A18,Games!C:C)))))/(COUNTIF(Games!A:A,A18)+COUNTIF(Games!B:B,A18)) -> 8 | I18: 0.7487788675 | J18: =((COUNTIFS(Games!$A:$A,A18,Games!$F:$F,"W"))+(COUNTIFS(Games!$B:$B,A18,Games!$F:$F,"L")))/(COUNTIF(Games!$A:$A,A18)+COUNTIF(Games!$B:$B,A18)) -> 0.5882352941 | K18: =Army!$AC$17 -> 0.6648572931 | L18: 16 | M18: Patriot
A19: Marquette | B19: =((SUMIF(Games!$A:$A,A19,Games!$E:$E))+-(SUMIF(Games!$B:$B,A19,Games!$E:$E)))/((COUNTIF(Games!$A:$A,A19))+(COUNTIF(Games!$B:$B,A19))) -> 1.5 | C19: =((SUMIF(Games!$A:$A,A19,Games!$I:$I))+(SUMIF(Games!$B:$B,A19,Games!$H:$H)))/((COUNTIF(Games!$A:$A,A19))+(COUNTIF(Games!$B:$B,A19))) -> 1.352862235 | D19: 2.852862235 | E19: 18 | F19: 18 | G19: =(((SUMIF(Games!A:A,A19,Games!C:C)+(SUMIF(Games!B:B,A19,Games!D:D)))))/(COUNTIF(Games!A:A,A19)+COUNTIF(Games!B:B,A19)) -> 9.3125 | H19: =(((SUMIF(Games!A:A,A19,Games!D:D)+(SUMIF(Games!B:B,A19,Games!C:C)))))/(COUNTIF(Games!A:A,A19)+COUNTIF(Games!B:B,A19)) -> 8.125 | I19: 0.6048236935 | J19: =((COUNTIFS(Games!$A:$A,A19,Games!$F:$F,"W"))+(COUNTIFS(Games!$B:$B,A19,Games!$F:$F,"L")))/(COUNTIF(Games!$A:$A,A19)+COUNTIF(Games!$B:$B,A19)) -> 0.6875 | K19: =Marquette!$AC$17 -> 0.5848482201 | L19: 26 | M19: Big East
A20: Rutgers | B20: =((SUMIF(Games!$A:$A,A20,Games!$E:$E))+-(SUMIF(Games!$B:$B,A20,Games!$E:$E)))/((COUNTIF(Games!$A:$A,A20))+(COUNTIF(Games!$B:$B,A20))) -> 2.375 | C20: =((SUMIF(Games!$A:$A,A20,Games!$I:$I))+(SUMIF(Games!$B:$B,A20,Games!$H:$H)))/((COUNTIF(Games!$A:$A,A20))+(COUNTIF(Games!$B:$B,A20))) -> 0.2665670616 | D20: 2.641567062 | E20: 19 | F20: 32 | G20: =(((SUMIF(Games!A:A,A20,Games!C:C)+(SUMIF(Games!B:B,A20,Games!D:D)))))/(COUNTIF(Games!A:A,A20)+COUNTIF(Games!B:B,A20)) -> 12.4375 | H20: =(((SUMIF(Games!A:A,A20,Games!D:D)+(SUMIF(Games!B:B,A20,Games!C:C)))))/(COUNTIF(Games!A:A,A20)+COUNTIF(Games!B:B,A20)) -> 9.875 | I20: 0.6725661784 | J20: =((COUNTIFS(Games!$A:$A,A20,Games!$F:$F,"W"))+(COUNTIFS(Games!$B:$B,A20,Games!$F:$F,"L")))/(COUNTIF(Games!$A:$A,A20)+COUNTIF(Games!$B:$B,A20)) -> 0.6875 | K20: =Rutgers!$AC$17 -> 0.6297333711 | L20: 20 | M20: Big Ten
A21: Penn State | B21: =((SUMIF(Games!$A:$A,A21,Games!$E:$E))+-(SUMIF(Games!$B:$B,A21,Games!$E:$E)))/((COUNTIF(Games!$A:$A,A21))+(COUNTIF(Games!$B:$B,A21))) -> 0.7333333333 | C21: =((SUMIF(Games!$A:$A,A21,Games!$I:$I))+(SUMIF(Games!$B:$B,A21,Games!$H:$H)))/((COUNTIF(Games!$A:$A,A21))+(COUNTIF(Games!$B:$B,A21))) -> 1.775168739 | D21: 2.508502072 | E21: 20 | F21: 10 | G21: =(((SUMIF(Games!A:A,A21,Games!C:C)+(SUMIF(Games!B:B,A21,Games!D:D)))))/(COUNTIF(Games!A:A,A21)+COUNTIF(Games!B:B,A21)) -> 11.86666667 | H21: =(((SUMIF(Games!A:A,A21,Games!D:D)+(SUMIF(Games!B:B,A21,Games!C:C)))))/(COUNTIF(Games!A:A,A21)+COUNTIF(Games!B:B,A21)) -> 10.93333333 | I21: 0.5635497989 | J21: =((COUNTIFS(Games!$A:$A,A21,Games!$F:$F,"W"))+(COUNTIFS(Games!$B:$B,A21,Games!$F:$F,"L")))/(COUNTIF(Games!$A:$A,A21)+COUNTIF(Games!$B:$B,A21)) -> 0.5333333333 | K21: ='Penn State'!$AC$17 -> 0.5739068386 | L21: 27 | M21: Big Ten
A22: Bucknell | B22: =((SUMIF(Games!$A:$A,A22,Games!$E:$E))+-(SUMIF(Games!$B:$B,A22,Games!$E:$E)))/((COUNTIF(Games!$A:$A,A22))+(COUNTIF(Games!$B:$B,A22))) -> 2.066666667 | C22: =((SUMIF(Games!$A:$A,A22,Games!$I:$I))+(SUMIF(Games!$B:$B,A22,Games!$H:$H)))/((COUNTIF(Games!$A:$A,A22))+(COUNTIF(Games!$B:$B,A22))) -> 0.3780970161 | D22: 2.444763683 | E22: 21 | F22: 31 | G22: =(((SUMIF(Games!A:A,A22,Games!C:C)+(SUMIF(Games!B:B,A22,Games!D:D)))))/(COUNTIF(Games!A:A,A22)+COUNTIF(Games!B:B,A22)) -> 11.06666667 | H22: =(((SUMIF(Games!A:A,A22,Games!D:D)+(SUMIF(Games!B:B,A22,Games!C:C)))))/(COUNTIF(Games!A:A,A22)+COUNTIF(Games!B:B,A22)) -> 9.066666667 | I22: 0.6506547911 | J22: =((COUNTIFS(Games!$A:$A,A22,Games!$F:$F,"W"))+(COUNTIFS(Games!$B:$B,A22,Games!$F:$F,"L")))/(COUNTIF(Games!$A:$A,A22)+COUNTIF(Games!$B:$B,A22)) -> 0.6666666667 | K22: =Bucknell!$AC$17 -> 0.6735165564 | L22: 15 | M22: Patriot
A23: St. Josephs | B23: =((SUMIF(Games!$A:$A,A23,Games!$E:$E))+-(SUMIF(Games!$B:$B,A23,Games!$E:$E)))/((COUNTIF(Games!$A:$A,A23))+(COUNTIF(Games!$B:$B,A23))) -> 4.4375 | C23: =((SUMIF(Games!$A:$A,A23,Games!$I:$I))+(SUMIF(Games!$B:$B,A23,Games!$H:$H)))/((COUNTIF(Games!$A:$A,A23))+(COUNTIF(Games!$B:$B,A23))) -> -2.285149986 | D23: 2.152350014 | E23: 22 | F23: 64 | G23: =(((SUMIF(Games!A:A,A23,Games!C:C)+(SUMIF(Games!B:B,A23,Games!D:D)))))/(COUNTIF(Games!A:A,A23)+COUNTIF(Games!B:B,A23)) -> 12.3125 | H23: =(((SUMIF(Games!A:A,A23,Games!D:D)+(SUMIF(Games!B:B,A23,Games!C:C)))))/(COUNTIF(Games!A:A,A23)+COUNTIF(Games!B:B,A23)) -> 7.875 | I23: 0.8012931256 | J23: =((COUNTIFS(Games!$A:$A,A23,Games!$F:$F,"W"))+(COUNTIFS(Games!$B:$B,A23,Games!$F:$F,"L")))/(COUNTIF(Games!$A:$A,A23)+COUNTIF(Games!$B:$B,A23)) -> 0.75 | K23: ='St. Josephs'!$AC$17 -> 0.8185605441 | L23: 3 | M23: Northeast
A24: Bryant | B24: =((SUMIF(Games!$A:$A,A24,Games!$E:$E))+-(SUMIF(Games!$B:$B,A24,Games!$E:$E)))/((COUNTIF(Games!$A:$A,A24))+(COUNTIF(Games!$B:$B,A24))) -> 2.066666667 | C24: =((SUMIF(Games!$A:$A,A24,Games!$I:$I))+(SUMIF(Games!$B:$B,A24,Games!$H:$H)))/((COUNTIF(Games!$A:$A,A24))+(COUNTIF(Games!$B:$B,A24))) -> -0.176735942 | D24: 1.889930725 | E24: 23 | F24: 42 | G24: =(((SUMIF(Games!A:A,A24,Games!C:C)+(SUMIF(Games!B:B,A24,Games!D:D)))))/(COUNTIF(Games!A:A,A24)+COUNTIF(Games!B:B,A24)) -> 11.2 | H24: =(((SUMIF(Games!A:A,A24,Games!D:D)+(SUMIF(Games!B:B,A24,Games!C:C)))))/(COUNTIF(Games!A:A,A24)+COUNTIF(Games!B:B,A24)) -> 8.533333333 | I24: 0.7002383656 | J24: =((COUNTIFS(Games!$A:$A,A24,Games!$F:$F,"W"))+(COUNTIFS(Games!$B:$B,A24,Games!$F:$F,"L")))/(COUNTIF(Games!$A:$A,A24)+COUNTIF(Games!$B:$B,A24)) -> 0.6666666667 | K24: =Bryant!$AC$17 -> 0.6556494567 | L24: 17 | M24: Northeast
A25: Virginia | B25: =((SUMIF(Games!$A:$A,A25,Games!$E:$E))+-(SUMIF(Games!$B:$B,A25,Games!$E:$E)))/((COUNTIF(Games!$A:$A,A25))+(COUNTIF(Games!$B:$B,A25))) -> -0.06666666667 | C25: =((SUMIF(Games!$A:$A,A25,Games!$I:$I))+(SUMIF(Games!$B:$B,A25,Games!$H:$H)))/((COUNTIF(Games!$A:$A,A25))+(COUNTIF(Games!$B:$B,A25))) -> 1.803063973 | D25: 1.736397307 | E25: 24 | F25: 8 | G25: =(((SUMIF(Games!A:A,A25,Games!C:C)+(SUMIF(Games!B:B,A25,Games!D:D)))))/(COUNTIF(Games!A:A,A25)+COUNTIF(Games!B:B,A25)) -> 10.6 | H25: =(((SUMIF(Games!A:A,A25,Games!D:D)+(SUMIF(Games!B:B,A25,Games!C:C)))))/(COUNTIF(Games!A:A,A25)+COUNTIF(Games!B:B,A25)) -> 10.33333333 | I25: 0.5198632273 | J25: =((COUNTIFS(Games!$A:$A,A25,Games!$F:$F,"W"))+(COUNTIFS(Games!$B:$B,A25,Games!$F:$F,"L")))/(COUNTIF(Games!$A:$A,A25)+COUNTIF(Games!$B:$B,A25)) -> 0.4666666667 | K25: =Virginia!$AC$17 -> 0.4718801187 | L25: 35 | M25: ACC
A26: Penn | B26: =((SUMIF(Games!$A:$A,A26,Games!$E:$E))+-(SUMIF(Games!$B:$B,A26,Games!$E:$E)))/((COUNTIF(Games!$A:$A,A26))+(COUNTIF(Games!$B:$B,A26))) -> 0.2 | C26: =((SUMIF(Games!$A:$A,A26,Games!$I:$I))+(SUMIF(Games!$B:$B,A26,Games!$H:$H)))/((COUNTIF(Games!$A:$A,A26))+(COUNTIF(Games!$B:$B,A26))) -> 1.498846892 | D26: 1.698846892 | E26: 25 | F26: 14 | G26: =(((SUMIF(Games!A:A,A26,Games!C:C)+(SUMIF(Games!B:B,A26,Games!D:D)))))/(COUNTIF(Games!A:A,A26)+COUNTIF(Games!B:B,A26)) -> 10.2 | H26: =(((SUMIF(Games!A:A,A26,Games!D:D)+(SUMIF(Games!B:B,A26,Games!C:C)))))/(COUNTIF(Games!A:A,A26)+COUNTIF(Games!B:B,A26)) -> 10.06666667 | I26: 0.5102618648 | J26: =((COUNTIFS(Games!$A:$A,A26,Games!$F:$F,"W"))+(COUNTIFS(Games!$B:$B,A26,Games!$F:$F,"L")))/(COUNTIF(Games!$A:$A,A26)+COUNTIF(Games!$B:$B,A26)) -> 0.5333333333 | K26: =Penn!$AC$17 -> 0.5120950391 | L26: 33 | M26: Ivy
A27: Ohio State | B27: =((SUMIF(Games!$A:$A,A27,Games!$E:$E))+-(SUMIF(Games!$B:$B,A27,Games!$E:$E)))/((COUNTIF(Games!$A:$A,A27))+(COUNTIF(Games!$B:$B,A27))) -> 0.2666666667 | C27: =((SUMIF(Games!$A:$A,A27,Games!$I:$I))+(SUMIF(Games!$B:$B,A27,Games!$H:$H)))/((COUNTIF(Games!$A:$A,A27))+(COUNTIF(Games!$B:$B,A27))) -> 1.207908781 | D27: 1.474575448 | E27: 26 | F27: 21 | G27: =(((SUMIF(Games!A:A,A27,Games!C:C)+(SUMIF(Games!B:B,A27,Games!D:D)))))/(COUNTIF(Games!A:A,A27)+COUNTIF(Games!B:B,A27)) -> 9.4 | H27: =(((SUMIF(Games!A:A,A27,Games!D:D)+(SUMIF(Games!B:B,A27,Games!C:C)))))/(COUNTIF(Games!A:A,A27)+COUNTIF(Games!B:B,A27)) -> 9.066666667 | I27: 0.5281321614 | J27: =((COUNTIFS(Games!$A:$A,A27,Games!$F:$F,"W"))+(COUNTIFS(Games!$B:$B,A27,Games!$F:$F,"L")))/(COUNTIF(Games!$A:$A,A27)+COUNTIF(Games!$B:$B,A27)) -> 0.4666666667 | K27: ='Ohio State'!$AC$17 -> 0.5244158025 | L27: 31 | M27: Big Ten
A28: Massachusetts | B28: =((SUMIF(Games!$A:$A,A28,Games!$E:$E))+-(SUMIF(Games!$B:$B,A28,Games!$E:$E)))/((COUNTIF(Games!$A:$A,A28))+(COUNTIF(Games!$B:$B,A28))) -> -1.076923077 | C28: =((SUMIF(Games!$A:$A,A28,Games!$I:$I))+(SUMIF(Games!$B:$B,A28,Games!$H:$H)))/((COUNTIF(Games!$A:$A,A28))+(COUNTIF(Games!$B:$B,A28))) -> 2.218711011 | D28: 1.141787934 | E28: 27 | F28: 5 | G28: =(((SUMIF(Games!A:A,A28,Games!C:C)+(SUMIF(Games!B:B,A28,Games!D:D)))))/(COUNTIF(Games!A:A,A28)+COUNTIF(Games!B:B,A28)) -> 8.615384615 | H28: =(((SUMIF(Games!A:A,A28,Games!D:D)+(SUMIF(Games!B:B,A28,Games!C:C)))))/(COUNTIF(Games!A:A,A28)+COUNTIF(Games!B:B,A28)) -> 9.846153846 | I28: 0.3973263288 | J28: =((COUNTIFS(Games!$A:$A,A28,Games!$F:$F,"W"))+(COUNTIFS(Games!$B:$B,A28,Games!$F:$F,"L")))/(COUNTIF(Games!$A:$A,A28)+COUNTIF(Games!$B:$B,A28)) -> 0.3076923077 | K28: =Massachusetts!$AC$17 -> 0.4302082155 | L28: 42 | M28: CAA
A29: Hofstra | B29: =((SUMIF(Games!$A:$A,A29,Games!$E:$E))+-(SUMIF(Games!$B:$B,A29,Games!$E:$E)))/((COUNTIF(Games!$A:$A,A29))+(COUNTIF(Games!$B:$B,A29))) -> 1.133333333 | C29: =((SUMIF(Games!$A:$A,A29,Games!$I:$I))+(SUMIF(Games!$B:$B,A29,Games!$H:$H)))/((COUNTIF(Games!$A:$A,A29))+(COUNTIF(Games!$B:$B,A29))) -> -0.07310117222 | D29: 1.060232161 | E29: 28 | F29: 40 | G29: =(((SUMIF(Games!A:A,A29,Games!C:C)+(SUMIF(Games!B:B,A29,Games!D:D)))))/(COUNTIF(Games!A:A,A29)+COUNTIF(Games!B:B,A29)) -> 10 | H29: =(((SUMIF(Games!A:A,A29,Games!D:D)+(SUMIF(Games!B:B,A29,Games!C:C)))))/(COUNTIF(Games!A:A,A29)+COUNTIF(Games!B:B,A29)) -> 8.533333333 | I29: 0.6212477584 | J29: =((COUNTIFS(Games!$A:$A,A29,Games!$F:$F,"W"))+(COUNTIFS(Games!$B:$B,A29,Games!$F:$F,"L")))/(COUNTIF(Games!$A:$A,A29)+COUNTIF(Games!$B:$B,A29)) -> 0.6 | K29: =Hofstra!$AC$17 -> 0.5859930736 | L29: 25 | M29: CAA
A30: Air Force | B30: =((SUMIF(Games!$A:$A,A30,Games!$E:$E))+-(SUMIF(Games!$B:$B,A30,Games!$E:$E)))/((COUNTIF(Games!$A:$A,A30))+(COUNTIF(Games!$B:$B,A30))) -> 2.333333333 | C30: =((SUMIF(Games!$A:$A,A30,Games!$I:$I))+(SUMIF(Games!$B:$B,A30,Games!$H:$H)))/((COUNTIF(Games!$A:$A,A30))+(COUNTIF(Games!$B:$B,A30))) -> -1.481307378 | D30: 0.8520259553 | E30: 29 | F30: 55 | G30: =(((SUMIF(Games!A:A,A30,Games!C:C)+(SUMIF(Games!B:B,A30,Games!D:D)))))/(COUNTIF(Games!A:A,A30)+COUNTIF(Games!B:B,A30)) -> 10.05555556 | H30: =(((SUMIF(Games!A:A,A30,Games!D:D)+(SUMIF(Games!B:B,A30,Games!C:C)))))/(COUNTIF(Games!A:A,A30)+COUNTIF(Games!B:B,A30)) -> 7.722222222 | I30: 0.6950322187 | J30: =((COUNTIFS(Games!$A:$A,A30,Games!$F:$F,"W"))+(COUNTIFS(Games!$B:$B,A30,Games!$F:$F,"L")))/(COUNTIF(Games!$A:$A,A30)+COUNTIF(Games!$B:$B,A30)) -> 0.8333333333 | K30: ='Air Force'!$AC$17 -> 0.6340869627 | L30: 19 | M30: Southern
A31: Cornell | B31: =((SUMIF(Games!$A:$A,A31,Games!$E:$E))+-(SUMIF(Games!$B:$B,A31,Games!$E:$E)))/((COUNTIF(Games!$A:$A,A31))+(COUNTIF(Games!$B:$B,A31))) -> -0.7692307692 | C31: =((SUMIF(Games!$A:$A,A31,Games!$I:$I))+(SUMIF(Games!$B:$B,A31,Games!$H:$H)))/((COUNTIF(Games!$A:$A,A31))+(COUNTIF(Games!$B:$B,A31))) -> 1.524319628 | D31: 0.7550888591 | E31: 30 | F31: 13 | G31: =(((SUMIF(Games!A:A,A31,Games!C:C)+(SUMIF(Games!B:B,A31,Games!D:D)))))/(COUNTIF(Games!A:A,A31)+COUNTIF(Games!B:B,A31)) -> 9.307692308 | H31: =(((SUMIF(Games!A:A,A31,Games!D:D)+(SUMIF(Games!B:B,A31,Games!C:C)))))/(COUNTIF(Games!A:A,A31)+COUNTIF(Games!B:B,A31)) -> 10.23076923 | I31: 0.426774655 | J31: =((COUNTIFS(Games!$A:$A,A31,Games!$F:$F,"W"))+(COUNTIFS(Games!$B:$B,A31,Games!$F:$F,"L")))/(COUNTIF(Games!$A:$A,A31)+COUNTIF(Games!$B:$B,A31)) -> 0.4615384615 | K31: =Cornell!$AC$17 -> 0.436582914 | L31: 41 | M31: Ivy
A32: Fairfield | B32: =((SUMIF(Games!$A:$A,A32,Games!$E:$E))+-(SUMIF(Games!$B:$B,A32,Games!$E:$E)))/((COUNTIF(Games!$A:$A,A32))+(COUNTIF(Games!$B:$B,A32))) -> -0.3529411765 | C32: =((SUMIF(Games!$A:$A,A32,Games!$I:$I))+(SUMIF(Games!$B:$B,A32,Games!$H:$H)))/((COUNTIF(Games!$A:$A,A32))+(COUNTIF(Games!$B:$B,A32))) -> 1.096861674 | D32: 0.7439204973 | E32: 31 | F32: 24 | G32: =(((SUMIF(Games!A:A,A32,Games!C:C)+(SUMIF(Games!B:B,A32,Games!D:D)))))/(COUNTIF(Games!A:A,A32)+COUNTIF(Games!B:B,A32)) -> 9 | H32: =(((SUMIF(Games!A:A,A32,Games!D:D)+(SUMIF(Games!B:B,A32,Games!C:C)))))/(COUNTIF(Games!A:A,A32)+COUNTIF(Games!B:B,A32)) -> 9.352941176 | I32: 0.4700322625 | J32: =((COUNTIFS(Games!$A:$A,A32,Games!$F:$F,"W"))+(COUNTIFS(Games!$B:$B,A32,Games!$F:$F,"L")))/(COUNTIF(Games!$A:$A,A32)+COUNTIF(Games!$B:$B,A32)) -> 0.5294117647 | K32: =Fairfield!$AC$17 -> 0.4655630223 | L32: 38 | M32: CAA
A33: Drexel | B33: =((SUMIF(Games!$A:$A,A33,Games!$E:$E))+-(SUMIF(Games!$B:$B,A33,Games!$E:$E)))/((COUNTIF(Games!$A:$A,A33))+(COUNTIF(Games!$B:$B,A33))) -> -0.5333333333 | C33: =((SUMIF(Games!$A:$A,A33,Games!$I:$I))+(SUMIF(Games!$B:$B,A33,Games!$H:$H)))/((COUNTIF(Games!$A:$A,A33))+(COUNTIF(Games!$B:$B,A33))) -> 1.139216461 | D33: 0.605883128 | E33: 32 | F33: 23 | G33: =(((SUMIF(Games!A:A,A33,Games!C:C)+(SUMIF(Games!B:B,A33,Games!D:D)))))/(COUNTIF(Games!A:A,A33)+COUNTIF(Games!B:B,A33)) -> 8.933333333 | H33: =(((SUMIF(Games!A:A,A33,Games!D:D)+(SUMIF(Games!B:B,A33,Games!C:C)))))/(COUNTIF(Games!A:A,A33)+COUNTIF(Games!B:B,A33)) -> 9.466666667 | I33: 0.4548929096 | J33: =((COUNTIFS(Games!$A:$A,A33,Games!$F:$F,"W"))+(COUNTIFS(Games!$B:$B,A33,Games!$F:$F,"L")))/(COUNTIF(Games!$A:$A,A33)+COUNTIF(Games!$B:$B,A33)) -> 0.4 | K33: =Drexel!$AC$17 -> 0.4156115258 | L33: 45 | M33: CAA
A34: Quinnipiac | B34: =((SUMIF(Games!$A:$A,A34,Games!$E:$E))+-(SUMIF(Games!$B:$B,A34,Games!$E:$E)))/((COUNTIF(Games!$A:$A,A34))+(COUNTIF(Games!$B:$B,A34))) -> 1.8125 | C34: =((SUMIF(Games!$A:$A,A34,Games!$I:$I))+(SUMIF(Games!$B:$B,A34,Games!$H:$H)))/((COUNTIF(Games!$A:$A,A34))+(COUNTIF(Games!$B:$B,A34))) -> -1.457386771 | D34: =B34+C34 -> 0.3551132287 | E34: =RANK(D34,$D$2:$D$71) -> 33 | F34: =RANK(C34,$C$2:$C$71,0) -> 54 | G34: =(((SUMIF(Games!A:A,A34,Games!C:C)+(SUMIF(Games!B:B,A34,Games!D:D)))))/(COUNTIF(Games!A:A,A34)+COUNTIF(Games!B:B,A34)) -> 10.3125 | H34: =(((SUMIF(Games!A:A,A34,Games!D:D)+(SUMIF(Games!B:B,A34,Games!C:C)))))/(COUNTIF(Games!A:A,A34)+COUNTIF(Games!B:B,A34)) -> 8.6875 | I34: =(G34^3.12)/((G34^3.12)+(H34^3.12)) -> 0.6306464775 | J34: =((COUNTIFS(Games!$A:$A,A34,Games!$F:$F,"W"))+(COUNTIFS(Games!$B:$B,A34,Games!$F:$F,"L")))/(COUNTIF(Games!$A:$A,A34)+COUNTIF(Games!$B:$B,A34)) -> 0.75 | K34: =Quinnipiac!$AC$17 -> 0.6423789446 | L34: =RANK(K34,$K$2:$K$71,0) -> 18 | M34: MAAC
A35: Richmond | B35: =((SUMIF(Games!$A:$A,A35,Games!$E:$E))+-(SUMIF(Games!$B:$B,A35,Games!$E:$E)))/((COUNTIF(Games!$A:$A,A35))+(COUNTIF(Games!$B:$B,A35))) -> 1.125 | C35: =((SUMIF(Games!$A:$A,A35,Games!$I:$I))+(SUMIF(Games!$B:$B,A35,Games!$H:$H)))/((COUNTIF(Games!$A:$A,A35))+(COUNTIF(Games!$B:$B,A35))) -> -1.036304339 | D35: 0.08869566067 | E35: 34 | F35: 49 | G35: =(((SUMIF(Games!A:A,A35,Games!C:C)+(SUMIF(Games!B:B,A35,Games!D:D)))))/(COUNTIF(Games!A:A,A35)+COUNTIF(Games!B:B,A35)) -> 8.625 | H35: =(((SUMIF(Games!A:A,A35,Games!D:D)+(SUMIF(Games!B:B,A35,Games!C:C)))))/(COUNTIF(Games!A:A,A35)+COUNTIF(Games!B:B,A35)) -> 7.4375 | I35: 0.6135279328 | J35: =((COUNTIFS(Games!$A:$A,A35,Games!$F:$F,"W"))+(COUNTIFS(Games!$B:$B,A35,Games!$F:$F,"L")))/(COUNTIF(Games!$A:$A,A35)+COUNTIF(Games!$B:$B,A35)) -> 0.6875 | K35: =Richmond!$AC$17 -> 0.6033659885 | L35: 22 | M35: Southern
A36: Vermont | B36: =((SUMIF(Games!$A:$A,A36,Games!$E:$E))+-(SUMIF(Games!$B:$B,A36,Games!$E:$E)))/((COUNTIF(Games!$A:$A,A36))+(COUNTIF(Games!$B:$B,A36))) -> 1.470588235 | C36: =((SUMIF(Games!$A:$A,A36,Games!$I:$I))+(SUMIF(Games!$B:$B,A36,Games!$H:$H)))/((COUNTIF(Games!$A:$A,A36))+(COUNTIF(Games!$B:$B,A36))) -> -1.810996026 | D36: -0.3404077904 | E36: 35 | F36: 57 | G36: =(((SUMIF(Games!A:A,A36,Games!C:C)+(SUMIF(Games!B:B,A36,Games!D:D)))))/(COUNTIF(Games!A:A,A36)+COUNTIF(Games!B:B,A36)) -> 12.35294118 | H36: =(((SUMIF(Games!A:A,A36,Games!D:D)+(SUMIF(Games!B:B,A36,Games!C:C)))))/(COUNTIF(Games!A:A,A36)+COUNTIF(Games!B:B,A36)) -> 10.64705882 | I36: 0.6138831978 | J36: =((COUNTIFS(Games!$A:$A,A36,Games!$F:$F,"W"))+(COUNTIFS(Games!$B:$B,A36,Games!$F:$F,"L")))/(COUNTIF(Games!$A:$A,A36)+COUNTIF(Games!$B:$B,A36)) -> 0.5294117647 | K36: =Vermont!$AC$17 -> 0.6018913684 | L36: 23 | M36: America East
A37: Princeton | B37: =((SUMIF(Games!$A:$A,A37,Games!$E:$E))+-(SUMIF(Games!$B:$B,A37,Games!$E:$E)))/((COUNTIF(Games!$A:$A,A37))+(COUNTIF(Games!$B:$B,A37))) -> -1.846153846 | C37: =((SUMIF(Games!$A:$A,A37,Games!$I:$I))+(SUMIF(Games!$B:$B,A37,Games!$H:$H)))/((COUNTIF(Games!$A:$A,A37))+(COUNTIF(Games!$B:$B,A37))) -> 1.485099688 | D37: -0.3610541581 | E37: 36 | F37: 15 | G37: =(((SUMIF(Games!A:A,A37,Games!C:C)+(SUMIF(Games!B:B,A37,Games!D:D)))))/(COUNTIF(Games!A:A,A37)+COUNTIF(Games!B:B,A37)) -> 10 | H37: =(((SUMIF(Games!A:A,A37,Games!D:D)+(SUMIF(Games!B:B,A37,Games!C:C)))))/(COUNTIF(Games!A:A,A37)+COUNTIF(Games!B:B,A37)) -> 11.53846154 | I37: 0.39019928 | J37: =((COUNTIFS(Games!$A:$A,A37,Games!$F:$F,"W"))+(COUNTIFS(Games!$B:$B,A37,Games!$F:$F,"L")))/(COUNTIF(Games!$A:$A,A37)+COUNTIF(Games!$B:$B,A37)) -> 0.3846153846 | K37: =Princeton!$AC$17 -> 0.3588835397 | L37: 49 | M37: Ivy
A38: Hartford | B38: =((SUMIF(Games!$A:$A,A38,Games!$E:$E))+-(SUMIF(Games!$B:$B,A38,Games!$E:$E)))/((COUNTIF(Games!$A:$A,A38))+(COUNTIF(Games!$B:$B,A38))) -> 0.5 | C38: =((SUMIF(Games!$A:$A,A38,Games!$I:$I))+(SUMIF(Games!$B:$B,A38,Games!$H:$H)))/((COUNTIF(Games!$A:$A,A38))+(COUNTIF(Games!$B:$B,A38))) -> -0.8692835887 | D38: -0.3692835887 | E38: 37 | F38: 46 | G38: =(((SUMIF(Games!A:A,A38,Games!C:C)+(SUMIF(Games!B:B,A38,Games!D:D)))))/(COUNTIF(Games!A:A,A38)+COUNTIF(Games!B:B,A38)) -> 10.83333333 | H38: =(((SUMIF(Games!A:A,A38,Games!D:D)+(SUMIF(Games!B:B,A38,Games!C:C)))))/(COUNTIF(Games!A:A,A38)+COUNTIF(Games!B:B,A38)) -> 10.16666667 | I38: 0.5493789772 | J38: =((COUNTIFS(Games!$A:$A,A38,Games!$F:$F,"W"))+(COUNTIFS(Games!$B:$B,A38,Games!$F:$F,"L")))/(COUNTIF(Games!$A:$A,A38)+COUNTIF(Games!$B:$B,A38)) -> 0.6111111111 | K38: =Hartford!$AC$17 -> 0.5285816545 | L38: 30 | M38: America East
A39: Boston | B39: =((SUMIF(Games!$A:$A,A39,Games!$E:$E))+-(SUMIF(Games!$B:$B,A39,Games!$E:$E)))/((COUNTIF(Games!$A:$A,A39))+(COUNTIF(Games!$B:$B,A39))) -> -0.4666666667 | C39: =((SUMIF(Games!$A:$A,A39,Games!$I:$I))+(SUMIF(Games!$B:$B,A39,Games!$H:$H)))/((COUNTIF(Games!$A:$A,A39))+(COUNTIF(Games!$B:$B,A39))) -> 0.01902779075 | D39: -0.4476388759 | E39: 38 | F39: 37 | G39: =(((SUMIF(Games!A:A,A39,Games!C:C)+(SUMIF(Games!B:B,A39,Games!D:D)))))/(COUNTIF(Games!A:A,A39)+COUNTIF(Games!B:B,A39)) -> 9.333333333 | H39: =(((SUMIF(Games!A:A,A39,Games!D:D)+(SUMIF(Games!B:B,A39,Games!C:C)))))/(COUNTIF(Games!A:A,A39)+COUNTIF(Games!B:B,A39)) -> 9.866666667 | I39: 0.4567637683 | J39: =((COUNTIFS(Games!$A:$A,A39,Games!$F:$F,"W"))+(COUNTIFS(Games!$B:$B,A39,Games!$F:$F,"L")))/(COUNTIF(Games!$A:$A,A39)+COUNTIF(Games!$B:$B,A39)) -> 0.5333333333 | K39: =Boston!$AC$17 -> 0.4704595191 | L39: 36 | M39: Patriot
A40: Providence | B40: =((SUMIF(Games!$A:$A,A40,Games!$E:$E))+-(SUMIF(Games!$B:$B,A40,Games!$E:$E)))/((COUNTIF(Games!$A:$A,A40))+(COUNTIF(Games!$B:$B,A40))) -> -1.0625 | C40: =((SUMIF(Games!$A:$A,A40,Games!$I:$I))+(SUMIF(Games!$B:$B,A40,Games!$H:$H)))/((COUNTIF(Games!$A:$A,A40))+(COUNTIF(Games!$B:$B,A40))) -> 0.5300207327 | D40: -0.5324792673 | E40: 39 | F40: 29 | G40: =(((SUMIF(Games!A:A,A40,Games!C:C)+(SUMIF(Games!B:B,A40,Games!D:D)))))/(COUNTIF(Games!A:A,A40)+COUNTIF(Games!B:B,A40)) -> 9.75 | H40: =(((SUMIF(Games!A:A,A40,Games!D:D)+(SUMIF(Games!B:B,A40,Games!C:C)))))/(COUNTIF(Games!A:A,A40)+COUNTIF(Games!B:B,A40)) -> 10.8125 | I40: 0.4200132422 | J40: =((COUNTIFS(Games!$A:$A,A40,Games!$F:$F,"W"))+(COUNTIFS(Games!$B:$B,A40,Games!$F:$F,"L")))/(COUNTIF(Games!$A:$A,A40)+COUNTIF(Games!$B:$B,A40)) -> 0.4375 | K40: =Providence!$AC$17 -> 0.4255502461 | L40: 43 | M40: Big East
A41: Lehigh | B41: =((SUMIF(Games!$A:$A,A41,Games!$E:$E))+-(SUMIF(Games!$B:$B,A41,Games!$E:$E)))/((COUNTIF(Games!$A:$A,A41))+(COUNTIF(Games!$B:$B,A41))) -> -1.066666667 | C41: =((SUMIF(Games!$A:$A,A41,Games!$I:$I))+(SUMIF(Games!$B:$B,A41,Games!$H:$H)))/((COUNTIF(Games!$A:$A,A41))+(COUNTIF(Games!$B:$B,A41))) -> 0.177521782 | D41: -0.8891448847 | E41: 40 | F41: 33 | G41: =(((SUMIF(Games!A:A,A41,Games!C:C)+(SUMIF(Games!B:B,A41,Games!D:D)))))/(COUNTIF(Games!A:A,A41)+COUNTIF(Games!B:B,A41)) -> 10.26666667 | H41: =(((SUMIF(Games!A:A,A41,Games!D:D)+(SUMIF(Games!B:B,A41,Games!C:C)))))/(COUNTIF(Games!A:A,A41)+COUNTIF(Games!B:B,A41)) -> 10.86666667 | I41: 0.4558134448 | J41: =((COUNTIFS(Games!$A:$A,A41,Games!$F:$F,"W"))+(COUNTIFS(Games!$B:$B,A41,Games!$F:$F,"L")))/(COUNTIF(Games!$A:$A,A41)+COUNTIF(Games!$B:$B,A41)) -> 0.4 | K41: =Lehigh!$AC$17 -> 0.3904243789 | L41: 46 | M41: Patriot
A42: Hobart | B42: =((SUMIF(Games!$A:$A,A42,Games!$E:$E))+-(SUMIF(Games!$B:$B,A42,Games!$E:$E)))/((COUNTIF(Games!$A:$A,A42))+(COUNTIF(Games!$B:$B,A42))) -> -0.5294117647 | C42: =((SUMIF(Games!$A:$A,A42,Games!$I:$I))+(SUMIF(Games!$B:$B,A42,Games!$H:$H)))/((COUNTIF(Games!$A:$A,A42))+(COUNTIF(Games!$B:$B,A42))) -> -0.5370885607 | D42: -1.066500325 | E42: 41 | F42: 45 | G42: =(((SUMIF(Games!A:A,A42,Games!C:C)+(SUMIF(Games!B:B,A42,Games!D:D)))))/(COUNTIF(Games!A:A,A42)+COUNTIF(Games!B:B,A42)) -> 9.235294118 | H42: =(((SUMIF(Games!A:A,A42,Games!D:D)+(SUMIF(Games!B:B,A42,Games!C:C)))))/(COUNTIF(Games!A:A,A42)+COUNTIF(Games!B:B,A42)) -> 10.11764706 | I42: 0.4293029026 | J42: =((COUNTIFS(Games!$A:$A,A42,Games!$F:$F,"W"))+(COUNTIFS(Games!$B:$B,A42,Games!$F:$F,"L")))/(COUNTIF(Games!$A:$A,A42)+COUNTIF(Games!$B:$B,A42)) -> 0.5882352941 | K42: =Hobart!$AC$17 -> 0.4483210252 | L42: 39 | M42: Northeast
A43: High Point | B43: =((SUMIF(Games!$A:$A,A43,Games!$E:$E))+-(SUMIF(Games!$B:$B,A43,Games!$E:$E)))/((COUNTIF(Games!$A:$A,A43))+(COUNTIF(Games!$B:$B,A43))) -> -0.1333333333 | C43: =((SUMIF(Games!$A:$A,A43,Games!$I:$I))+(SUMIF(Games!$B:$B,A43,Games!$H:$H)))/((COUNTIF(Games!$A:$A,A43))+(COUNTIF(Games!$B:$B,A43))) -> -1.04257573 | D43: -1.175909064 | E43: 42 | F43: 50 | G43: =(((SUMIF(Games!A:A,A43,Games!C:C)+(SUMIF(Games!B:B,A43,Games!D:D)))))/(COUNTIF(Games!A:A,A43)+COUNTIF(Games!B:B,A43)) -> 10.8 | H43: =(((SUMIF(Games!A:A,A43,Games!D:D)+(SUMIF(Games!B:B,A43,Games!C:C)))))/(COUNTIF(Games!A:A,A43)+COUNTIF(Games!B:B,A43)) -> 10.8 | I43: 0.5 | J43: =((COUNTIFS(Games!$A:$A,A43,Games!$F:$F,"W"))+(COUNTIFS(Games!$B:$B,A43,Games!$F:$F,"L")))/(COUNTIF(Games!$A:$A,A43)+COUNTIF(Games!$B:$B,A43)) -> 0.6 | K43: ='High Point'!$AC$17 -> 0.4785806685 | L43: 34 | M43: Southern
A44: Robert Morris | B44: =((SUMIF(Games!$A:$A,A44,Games!$E:$E))+-(SUMIF(Games!$B:$B,A44,Games!$E:$E)))/((COUNTIF(Games!$A:$A,A44))+(COUNTIF(Games!$B:$B,A44))) -> -0.06666666667 | C44: =((SUMIF(Games!$A:$A,A44,Games!$I:$I))+(SUMIF(Games!$B:$B,A44,Games!$H:$H)))/((COUNTIF(Games!$A:$A,A44))+(COUNTIF(Games!$B:$B,A44))) -> -1.218291644 | D44: -1.284958311 | E44: 43 | F44: 52 | G44: =(((SUMIF(Games!A:A,A44,Games!C:C)+(SUMIF(Games!B:B,A44,Games!D:D)))))/(COUNTIF(Games!A:A,A44)+COUNTIF(Games!B:B,A44)) -> 11.33333333 | H44: =(((SUMIF(Games!A:A,A44,Games!D:D)+(SUMIF(Games!B:B,A44,Games!C:C)))))/(COUNTIF(Games!A:A,A44)+COUNTIF(Games!B:B,A44)) -> 11.4 | I44: 0.4954253345 | J44: =((COUNTIFS(Games!$A:$A,A44,Games!$F:$F,"W"))+(COUNTIFS(Games!$B:$B,A44,Games!$F:$F,"L")))/(COUNTIF(Games!$A:$A,A44)+COUNTIF(Games!$B:$B,A44)) -> 0.4666666667 | K44: ='Robert Morris'!$AC$17 -> 0.4684243512 | L44: 37 | M44: Northeast
A45: Marist | B45: =((SUMIF(Games!$A:$A,A45,Games!$E:$E))+-(SUMIF(Games!$B:$B,A45,Games!$E:$E)))/((COUNTIF(Games!$A:$A,A45))+(COUNTIF(Games!$B:$B,A45))) -> 1 | C45: =((SUMIF(Games!$A:$A,A45,Games!$I:$I))+(SUMIF(Games!$B:$B,A45,Games!$H:$H)))/((COUNTIF(Games!$A:$A,A45))+(COUNTIF(Games!$B:$B,A45))) -> -2.337627557 | D45: -1.337627557 | E45: 44 | F45: 65 | G45: =(((SUMIF(Games!A:A,A45,Games!C:C)+(SUMIF(Games!B:B,A45,Games!D:D)))))/(COUNTIF(Games!A:A,A45)+COUNTIF(Games!B:B,A45)) -> 9.625 | H45: =(((SUMIF(Games!A:A,A45,Games!D:D)+(SUMIF(Games!B:B,A45,Games!C:C)))))/(COUNTIF(Games!A:A,A45)+COUNTIF(Games!B:B,A45)) -> 8.5625 | I45: 0.5902385536 | J45: =((COUNTIFS(Games!$A:$A,A45,Games!$F:$F,"W"))+(COUNTIFS(Games!$B:$B,A45,Games!$F:$F,"L")))/(COUNTIF(Games!$A:$A,A45)+COUNTIF(Games!$B:$B,A45)) -> 0.5625 | K45: =Marist!$AC$17 -> 0.5654304202 | L45: 28 | M45: MAAC
A46: Georgetown | B46: =((SUMIF(Games!$A:$A,A46,Games!$E:$E))+-(SUMIF(Games!$B:$B,A46,Games!$E:$E)))/((COUNTIF(Games!$A:$A,A46))+(COUNTIF(Games!$B:$B,A46))) -> -3.285714286 | C46: =((SUMIF(Games!$A:$A,A46,Games!$I:$I))+(SUMIF(Games!$B:$B,A46,Games!$H:$H)))/((COUNTIF(Games!$A:$A,A46))+(COUNTIF(Games!$B:$B,A46))) -> 1.849228012 | D46: -1.436486274 | E46: 45 | F46: 7 | G46: =(((SUMIF(Games!A:A,A46,Games!C:C)+(SUMIF(Games!B:B,A46,Games!D:D)))))/(COUNTIF(Games!A:A,A46)+COUNTIF(Games!B:B,A46)) -> 7.142857143 | H46: =(((SUMIF(Games!A:A,A46,Games!D:D)+(SUMIF(Games!B:B,A46,Games!C:C)))))/(COUNTIF(Games!A:A,A46)+COUNTIF(Games!B:B,A46)) -> 11.07142857 | I46: 0.2030474599 | J46: =((COUNTIFS(Games!$A:$A,A46,Games!$F:$F,"W"))+(COUNTIFS(Games!$B:$B,A46,Games!$F:$F,"L")))/(COUNTIF(Games!$A:$A,A46)+COUNTIF(Games!$B:$B,A46)) -> 0.1428571429 | K46: =Georgetown!$AC$17 -> 0.2609013367 | L46: 60 | M46: Big East
A47: Holy Cross | B47: =((SUMIF(Games!$A:$A,A47,Games!$E:$E))+-(SUMIF(Games!$B:$B,A47,Games!$E:$E)))/((COUNTIF(Games!$A:$A,A47))+(COUNTIF(Games!$B:$B,A47))) -> -2.4 | C47: =((SUMIF(Games!$A:$A,A47,Games!$I:$I))+(SUMIF(Games!$B:$B,A47,Games!$H:$H)))/((COUNTIF(Games!$A:$A,A47))+(COUNTIF(Games!$B:$B,A47))) -> 0.7747464501 | D47: -1.62525355 | E47: 46 | F47: 28 | G47: =(((SUMIF(Games!A:A,A47,Games!C:C)+(SUMIF(Games!B:B,A47,Games!D:D)))))/(COUNTIF(Games!A:A,A47)+COUNTIF(Games!B:B,A47)) -> 8.933333333 | H47: =(((SUMIF(Games!A:A,A47,Games!D:D)+(SUMIF(Games!B:B,A47,Games!C:C)))))/(COUNTIF(Games!A:A,A47)+COUNTIF(Games!B:B,A47)) -> 11.53333333 | I47: 0.3106655578 | J47: =((COUNTIFS(Games!$A:$A,A47,Games!$F:$F,"W"))+(COUNTIFS(Games!$B:$B,A47,Games!$F:$F,"L")))/(COUNTIF(Games!$A:$A,A47)+COUNTIF(Games!$B:$B,A47)) -> 0.2666666667 | K47: ='Holy Cross'!$AC$17 -> 0.3004199368 | L47: 52 | M47: Patriot
A48: Michigan | B48: =((SUMIF(Games!$A:$A,A48,Games!$E:$E))+-(SUMIF(Games!$B:$B,A48,Games!$E:$E)))/((COUNTIF(Games!$A:$A,A48))+(COUNTIF(Games!$B:$B,A48))) -> -3.076923077 | C48: =((SUMIF(Games!$A:$A,A48,Games!$I:$I))+(SUMIF(Games!$B:$B,A48,Games!$H:$H)))/((COUNTIF(Games!$A:$A,A48))+(COUNTIF(Games!$B:$B,A48))) -> 1.343899321 | D48: -1.733023756 | E48: 47 | F48: 19 | G48: =(((SUMIF(Games!A:A,A48,Games!C:C)+(SUMIF(Games!B:B,A48,Games!D:D)))))/(COUNTIF(Games!A:A,A48)+COUNTIF(Games!B:B,A48)) -> 9.384615385 | H48: =(((SUMIF(Games!A:A,A48,Games!D:D)+(SUMIF(Games!B:B,A48,Games!C:C)))))/(COUNTIF(Games!A:A,A48)+COUNTIF(Games!B:B,A48)) -> 12.76923077 | I48: 0.2767067941 | J48: =((COUNTIFS(Games!$A:$A,A48,Games!$F:$F,"W"))+(COUNTIFS(Games!$B:$B,A48,Games!$F:$F,"L")))/(COUNTIF(Games!$A:$A,A48)+COUNTIF(Games!$B:$B,A48)) -> 0.2307692308 | K48: =Michigan!$AC$17 -> 0.2959908337 | L48: 54 | M48: Big Ten
A49: Bellarmine | B49: =((SUMIF(Games!$A:$A,A49,Games!$E:$E))+-(SUMIF(Games!$B:$B,A49,Games!$E:$E)))/((COUNTIF(Games!$A:$A,A49))+(COUNTIF(Games!$B:$B,A49))) -> -0.5333333333 | C49: =((SUMIF(Games!$A:$A,A49,Games!$I:$I))+(SUMIF(Games!$B:$B,A49,Games!$H:$H)))/((COUNTIF(Games!$A:$A,A49))+(COUNTIF(Games!$B:$B,A49))) -> -1.279823298 | D49: -1.813156631 | E49: 48 | F49: 53 | G49: =(((SUMIF(Games!A:A,A49,Games!C:C)+(SUMIF(Games!B:B,A49,Games!D:D)))))/(COUNTIF(Games!A:A,A49)+COUNTIF(Games!B:B,A49)) -> 8.6 | H49: =(((SUMIF(Games!A:A,A49,Games!D:D)+(SUMIF(Games!B:B,A49,Games!C:C)))))/(COUNTIF(Games!A:A,A49)+COUNTIF(Games!B:B,A49)) -> 9.133333333 | I49: 0.4532058951 | J49: =((COUNTIFS(Games!$A:$A,A49,Games!$F:$F,"W"))+(COUNTIFS(Games!$B:$B,A49,Games!$F:$F,"L")))/(COUNTIF(Games!$A:$A,A49)+COUNTIF(Games!$B:$B,A49)) -> 0.4 | K49: =Bellarmine!$AC$17 -> 0.44202688 | L49: 40 | M49: Southern
A50: Colgate | B50: =((SUMIF(Games!$A:$A,A50,Games!$E:$E))+-(SUMIF(Games!$B:$B,A50,Games!$E:$E)))/((COUNTIF(Games!$A:$A,A50))+(COUNTIF(Games!$B:$B,A50))) -> -2.571428571 | C50: =((SUMIF(Games!$A:$A,A50,Games!$I:$I))+(SUMIF(Games!$B:$B,A50,Games!$H:$H)))/((COUNTIF(Games!$A:$A,A50))+(COUNTIF(Games!$B:$B,A50))) -> 0.4376685726 | D50: -2.133759999 | E50: 49 | F50: 30 | G50: =(((SUMIF(Games!A:A,A50,Games!C:C)+(SUMIF(Games!B:B,A50,Games!D:D)))))/(COUNTIF(Games!A:A,A50)+COUNTIF(Games!B:B,A50)) -> 7.642857143 | H50: =(((SUMIF(Games!A:A,A50,Games!D:D)+(SUMIF(Games!B:B,A50,Games!C:C)))))/(COUNTIF(Games!A:A,A50)+COUNTIF(Games!B:B,A50)) -> 10.57142857 | I50: 0.2665737062 | J50: =((COUNTIFS(Games!$A:$A,A50,Games!$F:$F,"W"))+(COUNTIFS(Games!$B:$B,A50,Games!$F:$F,"L")))/(COUNTIF(Games!$A:$A,A50)+COUNTIF(Games!$B:$B,A50)) -> 0.2857142857 | K50: =Colgate!$AC$17 -> 0.2939330108 | L50: 55 | M50: Patriot
A51: Delaware | B51: =((SUMIF(Games!$A:$A,A51,Games!$E:$E))+-(SUMIF(Games!$B:$B,A51,Games!$E:$E)))/((COUNTIF(Games!$A:$A,A51))+(COUNTIF(Games!$B:$B,A51))) -> -2.266666667 | C51: =((SUMIF(Games!$A:$A,A51,Games!$I:$I))+(SUMIF(Games!$B:$B,A51,Games!$H:$H)))/((COUNTIF(Games!$A:$A,A51))+(COUNTIF(Games!$B:$B,A51))) -> -0.07052888021 | D51: -2.337195547 | E51: 50 | F51: 39 | G51: =(((SUMIF(Games!A:A,A51,Games!C:C)+(SUMIF(Games!B:B,A51,Games!D:D)))))/(COUNTIF(Games!A:A,A51)+COUNTIF(Games!B:B,A51)) -> 8.2 | H51: =(((SUMIF(Games!A:A,A51,Games!D:D)+(SUMIF(Games!B:B,A51,Games!C:C)))))/(COUNTIF(Games!A:A,A51)+COUNTIF(Games!B:B,A51)) -> 10.46666667 | I51: 0.3183268243 | J51: =((COUNTIFS(Games!$A:$A,A51,Games!$F:$F,"W"))+(COUNTIFS(Games!$B:$B,A51,Games!$F:$F,"L")))/(COUNTIF(Games!$A:$A,A51)+COUNTIF(Games!$B:$B,A51)) -> 0.3333333333 | K51: =Delaware!$AC$17 -> 0.3076223076 | L51: 51 | M51: CAA
A52: Mt. St. Marys | B52: =((SUMIF(Games!$A:$A,A52,Games!$E:$E))+-(SUMIF(Games!$B:$B,A52,Games!$E:$E)))/((COUNTIF(Games!$A:$A,A52))+(COUNTIF(Games!$B:$B,A52))) -> -0.7142857143 | C52: =((SUMIF(Games!$A:$A,A52,Games!$I:$I))+(SUMIF(Games!$B:$B,A52,Games!$H:$H)))/((COUNTIF(Games!$A:$A,A52))+(COUNTIF(Games!$B:$B,A52))) -> -1.644960711 | D52: -2.359246425 | E52: 51 | F52: 56 | G52: =(((SUMIF(Games!A:A,A52,Games!C:C)+(SUMIF(Games!B:B,A52,Games!D:D)))))/(COUNTIF(Games!A:A,A52)+COUNTIF(Games!B:B,A52)) -> 9.571428571 | H52: =(((SUMIF(Games!A:A,A52,Games!D:D)+(SUMIF(Games!B:B,A52,Games!C:C)))))/(COUNTIF(Games!A:A,A52)+COUNTIF(Games!B:B,A52)) -> 10.14285714 | I52: 0.4548929096 | J52: =((COUNTIFS(Games!$A:$A,A52,Games!$F:$F,"W"))+(COUNTIFS(Games!$B:$B,A52,Games!$F:$F,"L")))/(COUNTIF(Games!$A:$A,A52)+COUNTIF(Games!$B:$B,A52)) -> 0.4285714286 | K52: ='Mt. St. Marys'!$AC$17 -> 0.424620848 | L52: 44 | M52: Northeast
A53: UMBC | B53: =((SUMIF(Games!$A:$A,A53,Games!$E:$E))+-(SUMIF(Games!$B:$B,A53,Games!$E:$E)))/((COUNTIF(Games!$A:$A,A53))+(COUNTIF(Games!$B:$B,A53))) -> -2.571428571 | C53: =((SUMIF(Games!$A:$A,A53,Games!$I:$I))+(SUMIF(Games!$B:$B,A53,Games!$H:$H)))/((COUNTIF(Games!$A:$A,A53))+(COUNTIF(Games!$B:$B,A53))) -> 0.02968809742 | D53: -2.541740474 | E53: 52 | F53: 36 | G53: =(((SUMIF(Games!A:A,A53,Games!C:C)+(SUMIF(Games!B:B,A53,Games!D:D)))))/(COUNTIF(Games!A:A,A53)+COUNTIF(Games!B:B,A53)) -> 9 | H53: =(((SUMIF(Games!A:A,A53,Games!D:D)+(SUMIF(Games!B:B,A53,Games!C:C)))))/(COUNTIF(Games!A:A,A53)+COUNTIF(Games!B:B,A53)) -> 11.71428571 | I53: 0.3052578999 | J53: =((COUNTIFS(Games!$A:$A,A53,Games!$F:$F,"W"))+(COUNTIFS(Games!$B:$B,A53,Games!$F:$F,"L")))/(COUNTIF(Games!$A:$A,A53)+COUNTIF(Games!$B:$B,A53)) -> 0.2857142857 | K53: =UMBC!$AC$17 -> 0.2793238539 | L53: 57 | M53: America East
A54: Monmouth | B54: =((SUMIF(Games!$A:$A,A54,Games!$E:$E))+-(SUMIF(Games!$B:$B,A54,Games!$E:$E)))/((COUNTIF(Games!$A:$A,A54))+(COUNTIF(Games!$B:$B,A54))) -> 1.071428571 | C54: =((SUMIF(Games!$A:$A,A54,Games!$I:$I))+(SUMIF(Games!$B:$B,A54,Games!$H:$H)))/((COUNTIF(Games!$A:$A,A54))+(COUNTIF(Games!$B:$B,A54))) -> -3.721945206 | D54: -2.650516634 | E54: 53 | F54: 68 | G54: =(((SUMIF(Games!A:A,A54,Games!C:C)+(SUMIF(Games!B:B,A54,Games!D:D)))))/(COUNTIF(Games!A:A,A54)+COUNTIF(Games!B:B,A54)) -> 9.642857143 | H54: =(((SUMIF(Games!A:A,A54,Games!D:D)+(SUMIF(Games!B:B,A54,Games!C:C)))))/(COUNTIF(Games!A:A,A54)+COUNTIF(Games!B:B,A54)) -> 8.428571429 | I54: 0.6034644128 | J54: =((COUNTIFS(Games!$A:$A,A54,Games!$F:$F,"W"))+(COUNTIFS(Games!$B:$B,A54,Games!$F:$F,"L")))/(COUNTIF(Games!$A:$A,A54)+COUNTIF(Games!$B:$B,A54)) -> 0.5 | K54: =Monmouth!$AC$17 -> 0.5936726909 | L54: 24 | M54: MAAC
A55: Binghamton | B55: =((SUMIF(Games!$A:$A,A55,Games!$E:$E))+-(SUMIF(Games!$B:$B,A55,Games!$E:$E)))/((COUNTIF(Games!$A:$A,A55))+(COUNTIF(Games!$B:$B,A55))) -> -2.714285714 | C55: =((SUMIF(Games!$A:$A,A55,Games!$I:$I))+(SUMIF(Games!$B:$B,A55,Games!$H:$H)))/((COUNTIF(Games!$A:$A,A55))+(COUNTIF(Games!$B:$B,A55))) -> -0.1795806783 | D55: -2.893866393 | E55: 54 | F55: 43 | G55: =(((SUMIF(Games!A:A,A55,Games!C:C)+(SUMIF(Games!B:B,A55,Games!D:D)))))/(COUNTIF(Games!A:A,A55)+COUNTIF(Games!B:B,A55)) -> 9.428571429 | H55: =(((SUMIF(Games!A:A,A55,Games!D:D)+(SUMIF(Games!B:B,A55,Games!C:C)))))/(COUNTIF(Games!A:A,A55)+COUNTIF(Games!B:B,A55)) -> 12.07142857 | I55: 0.3162753697 | J55: =((COUNTIFS(Games!$A:$A,A55,Games!$F:$F,"W"))+(COUNTIFS(Games!$B:$B,A55,Games!$F:$F,"L")))/(COUNTIF(Games!$A:$A,A55)+COUNTIF(Games!$B:$B,A55)) -> 0.2857142857 | K55: =Binghamton!$AC$17 -> 0.2935323853 | L55: 56 | M55: America East
A56: Mercer | B56: =((SUMIF(Games!$A:$A,A56,Games!$E:$E))+-(SUMIF(Games!$B:$B,A56,Games!$E:$E)))/((COUNTIF(Games!$A:$A,A56))+(COUNTIF(Games!$B:$B,A56))) -> -1.769230769 | C56: =((SUMIF(Games!$A:$A,A56,Games!$I:$I))+(SUMIF(Games!$B:$B,A56,Games!$H:$H)))/((COUNTIF(Games!$A:$A,A56))+(COUNTIF(Games!$B:$B,A56))) -> -1.837298387 | D56: -3.606529156 | E56: 55 | F56: 58 | G56: =(((SUMIF(Games!A:A,A56,Games!C:C)+(SUMIF(Games!B:B,A56,Games!D:D)))))/(COUNTIF(Games!A:A,A56)+COUNTIF(Games!B:B,A56)) -> 9.230769231 | H56: =(((SUMIF(Games!A:A,A56,Games!D:D)+(SUMIF(Games!B:B,A56,Games!C:C)))))/(COUNTIF(Games!A:A,A56)+COUNTIF(Games!B:B,A56)) -> 10.92307692 | I56: 0.3716356622 | J56: =((COUNTIFS(Games!$A:$A,A56,Games!$F:$F,"W"))+(COUNTIFS(Games!$B:$B,A56,Games!$F:$F,"L")))/(COUNTIF(Games!$A:$A,A56)+COUNTIF(Games!$B:$B,A56)) -> 0.3846153846 | K56: =Mercer!$AC$17 -> 0.3773673063 | L56: 47 | M56: Southern
A57: St. Johns | B57: =((SUMIF(Games!$A:$A,A57,Games!$E:$E))+-(SUMIF(Games!$B:$B,A57,Games!$E:$E)))/((COUNTIF(Games!$A:$A,A57))+(COUNTIF(Games!$B:$B,A57))) -> -5.214285714 | C57: =((SUMIF(Games!$A:$A,A57,Games!$I:$I))+(SUMIF(Games!$B:$B,A57,Games!$H:$H)))/((COUNTIF(Games!$A:$A,A57))+(COUNTIF(Games!$B:$B,A57))) -> 1.448829178 | D57: -3.765456536 | E57: 56 | F57: 16 | G57: =(((SUMIF(Games!A:A,A57,Games!C:C)+(SUMIF(Games!B:B,A57,Games!D:D)))))/(COUNTIF(Games!A:A,A57)+COUNTIF(Games!B:B,A57)) -> 8.142857143 | H57: =(((SUMIF(Games!A:A,A57,Games!D:D)+(SUMIF(Games!B:B,A57,Games!C:C)))))/(COUNTIF(Games!A:A,A57)+COUNTIF(Games!B:B,A57)) -> 13.42857143 | I57: 0.1735376527 | J57: =((COUNTIFS(Games!$A:$A,A57,Games!$F:$F,"W"))+(COUNTIFS(Games!$B:$B,A57,Games!$F:$F,"L")))/(COUNTIF(Games!$A:$A,A57)+COUNTIF(Games!$B:$B,A57)) -> 0.1428571429 | K57: ='St. Johns'!$AC$17 -> 0.1738249301 | L57: 66 | M57: Big East
A58: Canisius | B58: =((SUMIF(Games!$A:$A,A58,Games!$E:$E))+-(SUMIF(Games!$B:$B,A58,Games!$E:$E)))/((COUNTIF(Games!$A:$A,A58))+(COUNTIF(Games!$B:$B,A58))) -> -1.75 | C58: =((SUMIF(Games!$A:$A,A58,Games!$I:$I))+(SUMIF(Games!$B:$B,A58,Games!$H:$H)))/((COUNTIF(Games!$A:$A,A58))+(COUNTIF(Games!$B:$B,A58))) -> -2.127992235 | D58: -3.877992235 | E58: 57 | F58: 61 | G58: =(((SUMIF(Games!A:A,A58,Games!C:C)+(SUMIF(Games!B:B,A58,Games!D:D)))))/(COUNTIF(Games!A:A,A58)+COUNTIF(Games!B:B,A58)) -> 9.166666667 | H58: =(((SUMIF(Games!A:A,A58,Games!D:D)+(SUMIF(Games!B:B,A58,Games!C:C)))))/(COUNTIF(Games!A:A,A58)+COUNTIF(Games!B:B,A58)) -> 10.91666667 | I58: 0.3669980641 | J58: =((COUNTIFS(Games!$A:$A,A58,Games!$F:$F,"W"))+(COUNTIFS(Games!$B:$B,A58,Games!$F:$F,"L")))/(COUNTIF(Games!$A:$A,A58)+COUNTIF(Games!$B:$B,A58)) -> 0.3333333333 | K58: =Canisius!$AC$17 -> 0.3472311722 | L58: 50 | M58: MAAC
A59: Sacred Heart | B59: =((SUMIF(Games!$A:$A,A59,Games!$E:$E))+-(SUMIF(Games!$B:$B,A59,Games!$E:$E)))/((COUNTIF(Games!$A:$A,A59))+(COUNTIF(Games!$B:$B,A59))) -> -4.3125 | C59: =((SUMIF(Games!$A:$A,A59,Games!$I:$I))+(SUMIF(Games!$B:$B,A59,Games!$H:$H)))/((COUNTIF(Games!$A:$A,A59))+(COUNTIF(Games!$B:$B,A59))) -> -0.004967372112 | D59: -4.317467372 | E59: 58 | F59: 38 | G59: =(((SUMIF(Games!A:A,A59,Games!C:C)+(SUMIF(Games!B:B,A59,Games!D:D)))))/(COUNTIF(Games!A:A,A59)+COUNTIF(Games!B:B,A59)) -> 7.8125 | H59: =(((SUMIF(Games!A:A,A59,Games!D:D)+(SUMIF(Games!B:B,A59,Games!C:C)))))/(COUNTIF(Games!A:A,A59)+COUNTIF(Games!B:B,A59)) -> 12.5625 | I59: 0.1851296768 | J59: =((COUNTIFS(Games!$A:$A,A59,Games!$F:$F,"W"))+(COUNTIFS(Games!$B:$B,A59,Games!$F:$F,"L")))/(COUNTIF(Games!$A:$A,A59)+COUNTIF(Games!$B:$B,A59)) -> 0.125 | K59: ='Sacred Heart'!$AC$17 -> 0.2120359832 | L59: 64 | M59: Northeast
A60: Furman | B60: =((SUMIF(Games!$A:$A,A60,Games!$E:$E))+-(SUMIF(Games!$B:$B,A60,Games!$E:$E)))/((COUNTIF(Games!$A:$A,A60))+(COUNTIF(Games!$B:$B,A60))) -> -3.538461538 | C60: =((SUMIF(Games!$A:$A,A60,Games!$I:$I))+(SUMIF(Games!$B:$B,A60,Games!$H:$H)))/((COUNTIF(Games!$A:$A,A60))+(COUNTIF(Games!$B:$B,A60))) -> -0.9463713395 | D60: -4.484832878 | E60: 59 | F60: 47 | G60: =(((SUMIF(Games!A:A,A60,Games!C:C)+(SUMIF(Games!B:B,A60,Games!D:D)))))/(COUNTIF(Games!A:A,A60)+COUNTIF(Games!B:B,A60)) -> 8 | H60: =(((SUMIF(Games!A:A,A60,Games!D:D)+(SUMIF(Games!B:B,A60,Games!C:C)))))/(COUNTIF(Games!A:A,A60)+COUNTIF(Games!B:B,A60)) -> 11.30769231 | I60: 0.2535722442 | J60: =((COUNTIFS(Games!$A:$A,A60,Games!$F:$F,"W"))+(COUNTIFS(Games!$B:$B,A60,Games!$F:$F,"L")))/(COUNTIF(Games!$A:$A,A60)+COUNTIF(Games!$B:$B,A60)) -> 0.1538461538 | K60: =Furman!$AC$17 -> 0.2374602765 | L60: 62 | M60: Southern
A61: Detroit | B61: =((SUMIF(Games!$A:$A,A61,Games!$E:$E))+-(SUMIF(Games!$B:$B,A61,Games!$E:$E)))/((COUNTIF(Games!$A:$A,A61))+(COUNTIF(Games!$B:$B,A61))) -> -3.583333333 | C61: =((SUMIF(Games!$A:$A,A61,Games!$I:$I))+(SUMIF(Games!$B:$B,A61,Games!$H:$H)))/((COUNTIF(Games!$A:$A,A61))+(COUNTIF(Games!$B:$B,A61))) -> -1.157228093 | D61: -4.740561426 | E61: 60 | F61: 51 | G61: =(((SUMIF(Games!A:A,A61,Games!C:C)+(SUMIF(Games!B:B,A61,Games!D:D)))))/(COUNTIF(Games!A:A,A61)+COUNTIF(Games!B:B,A61)) -> 6.083333333 | H61: =(((SUMIF(Games!A:A,A61,Games!D:D)+(SUMIF(Games!B:B,A61,Games!C:C)))))/(COUNTIF(Games!A:A,A61)+COUNTIF(Games!B:B,A61)) -> 9.833333333 | I61: 0.1826788257 | J61: =((COUNTIFS(Games!$A:$A,A61,Games!$F:$F,"W"))+(COUNTIFS(Games!$B:$B,A61,Games!$F:$F,"L")))/(COUNTIF(Games!$A:$A,A61)+COUNTIF(Games!$B:$B,A61)) -> 0.1666666667 | K61: =Detroit!$AC$17 -> 0.2246311229 | L61: 63 | M61: MAAC
A62: Lafayette | B62: =((SUMIF(Games!$A:$A,A62,Games!$E:$E))+-(SUMIF(Games!$B:$B,A62,Games!$E:$E)))/((COUNTIF(Games!$A:$A,A62))+(COUNTIF(Games!$B:$B,A62))) -> -3.785714286 | C62: =((SUMIF(Games!$A:$A,A62,Games!$I:$I))+(SUMIF(Games!$B:$B,A62,Games!$H:$H)))/((COUNTIF(Games!$A:$A,A62))+(COUNTIF(Games!$B:$B,A62))) -> -1.016301004 | D62: -4.802015289 | E62: 61 | F62: 48 | G62: =(((SUMIF(Games!A:A,A62,Games!C:C)+(SUMIF(Games!B:B,A62,Games!D:D)))))/(COUNTIF(Games!A:A,A62)+COUNTIF(Games!B:B,A62)) -> 7.714285714 | H62: =(((SUMIF(Games!A:A,A62,Games!D:D)+(SUMIF(Games!B:B,A62,Games!C:C)))))/(COUNTIF(Games!A:A,A62)+COUNTIF(Games!B:B,A62)) -> 11.5 | I62: 0.2234397914 | J62: =((COUNTIFS(Games!$A:$A,A62,Games!$F:$F,"W"))+(COUNTIFS(Games!$B:$B,A62,Games!$F:$F,"L")))/(COUNTIF(Games!$A:$A,A62)+COUNTIF(Games!$B:$B,A62)) -> 0.2142857143 | K62: =Lafayette!$AC$17 -> 0.2679075891 | L62: 59 | M62: Patriot
A63: Siena | B63: =((SUMIF(Games!$A:$A,A63,Games!$E:$E))+-(SUMIF(Games!$B:$B,A63,Games!$E:$E)))/((COUNTIF(Games!$A:$A,A63))+(COUNTIF(Games!$B:$B,A63))) -> -3 | C63: =((SUMIF(Games!$A:$A,A63,Games!$I:$I))+(SUMIF(Games!$B:$B,A63,Games!$H:$H)))/((COUNTIF(Games!$A:$A,A63))+(COUNTIF(Games!$B:$B,A63))) -> -1.860827426 | D63: -4.860827426 | E63: 62 | F63: 59 | G63: =(((SUMIF(Games!A:A,A63,Games!C:C)+(SUMIF(Games!B:B,A63,Games!D:D)))))/(COUNTIF(Games!A:A,A63)+COUNTIF(Games!B:B,A63)) -> 8.769230769 | H63: =(((SUMIF(Games!A:A,A63,Games!D:D)+(SUMIF(Games!B:B,A63,Games!C:C)))))/(COUNTIF(Games!A:A,A63)+COUNTIF(Games!B:B,A63)) -> 12.07692308 | I63: 0.2692270461 | J63: =((COUNTIFS(Games!$A:$A,A63,Games!$F:$F,"W"))+(COUNTIFS(Games!$B:$B,A63,Games!$F:$F,"L")))/(COUNTIF(Games!$A:$A,A63)+COUNTIF(Games!$B:$B,A63)) -> 0.2307692308 | K63: =Siena!$AC$17 -> 0.2699234905 | L63: 58 | M63: MAAC
A64: Lowell | B64: =((SUMIF(Games!$A:$A,A64,Games!$E:$E))+-(SUMIF(Games!$B:$B,A64,Games!$E:$E)))/((COUNTIF(Games!$A:$A,A64))+(COUNTIF(Games!$B:$B,A64))) -> -3.0625 | C64: =((SUMIF(Games!$A:$A,A64,Games!$I:$I))+(SUMIF(Games!$B:$B,A64,Games!$H:$H)))/((COUNTIF(Games!$A:$A,A64))+(COUNTIF(Games!$B:$B,A64))) -> -1.955799136 | D64: -5.018299136 | E64: 63 | F64: 60 | G64: =(((SUMIF(Games!A:A,A64,Games!C:C)+(SUMIF(Games!B:B,A64,Games!D:D)))))/(COUNTIF(Games!A:A,A64)+COUNTIF(Games!B:B,A64)) -> 8.3125 | H64: =(((SUMIF(Games!A:A,A64,Games!D:D)+(SUMIF(Games!B:B,A64,Games!C:C)))))/(COUNTIF(Games!A:A,A64)+COUNTIF(Games!B:B,A64)) -> 11.4375 | I64: 0.2697862114 | J64: =((COUNTIFS(Games!$A:$A,A64,Games!$F:$F,"W"))+(COUNTIFS(Games!$B:$B,A64,Games!$F:$F,"L")))/(COUNTIF(Games!$A:$A,A64)+COUNTIF(Games!$B:$B,A64)) -> 0.25 | K64: =Lowell!$AC$17 -> 0.2998948631 | L64: 53 | M64: America East
A65: Jacksonville | B65: =((SUMIF(Games!$A:$A,A65,Games!$E:$E))+-(SUMIF(Games!$B:$B,A65,Games!$E:$E)))/((COUNTIF(Games!$A:$A,A65))+(COUNTIF(Games!$B:$B,A65))) -> -3.076923077 | C65: =((SUMIF(Games!$A:$A,A65,Games!$I:$I))+(SUMIF(Games!$B:$B,A65,Games!$H:$H)))/((COUNTIF(Games!$A:$A,A65))+(COUNTIF(Games!$B:$B,A65))) -> -2.223955383 | D65: -5.30087846 | E65: 64 | F65: 63 | G65: =(((SUMIF(Games!A:A,A65,Games!C:C)+(SUMIF(Games!B:B,A65,Games!D:D)))))/(COUNTIF(Games!A:A,A65)+COUNTIF(Games!B:B,A65)) -> 8.230769231 | H65: =(((SUMIF(Games!A:A,A65,Games!D:D)+(SUMIF(Games!B:B,A65,Games!C:C)))))/(COUNTIF(Games!A:A,A65)+COUNTIF(Games!B:B,A65)) -> 11.38461538 | I65: 0.2665737062 | J65: =((COUNTIFS(Games!$A:$A,A65,Games!$F:$F,"W"))+(COUNTIFS(Games!$B:$B,A65,Games!$F:$F,"L")))/(COUNTIF(Games!$A:$A,A65)+COUNTIF(Games!$B:$B,A65)) -> 0.2307692308 | K65: =Jacksonville!$AC$17 -> 0.2544220116 | L65: 61 | M65: Southern
A66: Dartmouth | B66: =((SUMIF(Games!$A:$A,A66,Games!$E:$E))+-(SUMIF(Games!$B:$B,A66,Games!$E:$E)))/((COUNTIF(Games!$A:$A,A66))+(COUNTIF(Games!$B:$B,A66))) -> -5.642857143 | C66: =((SUMIF(Games!$A:$A,A66,Games!$I:$I))+(SUMIF(Games!$B:$B,A66,Games!$H:$H)))/((COUNTIF(Games!$A:$A,A66))+(COUNTIF(Games!$B:$B,A66))) -> -0.1523940739 | D66: =B66+C66 -> -5.795251217 | E66: =RANK(D66,$D$2:$D$71) -> 65 | F66: =RANK(C66,$C$2:$C$71,0) -> 41 | G66: =(((SUMIF(Games!A:A,A66,Games!C:C)+(SUMIF(Games!B:B,A66,Games!D:D)))))/(COUNTIF(Games!A:A,A66)+COUNTIF(Games!B:B,A66)) -> 6.357142857 | H66: =(((SUMIF(Games!A:A,A66,Games!D:D)+(SUMIF(Games!B:B,A66,Games!C:C)))))/(COUNTIF(Games!A:A,A66)+COUNTIF(Games!B:B,A66)) -> 12.57142857 | I66: =(G66^3.12)/((G66^3.12)+(H66^3.12)) -> 0.1064654397 | J66: =((COUNTIFS(Games!$A:$A,A66,Games!$F:$F,"W"))+(COUNTIFS(Games!$B:$B,A66,Games!$F:$F,"L")))/(COUNTIF(Games!$A:$A,A66)+COUNTIF(Games!$B:$B,A66)) -> 0.07142857143 | K66: =Dartmouth!$AC$17 -> 0.1654432952 | L66: =RANK(K66,$K$2:$K$71,0) -> 67 | M66: Ivy
A67: Wagner | B67: =((SUMIF(Games!$A:$A,A67,Games!$E:$E))+-(SUMIF(Games!$B:$B,A67,Games!$E:$E)))/((COUNTIF(Games!$A:$A,A67))+(COUNTIF(Games!$B:$B,A67))) -> -1.6 | C67: =((SUMIF(Games!$A:$A,A67,Games!$I:$I))+(SUMIF(Games!$B:$B,A67,Games!$H:$H)))/((COUNTIF(Games!$A:$A,A67))+(COUNTIF(Games!$B:$B,A67))) -> -4.242365931 | D67: -5.842365931 | E67: 66 | F67: 69 | G67: =(((SUMIF(Games!A:A,A67,Games!C:C)+(SUMIF(Games!B:B,A67,Games!D:D)))))/(COUNTIF(Games!A:A,A67)+COUNTIF(Games!B:B,A67)) -> 8.8 | H67: =(((SUMIF(Games!A:A,A67,Games!D:D)+(SUMIF(Games!B:B,A67,Games!C:C)))))/(COUNTIF(Games!A:A,A67)+COUNTIF(Games!B:B,A67)) -> 10.33333333 | I67: 0.3772717762 | J67: =((COUNTIFS(Games!$A:$A,A67,Games!$F:$F,"W"))+(COUNTIFS(Games!$B:$B,A67,Games!$F:$F,"L")))/(COUNTIF(Games!$A:$A,A67)+COUNTIF(Games!$B:$B,A67)) -> 0.4 | K67: =Wagner!$AC$17 -> 0.3662031394 | L67: 48 | M67: Northeast
A68: Manhattan | B68: =((SUMIF(Games!$A:$A,A68,Games!$E:$E))+-(SUMIF(Games!$B:$B,A68,Games!$E:$E)))/((COUNTIF(Games!$A:$A,A68))+(COUNTIF(Games!$B:$B,A68))) -> -4.466666667 | C68: =((SUMIF(Games!$A:$A,A68,Games!$I:$I))+(SUMIF(Games!$B:$B,A68,Games!$H:$H)))/((COUNTIF(Games!$A:$A,A68))+(COUNTIF(Games!$B:$B,A68))) -> -2.156561867 | D68: -6.623228534 | E68: 67 | F68: 62 | G68: =(((SUMIF(Games!A:A,A68,Games!C:C)+(SUMIF(Games!B:B,A68,Games!D:D)))))/(COUNTIF(Games!A:A,A68)+COUNTIF(Games!B:B,A68)) -> 6.866666667 | H68: =(((SUMIF(Games!A:A,A68,Games!D:D)+(SUMIF(Games!B:B,A68,Games!C:C)))))/(COUNTIF(Games!A:A,A68)+COUNTIF(Games!B:B,A68)) -> 12.26666667 | I68: 0.1406085033 | J68: =((COUNTIFS(Games!$A:$A,A68,Games!$F:$F,"W"))+(COUNTIFS(Games!$B:$B,A68,Games!$F:$F,"L")))/(COUNTIF(Games!$A:$A,A68)+COUNTIF(Games!$B:$B,A68)) -> 0.2 | K68: =Manhattan!$AC$17 -> 0.1904234179 | L68: 65 | M68: MAAC
A69: NJIT | B69: =((SUMIF(Games!$A:$A,A69,Games!$E:$E))+-(SUMIF(Games!$B:$B,A69,Games!$E:$E)))/((COUNTIF(Games!$A:$A,A69))+(COUNTIF(Games!$B:$B,A69))) -> -6.2 | C69: =((SUMIF(Games!$A:$A,A69,Games!$I:$I))+(SUMIF(Games!$B:$B,A69,Games!$H:$H)))/((COUNTIF(Games!$A:$A,A69))+(COUNTIF(Games!$B:$B,A69))) -> -2.438075186 | D69: -8.638075186 | E69: 68 | F69: 66 | G69: =(((SUMIF(Games!A:A,A69,Games!C:C)+(SUMIF(Games!B:B,A69,Games!D:D)))))/(COUNTIF(Games!A:A,A69)+COUNTIF(Games!B:B,A69)) -> 5.866666667 | H69: =(((SUMIF(Games!A:A,A69,Games!D:D)+(SUMIF(Games!B:B,A69,Games!C:C)))))/(COUNTIF(Games!A:A,A69)+COUNTIF(Games!B:B,A69)) -> 13.8 | I69: 0.06484019203 | J69: =((COUNTIFS(Games!$A:$A,A69,Games!$F:$F,"W"))+(COUNTIFS(Games!$B:$B,A69,Games!$F:$F,"L")))/(COUNTIF(Games!$A:$A,A69)+COUNTIF(Games!$B:$B,A69)) -> 0.06666666667 | K69: =NJIT!$AC$17 -> 0.1002257721 | L69: 69 | M69: Independent
A70: VMI | B70: =((SUMIF(Games!$A:$A,A70,Games!$E:$E))+-(SUMIF(Games!$B:$B,A70,Games!$E:$E)))/((COUNTIF(Games!$A:$A,A70))+(COUNTIF(Games!$B:$B,A70))) -> -6.875 | C70: =((SUMIF(Games!$A:$A,A70,Games!$I:$I))+(SUMIF(Games!$B:$B,A70,Games!$H:$H)))/((COUNTIF(Games!$A:$A,A70))+(COUNTIF(Games!$B:$B,A70))) -> -3.020063579 | D70: -9.895063579 | E70: 69 | F70: 67 | G70: =(((SUMIF(Games!A:A,A70,Games!C:C)+(SUMIF(Games!B:B,A70,Games!D:D)))))/(COUNTIF(Games!A:A,A70)+COUNTIF(Games!B:B,A70)) -> 6 | H70: =(((SUMIF(Games!A:A,A70,Games!D:D)+(SUMIF(Games!B:B,A70,Games!C:C)))))/(COUNTIF(Games!A:A,A70)+COUNTIF(Games!B:B,A70)) -> 13.9375 | I70: 0.06725693949 | J70: =((COUNTIFS(Games!$A:$A,A70,Games!$F:$F,"W"))+(COUNTIFS(Games!$B:$B,A70,Games!$F:$F,"L")))/(COUNTIF(Games!$A:$A,A70)+COUNTIF(Games!$B:$B,A70)) -> 0.125 | K70: =VMI!$AC$17 -> 0.1153314764 | L70: 68 | M70: Southern
A71: Hampton | B71: =((SUMIF(Games!$A:$A,A71,Games!$E:$E))+-(SUMIF(Games!$B:$B,A71,Games!$E:$E)))/((COUNTIF(Games!$A:$A,A71))+(COUNTIF(Games!$B:$B,A71))) -> -10 | C71: =((SUMIF(Games!$A:$A,A71,Games!$I:$I))+(SUMIF(Games!$B:$B,A71,Games!$H:$H)))/((COUNTIF(Games!$A:$A,A71))+(COUNTIF(Games!$B:$B,A71))) -> -7.868714755 | D71: -17.86871475 | E71: 70 | F71: 70 | G71: =(((SUMIF(Games!A:A,A71,Games!C:C)+(SUMIF(Games!B:B,A71,Games!D:D)))))/(COUNTIF(Games!A:A,A71)+COUNTIF(Games!B:B,A71)) -> 4 | H71: =(((SUMIF(Games!A:A,A71,Games!D:D)+(SUMIF(Games!B:B,A71,Games!C:C)))))/(COUNTIF(Games!A:A,A71)+COUNTIF(Games!B:B,A71)) -> 21.5 | I71: 0.005235275661 | J71: =((COUNTIFS(Games!$A:$A,A71,Games!$F:$F,"W"))+(COUNTIFS(Games!$B:$B,A71,Games!$F:$F,"L")))/(COUNTIF(Games!$A:$A,A71)+COUNTIF(Games!$B:$B,A71)) -> 0 | K71: =Hampton!$AC$17 -> 0.002443929405 | L71: 70 | M71: Independent

Sheet RPI Nitty Gritty Report
A1: College Crosse's Unofficial NCAA RPI "Nitty Gritty" Report
M2: Record Against RPI's In:
A3: Team | B3: Rec. | C3: Opp. Record | D3: Opp. Opp. Rec. | E3: RPI | F3: RPI RANK | G3: SOS | H3: RPI SOS RANK | I3: Record | J3: Conf. RPI Rank | K3: Conf. Rec. | L3: Road Rec. | M3: 1-10 | N3: 11-25 | O3: 26-50 | P3: 51-69 | Q3: League
A4: Maryland | B4: =VLOOKUP(A4,Sheet1!A:M,10,FALSE) -> 0.8888888889 | C4: =Maryland!$R$34 -> 0.635968661 | D4: =Maryland!$S$34 -> 0.543016598 | E4: =(0.25*B4)+(0.5*C4)+(0.25*D4) -> 0.6759607022 | F4: =RANK(E4,$E$4:$E$73) -> 1 | G4: =Maryland!$T$34 -> 12.2 | H4: =RANK(G4,$G$4:$G$73,1) -> 7 | I4: =Maryland!$AC$7 -> 16-2 | J4: =VLOOKUP(Q4,Conferences!A:G,7,FALSE) -> 2 | K4: =Maryland!$AC$8 -> 7-0 | L4: =Maryland!$U$34 -> 6-1 | M4: =Maryland!$W$34 -> 2-2 | N4: =Maryland!$X$34 -> 8-0 | O4: =Maryland!$Y$34 -> 6-0 | P4: =Maryland!$Z$34 -> 0-0 | Q4: Big Ten
A5: Brown | B5: =VLOOKUP(A5,Sheet1!A:M,10,FALSE) -> 0.8888888889 | C5: =Brown!$R$34 -> 0.5281847782 | D5: =Brown!$S$34 -> 0.538641732 | E5: 0.6209750443 | F5: 2 | G5: =Brown!$T$34 -> 17.4 | H5: 20 | I5: =Brown!$AC$7 -> 16-2 | J5: =VLOOKUP(Q5,Conferences!A:G,7,FALSE) -> 3 | K5: =Brown!$AC$8 -> 6-1 | L5: =Brown!$U$34 -> 7-0 | M5: =Brown!$W$34 -> 1-0 | N5: =Brown!$X$34 -> 6-2 | O5: =Brown!$Y$34 -> 8-0 | P5: =Brown!$Z$34 -> 1-0 | Q5: Ivy
A6: Loyola | B6: =VLOOKUP(A6,Sheet1!A:M,10,FALSE) -> 0.8235294118 | C6: =Loyola!$R$34 -> 0.5605346211 | D6: =Loyola!$S$34 -> 0.5275918717 | E6: 0.6180476314 | F6: 3 | G6: =Loyola!$T$34 -> 15.7 | H6: 13 | I6: =Loyola!$AC$7 -> 14-3 | J6: =VLOOKUP(Q6,Conferences!A:G,7,FALSE) -> 6 | K6: =Loyola!$AC$8 -> 9-1 | L6: =Loyola!$U$34 -> 5-1 | M6: =Loyola!$W$34 -> 2-2 | N6: =Loyola!$X$34 -> 3-1 | O6: =Loyola!$Y$34 -> 7-0 | P6: =Loyola!$Z$34 -> 2-0 | Q6: Patriot
A7: Notre Dame | B7: =VLOOKUP(A7,Sheet1!A:M,10,FALSE) -> 0.7333333333 | C7: ='Notre Dame'!$R$34 -> 0.5876950827 | D7: ='Notre Dame'!$S$34 -> 0.5543515586 | E7: 0.6157687643 | F7: 4 | G7: ='Notre Dame'!$T$34 -> 10.8 | H7: 4 | I7: ='Notre Dame'!$AC$7 -> 11-4 | J7: =VLOOKUP(Q7,Conferences!A:G,7,FALSE) -> 1 | K7: ='Notre Dame'!$AC$8 -> 3-3 | L7: ='Notre Dame'!$U$34 -> 2-1 | M7: ='Notre Dame'!$W$34 -> 3-2 | N7: ='Notre Dame'!$X$34 -> 2-2 | O7: ='Notre Dame'!$Y$34 -> 5-0 | P7: ='Notre Dame'!$Z$34 -> 1-0 | Q7: ACC
A8: Yale | B8: =VLOOKUP(A8,Sheet1!A:M,10,FALSE) -> 0.8125 | C8: =Yale!$R$34 -> 0.5263360873 | D8: =Yale!$S$34 -> 0.5391998573 | E8: 0.601093008 | F8: 5 | G8: =Yale!$T$34 -> 16.8 | H8: 17 | I8: =Yale!$AC$7 -> 13-3 | J8: =VLOOKUP(Q8,Conferences!A:G,7,FALSE) -> 3 | K8: =Yale!$AC$8 -> 7-1 | L8: =Yale!$U$34 -> 5-1 | M8: =Yale!$W$34 -> 1-2 | N8: =Yale!$X$34 -> 4-1 | O8: =Yale!$Y$34 -> 4-0 | P8: =Yale!$Z$34 -> 4-0 | Q8: Ivy
A9: Denver | B9: =VLOOKUP(A9,Sheet1!A:M,10,FALSE) -> 0.8125 | C9: =Denver!$R$34 -> 0.5261253861 | D9: =Denver!$S$34 -> 0.5369432275 | E9: 0.6004234999 | F9: 6 | G9: =Denver!$T$34 -> 14.4 | H9: 11 | I9: =Denver!$AC$7 -> 13-3 | J9: =VLOOKUP(Q9,Conferences!A:G,7,FALSE) -> 4 | K9: =Denver!$AC$8 -> 6-1 | L9: =Denver!$U$34 -> 6-0 | M9: =Denver!$W$34 -> 2-1 | N9: =Denver!$X$34 -> 4-2 | O9: =Denver!$Y$34 -> 4-0 | P9: =Denver!$Z$34 -> 3-0 | Q9: Big East
A10: Syracuse | B10: =VLOOKUP(A10,Sheet1!A:M,10,FALSE) -> 0.7058823529 | C10: =Syracuse!$R$34 -> 0.564815519 | D10: =Syracuse!$S$34 -> 0.5521831073 | E10: 0.5969241245 | F10: 7 | G10: =Syracuse!$T$34 -> 10.7 | H10: 3 | I10: =Syracuse!$AC$7 -> 12-5 | J10: =VLOOKUP(Q10,Conferences!A:G,7,FALSE) -> 1 | K10: =Syracuse!$AC$8 -> 4-2 | L10: =Syracuse!$U$34 -> 2-3 | M10: =Syracuse!$W$34 -> 3-3 | N10: =Syracuse!$X$34 -> 2-1 | O10: =Syracuse!$Y$34 -> 3-1 | P10: =Syracuse!$Z$34 -> 4-0 | Q10: ACC
A11: Towson | B11: =VLOOKUP(A11,Sheet1!A:M,10,FALSE) -> 0.8421052632 | C11: =Towson!$R$34 -> 0.4960044342 | D11: =Towson!$S$34 -> 0.5254629903 | E11: 0.5898942804 | F11: 8 | G11: =Towson!$T$34 -> 21.1 | H11: 30 | I11: =Towson!$AC$7 -> 16-3 | J11: =VLOOKUP(Q11,Conferences!A:G,7,FALSE) -> 5 | K11: =Towson!$AC$8 -> 6-1 | L11: =Towson!$U$34 -> 5-1 | M11: =Towson!$W$34 -> 2-1 | N11: =Towson!$X$34 -> 2-1 | O11: =Towson!$Y$34 -> 9-1 | P11: =Towson!$Z$34 -> 3-0 | Q11: CAA
A12: Duke | B12: =VLOOKUP(A12,Sheet1!A:M,10,FALSE) -> 0.5789473684 | C12: =Duke!$R$34 -> 0.6206330305 | D12: =Duke!$S$34 -> 0.5292208519 | E12: 0.5873585703 | F12: 9 | G12: =Duke!$T$34 -> 7.2 | H12: 1 | I12: =Duke!$AC$7 -> 11-8 | J12: =VLOOKUP(Q12,Conferences!A:G,7,FALSE) -> 1 | K12: =Duke!$AC$8 -> 3-3 | L12: =Duke!$U$34 -> 4-2 | M12: =Duke!$W$34 -> 3-4 | N12: =Duke!$X$34 -> 1-4 | O12: =Duke!$Y$34 -> 5-0 | P12: =Duke!$Z$34 -> 2-0 | Q12: ACC
A13: Albany | B13: =VLOOKUP(A13,Sheet1!A:M,10,FALSE) -> 0.75 | C13: =Albany!$R$34 -> 0.5388838949 | D13: =Albany!$S$34 -> 0.5144692667 | E13: 0.5855592641 | F13: 10 | G13: =Albany!$T$34 -> 19.1 | H13: 25 | I13: =Albany!$AC$7 -> 12-4 | J13: =VLOOKUP(Q13,Conferences!A:G,7,FALSE) -> 7 | K13: =Albany!$AC$8 -> 6-1 | L13: =Albany!$U$34 -> 5-3 | M13: =Albany!$W$34 -> 1-3 | N13: =Albany!$X$34 -> 2-0 | O13: =Albany!$Y$34 -> 5-1 | P13: =Albany!$Z$34 -> 4-0 | Q13: America East
A14: Marquette | B14: =VLOOKUP(A14,Sheet1!A:M,10,FALSE) -> 0.6875 | C14: =Marquette!$R$34 -> 0.5581737707 | D14: =Marquette!$S$34 -> 0.5340267593 | E14: 0.5844685752 | F14: 11 | G14: =Marquette!$T$34 -> 14.1 | H14: 9 | I14: =Marquette!$AC$7 -> 11-5 | J14: =VLOOKUP(Q14,Conferences!A:G,7,FALSE) -> 4 | K14: =Marquette!$AC$8 -> 6-1 | L14: =Marquette!$U$34 -> 4-4 | M14: =Marquette!$W$34 -> 1-3 | N14: =Marquette!$X$34 -> 4-1 | O14: =Marquette!$Y$34 -> 4-1 | P14: =Marquette!$Z$34 -> 2-0 | Q14: Big East
A15: North Carolina | B15: =VLOOKUP(A15,Sheet1!A:M,10,FALSE) -> 0.625 | C15: ='North Carolina'!$R$34 -> 0.5818488293 | D15: ='North Carolina'!$S$34 -> 0.5484747586 | E15: 0.5842931043 | F15: 12 | G15: ='North Carolina'!$T$34 -> 8.5 | H15: 2 | I15: ='North Carolina'!$AC$7 -> 10-6 | J15: =VLOOKUP(Q15,Conferences!A:G,7,FALSE) -> 1 | K15: ='North Carolina'!$AC$8 -> 4-2 | L15: ='North Carolina'!$U$34 -> 4-3 | M15: ='North Carolina'!$W$34 -> 3-4 | N15: ='North Carolina'!$X$34 -> 3-0 | O15: ='North Carolina'!$Y$34 -> 2-2 | P15: ='North Carolina'!$Z$34 -> 2-0 | Q15: ACC
A16: Navy | B16: =VLOOKUP(A16,Sheet1!A:M,10,FALSE) -> 0.6875 | C16: =Navy!$R$34 -> 0.5653896655 | D16: =Navy!$S$34 -> 0.515539445 | E16: 0.583454694 | F16: 13 | G16: =Navy!$T$34 -> 15.3 | H16: 12 | I16: =Navy!$AC$7 -> 11-5 | J16: =VLOOKUP(Q16,Conferences!A:G,7,FALSE) -> 6 | K16: =Navy!$AC$8 -> 7-2 | L16: =Navy!$U$34 -> 4-3 | M16: =Navy!$W$34 -> 2-2 | N16: =Navy!$X$34 -> 2-1 | O16: =Navy!$Y$34 -> 4-2 | P16: =Navy!$Z$34 -> 3-0 | Q16: Patriot
A17: Johns Hopkins | B17: =VLOOKUP(A17,Sheet1!A:M,10,FALSE) -> 0.5333333333 | C17: ='Johns Hopkins'!$R$34 -> 0.6206334243 | D17: ='Johns Hopkins'!$S$34 -> 0.5447002567 | E17: 0.5798251097 | F17: 14 | G17: ='Johns Hopkins'!$T$34 -> 11.1 | H17: 5 | I17: ='Johns Hopkins'!$AC$7 -> 8-7 | J17: =VLOOKUP(Q17,Conferences!A:G,7,FALSE) -> 2 | K17: ='Johns Hopkins'!$AC$8 -> 3-3 | L17: ='Johns Hopkins'!$U$34 -> 4-4 | M17: ='Johns Hopkins'!$W$34 -> 2-3 | N17: ='Johns Hopkins'!$X$34 -> 2-3 | O17: ='Johns Hopkins'!$Y$34 -> 4-1 | P17: ='Johns Hopkins'!$Z$34 -> 0-0 | Q17: Big Ten
A18: Air Force | B18: =VLOOKUP(A18,Sheet1!A:M,10,FALSE) -> 0.8333333333 | C18: ='Air Force'!$R$34 -> 0.4660092993 | D18: ='Air Force'!$S$34 -> 0.4967829405 | E18: 0.5655337181 | F18: 15 | G18: ='Air Force'!$T$34 -> 23 | H18: 37 | I18: ='Air Force'!$AC$7 -> 15-3 | J18: =VLOOKUP(Q18,Conferences!A:G,7,FALSE) -> 9 | K18: ='Air Force'!$AC$8 -> 9-0 | L18: ='Air Force'!$U$34 -> 8-2 | M18: ='Air Force'!$W$34 -> 1-2 | N18: ='Air Force'!$X$34 -> 2-1 | O18: ='Air Force'!$Y$34 -> 5-0 | P18: ='Air Force'!$Z$34 -> 7-0 | Q18: Southern
A19: Villanova | B19: =VLOOKUP(A19,Sheet1!A:M,10,FALSE) -> 0.6428571429 | C19: =Villanova!$R$34 -> 0.5296035722 | D19: =Villanova!$S$34 -> 0.5410593334 | E19: 0.5607809052 | F19: 16 | G19: =Villanova!$T$34 -> 18.5 | H19: 23 | I19: =Villanova!$AC$7 -> 9-5 | J19: =VLOOKUP(Q19,Conferences!A:G,7,FALSE) -> 4 | K19: =Villanova!$AC$8 -> 3-3 | L19: =Villanova!$U$34 -> 4-2 | M19: =Villanova!$W$34 -> 0-2 | N19: =Villanova!$X$34 -> 3-3 | O19: =Villanova!$Y$34 -> 5-0 | P19: =Villanova!$Z$34 -> 1-0 | Q19: Big East
A20: Quinnipiac | B20: =VLOOKUP(A20,Sheet1!A:M,10,FALSE) -> 0.75 | C20: =Quinnipiac!$R$34 -> 0.5047907668 | D20: =Quinnipiac!$S$34 -> 0.4765590694 | E20: 0.5590351508 | F20: 17 | G20: =Quinnipiac!$T$34 -> 28.3 | H20: 51 | I20: =Quinnipiac!$AC$7 -> 12-4 | J20: =VLOOKUP(Q20,Conferences!A:G,7,FALSE) -> 10 | K20: =Quinnipiac!$AC$8 -> 8-0 | L20: =Quinnipiac!$U$34 -> 5-2 | M20: =Quinnipiac!$W$34 -> 0-2 | N20: =Quinnipiac!$X$34 -> 0-2 | O20: =Quinnipiac!$Y$34 -> 5-0 | P20: =Quinnipiac!$Z$34 -> 7-0 | Q20: MAAC
A21: Bryant | B21: =VLOOKUP(A21,Sheet1!A:M,10,FALSE) -> 0.6666666667 | C21: =Bryant!$R$34 -> 0.5372865043 | D21: =Bryant!$S$34 -> 0.4869181357 | E21: 0.5570394528 | F21: 18 | G21: =Bryant!$T$34 -> 25.5 | H21: 46 | I21: =Bryant!$AC$7 -> 10-5 | J21: =VLOOKUP(Q21,Conferences!A:G,7,FALSE) -> 8 | K21: =Bryant!$AC$8 -> 5-2 | L21: =Bryant!$U$34 -> 5-1 | M21: =Bryant!$W$34 -> 1-1 | N21: =Bryant!$X$34 -> 1-1 | O21: =Bryant!$Y$34 -> 5-3 | P21: =Bryant!$Z$34 -> 3-0 | Q21: Northeast
A22: Stony Brook | B22: =VLOOKUP(A22,Sheet1!A:M,10,FALSE) -> 0.75 | C22: ='Stony Brook'!$R$34 -> 0.4884940274 | D22: ='Stony Brook'!$S$34 -> 0.4872173143 | E22: 0.5535513423 | F22: 19 | G22: ='Stony Brook'!$T$34 -> 29.7 | H22: 53 | I22: ='Stony Brook'!$AC$7 -> 12-4 | J22: =VLOOKUP(Q22,Conferences!A:G,7,FALSE) -> 7 | K22: ='Stony Brook'!$AC$8 -> 5-2 | L22: ='Stony Brook'!$U$34 -> 5-1 | M22: ='Stony Brook'!$W$34 -> 0-2 | N22: ='Stony Brook'!$X$34 -> 2-0 | O22: ='Stony Brook'!$Y$34 -> 5-1 | P22: ='Stony Brook'!$Z$34 -> 5-1 | Q22: America East
A23: Rutgers | B23: =VLOOKUP(A23,Sheet1!A:M,10,FALSE) -> 0.6875 | C23: =Rutgers!$R$34 -> 0.5021491529 | D23: =Rutgers!$S$34 -> 0.5195758332 | E23: 0.5528435348 | F23: 20 | G23: =Rutgers!$T$34 -> 19.7 | H23: 27 | I23: =Rutgers!$AC$7 -> 11-5 | J23: =VLOOKUP(Q23,Conferences!A:G,7,FALSE) -> 2 | K23: =Rutgers!$AC$8 -> 4-3 | L23: =Rutgers!$U$34 -> 4-4 | M23: =Rutgers!$W$34 -> 0-2 | N23: =Rutgers!$X$34 -> 4-1 | O23: =Rutgers!$Y$34 -> 3-2 | P23: =Rutgers!$Z$34 -> 4-0 | Q23: Big Ten
A24: Bucknell | B24: =VLOOKUP(A24,Sheet1!A:M,10,FALSE) -> 0.6666666667 | C24: =Bucknell!$R$34 -> 0.5119627595 | D24: =Bucknell!$S$34 -> 0.5090874278 | E24: 0.5499199033 | F24: 21 | G24: =Bucknell!$T$34 -> 23.3 | H24: 38 | I24: =Bucknell!$AC$7 -> 10-5 | J24: =VLOOKUP(Q24,Conferences!A:G,7,FALSE) -> 6 | K24: =Bucknell!$AC$8 -> 6-4 | L24: =Bucknell!$U$34 -> 3-2 | M24: =Bucknell!$W$34 -> 0-2 | N24: =Bucknell!$X$34 -> 2-2 | O24: =Bucknell!$Y$34 -> 7-0 | P24: =Bucknell!$Z$34 -> 1-1 | Q24: Patriot
A25: Richmond | B25: =VLOOKUP(A25,Sheet1!A:M,10,FALSE) -> 0.6875 | C25: =Richmond!$R$34 -> 0.502683341 | D25: =Richmond!$S$34 -> 0.4996586561 | E25: 0.5481313345 | F25: 22 | G25: =Richmond!$T$34 -> 21.3 | H25: 32 | I25: =Richmond!$AC$7 -> 11-5 | J25: =VLOOKUP(Q25,Conferences!A:G,7,FALSE) -> 9 | K25: =Richmond!$AC$8 -> 7-2 | L25: =Richmond!$U$34 -> 6-1 | M25: =Richmond!$W$34 -> 1-0 | N25: =Richmond!$X$34 -> 1-4 | O25: =Richmond!$Y$34 -> 5-1 | P25: =Richmond!$Z$34 -> 4-0 | Q25: Southern
A26: Harvard | B26: =VLOOKUP(A26,Sheet1!A:M,10,FALSE) -> 0.5 | C26: =Harvard!$R$34 -> 0.5774172009 | D26: =Harvard!$S$34 -> 0.5340372514 | E26: 0.5472179133 | F26: 23 | G26: =Harvard!$T$34 -> 11.9 | H26: 6 | I26: =Harvard!$AC$7 -> 8-8 | J26: =VLOOKUP(Q26,Conferences!A:G,7,FALSE) -> 3 | K26: =Harvard!$AC$8 -> 4-4 | L26: =Harvard!$U$34 -> 3-5 | M26: =Harvard!$W$34 -> 2-4 | N26: =Harvard!$X$34 -> 1-2 | O26: =Harvard!$Y$34 -> 4-2 | P26: =Harvard!$Z$34 -> 1-0 | Q26: Ivy
A27: Fairfield | B27: =VLOOKUP(A27,Sheet1!A:M,10,FALSE) -> 0.5294117647 | C27: =Fairfield!$R$34 -> 0.5766961988 | D27: =Fairfield!$S$34 -> 0.4998059542 | E27: 0.5456525292 | F27: 24 | G27: =Fairfield!$T$34 -> 17.1 | H27: 18 | I27: =Fairfield!$AC$7 -> 9-8 | J27: =VLOOKUP(Q27,Conferences!A:G,7,FALSE) -> 5 | K27: =Fairfield!$AC$8 -> 5-2 | L27: =Fairfield!$U$34 -> 4-4 | M27: =Fairfield!$W$34 -> 0-3 | N27: =Fairfield!$X$34 -> 1-5 | O27: =Fairfield!$Y$34 -> 6-0 | P27: =Fairfield!$Z$34 -> 2-0 | Q27: CAA
A28: Penn State | B28: =VLOOKUP(A28,Sheet1!A:M,10,FALSE) -> 0.5333333333 | C28: ='Penn State'!$R$34 -> 0.5482478632 | D28: ='Penn State'!$S$34 -> 0.5462359541 | E28: 0.5440162535 | F28: 25 | G28: ='Penn State'!$T$34 -> 17.3 | H28: 19 | I28: ='Penn State'!$AC$7 -> 8-7 | J28: =VLOOKUP(Q28,Conferences!A:G,7,FALSE) -> 2 | K28: ='Penn State'!$AC$8 -> 2-4 | L28: ='Penn State'!$U$34 -> 3-2 | M28: ='Penn State'!$W$34 -> 1-2 | N28: ='Penn State'!$X$34 -> 1-3 | O28: ='Penn State'!$Y$34 -> 5-2 | P28: ='Penn State'!$Z$34 -> 1-0 | Q28: Big Ten
A29: Virginia | B29: =VLOOKUP(A29,Sheet1!A:M,10,FALSE) -> 0.4666666667 | C29: =Virginia!$R$34 -> 0.5754820561 | D29: =Virginia!$S$34 -> 0.5382047069 | E29: 0.5389588714 | F29: 26 | G29: =Virginia!$T$34 -> 12.9 | H29: 8 | I29: =Virginia!$AC$7 -> 7-8 | J29: =VLOOKUP(Q29,Conferences!A:G,7,FALSE) -> 1 | K29: =Virginia!$AC$8 -> 0-4 | L29: =Virginia!$U$34 -> 3-3 | M29: =Virginia!$W$34 -> 0-5 | N29: =Virginia!$X$34 -> 2-1 | O29: =Virginia!$Y$34 -> 4-2 | P29: =Virginia!$Z$34 -> 1-0 | Q29: ACC
A30: Penn | B30: =VLOOKUP(A30,Sheet1!A:M,10,FALSE) -> 0.5333333333 | C30: =Penn!$R$34 -> 0.5333491345 | D30: =Penn!$S$34 -> 0.5234049525 | E30: 0.5308591387 | F30: 27 | G30: =Penn!$T$34 -> 16.5 | H30: 15 | I30: =Penn!$AC$7 -> 8-7 | J30: =VLOOKUP(Q30,Conferences!A:G,7,FALSE) -> 3 | K30: =Penn!$AC$8 -> 4-3 | L30: =Penn!$U$34 -> 3-3 | M30: =Penn!$W$34 -> 0-4 | N30: =Penn!$X$34 -> 2-1 | O30: =Penn!$Y$34 -> 4-2 | P30: =Penn!$Z$34 -> 2-0 | Q30: Ivy
A31: Army | B31: =VLOOKUP(A31,Sheet1!A:M,10,FALSE) -> 0.5882352941 | C31: =Army!$R$34 -> 0.5056857358 | D31: =Army!$S$34 -> 0.5056536901 | E31: 0.526315114 | F31: 28 | G31: =Army!$T$34 -> 15.7 | H31: 13 | I31: =Army!$AC$7 -> 10-7 | J31: =VLOOKUP(Q31,Conferences!A:G,7,FALSE) -> 6 | K31: =Army!$AC$8 -> 7-4 | L31: =Army!$U$34 -> 4-3 | M31: =Army!$W$34 -> 0-4 | N31: =Army!$X$34 -> 1-3 | O31: =Army!$Y$34 -> 5-0 | P31: =Army!$Z$34 -> 4-0 | Q31: Patriot
A32: High Point | B32: =VLOOKUP(A32,Sheet1!A:M,10,FALSE) -> 0.6 | C32: ='High Point'!$R$34 -> 0.5006037971 | D32: ='High Point'!$S$34 -> 0.4962491858 | E32: 0.524364195 | F32: 29 | G32: ='High Point'!$T$34 -> 25.4 | H32: 45 | I32: ='High Point'!$AC$7 -> 9-6 | J32: =VLOOKUP(Q32,Conferences!A:G,7,FALSE) -> 9 | K32: ='High Point'!$AC$8 -> 5-3 | L32: ='High Point'!$U$34 -> 3-5 | M32: ='High Point'!$W$34 -> 0-2 | N32: ='High Point'!$X$34 -> 0-3 | O32: ='High Point'!$Y$34 -> 5-1 | P32: ='High Point'!$Z$34 -> 4-0 | Q32: Southern
A33: St. Josephs | B33: =VLOOKUP(A33,Sheet1!A:M,10,FALSE) -> 0.75 | C33: ='St. Josephs'!$R$34 -> 0.4134386447 | D33: ='St. Josephs'!$S$34 -> 0.4816003812 | E33: 0.5146194176 | F33: 30 | G33: ='St. Josephs'!$T$34 -> 35.1 | H33: 62 | I33: ='St. Josephs'!$AC$7 -> 12-4 | J33: =VLOOKUP(Q33,Conferences!A:G,7,FALSE) -> 8 | K33: ='St. Josephs'!$AC$8 -> 6-2 | L33: ='St. Josephs'!$U$34 -> 4-2 | M33: ='St. Josephs'!$W$34 -> 0-0 | N33: ='St. Josephs'!$X$34 -> 1-0 | O33: ='St. Josephs'!$Y$34 -> 5-4 | P33: ='St. Josephs'!$Z$34 -> 6-0 | Q33: Northeast
A34: Hartford | B34: =VLOOKUP(A34,Sheet1!A:M,10,FALSE) -> 0.6111111111 | C34: =Hartford!$R$34 -> 0.4794261294 | D34: =Hartford!$S$34 -> 0.4858933562 | E34: 0.5139641815 | F34: 31 | G34: =Hartford!$T$34 -> 25.2 | H34: 43 | I34: =Hartford!$AC$7 -> 11-7 | J34: =VLOOKUP(Q34,Conferences!A:G,7,FALSE) -> 7 | K34: =Hartford!$AC$8 -> 5-3 | L34: =Hartford!$U$34 -> 7-3 | M34: =Hartford!$W$34 -> 1-1 | N34: =Hartford!$X$34 -> 0-4 | O34: =Hartford!$Y$34 -> 4-1 | P34: =Hartford!$Z$34 -> 6-1 | Q34: America East
A35: Cornell | B35: =VLOOKUP(A35,Sheet1!A:M,10,FALSE) -> 0.4615384615 | C35: =Cornell!$R$34 -> 0.5310671606 | D35: =Cornell!$S$34 -> 0.5248783802 | E35: 0.5121377907 | F35: 32 | G35: =Cornell!$T$34 -> 19.7 | H35: 27 | I35: =Cornell!$AC$7 -> 6-7 | J35: =VLOOKUP(Q35,Conferences!A:G,7,FALSE) -> 3 | K35: =Cornell!$AC$8 -> 1-5 | L35: =Cornell!$U$34 -> 3-3 | M35: =Cornell!$W$34 -> 1-3 | N35: =Cornell!$X$34 -> 0-2 | O35: =Cornell!$Y$34 -> 3-2 | P35: =Cornell!$Z$34 -> 2-0 | Q35: Ivy
A36: Ohio State | B36: =VLOOKUP(A36,Sheet1!A:M,10,FALSE) -> 0.4666666667 | C36: ='Ohio State'!$R$34 -> 0.5235210541 | D36: ='Ohio State'!$S$34 -> 0.5322847222 | E36: =(0.25*B36)+(0.5*C36)+(0.25*D36) -> 0.5114983743 | F36: =RANK(E36,$E$4:$E$73) -> 33 | G36: ='Ohio State'!$T$34 -> 16.5 | H36: =RANK(G36,$G$4:$G$73,1) -> 15 | I36: ='Ohio State'!$AC$7 -> 7-8 | J36: =VLOOKUP(Q36,Conferences!A:G,7,FALSE) -> 2 | K36: ='Ohio State'!$AC$8 -> 2-3 | L36: ='Ohio State'!$U$34 -> 1-5 | M36: ='Ohio State'!$W$34 -> 0-4 | N36: ='Ohio State'!$X$34 -> 2-2 | O36: ='Ohio State'!$Y$34 -> 3-2 | P36: ='Ohio State'!$Z$34 -> 2-0 | Q36: Big Ten
A37: Hobart | B37: =VLOOKUP(A37,Sheet1!A:M,10,FALSE) -> 0.5882352941 | C37: =Hobart!$R$34 -> 0.4837018374 | D37: =Hobart!$S$34 -> 0.4885458521 | E37: 0.5110462052 | F37: 34 | G37: =Hobart!$T$34 -> 25.2 | H37: 43 | I37: =Hobart!$AC$7 -> 10-7 | J37: =VLOOKUP(Q37,Conferences!A:G,7,FALSE) -> 8 | K37: =Hobart!$AC$8 -> 6-2 | L37: =Hobart!$U$34 -> 5-3 | M37: =Hobart!$W$34 -> 0-2 | N37: =Hobart!$X$34 -> 1-2 | O37: =Hobart!$Y$34 -> 4-2 | P37: =Hobart!$Z$34 -> 5-1 | Q37: Northeast
A38: Drexel | B38: =VLOOKUP(A38,Sheet1!A:M,10,FALSE) -> 0.4 | C38: =Drexel!$R$34 -> 0.5589449113 | D38: =Drexel!$S$34 -> 0.5178653869 | E38: 0.5089388024 | F38: 35 | G38: =Drexel!$T$34 -> 17.8 | H38: 21 | I38: =Drexel!$AC$7 -> 6-9 | J38: =VLOOKUP(Q38,Conferences!A:G,7,FALSE) -> 5 | K38: =Drexel!$AC$8 -> 2-4 | L38: =Drexel!$U$34 -> 3-6 | M38: =Drexel!$W$34 -> 0-4 | N38: =Drexel!$X$34 -> 1-2 | O38: =Drexel!$Y$34 -> 3-2 | P38: =Drexel!$Z$34 -> 2-1 | Q38: CAA
A39: Boston | B39: =VLOOKUP(A39,Sheet1!A:M,10,FALSE) -> 0.5333333333 | C39: =Boston!$R$34 -> 0.4852021073 | D39: =Boston!$S$34 -> 0.5028651509 | E39: 0.5016506747 | F39: 36 | G39: =Boston!$T$34 -> 24.3 | H39: 39 | I39: =Boston!$AC$7 -> 8-7 | J39: =VLOOKUP(Q39,Conferences!A:G,7,FALSE) -> 6 | K39: =Boston!$AC$8 -> 3-5 | L39: =Boston!$U$34 -> 4-3 | M39: =Boston!$W$34 -> 0-2 | N39: =Boston!$X$34 -> 2-1 | O39: =Boston!$Y$34 -> 2-4 | P39: =Boston!$Z$34 -> 4-0 | Q39: Patriot
A40: Massachusetts | B40: =VLOOKUP(A40,Sheet1!A:M,10,FALSE) -> 0.3076923077 | C40: =Massachusetts!$R$34 -> 0.5828943116 | D40: =Massachusetts!$S$34 -> 0.524986101 | E40: 0.499616758 | F40: 37 | G40: =Massachusetts!$T$34 -> 19.6 | H40: 26 | I40: =Massachusetts!$AC$7 -> 4-9 | J40: =VLOOKUP(Q40,Conferences!A:G,7,FALSE) -> 5 | K40: =Massachusetts!$AC$8 -> 0-5 | L40: =Massachusetts!$U$34 -> 1-5 | M40: =Massachusetts!$W$34 -> 0-3 | N40: =Massachusetts!$X$34 -> 2-2 | O40: =Massachusetts!$Y$34 -> 2-4 | P40: =Massachusetts!$Z$34 -> 0-0 | Q40: CAA
A41: Princeton | B41: =VLOOKUP(A41,Sheet1!A:M,10,FALSE) -> 0.3846153846 | C41: =Princeton!$R$34 -> 0.5497223742 | D41: =Princeton!$S$34 -> 0.5130887483 | E41: 0.4992872203 | F41: 38 | G41: =Princeton!$T$34 -> 18.2 | H41: 22 | I41: =Princeton!$AC$7 -> 5-8 | J41: =VLOOKUP(Q41,Conferences!A:G,7,FALSE) -> 3 | K41: =Princeton!$AC$8 -> 2-4 | L41: =Princeton!$U$34 -> 0-5 | M41: =Princeton!$W$34 -> 0-3 | N41: =Princeton!$X$34 -> 1-3 | O41: =Princeton!$Y$34 -> 2-2 | P41: =Princeton!$Z$34 -> 2-0 | Q41: Ivy
A42: Hofstra | B42: =VLOOKUP(A42,Sheet1!A:M,10,FALSE) -> 0.6 | C42: =Hofstra!$R$34 -> 0.4311385836 | D42: =Hofstra!$S$34 -> 0.5200433544 | E42: 0.4955801304 | F42: 39 | G42: =Hofstra!$T$34 -> 27.1 | H42: 48 | I42: =Hofstra!$AC$7 -> 9-6 | J42: =VLOOKUP(Q42,Conferences!A:G,7,FALSE) -> 5 | K42: =Hofstra!$AC$8 -> 3-3 | L42: =Hofstra!$U$34 -> 4-2 | M42: =Hofstra!$W$34 -> 0-1 | N42: =Hofstra!$X$34 -> 1-3 | O42: =Hofstra!$Y$34 -> 5-2 | P42: =Hofstra!$Z$34 -> 3-0 | Q42: CAA
A43: Robert Morris | B43: =VLOOKUP(A43,Sheet1!A:M,10,FALSE) -> 0.4666666667 | C43: ='Robert Morris'!$R$34 -> 0.5142390126 | D43: ='Robert Morris'!$S$34 -> 0.467951101 | E43: 0.4907739482 | F43: 40 | G43: ='Robert Morris'!$T$34 -> 28.4 | H43: 52 | I43: ='Robert Morris'!$AC$7 -> 7-8 | J43: =VLOOKUP(Q43,Conferences!A:G,7,FALSE) -> 8 | K43: ='Robert Morris'!$AC$8 -> 4-3 | L43: ='Robert Morris'!$U$34 -> 4-5 | M43: ='Robert Morris'!$W$34 -> 0-0 | N43: ='Robert Morris'!$X$34 -> 0-4 | O43: ='Robert Morris'!$Y$34 -> 2-4 | P43: ='Robert Morris'!$Z$34 -> 5-0 | Q43: Northeast
A44: Providence | B44: =VLOOKUP(A44,Sheet1!A:M,10,FALSE) -> 0.4375 | C44: =Providence!$R$34 -> 0.5000331623 | D44: =Providence!$S$34 -> 0.5056021364 | E44: 0.4857921153 | F44: 41 | G44: =Providence!$T$34 -> 20.6 | H44: 29 | I44: =Providence!$AC$7 -> 7-9 | J44: =VLOOKUP(Q44,Conferences!A:G,7,FALSE) -> 4 | K44: =Providence!$AC$8 -> 1-5 | L44: =Providence!$U$34 -> 2-7 | M44: =Providence!$W$34 -> 0-3 | N44: =Providence!$X$34 -> 0-3 | O44: =Providence!$Y$34 -> 3-3 | P44: =Providence!$Z$34 -> 4-0 | Q44: Big East
A45: Marist | B45: =VLOOKUP(A45,Sheet1!A:M,10,FALSE) -> 0.5625 | C45: =Marist!$R$34 -> 0.4485395732 | D45: =Marist!$S$34 -> 0.4609310561 | E45: 0.4801275506 | F45: 42 | G45: =Marist!$T$34 -> 33.2 | H45: 58 | I45: =Marist!$AC$7 -> 9-7 | J45: =VLOOKUP(Q45,Conferences!A:G,7,FALSE) -> 10 | K45: =Marist!$AC$8 -> 5-3 | L45: =Marist!$U$34 -> 5-3 | M45: =Marist!$W$34 -> 0-0 | N45: =Marist!$X$34 -> 1-3 | O45: =Marist!$Y$34 -> 1-3 | P45: =Marist!$Z$34 -> 7-1 | Q45: MAAC
A46: Bellarmine | B46: =VLOOKUP(A46,Sheet1!A:M,10,FALSE) -> 0.4 | C46: =Bellarmine!$R$34 -> 0.496962482 | D46: =Bellarmine!$S$34 -> 0.4867281164 | E46: 0.4701632701 | F46: 43 | G46: =Bellarmine!$T$34 -> 22.7 | H46: 35 | I46: =Bellarmine!$AC$7 -> 6-9 | J46: =VLOOKUP(Q46,Conferences!A:G,7,FALSE) -> 9 | K46: =Bellarmine!$AC$8 -> 4-4 | L46: =Bellarmine!$U$34 -> 2-6 | M46: =Bellarmine!$W$34 -> 0-1 | N46: =Bellarmine!$X$34 -> 0-5 | O46: =Bellarmine!$Y$34 -> 1-3 | P46: =Bellarmine!$Z$34 -> 5-0 | Q46: Southern
A47: Georgetown | B47: =VLOOKUP(A47,Sheet1!A:M,10,FALSE) -> 0.1428571429 | C47: =Georgetown!$R$34 -> 0.5757042561 | D47: =Georgetown!$S$34 -> 0.5303941593 | E47: 0.4561649536 | F47: 44 | G47: =Georgetown!$T$34 -> 14.1 | H47: 9 | I47: =Georgetown!$AC$7 -> 2-12 | J47: =VLOOKUP(Q47,Conferences!A:G,7,FALSE) -> 4 | K47: =Georgetown!$AC$8 -> 1-4 | L47: =Georgetown!$U$34 -> 1-5 | M47: =Georgetown!$W$34 -> 0-5 | N47: =Georgetown!$X$34 -> 0-3 | O47: =Georgetown!$Y$34 -> 2-3 | P47: =Georgetown!$Z$34 -> 0-1 | Q47: Big East
A48: Lehigh | B48: =VLOOKUP(A48,Sheet1!A:M,10,FALSE) -> 0.4 | C48: =Lehigh!$R$34 -> 0.4574185999 | D48: =Lehigh!$S$34 -> 0.5070721149 | E48: 0.4554773287 | F48: 45 | G48: =Lehigh!$T$34 -> 22.7 | H48: 35 | I48: =Lehigh!$AC$7 -> 6-9 | J48: =VLOOKUP(Q48,Conferences!A:G,7,FALSE) -> 6 | K48: =Lehigh!$AC$8 -> 4-5 | L48: =Lehigh!$U$34 -> 3-5 | M48: =Lehigh!$W$34 -> 0-2 | N48: =Lehigh!$X$34 -> 0-3 | O48: =Lehigh!$Y$34 -> 2-4 | P48: =Lehigh!$Z$34 -> 4-0 | Q48: Patriot
A49: UMBC | B49: =VLOOKUP(A49,Sheet1!A:M,10,FALSE) -> 0.2857142857 | C49: =UMBC!$R$34 -> 0.5195154985 | D49: =UMBC!$S$34 -> 0.4837322013 | E49: 0.452119371 | F49: 46 | G49: =UMBC!$T$34 -> 25.5 | H49: 46 | I49: =UMBC!$AC$7 -> 4-10 | J49: =VLOOKUP(Q49,Conferences!A:G,7,FALSE) -> 7 | K49: =UMBC!$AC$8 -> 1-5 | L49: =UMBC!$U$34 -> 3-4 | M49: =UMBC!$W$34 -> 0-2 | N49: =UMBC!$X$34 -> 0-3 | O49: =UMBC!$Y$34 -> 2-3 | P49: =UMBC!$Z$34 -> 2-2 | Q49: America East
A50: Holy Cross | B50: =VLOOKUP(A50,Sheet1!A:M,10,FALSE) -> 0.2666666667 | C50: ='Holy Cross'!$R$34 -> 0.5217815844 | D50: ='Holy Cross'!$S$34 -> 0.4908554039 | E50: 0.4502713099 | F50: 47 | G50: ='Holy Cross'!$T$34 -> 21.9 | H50: 33 | I50: ='Holy Cross'!$AC$7 -> 4-11 | J50: =VLOOKUP(Q50,Conferences!A:G,7,FALSE) -> 6 | K50: ='Holy Cross'!$AC$8 -> 3-6 | L50: ='Holy Cross'!$U$34 -> 1-7 | M50: ='Holy Cross'!$W$34 -> 0-2 | N50: ='Holy Cross'!$X$34 -> 0-4 | O50: ='Holy Cross'!$Y$34 -> 1-4 | P50: ='Holy Cross'!$Z$34 -> 3-1 | Q50: Patriot
A51: Delaware | B51: =VLOOKUP(A51,Sheet1!A:M,10,FALSE) -> 0.3333333333 | C51: =Delaware!$R$34 -> 0.4788196988 | D51: =Delaware!$S$34 -> 0.4959112129 | E51: 0.446720986 | F51: 48 | G51: =Delaware!$T$34 -> 24.3 | H51: 39 | I51: =Delaware!$AC$7 -> 5-10 | J51: =VLOOKUP(Q51,Conferences!A:G,7,FALSE) -> 5 | K51: =Delaware!$AC$8 -> 2-3 | L51: =Delaware!$U$34 -> 3-5 | M51: =Delaware!$W$34 -> 1-0 | N51: =Delaware!$X$34 -> 0-5 | O51: =Delaware!$Y$34 -> 1-5 | P51: =Delaware!$Z$34 -> 3-0 | Q51: CAA
A52: Mt. St. Marys | B52: =VLOOKUP(A52,Sheet1!A:M,10,FALSE) -> 0.4285714286 | C52: ='Mt. St. Marys'!$R$34 -> 0.4366987179 | D52: ='Mt. St. Marys'!$S$34 -> 0.4839975672 | E52: 0.4464916079 | F52: 49 | G52: ='Mt. St. Marys'!$T$34 -> 31.1 | H52: 54 | I52: ='Mt. St. Marys'!$AC$7 -> 6-8 | J52: =VLOOKUP(Q52,Conferences!A:G,7,FALSE) -> 8 | K52: ='Mt. St. Marys'!$AC$8 -> 2-4 | L52: ='Mt. St. Marys'!$U$34 -> 3-5 | M52: ='Mt. St. Marys'!$W$34 -> 0-1 | N52: ='Mt. St. Marys'!$X$34 -> 0-3 | O52: ='Mt. St. Marys'!$Y$34 -> 2-4 | P52: ='Mt. St. Marys'!$Z$34 -> 4-0 | Q52: Northeast
A53: Michigan | B53: =VLOOKUP(A53,Sheet1!A:M,10,FALSE) -> 0.2307692308 | C53: =Michigan!$R$34 -> 0.5169701904 | D53: =Michigan!$S$34 -> 0.5175600528 | E53: 0.4455674161 | F53: 50 | G53: =Michigan!$T$34 -> 22.4 | H53: 34 | I53: =Michigan!$AC$7 -> 3-10 | J53: =VLOOKUP(Q53,Conferences!A:G,7,FALSE) -> 2 | K53: =Michigan!$AC$8 -> 0-5 | L53: =Michigan!$U$34 -> 0-6 | M53: =Michigan!$W$34 -> 0-2 | N53: =Michigan!$X$34 -> 0-4 | O53: =Michigan!$Y$34 -> 1-3 | P53: =Michigan!$Z$34 -> 2-1 | Q53: Big Ten
A54: Vermont | B54: =VLOOKUP(A54,Sheet1!A:M,10,FALSE) -> 0.5294117647 | C54: =Vermont!$R$34 -> 0.3871589195 | D54: =Vermont!$S$34 -> 0.4757870885 | E54: 0.4448791731 | F54: 51 | G54: =Vermont!$T$34 -> 33.3 | H54: 59 | I54: =Vermont!$AC$7 -> 9-8 | J54: =VLOOKUP(Q54,Conferences!A:G,7,FALSE) -> 7 | K54: =Vermont!$AC$8 -> 5-3 | L54: =Vermont!$U$34 -> 2-5 | M54: =Vermont!$W$34 -> 0-1 | N54: =Vermont!$X$34 -> 1-1 | O54: =Vermont!$Y$34 -> 3-4 | P54: =Vermont!$Z$34 -> 5-2 | Q54: America East
A55: Binghamton | B55: =VLOOKUP(A55,Sheet1!A:M,10,FALSE) -> 0.2857142857 | C55: =Binghamton!$R$34 -> 0.5039013508 | D55: =Binghamton!$S$34 -> 0.4836067186 | E55: 0.4442809264 | F55: 52 | G55: =Binghamton!$T$34 -> 28 | H55: 49 | I55: =Binghamton!$AC$7 -> 4-10 | J55: =VLOOKUP(Q55,Conferences!A:G,7,FALSE) -> 7 | K55: =Binghamton!$AC$8 -> 2-4 | L55: =Binghamton!$U$34 -> 0-8 | M55: =Binghamton!$W$34 -> 0-3 | N55: =Binghamton!$X$34 -> 0-1 | O55: =Binghamton!$Y$34 -> 2-4 | P55: =Binghamton!$Z$34 -> 2-2 | Q55: America East
A56: Colgate | B56: =VLOOKUP(A56,Sheet1!A:M,10,FALSE) -> 0.2857142857 | C56: =Colgate!$R$34 -> 0.4829768446 | D56: =Colgate!$S$34 -> 0.5143591922 | E56: 0.4415067918 | F56: 53 | G56: =Colgate!$T$34 -> 24.3 | H56: 39 | I56: =Colgate!$AC$7 -> 4-10 | J56: =VLOOKUP(Q56,Conferences!A:G,7,FALSE) -> 6 | K56: =Colgate!$AC$8 -> 2-6 | L56: =Colgate!$U$34 -> 2-5 | M56: =Colgate!$W$34 -> 0-2 | N56: =Colgate!$X$34 -> 1-2 | O56: =Colgate!$Y$34 -> 1-6 | P56: =Colgate!$Z$34 -> 2-0 | Q56: Patriot
A57: Mercer | B57: =VLOOKUP(A57,Sheet1!A:M,10,FALSE) -> 0.3846153846 | C57: =Mercer!$R$34 -> 0.4288606818 | D57: =Mercer!$S$34 -> 0.4875887824 | E57: 0.4324813827 | F57: 54 | G57: =Mercer!$T$34 -> 32 | H57: 57 | I57: =Mercer!$AC$7 -> 5-8 | J57: =VLOOKUP(Q57,Conferences!A:G,7,FALSE) -> 9 | K57: =Mercer!$AC$8 -> 3-4 | L57: =Mercer!$U$34 -> 1-6 | M57: =Mercer!$W$34 -> 0-2 | N57: =Mercer!$X$34 -> 0-2 | O57: =Mercer!$Y$34 -> 0-4 | P57: =Mercer!$Z$34 -> 5-0 | Q57: Southern
A58: St. Johns | B58: =VLOOKUP(A58,Sheet1!A:M,10,FALSE) -> 0.1428571429 | C58: ='St. Johns'!$R$34 -> 0.542997776 | D58: ='St. Johns'!$S$34 -> 0.5002003481 | E58: 0.4322632607 | F58: 55 | G58: ='St. Johns'!$T$34 -> 18.8 | H58: 24 | I58: ='St. Johns'!$AC$7 -> 2-12 | J58: =VLOOKUP(Q58,Conferences!A:G,7,FALSE) -> 4 | K58: ='St. Johns'!$AC$8 -> 1-4 | L58: ='St. Johns'!$U$34 -> 0-8 | M58: ='St. Johns'!$W$34 -> 0-3 | N58: ='St. Johns'!$X$34 -> 0-4 | O58: ='St. Johns'!$Y$34 -> 1-4 | P58: ='St. Johns'!$Z$34 -> 1-1 | Q58: Big East
A59: Canisius | B59: =VLOOKUP(A59,Sheet1!A:M,10,FALSE) -> 0.3333333333 | C59: =Canisius!$R$34 -> 0.4461573149 | D59: =Canisius!$S$34 -> 0.460993613 | E59: 0.421660394 | F59: 56 | G59: =Canisius!$T$34 -> 40.6 | H59: 67 | I59: =Canisius!$AC$7 -> 4-8 | J59: =VLOOKUP(Q59,Conferences!A:G,7,FALSE) -> 10 | K59: =Canisius!$AC$8 -> 3-4 | L59: =Canisius!$U$34 -> 1-4 | M59: =Canisius!$W$34 -> 0-0 | N59: =Canisius!$X$34 -> 0-2 | O59: =Canisius!$Y$34 -> 0-4 | P59: =Canisius!$Z$34 -> 4-2 | Q59: MAAC
A60: Sacred Heart | B60: =VLOOKUP(A60,Sheet1!A:M,10,FALSE) -> 0.125 | C60: ='Sacred Heart'!$R$34 -> 0.5455298225 | D60: ='Sacred Heart'!$S$34 -> 0.4700835634 | E60: 0.4215358021 | F60: 57 | G60: ='Sacred Heart'!$T$34 -> 21.1 | H60: 30 | I60: ='Sacred Heart'!$AC$7 -> 2-14 | J60: =VLOOKUP(Q60,Conferences!A:G,7,FALSE) -> 8 | K60: ='Sacred Heart'!$AC$8 -> 0-6 | L60: ='Sacred Heart'!$U$34 -> 1-8 | M60: ='Sacred Heart'!$W$34 -> 0-2 | N60: ='Sacred Heart'!$X$34 -> 0-4 | O60: ='Sacred Heart'!$Y$34 -> 0-6 | P60: ='Sacred Heart'!$Z$34 -> 2-2 | Q60: Northeast
A61: Monmouth | B61: =VLOOKUP(A61,Sheet1!A:M,10,FALSE) -> 0.5 | C61: =Monmouth!$R$34 -> 0.3635245707 | D61: =Monmouth!$S$34 -> 0.4291022139 | E61: 0.4140378388 | F61: 58 | G61: =Monmouth!$T$34 -> 45.3 | H61: 69 | I61: =Monmouth!$AC$7 -> 7-7 | J61: =VLOOKUP(Q61,Conferences!A:G,7,FALSE) -> 10 | K61: =Monmouth!$AC$8 -> 3-4 | L61: =Monmouth!$U$34 -> 6-0 | M61: =Monmouth!$W$34 -> 0-0 | N61: =Monmouth!$X$34 -> 0-2 | O61: =Monmouth!$Y$34 -> 0-3 | P61: =Monmouth!$Z$34 -> 7-2 | Q61: MAAC
A62: Detroit | B62: =VLOOKUP(A62,Sheet1!A:M,10,FALSE) -> 0.1666666667 | C62: =Detroit!$R$34 -> 0.4818614392 | D62: =Detroit!$S$34 -> 0.4732039673 | E62: 0.4008983781 | F62: 59 | G62: =Detroit!$T$34 -> 33.3 | H62: 59 | I62: =Detroit!$AC$7 -> 2-10 | J62: =VLOOKUP(Q62,Conferences!A:G,7,FALSE) -> 10 | K62: =Detroit!$AC$8 -> 2-4 | L62: =Detroit!$U$34 -> 2-4 | M62: =Detroit!$W$34 -> 0-1 | N62: =Detroit!$X$34 -> 0-3 | O62: =Detroit!$Y$34 -> 0-3 | P62: =Detroit!$Z$34 -> 2-3 | Q62: MAAC
A63: Furman | B63: =VLOOKUP(A63,Sheet1!A:M,10,FALSE) -> 0.1538461538 | C63: =Furman!$R$34 -> 0.4799305521 | D63: =Furman!$S$34 -> 0.4788745836 | E63: 0.3981454604 | F63: 60 | G63: =Furman!$T$34 -> 28.1 | H63: 50 | I63: =Furman!$AC$7 -> 2-11 | J63: =VLOOKUP(Q63,Conferences!A:G,7,FALSE) -> 9 | K63: =Furman!$AC$8 -> 2-5 | L63: =Furman!$U$34 -> 1-6 | M63: =Furman!$W$34 -> 0-1 | N63: =Furman!$X$34 -> 0-4 | O63: =Furman!$Y$34 -> 0-5 | P63: =Furman!$Z$34 -> 2-1 | Q63: Southern
A64: Siena | B64: =VLOOKUP(A64,Sheet1!A:M,10,FALSE) -> 0.2307692308 | C64: =Siena!$R$34 -> 0.4342713847 | D64: =Siena!$S$34 -> 0.4692735836 | E64: 0.392146396 | F64: 61 | G64: =Siena!$T$34 -> 36.4 | H64: 64 | I64: =Siena!$AC$7 -> 3-10 | J64: =VLOOKUP(Q64,Conferences!A:G,7,FALSE) -> 10 | K64: =Siena!$AC$8 -> 2-4 | L64: =Siena!$U$34 -> 2-6 | M64: =Siena!$W$34 -> 0-2 | N64: =Siena!$X$34 -> 0-1 | O64: =Siena!$Y$34 -> 0-3 | P64: =Siena!$Z$34 -> 3-4 | Q64: MAAC
A65: Lafayette | B65: =VLOOKUP(A65,Sheet1!A:M,10,FALSE) -> 0.2142857143 | C65: =Lafayette!$R$34 -> 0.4159013605 | D65: =Lafayette!$S$34 -> 0.4827286153 | E65: 0.3822042627 | F65: 62 | G65: =Lafayette!$T$34 -> 31.9 | H65: 56 | I65: =Lafayette!$AC$7 -> 3-11 | J65: =VLOOKUP(Q65,Conferences!A:G,7,FALSE) -> 6 | K65: =Lafayette!$AC$8 -> 0-8 | L65: =Lafayette!$U$34 -> 1-5 | M65: =Lafayette!$W$34 -> 0-1 | N65: =Lafayette!$X$34 -> 0-2 | O65: =Lafayette!$Y$34 -> 0-6 | P65: =Lafayette!$Z$34 -> 3-2 | Q65: Patriot
A66: Lowell | B66: =VLOOKUP(A66,Sheet1!A:M,10,FALSE) -> 0.25 | C66: =Lowell!$R$34 -> 0.3970554568 | D66: =Lowell!$S$34 -> 0.4634780766 | E66: 0.3768972476 | F66: 63 | G66: =Lowell!$T$34 -> 31.5 | H66: 55 | I66: =Lowell!$AC$7 -> 4-12 | J66: =VLOOKUP(Q66,Conferences!A:G,7,FALSE) -> 7 | K66: =Lowell!$AC$8 -> 0-6 | L66: =Lowell!$U$34 -> 1-7 | M66: =Lowell!$W$34 -> 0-2 | N66: =Lowell!$X$34 -> 0-2 | O66: =Lowell!$Y$34 -> 0-4 | P66: =Lowell!$Z$34 -> 4-4 | Q66: America East
A67: Manhattan | B67: =VLOOKUP(A67,Sheet1!A:M,10,FALSE) -> 0.2 | C67: =Manhattan!$R$34 -> 0.419941627 | D67: =Manhattan!$S$34 -> 0.4524392664 | E67: 0.3730806301 | F67: 64 | G67: =Manhattan!$T$34 -> 35.2 | H67: 63 | I67: =Manhattan!$AC$7 -> 3-12 | J67: =VLOOKUP(Q67,Conferences!A:G,7,FALSE) -> 10 | K67: =Manhattan!$AC$8 -> 1-5 | L67: =Manhattan!$U$34 -> 2-6 | M67: =Manhattan!$W$34 -> 0-0 | N67: =Manhattan!$X$34 -> 0-3 | O67: =Manhattan!$Y$34 -> 1-4 | P67: =Manhattan!$Z$34 -> 2-5 | Q67: MAAC
A68: Jacksonville | B68: =VLOOKUP(A68,Sheet1!A:M,10,FALSE) -> 0.2307692308 | C68: =Jacksonville!$R$34 -> 0.3935764148 | D68: =Jacksonville!$S$34 -> 0.4693181203 | E68: =(0.25*B68)+(0.5*C68)+(0.25*D68) -> 0.3718100452 | F68: =RANK(E68,$E$4:$E$73) -> 65 | G68: =Jacksonville!$T$34 -> 38.3 | H68: =RANK(G68,$G$4:$G$73,1) -> 65 | I68: =Jacksonville!$AC$7 -> 3-10 | J68: =VLOOKUP(Q68,Conferences!A:G,7,FALSE) -> 9 | K68: =Jacksonville!$AC$8 -> 1-6 | L68: =Jacksonville!$U$34 -> 1-5 | M68: =Jacksonville!$W$34 -> 0-1 | N68: =Jacksonville!$X$34 -> 0-2 | O68: =Jacksonville!$Y$34 -> 0-3 | P68: =Jacksonville!$Z$34 -> 3-4 | Q68: Southern
A69: Wagner | B69: =VLOOKUP(A69,Sheet1!A:M,10,FALSE) -> 0.4 | C69: =Wagner!$R$34 -> 0.3242155067 | D69: =Wagner!$S$34 -> 0.4314868306 | E69: 0.369979461 | F69: 66 | G69: =Wagner!$T$34 -> 43.1 | H69: 68 | I69: =Wagner!$AC$7 -> 6-9 | J69: =VLOOKUP(Q69,Conferences!A:G,7,FALSE) -> 8 | K69: =Wagner!$AC$8 -> 1-5 | L69: =Wagner!$U$34 -> 3-3 | M69: =Wagner!$W$34 -> 0-0 | N69: =Wagner!$X$34 -> 0-2 | O69: =Wagner!$Y$34 -> 0-4 | P69: =Wagner!$Z$34 -> 6-3 | Q69: Northeast
A70: Dartmouth | B70: =VLOOKUP(A70,Sheet1!A:M,10,FALSE) -> 0.07142857143 | C70: =Dartmouth!$R$34 -> 0.4568827531 | D70: =Dartmouth!$S$34 -> 0.4850182486 | E70: 0.3675530816 | F70: 67 | G70: =Dartmouth!$T$34 -> 24.9 | H70: 42 | I70: =Dartmouth!$AC$7 -> 1-13 | J70: =VLOOKUP(Q70,Conferences!A:G,7,FALSE) -> 3 | K70: =Dartmouth!$AC$8 -> 0-6 | L70: =Dartmouth!$U$34 -> 1-7 | M70: =Dartmouth!$W$34 -> 0-3 | N70: =Dartmouth!$X$34 -> 0-2 | O70: =Dartmouth!$Y$34 -> 1-3 | P70: =Dartmouth!$Z$34 -> 0-5 | Q70: Ivy
A71: VMI | B71: =VLOOKUP(A71,Sheet1!A:M,10,FALSE) -> 0.125 | C71: =VMI!$R$34 -> 0.3929340727 | D71: =VMI!$S$34 -> 0.4349694015 | E71: 0.3364593867 | F71: 68 | G71: =VMI!$T$34 -> 34.4 | H71: 61 | I71: =VMI!$AC$7 -> 2-14 | J71: =VLOOKUP(Q71,Conferences!A:G,7,FALSE) -> 9 | K71: =VMI!$AC$8 -> 0-7 | L71: =VMI!$U$34 -> 0-9 | M71: =VMI!$W$34 -> 0-0 | N71: =VMI!$X$34 -> 0-2 | O71: =VMI!$Y$34 -> 0-7 | P71: =VMI!$Z$34 -> 2-5 | Q71: Southern
A72: NJIT | B72: =VLOOKUP(A72,Sheet1!A:M,10,FALSE) -> 0.06666666667 | C72: =NJIT!$R$34 -> 0.3811141636 | D72: =NJIT!$S$34 -> 0.4371372702 | E72: 0.316508066 | F72: 69 | G72: =NJIT!$T$34 -> 40 | H72: 66 | I72: =NJIT!$AC$7 -> 1-14 | J72: =VLOOKUP(Q72,Conferences!A:G,7,FALSE) -> 11 | K72: =NJIT!$AC$8 -> 0-0 | L72: =NJIT!$U$34 -> 1-9 | M72: =NJIT!$W$34 -> 0-0 | N72: =NJIT!$X$34 -> 0-2 | O72: =NJIT!$Y$34 -> 0-5 | P72: =NJIT!$Z$34 -> 1-7 | Q72: Independent
A73: Hampton | B73: =VLOOKUP(A73,Sheet1!A:M,10,FALSE) -> 0 | C73: =Hampton!$R$34 -> 0.2119047619 | D73: =Hampton!$S$34 -> 0.3585747897 | E73: 0.1955960784 | F73: 70 | G73: =Hampton!$T$34 -> 67 | H73: 70 | I73: =Hampton!$AC$7 -> 0-2 | J73: =VLOOKUP(Q73,Conferences!A:G,7,FALSE) -> 11 | K73: =Hampton!$AC$8 -> 0-0 | L73: =Hampton!$U$34 -> 0-1 | M73: =Hampton!$W$34 -> 0-0 | N73: =Hampton!$X$34 -> 0-0 | O73: =Hampton!$Y$34 -> 0-0 | P73: =Hampton!$Z$34 -> 0-2 | Q73: Independent

Sheet Conferences (hidden)
A1: League | B1: Avg. SRS | C1: Rank | D1: Avg. Rank | E1: Rank | F1: Avg. RPI | G1: Rank
A2: ACC | B2: =AVERAGEIF(Sheet1!$M:$M,A2,Sheet1!D:D) -> 4.149403524 | C2: =RANK(B2,$B$2:$B$12) -> 1 | D2: =AVERAGEIF(Sheet1!$M:$M,A2,Sheet1!E:E) -> 9.6 | E2: =RANK(D2,$D$2:$D$12,1) -> 1 | F2: =AVERAGEIF('RPI Nitty Gritty Report'!$Q:$Q,A2,'RPI Nitty Gritty Report'!$E:$E) -> 0.584660687 | G2: =RANK(F2,$F$2:$F$12,0) -> 1
A3: America East | B3: =AVERAGEIF(Sheet1!$M:$M,A3,Sheet1!D:D) -> -0.541302254 | C3: 7 | D3: =AVERAGEIF(Sheet1!$M:$M,A3,Sheet1!E:E) -> 38 | E3: 7 | F3: =AVERAGEIF('RPI Nitty Gritty Report'!$Q:$Q,A3,'RPI Nitty Gritty Report'!$E:$E) -> 0.481607358 | G3: 7
A4: Big East | B4: =AVERAGEIF(Sheet1!$M:$M,A4,Sheet1!D:D) -> 1.121138471 | C4: 4 | D4: =AVERAGEIF(Sheet1!$M:$M,A4,Sheet1!E:E) -> 28.33333333 | E4: 4 | F4: =AVERAGEIF('RPI Nitty Gritty Report'!$Q:$Q,A4,'RPI Nitty Gritty Report'!$E:$E) -> 0.5199822183 | G4: 4
A5: Big Ten | B5: =AVERAGEIF(Sheet1!$M:$M,A5,Sheet1!D:D) -> 2.32756849 | C5: 2 | D5: =AVERAGEIF(Sheet1!$M:$M,A5,Sheet1!E:E) -> 21.5 | E5: 2 | F5: =AVERAGEIF('RPI Nitty Gritty Report'!$Q:$Q,A5,'RPI Nitty Gritty Report'!$E:$E) -> 0.5516185651 | G5: 2
A6: CAA | B6: =AVERAGEIF(Sheet1!$M:$M,A6,Sheet1!D:D) -> 0.8026748042 | C6: 5 | D6: =AVERAGEIF(Sheet1!$M:$M,A6,Sheet1!E:E) -> 30.16666667 | E6: 5 | F6: =AVERAGEIF('RPI Nitty Gritty Report'!$Q:$Q,A6,'RPI Nitty Gritty Report'!$E:$E) -> 0.514400581 | G6: 5
A7: Independent | B7: =AVERAGEIF(Sheet1!$M:$M,A7,Sheet1!D:D) -> -13.25339497 | C7: 11 | D7: =AVERAGEIF(Sheet1!$M:$M,A7,Sheet1!E:E) -> 69 | E7: 11 | F7: =AVERAGEIF('RPI Nitty Gritty Report'!$Q:$Q,A7,'RPI Nitty Gritty Report'!$E:$E) -> 0.2560520722 | G7: 11
A8: Ivy | B8: =AVERAGEIF(Sheet1!$M:$M,A8,Sheet1!D:D) -> 1.7008035 | C8: 3 | D8: =AVERAGEIF(Sheet1!$M:$M,A8,Sheet1!E:E) -> 25.57142857 | E8: 3 | F8: =AVERAGEIF('RPI Nitty Gritty Report'!$Q:$Q,A8,'RPI Nitty Gritty Report'!$E:$E) -> 0.5255890281 | G8: 3
A9: MAAC | B9: =AVERAGEIF(Sheet1!$M:$M,A9,Sheet1!D:D) -> -3.390805798 | C9: 10 | D9: =AVERAGEIF(Sheet1!$M:$M,A9,Sheet1!E:E) -> 53.71428571 | E9: 10 | F9: =AVERAGEIF('RPI Nitty Gritty Report'!$Q:$Q,A9,'RPI Nitty Gritty Report'!$E:$E) -> 0.4344266198 | G9: 10
A10: Northeast | B10: =AVERAGEIF(Sheet1!$M:$M,A10,Sheet1!D:D) -> -1.546893947 | C10: 8 | D10: =AVERAGEIF(Sheet1!$M:$M,A10,Sheet1!E:E) -> 43.42857143 | E10: 8 | F10: =AVERAGEIF('RPI Nitty Gritty Report'!$Q:$Q,A10,'RPI Nitty Gritty Report'!$E:$E) -> 0.4730694136 | G10: 8
A11: Patriot | B11: =AVERAGEIF(Sheet1!$M:$M,A11,Sheet1!D:D) -> 0.3623432626 | C11: 6 | D11: =AVERAGEIF(Sheet1!$M:$M,A11,Sheet1!E:E) -> 32.66666667 | E11: 6 | F11: =AVERAGEIF('RPI Nitty Gritty Report'!$Q:$Q,A11,'RPI Nitty Gritty Report'!$E:$E) -> 0.5009830789 | G11: 6
A12: Southern | B12: =AVERAGEIF(Sheet1!$M:$M,A12,Sheet1!D:D) -> -3.166956019 | C12: 9 | D12: =AVERAGEIF(Sheet1!$M:$M,A12,Sheet1!E:E) -> 50 | E12: 9 | F12: =AVERAGEIF('RPI Nitty Gritty Report'!$Q:$Q,A12,'RPI Nitty Gritty Report'!$E:$E) -> 0.4558860991 | G12: 9

Sheet Air Force
A1: Team: | B1: Air Force
A2: Season: | B2: 2016
A3: Conference: | B3: Southern
A5: 2016 Schedule | AB5: TEAM PROFILE
A7: Opponent | B7: =B1 -> Air Force | C7: Opponent | D7: Win | E7: Loss | F7: Site | G7: Pred. Spread | H7: Win Prob. % | I7: Opp. SRS Ranking | L7: Neutral | M7: Away | N7: Home | O7: League | P7: Opp.GF | Q7: Opp.GA | R7: Opp. Rec | S7: Opp Opp Rec | T7: OPP. RPI | U7: Road Record | V7: RPI Rank | W7: 2016-01-10 | X7: 2016-11-25 | Y7: 26-50 | Z7: 51-69 | AB7: All Record: | AC7: =(COUNTIF(D8:D33,"W")&"-"&(COUNTIF(E8:E33,"L"))) -> 15-3
A8: Navy | B8: 6 | C8: 10 | D8: =IF(B8>0, IF(B8>C8,"W",0),0) -> 0 | E8: =IF(C8>0, IF(C8>B8,"L",0),0) -> L | F8: A | G8: =IF(F8="N",L8,IF(F8="A",M8,N8)) -> 4 | H8: =NORMDIST(0,G8,Games!$C$539,TRUE) -> 0.1351253462 | I8: =VLOOKUP(A8,Sheet1!A:K,5,FALSE) -> 12 | J8: =IF(K8<>0,IF(H8>0.5,"W","L"),"#N/A") -> L | K8: =B8-C8 -> -4 | L8: =ROUND(((VLOOKUP(A8,Sheet1!$A:$J,4,FALSE))-(VLOOKUP($B$1,Sheet1!$A:$J,4,FALSE)))/0.5,0)*0.5 -> 3 | M8: =ROUND(((VLOOKUP(A8,Sheet1!$A:$J,4,FALSE))-(VLOOKUP($B$1,Sheet1!$A:$J,4,FALSE))+Games!$C$542)/0.5,0)*0.5 -> 4 | N8: =ROUND(((VLOOKUP(A8,Sheet1!$A:$J,4,FALSE))-(VLOOKUP($B$1,Sheet1!$A:$J,4,FALSE))-Games!$C$542)/0.5,0)*0.5 -> 1.5 | O8: =VLOOKUP(A8,Sheet1!$A:$M,13,FALSE) -> Patriot | P8: =IF(K8<>0,VLOOKUP(A8,Sheet1!A:H,7,FALSE),"#N/A") -> 9.875 | Q8: =IF(K8<>0,VLOOKUP(A8,Sheet1!A:H,8,FALSE),"#N/A") -> 7.375 | R8: =IF(K8<>0,((COUNTIFS(Games!A:A,A8,Games!F:F,"W")+COUNTIFS(Games!B:B,A8,Games!F:F,"L")-COUNTIFS(Games!A:A,A8,Games!B:B,$B$1,Games!F:F,"W")-COUNTIFS(Games!$B:$B,A8,Games!$A:$A,$B$1,Games!F:F,"L"))/(COUNTIFS(Games!A:A,A8)+COUNTIF(Games!B:B,A8)-COUNTIFS(Games!A:A,A8,Games!B:B,$B$1)-COUNTIFS(Games!B:B,A8,Games!A:A,$B$1))),"#DIV/0!") -> 0.6666666667 | S8: =VLOOKUP(A8,'RPI Nitty Gritty Report'!A:C,3,FALSE) -> 0.5653896655 | T8: =IF(K8<>0,VLOOKUP(A8,'RPI Nitty Gritty Report'!A:F,6,FALSE),"#N/A") -> 13 | V8: =IF(K8<>0,VLOOKUP(A8,'RPI Nitty Gritty Report'!$A:$P,6,FALSE),"#N/A") -> 13 | W8: =IF(AND(V8>0,V8<11),IF(K8<>"#N/A","YES","NO")) -> FALSE | X8: =IF(AND(V8>10,V8<26),IF(K8<>"#N/A","YES","NO")) -> YES | Y8: =IF(AND(V8>25,V8<51),IF(K8<>"#N/A","YES","NO")) -> FALSE | Z8: =IF(AND(V8>50,V8<71),IF(K8<>"#N/A","YES","NO")) -> FALSE | AB8: Conf. Record: | AC8: =(COUNTIFS(D8:D33,"W",O8:O33,B3)&"-"&(COUNTIFS(E8:E33,"L",O8:O33,B3))) -> 9-0
A9: Denver | B9: 9 | C9: 10 | D9: =IF(B9>0, IF(B9>C9,"W",0),0) -> 0 | E9: =IF(C9>0, IF(C9>B9,"L",0),0) -> L | F9: H | G9: =IF(F9="N",L9,IF(F9="A",M9,N9)) -> 3 | H9: =NORMDIST(0,G9,Games!$C$539,TRUE) -> 0.204157056 | I9: =VLOOKUP(A9,Sheet1!A:K,5,FALSE) -> 4 | J9: L | K9: =B9-C9 -> -1 | L9: =ROUND(((VLOOKUP(A9,Sheet1!$A:$J,4,FALSE))-(VLOOKUP($B$1,Sheet1!$A:$J,4,FALSE)))/0.5,0)*0.5 -> 4.5 | M9: =ROUND(((VLOOKUP(A9,Sheet1!$A:$J,4,FALSE))-(VLOOKUP($B$1,Sheet1!$A:$J,4,FALSE))+Games!$C$542)/0.5,0)*0.5 -> 5.5 | N9: =ROUND(((VLOOKUP(A9,Sheet1!$A:$J,4,FALSE))-(VLOOKUP($B$1,Sheet1!$A:$J,4,FALSE))-Games!$C$542)/0.5,0)*0.5 -> 3 | O9: =VLOOKUP(A9,Sheet1!$A:$M,13,FALSE) -> Big East | P9: =IF(K9<>0,VLOOKUP(A9,Sheet1!A:H,7,FALSE),"#N/A") -> 13.5625 | Q9: =IF(K9<>0,VLOOKUP(A9,Sheet1!A:H,8,FALSE),"#N/A") -> 9.125 | R9: =IF(K9<>0,((COUNTIFS(Games!A:A,A9,Games!F:F,"W")+COUNTIFS(Games!B:B,A9,Games!F:F,"L")-COUNTIFS(Games!A:A,A9,Games!B:B,$B$1,Games!F:F,"W")-COUNTIFS(Games!$B:$B,A9,Games!$A:$A,$B$1,Games!F:F,"L"))/(COUNTIFS(Games!A:A,A9)+COUNTIF(Games!B:B,A9)-COUNTIFS(Games!A:A,A9,Games!B:B,$B$1)-COUNTIFS(Games!B:B,A9,Games!A:A,$B$1))),"#DIV/0!") -> 0.8 | S9: =VLOOKUP(A9,'RPI Nitty Gritty Report'!A:C,3,FALSE) -> 0.5261253861 | T9: =IF(K9<>0,VLOOKUP(A9,'RPI Nitty Gritty Report'!A:F,6,FALSE),"#N/A") -> 6 | V9: =IF(K9<>0,VLOOKUP(A9,'RPI Nitty Gritty Report'!$A:$P,6,FALSE),"#N/A") -> 6 | W9: YES | X9: =IF(AND(V9>10,V9<26),IF(K9<>"#N/A","YES","NO")) -> FALSE | Y9: =IF(AND(V9>25,V9<51),IF(K9<>"#N/A","YES","NO")) -> FALSE | Z9: =IF(AND(V9>50,V9<71),IF(K9<>"#N/A","YES","NO")) -> FALSE | AB9: SRS Value: | AC9: =VLOOKUP(B1,Sheet1!$A:$L,4,FALSE) -> 0.8520259553
A10: Marist | B10: 7 | C10: 6 | D10: W | E10: 0 | F10: A | G10: -1 | H10: =NORMDIST(0,G10,Games!$C$539,TRUE) -> 0.6085805474 | I10: =VLOOKUP(A10,Sheet1!A:K,5,FALSE) -> 44 | J10: W | K10: 1 | L10: =ROUND(((VLOOKUP(A10,Sheet1!$A:$J,4,FALSE))-(VLOOKUP($B$1,Sheet1!$A:$J,4,FALSE)))/0.5,0)*0.5 -> -2 | M10: =ROUND(((VLOOKUP(A10,Sheet1!$A:$J,4,FALSE))-(VLOOKUP($B$1,Sheet1!$A:$J,4,FALSE))+Games!$C$542)/0.5,0)*0.5 -> -1 | N10: =ROUND(((VLOOKUP(A10,Sheet1!$A:$J,4,FALSE))-(VLOOKUP($B$1,Sheet1!$A:$J,4,FALSE))-Games!$C$542)/0.5,0)*0.5 -> -3.5 | O10: =VLOOKUP(A10,Sheet1!$A:$M,13,FALSE) -> MAAC | P10: =IF(K10<>0,VLOOKUP(A10,Sheet1!A:H,7,FALSE),"#N/A") -> 9.625 | Q10: =IF(K10<>0,VLOOKUP(A10,Sheet1!A:H,8,FALSE),"#N/A") -> 8.5625 | R10: =IF(K10<>0,((COUNTIFS(Games!A:A,A10,Games!F:F,"W")+COUNTIFS(Games!B:B,A10,Games!F:F,"L")-COUNTIFS(Games!A:A,A10,Games!B:B,$B$1,Games!F:F,"W")-COUNTIFS(Games!$B:$B,A10,Games!$A:$A,$B$1,Games!F:F,"L"))/(COUNTIFS(Games!A:A,A10)+COUNTIF(Games!B:B,A10)-COUNTIFS(Games!A:A,A10,Games!B:B,$B$1)-COUNTIFS(Games!B:B,A10,Games!A:A,$B$1))),"#DIV/0!") -> 0.6 | S10: =VLOOKUP(A10,'RPI Nitty Gritty Report'!A:C,3,FALSE) -> 0.4485395732 | T10: =IF(K10<>0,VLOOKUP(A10,'RPI Nitty Gritty Report'!A:F,6,FALSE),"#N/A") -> 42 | V10: =IF(K10<>0,VLOOKUP(A10,'RPI Nitty Gritty Report'!$A:$P,6,FALSE),"#N/A") -> 42 | W10: FALSE | X10: FALSE | Y10: YES | Z10: FALSE | AB10: SRS Ranking (NCAA): | AC10: =VLOOKUP(B1,Sheet1!A:J,5,FALSE) -> 29
A11: Dartmouth | B11: 9 | C11: 3 | D11: W | E11: 0 | F11: N | G11: -6.5 | H11: =NORMDIST(0,G11,Games!$C$539,TRUE) -> 0.963396564 | I11: =VLOOKUP(A11,Sheet1!A:K,5,FALSE) -> 65 | J11: W | K11: 6 | L11: =ROUND(((VLOOKUP(A11,Sheet1!$A:$J,4,FALSE))-(VLOOKUP($B$1,Sheet1!$A:$J,4,FALSE)))/0.5,0)*0.5 -> -6.5 | M11: =ROUND(((VLOOKUP(A11,Sheet1!$A:$J,4,FALSE))-(VLOOKUP($B$1,Sheet1!$A:$J,4,FALSE))+Games!$C$542)/0.5,0)*0.5 -> -5.5 | N11: =ROUND(((VLOOKUP(A11,Sheet1!$A:$J,4,FALSE))-(VLOOKUP($B$1,Sheet1!$A:$J,4,FALSE))-Games!$C$542)/0.5,0)*0.5 -> -8 | O11: =VLOOKUP(A11,Sheet1!$A:$M,13,FALSE) -> Ivy | P11: =IF(K11<>0,VLOOKUP(A11,Sheet1!A:H,7,FALSE),"#N/A") -> 6.357142857 | Q11: =IF(K11<>0,VLOOKUP(A11,Sheet1!A:H,8,FALSE),"#N/A") -> 12.57142857 | R11: =IF(K11<>0,((COUNTIFS(Games!A:A,A11,Games!F:F,"W")+COUNTIFS(Games!B:B,A11,Games!F:F,"L")-COUNTIFS(Games!A:A,A11,Games!B:B,$B$1,Games!F:F,"W")-COUNTIFS(Games!$B:$B,A11,Games!$A:$A,$B$1,Games!F:F,"L"))/(COUNTIFS(Games!A:A,A11)+COUNTIF(Games!B:B,A11)-COUNTIFS(Games!A:A,A11,Games!B:B,$B$1)-COUNTIFS(Games!B:B,A11,Games!A:A,$B$1))),"#DIV/0!") -> 0.07692307692 | S11: =VLOOKUP(A11,'RPI Nitty Gritty Report'!A:C,3,FALSE) -> 0.4568827531 | T11: =IF(K11<>0,VLOOKUP(A11,'RPI Nitty Gritty Report'!A:F,6,FALSE),"#N/A") -> 67 | V11: =IF(K11<>0,VLOOKUP(A11,'RPI Nitty Gritty Report'!$A:$P,6,FALSE),"#N/A") -> 67 | W11: FALSE | X11: FALSE | Y11: FALSE | Z11: YES | AB11: SRS Ranking (Conf.): | AC11: =1+SUMPRODUCT((Sheet1!M2:M71=B3)*(Sheet1!E2:E71<AC10)) -> 1
A12: Sacred Heart | B12: 13 | C12: 10 | D12: W | E12: 0 | F12: N | G12: -5 | H12: =NORMDIST(0,G12,Games!$C$539,TRUE) -> 0.9159148385 | I12: =VLOOKUP(A12,Sheet1!A:K,5,FALSE) -> 58 | J12: W | K12: 3 | L12: =ROUND(((VLOOKUP(A12,Sheet1!$A:$J,4,FALSE))-(VLOOKUP($B$1,Sheet1!$A:$J,4,FALSE)))/0.5,0)*0.5 -> -5 | M12: =ROUND(((VLOOKUP(A12,Sheet1!$A:$J,4,FALSE))-(VLOOKUP($B$1,Sheet1!$A:$J,4,FALSE))+Games!$C$542)/0.5,0)*0.5 -> -4 | N12: =ROUND(((VLOOKUP(A12,Sheet1!$A:$J,4,FALSE))-(VLOOKUP($B$1,Sheet1!$A:$J,4,FALSE))-Games!$C$542)/0.5,0)*0.5 -> -6.5 | O12: =VLOOKUP(A12,Sheet1!$A:$M,13,FALSE) -> Northeast | P12: =IF(K12<>0,VLOOKUP(A12,Sheet1!A:H,7,FALSE),"#N/A") -> 7.8125 | Q12: =IF(K12<>0,VLOOKUP(A12,Sheet1!A:H,8,FALSE),"#N/A") -> 12.5625 | R12: =IF(K12<>0,((COUNTIFS(Games!A:A,A12,Games!F:F,"W")+COUNTIFS(Games!B:B,A12,Games!F:F,"L")-COUNTIFS(Games!A:A,A12,Games!B:B,$B$1,Games!F:F,"W")-COUNTIFS(Games!$B:$B,A12,Games!$A:$A,$B$1,Games!F:F,"L"))/(COUNTIFS(Games!A:A,A12)+COUNTIF(Games!B:B,A12)-COUNTIFS(Games!A:A,A12,Games!B:B,$B$1)-COUNTIFS(Games!B:B,A12,Games!A:A,$B$1))),"#DIV/0!") -> 0.1333333333 | S12: =VLOOKUP(A12,'RPI Nitty Gritty Report'!A:C,3,FALSE) -> 0.5455298225 | T12: =IF(K12<>0,VLOOKUP(A12,'RPI Nitty Gritty Report'!A:F,6,FALSE),"#N/A") -> 57 | V12: =IF(K12<>0,VLOOKUP(A12,'RPI Nitty Gritty Report'!$A:$P,6,FALSE),"#N/A") -> 57 | W12: FALSE | X12: FALSE | Y12: FALSE | Z12: YES | AB12: SRS SoS Value: | AC12: =VLOOKUP(B1,Sheet1!$A:$L,3,FALSE) -> -1.481307378
A13: Robert Morris | B13: 11 | C13: 10 | D13: W | E13: 0 | F13: A | G13: -1 | H13: =NORMDIST(0,G13,Games!$C$539,TRUE) -> 0.6085805474 | I13: =VLOOKUP(A13,Sheet1!A:K,5,FALSE) -> 43 | J13: W | K13: 1 | L13: =ROUND(((VLOOKUP(A13,Sheet1!$A:$J,4,FALSE))-(VLOOKUP($B$1,Sheet1!$A:$J,4,FALSE)))/0.5,0)*0.5 -> -2 | M13: =ROUND(((VLOOKUP(A13,Sheet1!$A:$J,4,FALSE))-(VLOOKUP($B$1,Sheet1!$A:$J,4,FALSE))+Games!$C$542)/0.5,0)*0.5 -> -1 | N13: =ROUND(((VLOOKUP(A13,Sheet1!$A:$J,4,FALSE))-(VLOOKUP($B$1,Sheet1!$A:$J,4,FALSE))-Games!$C$542)/0.5,0)*0.5 -> -3.5 | O13: =VLOOKUP(A13,Sheet1!$A:$M,13,FALSE) -> Northeast | P13: =IF(K13<>0,VLOOKUP(A13,Sheet1!A:H,7,FALSE),"#N/A") -> 11.33333333 | Q13: =IF(K13<>0,VLOOKUP(A13,Sheet1!A:H,8,FALSE),"#N/A") -> 11.4 | R13: =IF(K13<>0,((COUNTIFS(Games!A:A,A13,Games!F:F,"W")+COUNTIFS(Games!B:B,A13,Games!F:F,"L")-COUNTIFS(Games!A:A,A13,Games!B:B,$B$1,Games!F:F,"W")-COUNTIFS(Games!$B:$B,A13,Games!$A:$A,$B$1,Games!F:F,"L"))/(COUNTIFS(Games!A:A,A13)+COUNTIF(Games!B:B,A13)-COUNTIFS(Games!A:A,A13,Games!B:B,$B$1)-COUNTIFS(Games!B:B,A13,Games!A:A,$B$1))),"#DIV/0!") -> 0.5 | S13: =VLOOKUP(A13,'RPI Nitty Gritty Report'!A:C,3,FALSE) -> 0.5142390126 | T13: =IF(K13<>0,VLOOKUP(A13,'RPI Nitty Gritty Report'!A:F,6,FALSE),"#N/A") -> 40 | V13: =IF(K13<>0,VLOOKUP(A13,'RPI Nitty Gritty Report'!$A:$P,6,FALSE),"#N/A") -> 40 | W13: FALSE | X13: FALSE | Y13: YES | Z13: FALSE | AB13: SRS SoS Ranking (NCAA): | AC13: =VLOOKUP(B1,Sheet1!A:J,6,FALSE) -> 55
A14: Furman | B14: 14 | C14: 4 | D14: W | E14: 0 | F14: H | G14: -6.5 | H14: =NORMDIST(0,G14,Games!$C$539,TRUE) -> 0.963396564 | I14: =VLOOKUP(A14,Sheet1!A:K,5,FALSE) -> 59 | J14: W | K14: 10 | L14: =ROUND(((VLOOKUP(A14,Sheet1!$A:$J,4,FALSE))-(VLOOKUP($B$1,Sheet1!$A:$J,4,FALSE)))/0.5,0)*0.5 -> -5.5 | M14: =ROUND(((VLOOKUP(A14,Sheet1!$A:$J,4,FALSE))-(VLOOKUP($B$1,Sheet1!$A:$J,4,FALSE))+Games!$C$542)/0.5,0)*0.5 -> -4 | N14: =ROUND(((VLOOKUP(A14,Sheet1!$A:$J,4,FALSE))-(VLOOKUP($B$1,Sheet1!$A:$J,4,FALSE))-Games!$C$542)/0.5,0)*0.5 -> -6.5 | O14: =VLOOKUP(A14,Sheet1!$A:$M,13,FALSE) -> Southern | P14: =IF(K14<>0,VLOOKUP(A14,Sheet1!A:H,7,FALSE),"#N/A") -> 8 | Q14: =IF(K14<>0,VLOOKUP(A14,Sheet1!A:H,8,FALSE),"#N/A") -> 11.30769231 | R14: =IF(K14<>0,((COUNTIFS(Games!A:A,A14,Games!F:F,"W")+COUNTIFS(Games!B:B,A14,Games!F:F,"L")-COUNTIFS(Games!A:A,A14,Games!B:B,$B$1,Games!F:F,"W")-COUNTIFS(Games!$B:$B,A14,Games!$A:$A,$B$1,Games!F:F,"L"))/(COUNTIFS(Games!A:A,A14)+COUNTIF(Games!B:B,A14)-COUNTIFS(Games!A:A,A14,Games!B:B,$B$1)-COUNTIFS(Games!B:B,A14,Games!A:A,$B$1))),"#DIV/0!") -> 0.1666666667 | S14: =VLOOKUP(A14,'RPI Nitty Gritty Report'!A:C,3,FALSE) -> 0.4799305521 | T14: =IF(K14<>0,VLOOKUP(A14,'RPI Nitty Gritty Report'!A:F,6,FALSE),"#N/A") -> 60 | V14: =IF(K14<>0,VLOOKUP(A14,'RPI Nitty Gritty Report'!$A:$P,6,FALSE),"#N/A") -> 60 | W14: FALSE | X14: FALSE | Y14: FALSE | Z14: YES | AB14: SRS SoS Ranking (Conf.): | AC14: =1+SUMPRODUCT((Sheet1!M2:M71=B3)*(Sheet1!F2:F71<AC13)) -> 5
A15: High Point | B15: 13 | C15: 4 | D15: W | E15: 0 | F15: H | G15: -3.5 | H15: =NORMDIST(0,G15,Games!$C$539,TRUE) -> 0.8326461257 | I15: =VLOOKUP(A15,Sheet1!A:K,5,FALSE) -> 42 | J15: W | K15: 9 | L15: =ROUND(((VLOOKUP(A15,Sheet1!$A:$J,4,FALSE))-(VLOOKUP($B$1,Sheet1!$A:$J,4,FALSE)))/0.5,0)*0.5 -> -2 | M15: =ROUND(((VLOOKUP(A15,Sheet1!$A:$J,4,FALSE))-(VLOOKUP($B$1,Sheet1!$A:$J,4,FALSE))+Games!$C$542)/0.5,0)*0.5 -> -0.5 | N15: =ROUND(((VLOOKUP(A15,Sheet1!$A:$J,4,FALSE))-(VLOOKUP($B$1,Sheet1!$A:$J,4,FALSE))-Games!$C$542)/0.5,0)*0.5 -> -3.5 | O15: =VLOOKUP(A15,Sheet1!$A:$M,13,FALSE) -> Southern | P15: =IF(K15<>0,VLOOKUP(A15,Sheet1!A:H,7,FALSE),"#N/A") -> 10.8 | Q15: =IF(K15<>0,VLOOKUP(A15,Sheet1!A:H,8,FALSE),"#N/A") -> 10.8 | R15: =IF(K15<>0,((COUNTIFS(Games!A:A,A15,Games!F:F,"W")+COUNTIFS(Games!B:B,A15,Games!F:F,"L")-COUNTIFS(Games!A:A,A15,Games!B:B,$B$1,Games!F:F,"W")-COUNTIFS(Games!$B:$B,A15,Games!$A:$A,$B$1,Games!F:F,"L"))/(COUNTIFS(Games!A:A,A15)+COUNTIF(Games!B:B,A15)-COUNTIFS(Games!A:A,A15,Games!B:B,$B$1)-COUNTIFS(Games!B:B,A15,Games!A:A,$B$1))),"#DIV/0!") -> 0.6428571429 | S15: =VLOOKUP(A15,'RPI Nitty Gritty Report'!A:C,3,FALSE) -> 0.5006037971 | T15: =IF(K15<>0,VLOOKUP(A15,'RPI Nitty Gritty Report'!A:F,6,FALSE),"#N/A") -> 29 | V15: =IF(K15<>0,VLOOKUP(A15,'RPI Nitty Gritty Report'!$A:$P,6,FALSE),"#N/A") -> 29 | W15: FALSE | X15: FALSE | Y15: YES | Z15: FALSE
A16: Duke | B16: 10 | C16: 9 | D16: W | E16: 0 | F16: A | G16: 5 | H16: =NORMDIST(0,G16,Games!$C$539,TRUE) -> 0.0840851615 | I16: =VLOOKUP(A16,Sheet1!A:K,5,FALSE) -> 7 | J16: L | K16: 1 | L16: =ROUND(((VLOOKUP(A16,Sheet1!$A:$J,4,FALSE))-(VLOOKUP($B$1,Sheet1!$A:$J,4,FALSE)))/0.5,0)*0.5 -> 3.5 | M16: =ROUND(((VLOOKUP(A16,Sheet1!$A:$J,4,FALSE))-(VLOOKUP($B$1,Sheet1!$A:$J,4,FALSE))+Games!$C$542)/0.5,0)*0.5 -> 5 | N16: =ROUND(((VLOOKUP(A16,Sheet1!$A:$J,4,FALSE))-(VLOOKUP($B$1,Sheet1!$A:$J,4,FALSE))-Games!$C$542)/0.5,0)*0.5 -> 2.5 | O16: =VLOOKUP(A16,Sheet1!$A:$M,13,FALSE) -> ACC | P16: =IF(K16<>0,VLOOKUP(A16,Sheet1!A:H,7,FALSE),"#N/A") -> 13.36842105 | Q16: =IF(K16<>0,VLOOKUP(A16,Sheet1!A:H,8,FALSE),"#N/A") -> 9.947368421 | R16: =IF(K16<>0,((COUNTIFS(Games!A:A,A16,Games!F:F,"W")+COUNTIFS(Games!B:B,A16,Games!F:F,"L")-COUNTIFS(Games!A:A,A16,Games!B:B,$B$1,Games!F:F,"W")-COUNTIFS(Games!$B:$B,A16,Games!$A:$A,$B$1,Games!F:F,"L"))/(COUNTIFS(Games!A:A,A16)+COUNTIF(Games!B:B,A16)-COUNTIFS(Games!A:A,A16,Games!B:B,$B$1)-COUNTIFS(Games!B:B,A16,Games!A:A,$B$1))),"#DIV/0!") -> 0.6111111111 | S16: =VLOOKUP(A16,'RPI Nitty Gritty Report'!A:C,3,FALSE) -> 0.6206330305 | T16: =IF(K16<>0,VLOOKUP(A16,'RPI Nitty Gritty Report'!A:F,6,FALSE),"#N/A") -> 9 | V16: =IF(K16<>0,VLOOKUP(A16,'RPI Nitty Gritty Report'!$A:$P,6,FALSE),"#N/A") -> 9 | W16: YES | X16: FALSE | Y16: FALSE | Z16: FALSE | AB16: Actual Win % (All): | AC16: =COUNTIF(D8:D33,"W")/(COUNTIF(D8:D33,"W")+(COUNTIF(E8:E33,"L"))) -> 0.8333333333
A17: Detroit | B17: 7 | C17: 5 | D17: W | E17: 0 | F17: A | G17: -4.5 | H17: =NORMDIST(0,G17,Games!$C$539,TRUE) -> 0.8925670529 | I17: =VLOOKUP(A17,Sheet1!A:K,5,FALSE) -> 60 | J17: W | K17: 2 | L17: =ROUND(((VLOOKUP(A17,Sheet1!$A:$J,4,FALSE))-(VLOOKUP($B$1,Sheet1!$A:$J,4,FALSE)))/0.5,0)*0.5 -> -5.5 | M17: =ROUND(((VLOOKUP(A17,Sheet1!$A:$J,4,FALSE))-(VLOOKUP($B$1,Sheet1!$A:$J,4,FALSE))+Games!$C$542)/0.5,0)*0.5 -> -4.5 | N17: =ROUND(((VLOOKUP(A17,Sheet1!$A:$J,4,FALSE))-(VLOOKUP($B$1,Sheet1!$A:$J,4,FALSE))-Games!$C$542)/0.5,0)*0.5 -> -7 | O17: =VLOOKUP(A17,Sheet1!$A:$M,13,FALSE) -> MAAC | P17: =IF(K17<>0,VLOOKUP(A17,Sheet1!A:H,7,FALSE),"#N/A") -> 6.083333333 | Q17: =IF(K17<>0,VLOOKUP(A17,Sheet1!A:H,8,FALSE),"#N/A") -> 9.833333333 | R17: =IF(K17<>0,((COUNTIFS(Games!A:A,A17,Games!F:F,"W")+COUNTIFS(Games!B:B,A17,Games!F:F,"L")-COUNTIFS(Games!A:A,A17,Games!B:B,$B$1,Games!F:F,"W")-COUNTIFS(Games!$B:$B,A17,Games!$A:$A,$B$1,Games!F:F,"L"))/(COUNTIFS(Games!A:A,A17)+COUNTIF(Games!B:B,A17)-COUNTIFS(Games!A:A,A17,Games!B:B,$B$1)-COUNTIFS(Games!B:B,A17,Games!A:A,$B$1))),"#DIV/0!") -> 0.1818181818 | S17: =VLOOKUP(A17,'RPI Nitty Gritty Report'!A:C,3,FALSE) -> 0.4818614392 | T17: =IF(K17<>0,VLOOKUP(A17,'RPI Nitty Gritty Report'!A:F,6,FALSE),"#N/A") -> 59 | V17: =IF(K17<>0,VLOOKUP(A17,'RPI Nitty Gritty Report'!$A:$P,6,FALSE),"#N/A") -> 59 | W17: FALSE | X17: FALSE | Y17: FALSE | Z17: YES | AB17: Expected SRS Win % (All): | AC17: =SUMIFS(H8:H33,H8:H33,"<>N/A",K8:K33,"<>0")/(COUNTIF(K8:K33,"<>0")) -> 0.6340869627
A18: Bellarmine | B18: 8 | C18: 7 | D18: W | E18: 0 | F18: A | G18: -1.5 | H18: =NORMDIST(0,G18,Games!$C$539,TRUE) -> 0.6603549455 | I18: =VLOOKUP(A18,Sheet1!A:K,5,FALSE) -> 48 | J18: W | K18: 1 | L18: =ROUND(((VLOOKUP(A18,Sheet1!$A:$J,4,FALSE))-(VLOOKUP($B$1,Sheet1!$A:$J,4,FALSE)))/0.5,0)*0.5 -> -2.5 | M18: =ROUND(((VLOOKUP(A18,Sheet1!$A:$J,4,FALSE))-(VLOOKUP($B$1,Sheet1!$A:$J,4,FALSE))+Games!$C$542)/0.5,0)*0.5 -> -1.5 | N18: =ROUND(((VLOOKUP(A18,Sheet1!$A:$J,4,FALSE))-(VLOOKUP($B$1,Sheet1!$A:$J,4,FALSE))-Games!$C$542)/0.5,0)*0.5 -> -4 | O18: =VLOOKUP(A18,Sheet1!$A:$M,13,FALSE) -> Southern | P18: =IF(K18<>0,VLOOKUP(A18,Sheet1!A:H,7,FALSE),"#N/A") -> 8.6 | Q18: =IF(K18<>0,VLOOKUP(A18,Sheet1!A:H,8,FALSE),"#N/A") -> 9.133333333 | R18: =IF(K18<>0,((COUNTIFS(Games!A:A,A18,Games!F:F,"W")+COUNTIFS(Games!B:B,A18,Games!F:F,"L")-COUNTIFS(Games!A:A,A18,Games!B:B,$B$1,Games!F:F,"W")-COUNTIFS(Games!$B:$B,A18,Games!$A:$A,$B$1,Games!F:F,"L"))/(COUNTIFS(Games!A:A,A18)+COUNTIF(Games!B:B,A18)-COUNTIFS(Games!A:A,A18,Games!B:B,$B$1)-COUNTIFS(Games!B:B,A18,Games!A:A,$B$1))),"#DIV/0!") -> 0.4615384615 | S18: =VLOOKUP(A18,'RPI Nitty Gritty Report'!A:C,3,FALSE) -> 0.496962482 | T18: =IF(K18<>0,VLOOKUP(A18,'RPI Nitty Gritty Report'!A:F,6,FALSE),"#N/A") -> 43 | V18: =IF(K18<>0,VLOOKUP(A18,'RPI Nitty Gritty Report'!$A:$P,6,FALSE),"#N/A") -> 43 | W18: FALSE | X18: FALSE | Y18: YES | Z18: FALSE | AB18: Wins +/- Expectation (All): | AC18: =(AC16*(COUNTIF(G8:G33,"<>#N/A")))-(AC17*(COUNTIF(G8:G33,"<>#N/A"))) -> 3.586434671
A19: Mercer | B19: 15 | C19: 13 | D19: W | E19: 0 | F19: H | G19: -5.5 | H19: =NORMDIST(0,G19,Games!$C$539,TRUE) -> 0.9352298872 | I19: =VLOOKUP(A19,Sheet1!A:K,5,FALSE) -> 55 | J19: W | K19: 2 | L19: =ROUND(((VLOOKUP(A19,Sheet1!$A:$J,4,FALSE))-(VLOOKUP($B$1,Sheet1!$A:$J,4,FALSE)))/0.5,0)*0.5 -> -4.5 | M19: =ROUND(((VLOOKUP(A19,Sheet1!$A:$J,4,FALSE))-(VLOOKUP($B$1,Sheet1!$A:$J,4,FALSE))+Games!$C$542)/0.5,0)*0.5 -> -3 | N19: =ROUND(((VLOOKUP(A19,Sheet1!$A:$J,4,FALSE))-(VLOOKUP($B$1,Sheet1!$A:$J,4,FALSE))-Games!$C$542)/0.5,0)*0.5 -> -5.5 | O19: =VLOOKUP(A19,Sheet1!$A:$M,13,FALSE) -> Southern | P19: =IF(K19<>0,VLOOKUP(A19,Sheet1!A:H,7,FALSE),"#N/A") -> 9.230769231 | Q19: =IF(K19<>0,VLOOKUP(A19,Sheet1!A:H,8,FALSE),"#N/A") -> 10.92307692 | R19: =IF(K19<>0,((COUNTIFS(Games!A:A,A19,Games!F:F,"W")+COUNTIFS(Games!B:B,A19,Games!F:F,"L")-COUNTIFS(Games!A:A,A19,Games!B:B,$B$1,Games!F:F,"W")-COUNTIFS(Games!$B:$B,A19,Games!$A:$A,$B$1,Games!F:F,"L"))/(COUNTIFS(Games!A:A,A19)+COUNTIF(Games!B:B,A19)-COUNTIFS(Games!A:A,A19,Games!B:B,$B$1)-COUNTIFS(Games!B:B,A19,Games!A:A,$B$1))),"#DIV/0!") -> 0.4166666667 | S19: =VLOOKUP(A19,'RPI Nitty Gritty Report'!A:C,3,FALSE) -> 0.4288606818 | T19: =IF(K19<>0,VLOOKUP(A19,'RPI Nitty Gritty Report'!A:F,6,FALSE),"#N/A") -> 54 | V19: =IF(K19<>0,VLOOKUP(A19,'RPI Nitty Gritty Report'!$A:$P,6,FALSE),"#N/A") -> 54 | W19: FALSE | X19: FALSE | Y19: FALSE | Z19: YES | AB19: Expected Remaining Wins (All): | AC19: =SUMIFS(H8:H33,G8:G33,"<>#N/A",K8:K33,"0") -> 0
A20: VMI | B20: 13 | C20: 3 | D20: W | E20: 0 | F20: H | G20: -12 | H20: =NORMDIST(0,G20,Games!$C$539,TRUE) -> 0.9995292629 | I20: =VLOOKUP(A20,Sheet1!A:K,5,FALSE) -> 69 | J20: W | K20: 10 | L20: =ROUND(((VLOOKUP(A20,Sheet1!$A:$J,4,FALSE))-(VLOOKUP($B$1,Sheet1!$A:$J,4,FALSE)))/0.5,0)*0.5 -> -10.5 | M20: =ROUND(((VLOOKUP(A20,Sheet1!$A:$J,4,FALSE))-(VLOOKUP($B$1,Sheet1!$A:$J,4,FALSE))+Games!$C$542)/0.5,0)*0.5 -> -9.5 | N20: =ROUND(((VLOOKUP(A20,Sheet1!$A:$J,4,FALSE))-(VLOOKUP($B$1,Sheet1!$A:$J,4,FALSE))-Games!$C$542)/0.5,0)*0.5 -> -12 | O20: =VLOOKUP(A20,Sheet1!$A:$M,13,FALSE) -> Southern | P20: =IF(K20<>0,VLOOKUP(A20,Sheet1!A:H,7,FALSE),"#N/A") -> 6 | Q20: =IF(K20<>0,VLOOKUP(A20,Sheet1!A:H,8,FALSE),"#N/A") -> 13.9375 | R20: =IF(K20<>0,((COUNTIFS(Games!A:A,A20,Games!F:F,"W")+COUNTIFS(Games!B:B,A20,Games!F:F,"L")-COUNTIFS(Games!A:A,A20,Games!B:B,$B$1,Games!F:F,"W")-COUNTIFS(Games!$B:$B,A20,Games!$A:$A,$B$1,Games!F:F,"L"))/(COUNTIFS(Games!A:A,A20)+COUNTIF(Games!B:B,A20)-COUNTIFS(Games!A:A,A20,Games!B:B,$B$1)-COUNTIFS(Games!B:B,A20,Games!A:A,$B$1))),"#DIV/0!") -> 0.1333333333 | S20: =VLOOKUP(A20,'RPI Nitty Gritty Report'!A:C,3,FALSE) -> 0.3929340727 | T20: =IF(K20<>0,VLOOKUP(A20,'RPI Nitty Gritty Report'!A:F,6,FALSE),"#N/A") -> 68 | V20: =IF(K20<>0,VLOOKUP(A20,'RPI Nitty Gritty Report'!$A:$P,6,FALSE),"#N/A") -> 68 | W20: FALSE | X20: FALSE | Y20: FALSE | Z20: YES | AB20: Actual Margin (All): | AC20: =SUM(K8:K33) -> 42
A21: Richmond | B21: 9 | C21: 8 | D21: W | E21: 0 | F21: A | G21: 0.5 | H21: =NORMDIST(0,G21,Games!$C$539,TRUE) -> 0.4451950226 | I21: =VLOOKUP(A21,Sheet1!A:K,5,FALSE) -> 34 | J21: L | K21: 1 | L21: =ROUND(((VLOOKUP(A21,Sheet1!$A:$J,4,FALSE))-(VLOOKUP($B$1,Sheet1!$A:$J,4,FALSE)))/0.5,0)*0.5 -> -1 | M21: =ROUND(((VLOOKUP(A21,Sheet1!$A:$J,4,FALSE))-(VLOOKUP($B$1,Sheet1!$A:$J,4,FALSE))+Games!$C$542)/0.5,0)*0.5 -> 0.5 | N21: =ROUND(((VLOOKUP(A21,Sheet1!$A:$J,4,FALSE))-(VLOOKUP($B$1,Sheet1!$A:$J,4,FALSE))-Games!$C$542)/0.5,0)*0.5 -> -2 | O21: =VLOOKUP(A21,Sheet1!$A:$M,13,FALSE) -> Southern | P21: =IF(K21<>0,VLOOKUP(A21,Sheet1!A:H,7,FALSE),"#N/A") -> 8.625 | Q21: =IF(K21<>0,VLOOKUP(A21,Sheet1!A:H,8,FALSE),"#N/A") -> 7.4375 | R21: =IF(K21<>0,((COUNTIFS(Games!A:A,A21,Games!F:F,"W")+COUNTIFS(Games!B:B,A21,Games!F:F,"L")-COUNTIFS(Games!A:A,A21,Games!B:B,$B$1,Games!F:F,"W")-COUNTIFS(Games!$B:$B,A21,Games!$A:$A,$B$1,Games!F:F,"L"))/(COUNTIFS(Games!A:A,A21)+COUNTIF(Games!B:B,A21)-COUNTIFS(Games!A:A,A21,Games!B:B,$B$1)-COUNTIFS(Games!B:B,A21,Games!A:A,$B$1))),"#DIV/0!") -> 0.7857142857 | S21: =VLOOKUP(A21,'RPI Nitty Gritty Report'!A:C,3,FALSE) -> 0.502683341 | T21: =IF(K21<>0,VLOOKUP(A21,'RPI Nitty Gritty Report'!A:F,6,FALSE),"#N/A") -> 22 | V21: =IF(K21<>0,VLOOKUP(A21,'RPI Nitty Gritty Report'!$A:$P,6,FALSE),"#N/A") -> 22 | W21: FALSE | X21: YES | Y21: FALSE | Z21: FALSE | AB21: Predicted Margin (All): | AC21: =-SUMIFS(G8:G33,G8:G33,"<>#N/A",K8:K33,"<>0") -> 35.5
A22: Jacksonville | B22: 11 | C22: 6 | D22: W | E22: 0 | F22: A | G22: -5 | H22: =NORMDIST(0,G22,Games!$C$539,TRUE) -> 0.9159148385 | I22: =VLOOKUP(A22,Sheet1!A:K,5,FALSE) -> 64 | J22: W | K22: 5 | L22: =ROUND(((VLOOKUP(A22,Sheet1!$A:$J,4,FALSE))-(VLOOKUP($B$1,Sheet1!$A:$J,4,FALSE)))/0.5,0)*0.5 -> -6 | M22: =ROUND(((VLOOKUP(A22,Sheet1!$A:$J,4,FALSE))-(VLOOKUP($B$1,Sheet1!$A:$J,4,FALSE))+Games!$C$542)/0.5,0)*0.5 -> -5 | N22: =ROUND(((VLOOKUP(A22,Sheet1!$A:$J,4,FALSE))-(VLOOKUP($B$1,Sheet1!$A:$J,4,FALSE))-Games!$C$542)/0.5,0)*0.5 -> -7.5 | O22: =VLOOKUP(A22,Sheet1!$A:$M,13,FALSE) -> Southern | P22: =IF(K22<>0,VLOOKUP(A22,Sheet1!A:H,7,FALSE),"#N/A") -> 8.230769231 | Q22: =IF(K22<>0,VLOOKUP(A22,Sheet1!A:H,8,FALSE),"#N/A") -> 11.38461538 | R22: =IF(K22<>0,((COUNTIFS(Games!A:A,A22,Games!F:F,"W")+COUNTIFS(Games!B:B,A22,Games!F:F,"L")-COUNTIFS(Games!A:A,A22,Games!B:B,$B$1,Games!F:F,"W")-COUNTIFS(Games!$B:$B,A22,Games!$A:$A,$B$1,Games!F:F,"L"))/(COUNTIFS(Games!A:A,A22)+COUNTIF(Games!B:B,A22)-COUNTIFS(Games!A:A,A22,Games!B:B,$B$1)-COUNTIFS(Games!B:B,A22,Games!A:A,$B$1))),"#DIV/0!") -> 0.25 | S22: =VLOOKUP(A22,'RPI Nitty Gritty Report'!A:C,3,FALSE) -> 0.3935764148 | T22: =IF(K22<>0,VLOOKUP(A22,'RPI Nitty Gritty Report'!A:F,6,FALSE),"#N/A") -> 65 | V22: =IF(K22<>0,VLOOKUP(A22,'RPI Nitty Gritty Report'!$A:$P,6,FALSE),"#N/A") -> 65 | W22: FALSE | X22: FALSE | Y22: FALSE | Z22: YES
A23: Bellarmine | B23: 10 | C23: 8 | D23: W | E23: 0 | F23: N | G23: -2.5 | H23: =NORMDIST(0,G23,Games!$C$539,TRUE) -> 0.7546051648 | I23: =VLOOKUP(A23,Sheet1!A:K,5,FALSE) -> 48 | J23: W | K23: 2 | L23: =ROUND(((VLOOKUP(A23,Sheet1!$A:$J,4,FALSE))-(VLOOKUP($B$1,Sheet1!$A:$J,4,FALSE)))/0.5,0)*0.5 -> -2.5 | M23: =ROUND(((VLOOKUP(A23,Sheet1!$A:$J,4,FALSE))-(VLOOKUP($B$1,Sheet1!$A:$J,4,FALSE))+Games!$C$542)/0.5,0)*0.5 -> -1.5 | N23: =ROUND(((VLOOKUP(A23,Sheet1!$A:$J,4,FALSE))-(VLOOKUP($B$1,Sheet1!$A:$J,4,FALSE))-Games!$C$542)/0.5,0)*0.5 -> -4 | O23: =VLOOKUP(A23,Sheet1!$A:$M,13,FALSE) -> Southern | P23: =IF(K23<>0,VLOOKUP(A23,Sheet1!A:H,7,FALSE),"#N/A") -> 8.6 | Q23: =IF(K23<>0,VLOOKUP(A23,Sheet1!A:H,8,FALSE),"#N/A") -> 9.133333333 | R23: =IF(K23<>0,((COUNTIFS(Games!A:A,A23,Games!F:F,"W")+COUNTIFS(Games!B:B,A23,Games!F:F,"L")-COUNTIFS(Games!A:A,A23,Games!B:B,$B$1,Games!F:F,"W")-COUNTIFS(Games!$B:$B,A23,Games!$A:$A,$B$1,Games!F:F,"L"))/(COUNTIFS(Games!A:A,A23)+COUNTIF(Games!B:B,A23)-COUNTIFS(Games!A:A,A23,Games!B:B,$B$1)-COUNTIFS(Games!B:B,A23,Games!A:A,$B$1))),"#DIV/0!") -> 0.4615384615 | S23: =VLOOKUP(A23,'RPI Nitty Gritty Report'!A:C,3,FALSE) -> 0.496962482 | T23: =IF(K23<>0,VLOOKUP(A23,'RPI Nitty Gritty Report'!A:F,6,FALSE),"#N/A") -> 43 | V23: =IF(K23<>0,VLOOKUP(A23,'RPI Nitty Gritty Report'!$A:$P,6,FALSE),"#N/A") -> 43 | W23: FALSE | X23: FALSE | Y23: YES | Z23: FALSE | AB23: Actual Win % (Conf.): | AC23: =COUNTIFS(D8:D33,"W",O8:O33,B3)/(COUNTIFS(D8:D33,"W",O8:O33,B3)+(COUNTIFS(E8:E33,"L",O8:O33,B3))) -> 1
A24: Richmond | B24: 9 | C24: 8 | D24: W | E24: 0 | F24: A | G24: 0.5 | H24: =NORMDIST(0,G24,Games!$C$539,TRUE) -> 0.4451950226 | I24: =VLOOKUP(A24,Sheet1!A:K,5,FALSE) -> 34 | J24: L | K24: 1 | L24: =ROUND(((VLOOKUP(A24,Sheet1!$A:$J,4,FALSE))-(VLOOKUP($B$1,Sheet1!$A:$J,4,FALSE)))/0.5,0)*0.5 -> -1 | M24: =ROUND(((VLOOKUP(A24,Sheet1!$A:$J,4,FALSE))-(VLOOKUP($B$1,Sheet1!$A:$J,4,FALSE))+Games!$C$542)/0.5,0)*0.5 -> 0.5 | N24: =ROUND(((VLOOKUP(A24,Sheet1!$A:$J,4,FALSE))-(VLOOKUP($B$1,Sheet1!$A:$J,4,FALSE))-Games!$C$542)/0.5,0)*0.5 -> -2 | O24: =VLOOKUP(A24,Sheet1!$A:$M,13,FALSE) -> Southern | P24: =IF(K24<>0,VLOOKUP(A24,Sheet1!A:H,7,FALSE),"#N/A") -> 8.625 | Q24: =IF(K24<>0,VLOOKUP(A24,Sheet1!A:H,8,FALSE),"#N/A") -> 7.4375 | R24: =IF(K24<>0,((COUNTIFS(Games!A:A,A24,Games!F:F,"W")+COUNTIFS(Games!B:B,A24,Games!F:F,"L")-COUNTIFS(Games!A:A,A24,Games!B:B,$B$1,Games!F:F,"W")-COUNTIFS(Games!$B:$B,A24,Games!$A:$A,$B$1,Games!F:F,"L"))/(COUNTIFS(Games!A:A,A24)+COUNTIF(Games!B:B,A24)-COUNTIFS(Games!A:A,A24,Games!B:B,$B$1)-COUNTIFS(Games!B:B,A24,Games!A:A,$B$1))),"#DIV/0!") -> 0.7857142857 | S24: =IF(K24<>0,VLOOKUP(A24,'RPI Nitty Gritty Report'!A:C,3,FALSE),"#N/A") -> 0.502683341 | T24: =IF(K24<>0,VLOOKUP(A24,'RPI Nitty Gritty Report'!A:F,6,FALSE),"#N/A") -> 22 | V24: =IF(K24<>0,VLOOKUP(A24,'RPI Nitty Gritty Report'!$A:$P,6,FALSE),"#N/A") -> 22 | W24: FALSE | X24: YES | Y24: FALSE | Z24: FALSE | AB24: Expected SRS Win % (Conf.): | AC24: =SUMIFS(H8:H33,H8:H33,"<>N/A",K8:K33,"<>0",O8:O33,B3)/(COUNTIFS(K8:K33,"<>0",O8:O33,B3)) -> 0.7724518704
A25: Notre Dame | B25: 7 | C25: 15 | D25: 0 | E25: L | F25: A | G25: 6 | H25: =NORMDIST(0,G25,Games!$C$539,TRUE) -> 0.04909138177 | I25: =VLOOKUP(A25,Sheet1!A:K,5,FALSE) -> 3 | J25: =IF(K25<>0,IF(H25>0.5,"W","L"),"#N/A") -> L | K25: -8 | L25: =ROUND(((VLOOKUP(A25,Sheet1!$A:$J,4,FALSE))-(VLOOKUP($B$1,Sheet1!$A:$J,4,FALSE)))/0.5,0)*0.5 -> 4.5 | M25: =ROUND(((VLOOKUP(A25,Sheet1!$A:$J,4,FALSE))-(VLOOKUP($B$1,Sheet1!$A:$J,4,FALSE))+Games!$C$542)/0.5,0)*0.5 -> 6 | N25: =ROUND(((VLOOKUP(A25,Sheet1!$A:$J,4,FALSE))-(VLOOKUP($B$1,Sheet1!$A:$J,4,FALSE))-Games!$C$542)/0.5,0)*0.5 -> 3 | O25: =VLOOKUP(A25,Sheet1!$A:$M,13,FALSE) -> ACC | P25: =IF(K25<>0,VLOOKUP(A25,Sheet1!A:H,7,FALSE),"#N/A") -> 11 | Q25: =IF(K25<>0,VLOOKUP(A25,Sheet1!A:H,8,FALSE),"#N/A") -> 8 | R25: =IF(K25<>0,((COUNTIFS(Games!A:A,A25,Games!F:F,"W")+COUNTIFS(Games!B:B,A25,Games!F:F,"L")-COUNTIFS(Games!A:A,A25,Games!B:B,$B$1,Games!F:F,"W")-COUNTIFS(Games!$B:$B,A25,Games!$A:$A,$B$1,Games!F:F,"L"))/(COUNTIFS(Games!A:A,A25)+COUNTIF(Games!B:B,A25)-COUNTIFS(Games!A:A,A25,Games!B:B,$B$1)-COUNTIFS(Games!B:B,A25,Games!A:A,$B$1))),"#DIV/0!") -> 0.7142857143 | S25: =IF(K25<>0,VLOOKUP(A25,'RPI Nitty Gritty Report'!A:C,3,FALSE),"#N/A") -> 0.5876950827 | T25: =IF(K25<>0,VLOOKUP(A25,'RPI Nitty Gritty Report'!A:F,6,FALSE),"#N/A") -> 4 | V25: =IF(K25<>0,VLOOKUP(A25,'RPI Nitty Gritty Report'!$A:$P,6,FALSE),"#N/A") -> 4 | W25: =IF(AND(V25>0,V25<11),IF(K25<>"#N/A","YES","NO")) -> YES | X25: FALSE | Y25: FALSE | Z25: FALSE | AB25: Wins +/- Expectation (Conf.): | AC25: =(AC23*(COUNTIFS(G8:G33,"<>#N/A",O8:O33,B3)))-(AC24*(COUNTIFS(G8:G33,"<>#N/A",O8:O33,B3))) -> 2.047933166
D26: 0 | E26: 0 | H26: =NORMDIST(0,G26,Games!$C$539,TRUE) ->  | I26: =VLOOKUP(A26,Sheet1!A:K,5,FALSE) ->  | J26: #N/A | K26: 0 | L26: =(VLOOKUP(A26,Sheet1!$A:$J,4,FALSE))-(VLOOKUP($B$1,Sheet1!$A:$J,4,FALSE)) ->  | M26: =(VLOOKUP(A26,Sheet1!$A:$J,4,FALSE))-(VLOOKUP($B$1,Sheet1!$A:$J,4,FALSE))+Games!$C$542 ->  | N26: =(VLOOKUP(A26,Sheet1!$A:$J,4,FALSE))-(VLOOKUP($B$1,Sheet1!$A:$J,4,FALSE))-Games!$C$542 ->  | O26: =VLOOKUP(A26,Sheet1!$A:$M,13,FALSE) ->  | P26: =IF(K26<>0,VLOOKUP(A26,Sheet1!A:H,7,FALSE),"#N/A") -> #N/A | Q26: =IF(K26<>0,VLOOKUP(A26,Sheet1!A:H,8,FALSE),"#N/A") -> #N/A | R26: =IF(K26<>0,((COUNTIFS(Games!A:A,A26,Games!F:F,"W")+COUNTIFS(Games!B:B,A26,Games!F:F,"L")-COUNTIFS(Games!A:A,A26,Games!B:B,$B$1,Games!F:F,"W")-COUNTIFS(Games!$B:$B,A26,Games!$A:$A,$B$1,Games!F:F,"L"))/(COUNTIFS(Games!A:A,A26)+COUNTIF(Games!B:B,A26)-COUNTIFS(Games!A:A,A26,Games!B:B,$B$1)-COUNTIFS(Games!B:B,A26,Games!A:A,$B$1))),"#DIV/0!") -> #DIV/0! | S26: =IF(K26<>0,VLOOKUP(A26,'RPI Nitty Gritty Report'!A:C,3,FALSE),"#N/A") -> #N/A | T26: =IF(K26<>0,VLOOKUP(A26,'RPI Nitty Gritty Report'!A:F,6,FALSE),"#N/A") -> #N/A | V26: =IF(K26<>0,VLOOKUP(A26,'RPI Nitty Gritty Report'!$A:$P,6,FALSE),"#N/A") -> #N/A | W26: =IF(AND(V26>0,V26<11),"YES","NO") -> NO | X26: FALSE | Y26: FALSE | Z26: FALSE | AB26: Expected Remaining Wins (Conf.): | AC26: =SUMIFS(H8:H33,G8:G33,"<>#N/A",K8:K33,"0",O8:O33,B3) -> 0
D27: 0 | E27: 0 | H27: =NORMDIST(0,G27,Games!$C$539,TRUE) ->  | I27: =VLOOKUP(A27,Sheet1!A:K,5,FALSE) ->  | J27: #N/A | K27: 0 | L27: =(VLOOKUP(A27,Sheet1!$A:$J,4,FALSE))-(VLOOKUP($B$1,Sheet1!$A:$J,4,FALSE)) ->  | M27: =(VLOOKUP(A27,Sheet1!$A:$J,4,FALSE))-(VLOOKUP($B$1,Sheet1!$A:$J,4,FALSE))+Games!$C$542 ->  | N27: =(VLOOKUP(A27,Sheet1!$A:$J,4,FALSE))-(VLOOKUP($B$1,Sheet1!$A:$J,4,FALSE))-Games!$C$542 ->  | O27: =VLOOKUP(A27,Sheet1!$A:$M,13,FALSE) ->  | P27: =IF(K27<>0,VLOOKUP(A27,Sheet1!A:H,7,FALSE),"#N/A") -> #N/A | Q27: =IF(K27<>0,VLOOKUP(A27,Sheet1!A:H,8,FALSE),"#N/A") -> #N/A | R27: =IF(K27<>0,((COUNTIFS(Games!A:A,A27,Games!F:F,"W")+COUNTIFS(Games!B:B,A27,Games!F:F,"L")-COUNTIFS(Games!A:A,A27,Games!B:B,$B$1,Games!F:F,"W")-COUNTIFS(Games!$B:$B,A27,Games!$A:$A,$B$1,Games!F:F,"L"))/(COUNTIFS(Games!A:A,A27)+COUNTIF(Games!B:B,A27)-COUNTIFS(Games!A:A,A27,Games!B:B,$B$1)-COUNTIFS(Games!B:B,A27,Games!A:A,$B$1))),"#DIV/0!") -> #DIV/0! | S27: =IF(K27<>0,VLOOKUP(A27,'RPI Nitty Gritty Report'!A:C,3,FALSE),"#N/A") -> #N/A | T27: =IF(K27<>0,VLOOKUP(A27,'RPI Nitty Gritty Report'!A:F,6,FALSE),"#N/A") -> #N/A | V27: =IF(K27<>0,VLOOKUP(A27,'RPI Nitty Gritty Report'!$A:$P,6,FALSE),"#N/A") -> #N/A | W27: NO | X27: FALSE | Y27: FALSE | Z27: FALSE | AB27: Actual Margin (Conf.): | AC27: =SUMIFS(K8:K33,O8:O33,B3) -> 41
D28: 0 | E28: 0 | H28: =NORMDIST(0,G28,Games!$C$539,TRUE) ->  | I28: =VLOOKUP(A28,Sheet1!A:K,5,FALSE) ->  | J28: #N/A | K28: 0 | L28: =(VLOOKUP(A28,Sheet1!$A:$J,4,FALSE))-(VLOOKUP($B$1,Sheet1!$A:$J,4,FALSE)) ->  | M28: =(VLOOKUP(A28,Sheet1!$A:$J,4,FALSE))-(VLOOKUP($B$1,Sheet1!$A:$J,4,FALSE))+Games!$C$542 ->  | N28: =(VLOOKUP(A28,Sheet1!$A:$J,4,FALSE))-(VLOOKUP($B$1,Sheet1!$A:$J,4,FALSE))-Games!$C$542 ->  | O28: =VLOOKUP(A28,Sheet1!$A:$M,13,FALSE) ->  | P28: =IF(K28<>0,VLOOKUP(A28,Sheet1!A:H,7,FALSE),"#N/A") -> #N/A | Q28: =IF(K28<>0,VLOOKUP(A28,Sheet1!A:H,8,FALSE),"#N/A") -> #N/A | R28: =IF(K28<>0,((COUNTIFS(Games!A:A,A28,Games!F:F,"W")+COUNTIFS(Games!B:B,A28,Games!F:F,"L")-COUNTIFS(Games!A:A,A28,Games!B:B,$B$1,Games!F:F,"W")-COUNTIFS(Games!$B:$B,A28,Games!$A:$A,$B$1,Games!F:F,"L"))/(COUNTIFS(Games!A:A,A28)+COUNTIF(Games!B:B,A28)-COUNTIFS(Games!A:A,A28,Games!B:B,$B$1)-COUNTIFS(Games!B:B,A28,Games!A:A,$B$1))),"#DIV/0!") -> #DIV/0! | S28: =IF(K28<>0,VLOOKUP(A28,'RPI Nitty Gritty Report'!A:C,3,FALSE),"#N/A") -> #N/A | T28: =IF(K28<>0,VLOOKUP(A28,'RPI Nitty Gritty Report'!A:F,6,FALSE),"#N/A") -> #N/A | V28: =IF(K28<>0,VLOOKUP(A28,'RPI Nitty Gritty Report'!$A:$P,6,FALSE),"#N/A") -> #N/A | W28: NO | X28: FALSE | Y28: FALSE | Z28: FALSE | AB28: Predicted Margin (Conf.): | AC28: =-SUMIFS(G8:G33,G8:G33,"<>#N/A",K8:K33,"<>0",O8:O33,B3) -> 35.5
D29: 0 | E29: 0 | H29: =NORMDIST(0,G29,Games!$C$539,TRUE) ->  | I29: =VLOOKUP(A29,Sheet1!A:K,5,FALSE) ->  | J29: #N/A | K29: 0 | L29: =(VLOOKUP(A29,Sheet1!$A:$J,4,FALSE))-(VLOOKUP($B$1,Sheet1!$A:$J,4,FALSE)) ->  | M29: =(VLOOKUP(A29,Sheet1!$A:$J,4,FALSE))-(VLOOKUP($B$1,Sheet1!$A:$J,4,FALSE))+Games!$C$542 ->  | N29: =(VLOOKUP(A29,Sheet1!$A:$J,4,FALSE))-(VLOOKUP($B$1,Sheet1!$A:$J,4,FALSE))-Games!$C$542 ->  | O29: =VLOOKUP(A29,Sheet1!$A:$M,13,FALSE) ->  | P29: =IF(K29<>0,VLOOKUP(A29,Sheet1!A:H,7,FALSE),"#N/A") -> #N/A | Q29: =IF(K29<>0,VLOOKUP(A29,Sheet1!A:H,8,FALSE),"#N/A") -> #N/A | R29: =IF(K29<>0,((COUNTIFS(Games!A:A,A29,Games!F:F,"W")+COUNTIFS(Games!B:B,A29,Games!F:F,"L")-COUNTIFS(Games!A:A,A29,Games!B:B,$B$1,Games!F:F,"W")-COUNTIFS(Games!$B:$B,A29,Games!$A:$A,$B$1,Games!F:F,"L"))/(COUNTIFS(Games!A:A,A29)+COUNTIF(Games!B:B,A29)-COUNTIFS(Games!A:A,A29,Games!B:B,$B$1)-COUNTIFS(Games!B:B,A29,Games!A:A,$B$1))),"#DIV/0!") -> #DIV/0! | S29: =IF(K29<>0,VLOOKUP(A29,'RPI Nitty Gritty Report'!A:C,3,FALSE),"#N/A") -> #N/A | T29: =IF(K29<>0,VLOOKUP(A29,'RPI Nitty Gritty Report'!A:F,6,FALSE),"#N/A") -> #N/A | V29: =IF(K29<>0,VLOOKUP(A29,'RPI Nitty Gritty Report'!$A:$P,6,FALSE),"#N/A") -> #N/A | W29: NO | X29: FALSE | Y29: FALSE | Z29: FALSE
D30: 0 | E30: 0 | H30: =NORMDIST(0,G30,Games!$C$539,TRUE) ->  | I30: =VLOOKUP(A30,Sheet1!A:K,5,FALSE) ->  | J30: #N/A | K30: 0 | L30: =(VLOOKUP(A30,Sheet1!$A:$J,4,FALSE))-(VLOOKUP($B$1,Sheet1!$A:$J,4,FALSE)) ->  | M30: =(VLOOKUP(A30,Sheet1!$A:$J,4,FALSE))-(VLOOKUP($B$1,Sheet1!$A:$J,4,FALSE))+Games!$C$542 ->  | N30: =(VLOOKUP(A30,Sheet1!$A:$J,4,FALSE))-(VLOOKUP($B$1,Sheet1!$A:$J,4,FALSE))-Games!$C$542 ->  | O30: =VLOOKUP(A30,Sheet1!$A:$M,13,FALSE) ->  | P30: =IF(K30<>0,VLOOKUP(A30,Sheet1!A:H,7,FALSE),"#N/A") -> #N/A | Q30: =IF(K30<>0,VLOOKUP(A30,Sheet1!A:H,8,FALSE),"#N/A") -> #N/A | R30: =IF(K30<>0,((COUNTIFS(Games!A:A,A30,Games!F:F,"W")+COUNTIFS(Games!B:B,A30,Games!F:F,"L")-COUNTIFS(Games!A:A,A30,Games!B:B,$B$1,Games!F:F,"W")-COUNTIFS(Games!$B:$B,A30,Games!$A:$A,$B$1,Games!F:F,"L"))/(COUNTIFS(Games!A:A,A30)+COUNTIF(Games!B:B,A30)-COUNTIFS(Games!A:A,A30,Games!B:B,$B$1)-COUNTIFS(Games!B:B,A30,Games!A:A,$B$1))),"#DIV/0!") -> #DIV/0! | S30: =IF(K30<>0,VLOOKUP(A30,'RPI Nitty Gritty Report'!A:C,3,FALSE),"#N/A") -> #N/A | T30: =IF(K30<>0,VLOOKUP(A30,'RPI Nitty Gritty Report'!A:F,6,FALSE),"#N/A") -> #N/A | V30: =IF(K30<>0,VLOOKUP(A30,'RPI Nitty Gritty Report'!$A:$P,6,FALSE),"#N/A") -> #N/A | W30: NO | X30: FALSE | Y30: FALSE | Z30: FALSE | AB30: Avg. Goals For per Game (All): | AC30: =AVERAGEIF(K8:K33,"<>#N/A",B8:B33) -> 10.05555556
D31: 0 | E31: 0 | H31: =NORMDIST(0,G31,Games!$C$539,TRUE) ->  | I31: =VLOOKUP(A31,Sheet1!A:K,5,FALSE) ->  | J31: #N/A | K31: 0 | L31: =(VLOOKUP(A31,Sheet1!$A:$J,4,FALSE))-(VLOOKUP($B$1,Sheet1!$A:$J,4,FALSE)) ->  | M31: =(VLOOKUP(A31,Sheet1!$A:$J,4,FALSE))-(VLOOKUP($B$1,Sheet1!$A:$J,4,FALSE))+Games!$C$542 ->  | N31: =(VLOOKUP(A31,Sheet1!$A:$J,4,FALSE))-(VLOOKUP($B$1,Sheet1!$A:$J,4,FALSE))-Games!$C$542 ->  | O31: =VLOOKUP(A31,Sheet1!$A:$M,13,FALSE) ->  | P31: =IF(K31<>0,VLOOKUP(A31,Sheet1!A:H,7,FALSE),"#N/A") -> #N/A | Q31: =IF(K31<>0,VLOOKUP(A31,Sheet1!A:H,8,FALSE),"#N/A") -> #N/A | R31: =IF(K31<>0,((COUNTIFS(Games!A:A,A31,Games!F:F,"W")+COUNTIFS(Games!B:B,A31,Games!F:F,"L")-COUNTIFS(Games!A:A,A31,Games!B:B,$B$1,Games!F:F,"W")-COUNTIFS(Games!$B:$B,A31,Games!$A:$A,$B$1,Games!F:F,"L"))/(COUNTIFS(Games!A:A,A31)+COUNTIF(Games!B:B,A31)-COUNTIFS(Games!A:A,A31,Games!B:B,$B$1)-COUNTIFS(Games!B:B,A31,Games!A:A,$B$1))),"#DIV/0!") -> #DIV/0! | S31: =IF(K31<>0,VLOOKUP(A31,'RPI Nitty Gritty Report'!A:C,3,FALSE),"#N/A") -> #N/A | T31: =IF(K31<>0,VLOOKUP(A31,'RPI Nitty Gritty Report'!A:F,6,FALSE),"#N/A") -> #N/A | V31: =IF(K31<>0,VLOOKUP(A31,'RPI Nitty Gritty Report'!$A:$P,6,FALSE),"#N/A") -> #N/A | W31: NO | X31: FALSE | Y31: FALSE | Z31: FALSE | AB31: Avg. Goals Against per Game (All): | AC31: =AVERAGEIF(K8:K33,"<>#N/A",C8:C33) -> 7.722222222
D32: 0 | E32: 0 | H32: =NORMDIST(0,G32,Games!$C$539,TRUE) ->  | I32: =VLOOKUP(A32,Sheet1!A:K,5,FALSE) ->  | J32: #N/A | K32: 0 | L32: =(VLOOKUP(A32,Sheet1!$A:$J,4,FALSE))-(VLOOKUP($B$1,Sheet1!$A:$J,4,FALSE)) ->  | M32: =(VLOOKUP(A32,Sheet1!$A:$J,4,FALSE))-(VLOOKUP($B$1,Sheet1!$A:$J,4,FALSE))+Games!$C$542 ->  | N32: =(VLOOKUP(A32,Sheet1!$A:$J,4,FALSE))-(VLOOKUP($B$1,Sheet1!$A:$J,4,FALSE))-Games!$C$542 ->  | O32: =VLOOKUP(A32,Sheet1!$A:$M,13,FALSE) ->  | P32: =IF(K32<>0,VLOOKUP(A32,Sheet1!A:H,7,FALSE),"#N/A") -> #N/A | Q32: =IF(K32<>0,VLOOKUP(A32,Sheet1!A:H,8,FALSE),"#N/A") -> #N/A | R32: =IF(K32<>0,((COUNTIFS(Games!A:A,A32,Games!F:F,"W")+COUNTIFS(Games!B:B,A32,Games!F:F,"L")-COUNTIFS(Games!A:A,A32,Games!B:B,$B$1,Games!F:F,"W")-COUNTIFS(Games!$B:$B,A32,Games!$A:$A,$B$1,Games!F:F,"L"))/(COUNTIFS(Games!A:A,A32)+COUNTIF(Games!B:B,A32)-COUNTIFS(Games!A:A,A32,Games!B:B,$B$1)-COUNTIFS(Games!B:B,A32,Games!A:A,$B$1))),"#DIV/0!") -> #DIV/0! | S32: =IF(K32<>0,VLOOKUP(A32,'RPI Nitty Gritty Report'!A:C,3,FALSE),"#N/A") -> #N/A | T32: =IF(K32<>0,VLOOKUP(A32,'RPI Nitty Gritty Report'!A:F,6,FALSE),"#N/A") -> #N/A | V32: =IF(K32<>0,VLOOKUP(A32,'RPI Nitty Gritty Report'!$A:$P,6,FALSE),"#N/A") -> #N/A | W32: NO | X32: FALSE | Y32: FALSE | Z32: FALSE | AB32: Avg. Goals For per Game (Conf.): | AC32: =AVERAGEIFS(B8:B33,K8:K33,"<>#N/A",O8:O33,B3) -> 11.33333333
D33: 0 | E33: 0 | H33: =NORMDIST(0,G33,Games!$C$539,TRUE) ->  | I33: =VLOOKUP(A33,Sheet1!A:K,5,FALSE) ->  | J33: #N/A | K33: 0 | L33: =(VLOOKUP(A33,Sheet1!$A:$J,4,FALSE))-(VLOOKUP($B$1,Sheet1!$A:$J,4,FALSE)) ->  | M33: =(VLOOKUP(A33,Sheet1!$A:$J,4,FALSE))-(VLOOKUP($B$1,Sheet1!$A:$J,4,FALSE))+Games!$C$542 ->  | N33: =(VLOOKUP(A33,Sheet1!$A:$J,4,FALSE))-(VLOOKUP($B$1,Sheet1!$A:$J,4,FALSE))-Games!$C$542 ->  | O33: =VLOOKUP(A33,Sheet1!$A:$M,13,FALSE) ->  | P33: =IF(K33<>0,VLOOKUP(A33,Sheet1!A:H,7,FALSE),"#N/A") -> #N/A | Q33: =IF(K33<>0,VLOOKUP(A33,Sheet1!A:H,8,FALSE),"#N/A") -> #N/A | R33: =IF(K33<>0,((COUNTIFS(Games!A:A,A33,Games!F:F,"W")+COUNTIFS(Games!B:B,A33,Games!F:F,"L")-COUNTIFS(Games!A:A,A33,Games!B:B,$B$1,Games!F:F,"W")-COUNTIFS(Games!$B:$B,A33,Games!$A:$A,$B$1,Games!F:F,"L"))/(COUNTIFS(Games!A:A,A33)+COUNTIF(Games!B:B,A33)-COUNTIFS(Games!A:A,A33,Games!B:B,$B$1)-COUNTIFS(Games!B:B,A33,Games!A:A,$B$1))),"#DIV/0!") -> #DIV/0! | S33: =IF(K33<>0,VLOOKUP(A33,'RPI Nitty Gritty Report'!A:C,3,FALSE),"#N/A") -> #N/A | T33: =IF(K33<>0,VLOOKUP(A33,'RPI Nitty Gritty Report'!A:F,6,FALSE),"#N/A") -> #N/A | V33: =IF(K33<>0,VLOOKUP(A33,'RPI Nitty Gritty Report'!$A:$P,6,FALSE),"#N/A") -> #N/A | W33: NO | X33: FALSE | Y33: FALSE | Z33: FALSE | AB33: Avg. Goals Against per Game (Conf.): | AC33: =AVERAGEIFS(C8:C33,K8:K33,"<>#N/A",O8:O33,B3) -> 6.777777778
P34: =AVERAGEIF(P8:P33,"<>#N/A",P8:P33) -> 9.207153835 | Q34: =AVERAGEIF(Q8:Q33,"<>#N/A",Q8:Q33) -> 10.04842676 | R34: =AVERAGEIF(R8:R33,"<>#DIV/0!",R8:R33) -> 0.4660092993 | S34: =AVERAGEIF(S8:S33,"<>#N/A",S8:S33) -> 0.4967829405 | T34: =AVERAGE(SMALL(T8:T33,{1,2,3,4,5,6,7,8,9,10})) -> 23 | U34: =(COUNTIFS(F8:F33,"A",D8:D33,"W",K8:K33,"<>#N/A")&"-"&(COUNTIFS(F8:F33,"A",E8:E33,"L",K8:K33,"<>#N/A"))) -> 8-2 | W34: =(COUNTIFS(W8:W33,"YES",$K$8:$K$33,"<>#N/A",$D$8:$D$33,"W")&"-"&(COUNTIFS(W8:W33,"YES",$E$8:$E$33,"L",$K$8:$K$33,"<>#N/A"))) -> 1-2 | X34: =(COUNTIFS(X8:X33,"YES",$K$8:$K$33,"<>#N/A",$D$8:$D$33,"W")&"-"&(COUNTIFS(X8:X33,"YES",$E$8:$E$33,"L",$K$8:$K$33,"<>#N/A"))) -> 2-1 | Y34: 5-0 | Z34: 7-0

Sheet Albany
A1: Team: | B1: Albany
A2: Season: | B2: 2016
A3: Conference: | B3: America East
A5: 2016 Schedule | AB5: TEAM PROFILE
A7: Opponent | B7: =B1 -> Albany | C7: Opponent | D7: Win | E7: Loss | F7: Site | G7: Pred. Spread | H7: Win Prob. % | I7: Opp. SRS Ranking | L7: Neutral | M7: Away | N7: Home | O7: League | P7: Opp.GF | Q7: Opp.GA | R7: Opp. Rec | S7: Opp Opp Rec | T7: OPP. RPI | U7: Road Record | V7: RPI Rank | W7: 2016-01-10 | X7: 2016-11-25 | Y7: 26-50 | Z7: 51-69 | AB7: All Record: | AC7: =(COUNTIF(D8:D33,"W")&"-"&(COUNTIF(E8:E33,"L"))) -> 12-4
A8: Syracuse | B8: 7 | C8: 16 | D8: =IF(B8>0, IF(B8>C8,"W",0),0) -> 0 | E8: =IF(C8>0, IF(C8>B8,"L",0),0) -> L | F8: A | G8: =IF(F8="N",L8,IF(F8="A",M8,N8)) -> 2.5 | H8: =NORMDIST(0,G8,Games!$C$539,TRUE) -> 0.2453948352 | I8: =VLOOKUP(A8,Sheet1!A:K,5,FALSE) -> 5 | J8: =IF(K8<>0,IF(H8>0.5,"W","L"),"#N/A") -> L | K8: =B8-C8 -> -9 | L8: =ROUND(((VLOOKUP(A8,Sheet1!$A:$J,4,FALSE))-(VLOOKUP($B$1,Sheet1!$A:$J,4,FALSE)))/0.5,0)*0.5 -> 1.5 | M8: =ROUND(((VLOOKUP(A8,Sheet1!$A:$J,4,FALSE))-(VLOOKUP($B$1,Sheet1!$A:$J,4,FALSE))+Games!$C$542)/0.5,0)*0.5 -> 2.5 | N8: =ROUND(((VLOOKUP(A8,Sheet1!$A:$J,4,FALSE))-(VLOOKUP($B$1,Sheet1!$A:$J,4,FALSE))-Games!$C$542)/0.5,0)*0.5 -> 0 | O8: =VLOOKUP(A8,Sheet1!$A:$M,13,FALSE) -> ACC | P8: =IF(K8<>0,VLOOKUP(A8,Sheet1!A:H,7,FALSE),"#N/A") -> 12.47058824 | Q8: =IF(K8<>0,VLOOKUP(A8,Sheet1!A:H,8,FALSE),"#N/A") -> 8.764705882 | R8: =IF(K8<>0,((COUNTIFS(Games!A:A,A8,Games!F:F,"W")+COUNTIFS(Games!B:B,A8,Games!F:F,"L")-COUNTIFS(Games!A:A,A8,Games!B:B,$B$1,Games!F:F,"W")-COUNTIFS(Games!$B:$B,A8,Games!$A:$A,$B$1,Games!F:F,"L"))/(COUNTIFS(Games!A:A,A8)+COUNTIF(Games!B:B,A8)-COUNTIFS(Games!A:A,A8,Games!B:B,$B$1)-COUNTIFS(Games!B:B,A8,Games!A:A,$B$1))),"#DIV/0!") -> 0.6666666667 | S8: =VLOOKUP(A8,'RPI Nitty Gritty Report'!A:C,3,FALSE) -> 0.564815519 | T8: =IF(K8<>0,VLOOKUP(A8,'RPI Nitty Gritty Report'!A:F,6,FALSE),"#N/A") -> 7 | V8: =IF(K8<>0,VLOOKUP(A8,'RPI Nitty Gritty Report'!$A:$P,6,FALSE),"#N/A") -> 7 | W8: =IF(AND(V8>0,V8<11),IF(K8<>"#N/A","YES","NO")) -> YES | X8: =IF(AND(V8>10,V8<26),IF(K8<>"#N/A","YES","NO")) -> FALSE | Y8: =IF(AND(V8>25,V8<51),IF(K8<>"#N/A","YES","NO")) -> FALSE | Z8: =IF(AND(V8>50,V8<71),IF(K8<>"#N/A","YES","NO")) -> FALSE | AB8: Conf. Record: | AC8: =(COUNTIFS(D8:D33,"W",O8:O33,B3)&"-"&(COUNTIFS(E8:E33,"L",O8:O33,B3))) -> 6-1
A9: Drexel | B9: 20 | C9: 14 | D9: =IF(B9>0, IF(B9>C9,"W",0),0) -> W | E9: =IF(C9>0, IF(C9>B9,"L",0),0) -> 0 | F9: H | G9: =IF(F9="N",L9,IF(F9="A",M9,N9)) -> -4.5 | H9: =NORMDIST(0,G9,Games!$C$539,TRUE) -> 0.8925670529 | I9: =VLOOKUP(A9,Sheet1!A:K,5,FALSE) -> 32 | J9: W | K9: =B9-C9 -> 6 | L9: =ROUND(((VLOOKUP(A9,Sheet1!$A:$J,4,FALSE))-(VLOOKUP($B$1,Sheet1!$A:$J,4,FALSE)))/0.5,0)*0.5 -> -3 | M9: =ROUND(((VLOOKUP(A9,Sheet1!$A:$J,4,FALSE))-(VLOOKUP($B$1,Sheet1!$A:$J,4,FALSE))+Games!$C$542)/0.5,0)*0.5 -> -1.5 | N9: =ROUND(((VLOOKUP(A9,Sheet1!$A:$J,4,FALSE))-(VLOOKUP($B$1,Sheet1!$A:$J,4,FALSE))-Games!$C$542)/0.5,0)*0.5 -> -4.5 | O9: =VLOOKUP(A9,Sheet1!$A:$M,13,FALSE) -> CAA | P9: =IF(K9<>0,VLOOKUP(A9,Sheet1!A:H,7,FALSE),"#N/A") -> 8.933333333 | Q9: =IF(K9<>0,VLOOKUP(A9,Sheet1!A:H,8,FALSE),"#N/A") -> 9.466666667 | R9: =IF(K9<>0,((COUNTIFS(Games!A:A,A9,Games!F:F,"W")+COUNTIFS(Games!B:B,A9,Games!F:F,"L")-COUNTIFS(Games!A:A,A9,Games!B:B,$B$1,Games!F:F,"W")-COUNTIFS(Games!$B:$B,A9,Games!$A:$A,$B$1,Games!F:F,"L"))/(COUNTIFS(Games!A:A,A9)+COUNTIF(Games!B:B,A9)-COUNTIFS(Games!A:A,A9,Games!B:B,$B$1)-COUNTIFS(Games!B:B,A9,Games!A:A,$B$1))),"#DIV/0!") -> 0.4285714286 | S9: =VLOOKUP(A9,'RPI Nitty Gritty Report'!A:C,3,FALSE) -> 0.5589449113 | T9: =IF(K9<>0,VLOOKUP(A9,'RPI Nitty Gritty Report'!A:F,6,FALSE),"#N/A") -> 35 | V9: =IF(K9<>0,VLOOKUP(A9,'RPI Nitty Gritty Report'!$A:$P,6,FALSE),"#N/A") -> 35 | W9: FALSE | X9: =IF(AND(V9>10,V9<26),IF(K9<>"#N/A","YES","NO")) -> FALSE | Y9: =IF(AND(V9>25,V9<51),IF(K9<>"#N/A","YES","NO")) -> YES | Z9: =IF(AND(V9>50,V9<71),IF(K9<>"#N/A","YES","NO")) -> FALSE | AB9: SRS Value: | AC9: =VLOOKUP(B1,Sheet1!$A:$L,4,FALSE) -> 3.583233584
A10: Cornell | B10: 12 | C10: 8 | D10: W | E10: 0 | F10: H | G10: -4 | H10: =NORMDIST(0,G10,Games!$C$539,TRUE) -> 0.8648746538 | I10: =VLOOKUP(A10,Sheet1!A:K,5,FALSE) -> 30 | J10: W | K10: 4 | L10: =ROUND(((VLOOKUP(A10,Sheet1!$A:$J,4,FALSE))-(VLOOKUP($B$1,Sheet1!$A:$J,4,FALSE)))/0.5,0)*0.5 -> -3 | M10: =ROUND(((VLOOKUP(A10,Sheet1!$A:$J,4,FALSE))-(VLOOKUP($B$1,Sheet1!$A:$J,4,FALSE))+Games!$C$542)/0.5,0)*0.5 -> -1.5 | N10: =ROUND(((VLOOKUP(A10,Sheet1!$A:$J,4,FALSE))-(VLOOKUP($B$1,Sheet1!$A:$J,4,FALSE))-Games!$C$542)/0.5,0)*0.5 -> -4 | O10: =VLOOKUP(A10,Sheet1!$A:$M,13,FALSE) -> Ivy | P10: =IF(K10<>0,VLOOKUP(A10,Sheet1!A:H,7,FALSE),"#N/A") -> 9.307692308 | Q10: =IF(K10<>0,VLOOKUP(A10,Sheet1!A:H,8,FALSE),"#N/A") -> 10.23076923 | R10: =IF(K10<>0,((COUNTIFS(Games!A:A,A10,Games!F:F,"W")+COUNTIFS(Games!B:B,A10,Games!F:F,"L")-COUNTIFS(Games!A:A,A10,Games!B:B,$B$1,Games!F:F,"W")-COUNTIFS(Games!$B:$B,A10,Games!$A:$A,$B$1,Games!F:F,"L"))/(COUNTIFS(Games!A:A,A10)+COUNTIF(Games!B:B,A10)-COUNTIFS(Games!A:A,A10,Games!B:B,$B$1)-COUNTIFS(Games!B:B,A10,Games!A:A,$B$1))),"#DIV/0!") -> 0.5 | S10: =VLOOKUP(A10,'RPI Nitty Gritty Report'!A:C,3,FALSE) -> 0.5310671606 | T10: =IF(K10<>0,VLOOKUP(A10,'RPI Nitty Gritty Report'!A:F,6,FALSE),"#N/A") -> 32 | V10: =IF(K10<>0,VLOOKUP(A10,'RPI Nitty Gritty Report'!$A:$P,6,FALSE),"#N/A") -> 32 | W10: FALSE | X10: FALSE | Y10: YES | Z10: FALSE | AB10: SRS Ranking (NCAA): | AC10: =VLOOKUP(B1,Sheet1!A:J,5,FALSE) -> 14
A11: Massachusetts | B11: 16 | C11: 4 | D11: W | E11: 0 | F11: A | G11: -1 | H11: =NORMDIST(0,G11,Games!$C$539,TRUE) -> 0.6085805474 | I11: =VLOOKUP(A11,Sheet1!A:K,5,FALSE) -> 27 | J11: W | K11: 12 | L11: =ROUND(((VLOOKUP(A11,Sheet1!$A:$J,4,FALSE))-(VLOOKUP($B$1,Sheet1!$A:$J,4,FALSE)))/0.5,0)*0.5 -> -2.5 | M11: =ROUND(((VLOOKUP(A11,Sheet1!$A:$J,4,FALSE))-(VLOOKUP($B$1,Sheet1!$A:$J,4,FALSE))+Games!$C$542)/0.5,0)*0.5 -> -1 | N11: =ROUND(((VLOOKUP(A11,Sheet1!$A:$J,4,FALSE))-(VLOOKUP($B$1,Sheet1!$A:$J,4,FALSE))-Games!$C$542)/0.5,0)*0.5 -> -3.5 | O11: =VLOOKUP(A11,Sheet1!$A:$M,13,FALSE) -> CAA | P11: =IF(K11<>0,VLOOKUP(A11,Sheet1!A:H,7,FALSE),"#N/A") -> 8.615384615 | Q11: =IF(K11<>0,VLOOKUP(A11,Sheet1!A:H,8,FALSE),"#N/A") -> 9.846153846 | R11: =IF(K11<>0,((COUNTIFS(Games!A:A,A11,Games!F:F,"W")+COUNTIFS(Games!B:B,A11,Games!F:F,"L")-COUNTIFS(Games!A:A,A11,Games!B:B,$B$1,Games!F:F,"W")-COUNTIFS(Games!$B:$B,A11,Games!$A:$A,$B$1,Games!F:F,"L"))/(COUNTIFS(Games!A:A,A11)+COUNTIF(Games!B:B,A11)-COUNTIFS(Games!A:A,A11,Games!B:B,$B$1)-COUNTIFS(Games!B:B,A11,Games!A:A,$B$1))),"#DIV/0!") -> 0.3333333333 | S11: =VLOOKUP(A11,'RPI Nitty Gritty Report'!A:C,3,FALSE) -> 0.5828943116 | T11: =IF(K11<>0,VLOOKUP(A11,'RPI Nitty Gritty Report'!A:F,6,FALSE),"#N/A") -> 37 | V11: =IF(K11<>0,VLOOKUP(A11,'RPI Nitty Gritty Report'!$A:$P,6,FALSE),"#N/A") -> 37 | W11: FALSE | X11: FALSE | Y11: YES | Z11: FALSE | AB11: SRS Ranking (Conf.): | AC11: =1+SUMPRODUCT((Sheet1!M2:M71=B3)*(Sheet1!E2:E71<AC10)) -> 2
A12: Maryland | B12: 7 | C12: 10 | D12: 0 | E12: L | F12: A | G12: 3.5 | H12: =NORMDIST(0,G12,Games!$C$539,TRUE) -> 0.1673538743 | I12: =VLOOKUP(A12,Sheet1!A:K,5,FALSE) -> 2 | J12: L | K12: -3 | L12: =ROUND(((VLOOKUP(A12,Sheet1!$A:$J,4,FALSE))-(VLOOKUP($B$1,Sheet1!$A:$J,4,FALSE)))/0.5,0)*0.5 -> 2 | M12: =ROUND(((VLOOKUP(A12,Sheet1!$A:$J,4,FALSE))-(VLOOKUP($B$1,Sheet1!$A:$J,4,FALSE))+Games!$C$542)/0.5,0)*0.5 -> 3.5 | N12: =ROUND(((VLOOKUP(A12,Sheet1!$A:$J,4,FALSE))-(VLOOKUP($B$1,Sheet1!$A:$J,4,FALSE))-Games!$C$542)/0.5,0)*0.5 -> 1 | O12: =VLOOKUP(A12,Sheet1!$A:$M,13,FALSE) -> Big Ten | P12: =IF(K12<>0,VLOOKUP(A12,Sheet1!A:H,7,FALSE),"#N/A") -> 11.33333333 | Q12: =IF(K12<>0,VLOOKUP(A12,Sheet1!A:H,8,FALSE),"#N/A") -> 7.722222222 | R12: =IF(K12<>0,((COUNTIFS(Games!A:A,A12,Games!F:F,"W")+COUNTIFS(Games!B:B,A12,Games!F:F,"L")-COUNTIFS(Games!A:A,A12,Games!B:B,$B$1,Games!F:F,"W")-COUNTIFS(Games!$B:$B,A12,Games!$A:$A,$B$1,Games!F:F,"L"))/(COUNTIFS(Games!A:A,A12)+COUNTIF(Games!B:B,A12)-COUNTIFS(Games!A:A,A12,Games!B:B,$B$1)-COUNTIFS(Games!B:B,A12,Games!A:A,$B$1))),"#DIV/0!") -> 0.8823529412 | S12: =VLOOKUP(A12,'RPI Nitty Gritty Report'!A:C,3,FALSE) -> 0.635968661 | T12: =IF(K12<>0,VLOOKUP(A12,'RPI Nitty Gritty Report'!A:F,6,FALSE),"#N/A") -> 1 | V12: =IF(K12<>0,VLOOKUP(A12,'RPI Nitty Gritty Report'!$A:$P,6,FALSE),"#N/A") -> 1 | W12: YES | X12: FALSE | Y12: FALSE | Z12: FALSE | AB12: SRS SoS Value: | AC12: =VLOOKUP(B1,Sheet1!$A:$L,3,FALSE) -> 0.8332335835
A13: Stony Brook | B13: 16 | C13: 10 | D13: W | E13: 0 | F13: H | G13: -1 | H13: =NORMDIST(0,G13,Games!$C$539,TRUE) -> 0.6085805474 | I13: =VLOOKUP(A13,Sheet1!A:K,5,FALSE) -> 11 | J13: W | K13: 6 | L13: =ROUND(((VLOOKUP(A13,Sheet1!$A:$J,4,FALSE))-(VLOOKUP($B$1,Sheet1!$A:$J,4,FALSE)))/0.5,0)*0.5 -> 0 | M13: =ROUND(((VLOOKUP(A13,Sheet1!$A:$J,4,FALSE))-(VLOOKUP($B$1,Sheet1!$A:$J,4,FALSE))+Games!$C$542)/0.5,0)*0.5 -> 1.5 | N13: =ROUND(((VLOOKUP(A13,Sheet1!$A:$J,4,FALSE))-(VLOOKUP($B$1,Sheet1!$A:$J,4,FALSE))-Games!$C$542)/0.5,0)*0.5 -> -1 | O13: =VLOOKUP(A13,Sheet1!$A:$M,13,FALSE) -> America East | P13: =IF(K13<>0,VLOOKUP(A13,Sheet1!A:H,7,FALSE),"#N/A") -> 13.3125 | Q13: =IF(K13<>0,VLOOKUP(A13,Sheet1!A:H,8,FALSE),"#N/A") -> 9.125 | R13: =IF(K13<>0,((COUNTIFS(Games!A:A,A13,Games!F:F,"W")+COUNTIFS(Games!B:B,A13,Games!F:F,"L")-COUNTIFS(Games!A:A,A13,Games!B:B,$B$1,Games!F:F,"W")-COUNTIFS(Games!$B:$B,A13,Games!$A:$A,$B$1,Games!F:F,"L"))/(COUNTIFS(Games!A:A,A13)+COUNTIF(Games!B:B,A13)-COUNTIFS(Games!A:A,A13,Games!B:B,$B$1)-COUNTIFS(Games!B:B,A13,Games!A:A,$B$1))),"#DIV/0!") -> 0.8 | S13: =VLOOKUP(A13,'RPI Nitty Gritty Report'!A:C,3,FALSE) -> 0.4884940274 | T13: =IF(K13<>0,VLOOKUP(A13,'RPI Nitty Gritty Report'!A:F,6,FALSE),"#N/A") -> 19 | V13: =IF(K13<>0,VLOOKUP(A13,'RPI Nitty Gritty Report'!$A:$P,6,FALSE),"#N/A") -> 19 | W13: FALSE | X13: YES | Y13: FALSE | Z13: FALSE | AB13: SRS SoS Ranking (NCAA): | AC13: =VLOOKUP(B1,Sheet1!A:J,6,FALSE) -> 27
A14: Hartford | B14: 13 | C14: 9 | D14: W | E14: 0 | F14: A | G14: -2.5 | H14: =NORMDIST(0,G14,Games!$C$539,TRUE) -> 0.7546051648 | I14: =VLOOKUP(A14,Sheet1!A:K,5,FALSE) -> 37 | J14: W | K14: 4 | L14: =ROUND(((VLOOKUP(A14,Sheet1!$A:$J,4,FALSE))-(VLOOKUP($B$1,Sheet1!$A:$J,4,FALSE)))/0.5,0)*0.5 -> -4 | M14: =ROUND(((VLOOKUP(A14,Sheet1!$A:$J,4,FALSE))-(VLOOKUP($B$1,Sheet1!$A:$J,4,FALSE))+Games!$C$542)/0.5,0)*0.5 -> -2.5 | N14: =ROUND(((VLOOKUP(A14,Sheet1!$A:$J,4,FALSE))-(VLOOKUP($B$1,Sheet1!$A:$J,4,FALSE))-Games!$C$542)/0.5,0)*0.5 -> -5 | O14: =VLOOKUP(A14,Sheet1!$A:$M,13,FALSE) -> America East | P14: =IF(K14<>0,VLOOKUP(A14,Sheet1!A:H,7,FALSE),"#N/A") -> 10.83333333 | Q14: =IF(K14<>0,VLOOKUP(A14,Sheet1!A:H,8,FALSE),"#N/A") -> 10.16666667 | R14: =IF(K14<>0,((COUNTIFS(Games!A:A,A14,Games!F:F,"W")+COUNTIFS(Games!B:B,A14,Games!F:F,"L")-COUNTIFS(Games!A:A,A14,Games!B:B,$B$1,Games!F:F,"W")-COUNTIFS(Games!$B:$B,A14,Games!$A:$A,$B$1,Games!F:F,"L"))/(COUNTIFS(Games!A:A,A14)+COUNTIF(Games!B:B,A14)-COUNTIFS(Games!A:A,A14,Games!B:B,$B$1)-COUNTIFS(Games!B:B,A14,Games!A:A,$B$1))),"#DIV/0!") -> 0.625 | S14: =VLOOKUP(A14,'RPI Nitty Gritty Report'!A:C,3,FALSE) -> 0.4794261294 | T14: =IF(K14<>0,VLOOKUP(A14,'RPI Nitty Gritty Report'!A:F,6,FALSE),"#N/A") -> 31 | V14: =IF(K14<>0,VLOOKUP(A14,'RPI Nitty Gritty Report'!$A:$P,6,FALSE),"#N/A") -> 31 | W14: FALSE | X14: FALSE | Y14: YES | Z14: FALSE | AB14: SRS SoS Ranking (Conf.): | AC14: =1+SUMPRODUCT((Sheet1!M2:M71=B3)*(Sheet1!F2:F71<AC13)) -> 1
A15: Harvard | B15: 10 | C15: 9 | D15: W | E15: 0 | F15: H | G15: -2 | H15: =NORMDIST(0,G15,Games!$C$539,TRUE) -> 0.7092663477 | I15: =VLOOKUP(A15,Sheet1!A:K,5,FALSE) -> 16 | J15: W | K15: 1 | L15: =ROUND(((VLOOKUP(A15,Sheet1!$A:$J,4,FALSE))-(VLOOKUP($B$1,Sheet1!$A:$J,4,FALSE)))/0.5,0)*0.5 -> -0.5 | M15: =ROUND(((VLOOKUP(A15,Sheet1!$A:$J,4,FALSE))-(VLOOKUP($B$1,Sheet1!$A:$J,4,FALSE))+Games!$C$542)/0.5,0)*0.5 -> 0.5 | N15: =ROUND(((VLOOKUP(A15,Sheet1!$A:$J,4,FALSE))-(VLOOKUP($B$1,Sheet1!$A:$J,4,FALSE))-Games!$C$542)/0.5,0)*0.5 -> -2 | O15: =VLOOKUP(A15,Sheet1!$A:$M,13,FALSE) -> Ivy | P15: =IF(K15<>0,VLOOKUP(A15,Sheet1!A:H,7,FALSE),"#N/A") -> 11.4375 | Q15: =IF(K15<>0,VLOOKUP(A15,Sheet1!A:H,8,FALSE),"#N/A") -> 10.75 | R15: =IF(K15<>0,((COUNTIFS(Games!A:A,A15,Games!F:F,"W")+COUNTIFS(Games!B:B,A15,Games!F:F,"L")-COUNTIFS(Games!A:A,A15,Games!B:B,$B$1,Games!F:F,"W")-COUNTIFS(Games!$B:$B,A15,Games!$A:$A,$B$1,Games!F:F,"L"))/(COUNTIFS(Games!A:A,A15)+COUNTIF(Games!B:B,A15)-COUNTIFS(Games!A:A,A15,Games!B:B,$B$1)-COUNTIFS(Games!B:B,A15,Games!A:A,$B$1))),"#DIV/0!") -> 0.5333333333 | S15: =VLOOKUP(A15,'RPI Nitty Gritty Report'!A:C,3,FALSE) -> 0.5774172009 | T15: =IF(K15<>0,VLOOKUP(A15,'RPI Nitty Gritty Report'!A:F,6,FALSE),"#N/A") -> 23 | V15: =IF(K15<>0,VLOOKUP(A15,'RPI Nitty Gritty Report'!$A:$P,6,FALSE),"#N/A") -> 23 | W15: FALSE | X15: YES | Y15: FALSE | Z15: FALSE
A16: Lowell | B16: 16 | C16: 9 | D16: W | E16: 0 | F16: A | G16: -7.5 | H16: =NORMDIST(0,G16,Games!$C$539,TRUE) -> 0.9806404679 | I16: =VLOOKUP(A16,Sheet1!A:K,5,FALSE) -> 63 | J16: W | K16: 7 | L16: =ROUND(((VLOOKUP(A16,Sheet1!$A:$J,4,FALSE))-(VLOOKUP($B$1,Sheet1!$A:$J,4,FALSE)))/0.5,0)*0.5 -> -8.5 | M16: =ROUND(((VLOOKUP(A16,Sheet1!$A:$J,4,FALSE))-(VLOOKUP($B$1,Sheet1!$A:$J,4,FALSE))+Games!$C$542)/0.5,0)*0.5 -> -7.5 | N16: =ROUND(((VLOOKUP(A16,Sheet1!$A:$J,4,FALSE))-(VLOOKUP($B$1,Sheet1!$A:$J,4,FALSE))-Games!$C$542)/0.5,0)*0.5 -> -10 | O16: =VLOOKUP(A16,Sheet1!$A:$M,13,FALSE) -> America East | P16: =IF(K16<>0,VLOOKUP(A16,Sheet1!A:H,7,FALSE),"#N/A") -> 8.3125 | Q16: =IF(K16<>0,VLOOKUP(A16,Sheet1!A:H,8,FALSE),"#N/A") -> 11.4375 | R16: =IF(K16<>0,((COUNTIFS(Games!A:A,A16,Games!F:F,"W")+COUNTIFS(Games!B:B,A16,Games!F:F,"L")-COUNTIFS(Games!A:A,A16,Games!B:B,$B$1,Games!F:F,"W")-COUNTIFS(Games!$B:$B,A16,Games!$A:$A,$B$1,Games!F:F,"L"))/(COUNTIFS(Games!A:A,A16)+COUNTIF(Games!B:B,A16)-COUNTIFS(Games!A:A,A16,Games!B:B,$B$1)-COUNTIFS(Games!B:B,A16,Games!A:A,$B$1))),"#DIV/0!") -> 0.2666666667 | S16: =VLOOKUP(A16,'RPI Nitty Gritty Report'!A:C,3,FALSE) -> 0.3970554568 | T16: =IF(K16<>0,VLOOKUP(A16,'RPI Nitty Gritty Report'!A:F,6,FALSE),"#N/A") -> 63 | V16: =IF(K16<>0,VLOOKUP(A16,'RPI Nitty Gritty Report'!$A:$P,6,FALSE),"#N/A") -> 63 | W16: FALSE | X16: FALSE | Y16: FALSE | Z16: YES | AB16: Actual Win % (All): | AC16: =COUNTIF(D8:D33,"W")/(COUNTIF(D8:D33,"W")+(COUNTIF(E8:E33,"L"))) -> 0.75
A17: Vermont | B17: 13 | C17: 7 | D17: W | E17: 0 | F17: H | G17: -5 | H17: =NORMDIST(0,G17,Games!$C$539,TRUE) -> 0.9159148385 | I17: =VLOOKUP(A17,Sheet1!A:K,5,FALSE) -> 35 | J17: W | K17: 6 | L17: =ROUND(((VLOOKUP(A17,Sheet1!$A:$J,4,FALSE))-(VLOOKUP($B$1,Sheet1!$A:$J,4,FALSE)))/0.5,0)*0.5 -> -4 | M17: =ROUND(((VLOOKUP(A17,Sheet1!$A:$J,4,FALSE))-(VLOOKUP($B$1,Sheet1!$A:$J,4,FALSE))+Games!$C$542)/0.5,0)*0.5 -> -2.5 | N17: =ROUND(((VLOOKUP(A17,Sheet1!$A:$J,4,FALSE))-(VLOOKUP($B$1,Sheet1!$A:$J,4,FALSE))-Games!$C$542)/0.5,0)*0.5 -> -5 | O17: =VLOOKUP(A17,Sheet1!$A:$M,13,FALSE) -> America East | P17: =IF(K17<>0,VLOOKUP(A17,Sheet1!A:H,7,FALSE),"#N/A") -> 12.35294118 | Q17: =IF(K17<>0,VLOOKUP(A17,Sheet1!A:H,8,FALSE),"#N/A") -> 10.64705882 | R17: =IF(K17<>0,((COUNTIFS(Games!A:A,A17,Games!F:F,"W")+COUNTIFS(Games!B:B,A17,Games!F:F,"L")-COUNTIFS(Games!A:A,A17,Games!B:B,$B$1,Games!F:F,"W")-COUNTIFS(Games!$B:$B,A17,Games!$A:$A,$B$1,Games!F:F,"L"))/(COUNTIFS(Games!A:A,A17)+COUNTIF(Games!B:B,A17)-COUNTIFS(Games!A:A,A17,Games!B:B,$B$1)-COUNTIFS(Games!B:B,A17,Games!A:A,$B$1))),"#DIV/0!") -> 0.5625 | S17: =VLOOKUP(A17,'RPI Nitty Gritty Report'!A:C,3,FALSE) -> 0.3871589195 | T17: =IF(K17<>0,VLOOKUP(A17,'RPI Nitty Gritty Report'!A:F,6,FALSE),"#N/A") -> 51 | V17: =IF(K17<>0,VLOOKUP(A17,'RPI Nitty Gritty Report'!$A:$P,6,FALSE),"#N/A") -> 51 | W17: FALSE | X17: FALSE | Y17: FALSE | Z17: YES | AB17: Expected SRS Win % (All): | AC17: =SUMIFS(H8:H33,H8:H33,"<>N/A",K8:K33,"<>0")/(COUNTIF(K8:K33,"<>0")) -> 0.6907657803
A18: Binghamton | B18: 12 | C18: 8 | D18: W | E18: 0 | F18: H | G18: -8 | H18: =NORMDIST(0,G18,Games!$C$539,TRUE) -> 0.9862719298 | I18: =VLOOKUP(A18,Sheet1!A:K,5,FALSE) -> 54 | J18: W | K18: 4 | L18: =ROUND(((VLOOKUP(A18,Sheet1!$A:$J,4,FALSE))-(VLOOKUP($B$1,Sheet1!$A:$J,4,FALSE)))/0.5,0)*0.5 -> -6.5 | M18: =ROUND(((VLOOKUP(A18,Sheet1!$A:$J,4,FALSE))-(VLOOKUP($B$1,Sheet1!$A:$J,4,FALSE))+Games!$C$542)/0.5,0)*0.5 -> -5 | N18: =ROUND(((VLOOKUP(A18,Sheet1!$A:$J,4,FALSE))-(VLOOKUP($B$1,Sheet1!$A:$J,4,FALSE))-Games!$C$542)/0.5,0)*0.5 -> -8 | O18: =VLOOKUP(A18,Sheet1!$A:$M,13,FALSE) -> America East | P18: =IF(K18<>0,VLOOKUP(A18,Sheet1!A:H,7,FALSE),"#N/A") -> 9.428571429 | Q18: =IF(K18<>0,VLOOKUP(A18,Sheet1!A:H,8,FALSE),"#N/A") -> 12.07142857 | R18: =IF(K18<>0,((COUNTIFS(Games!A:A,A18,Games!F:F,"W")+COUNTIFS(Games!B:B,A18,Games!F:F,"L")-COUNTIFS(Games!A:A,A18,Games!B:B,$B$1,Games!F:F,"W")-COUNTIFS(Games!$B:$B,A18,Games!$A:$A,$B$1,Games!F:F,"L"))/(COUNTIFS(Games!A:A,A18)+COUNTIF(Games!B:B,A18)-COUNTIFS(Games!A:A,A18,Games!B:B,$B$1)-COUNTIFS(Games!B:B,A18,Games!A:A,$B$1))),"#DIV/0!") -> 0.3076923077 | S18: =VLOOKUP(A18,'RPI Nitty Gritty Report'!A:C,3,FALSE) -> 0.5039013508 | T18: =IF(K18<>0,VLOOKUP(A18,'RPI Nitty Gritty Report'!A:F,6,FALSE),"#N/A") -> 52 | V18: =IF(K18<>0,VLOOKUP(A18,'RPI Nitty Gritty Report'!$A:$P,6,FALSE),"#N/A") -> 52 | W18: FALSE | X18: FALSE | Y18: FALSE | Z18: YES | AB18: Wins +/- Expectation (All): | AC18: =(AC16*(COUNTIF(G8:G33,"<>#N/A")))-(AC17*(COUNTIF(G8:G33,"<>#N/A"))) -> 0.9477475146
A19: Yale | B19: 14 | C19: 13 | D19: W | E19: 0 | F19: A | G19: 2.5 | H19: =NORMDIST(0,G19,Games!$C$539,TRUE) -> 0.2453948352 | I19: =VLOOKUP(A19,Sheet1!A:K,5,FALSE) -> 6 | J19: L | K19: 1 | L19: =ROUND(((VLOOKUP(A19,Sheet1!$A:$J,4,FALSE))-(VLOOKUP($B$1,Sheet1!$A:$J,4,FALSE)))/0.5,0)*0.5 -> 1 | M19: =ROUND(((VLOOKUP(A19,Sheet1!$A:$J,4,FALSE))-(VLOOKUP($B$1,Sheet1!$A:$J,4,FALSE))+Games!$C$542)/0.5,0)*0.5 -> 2.5 | N19: =ROUND(((VLOOKUP(A19,Sheet1!$A:$J,4,FALSE))-(VLOOKUP($B$1,Sheet1!$A:$J,4,FALSE))-Games!$C$542)/0.5,0)*0.5 -> 0 | O19: =VLOOKUP(A19,Sheet1!$A:$M,13,FALSE) -> Ivy | P19: =IF(K19<>0,VLOOKUP(A19,Sheet1!A:H,7,FALSE),"#N/A") -> 12.375 | Q19: =IF(K19<>0,VLOOKUP(A19,Sheet1!A:H,8,FALSE),"#N/A") -> 8.125 | R19: =IF(K19<>0,((COUNTIFS(Games!A:A,A19,Games!F:F,"W")+COUNTIFS(Games!B:B,A19,Games!F:F,"L")-COUNTIFS(Games!A:A,A19,Games!B:B,$B$1,Games!F:F,"W")-COUNTIFS(Games!$B:$B,A19,Games!$A:$A,$B$1,Games!F:F,"L"))/(COUNTIFS(Games!A:A,A19)+COUNTIF(Games!B:B,A19)-COUNTIFS(Games!A:A,A19,Games!B:B,$B$1)-COUNTIFS(Games!B:B,A19,Games!A:A,$B$1))),"#DIV/0!") -> 0.8666666667 | S19: =VLOOKUP(A19,'RPI Nitty Gritty Report'!A:C,3,FALSE) -> 0.5263360873 | T19: =IF(K19<>0,VLOOKUP(A19,'RPI Nitty Gritty Report'!A:F,6,FALSE),"#N/A") -> 5 | V19: =IF(K19<>0,VLOOKUP(A19,'RPI Nitty Gritty Report'!$A:$P,6,FALSE),"#N/A") -> 5 | W19: YES | X19: FALSE | Y19: FALSE | Z19: FALSE | AB19: Expected Remaining Wins (All): | AC19: =SUMIFS(H8:H33,G8:G33,"<>#N/A",K8:K33,"0") -> 0
A20: Siena | B20: 17 | C20: 8 | D20: W | E20: 0 | F20: H | G20: -9.5 | H20: =NORMDIST(0,G20,Games!$C$539,TRUE) -> 0.9955828782 | I20: =VLOOKUP(A20,Sheet1!A:K,5,FALSE) -> 62 | J20: W | K20: 9 | L20: =ROUND(((VLOOKUP(A20,Sheet1!$A:$J,4,FALSE))-(VLOOKUP($B$1,Sheet1!$A:$J,4,FALSE)))/0.5,0)*0.5 -> -8.5 | M20: =ROUND(((VLOOKUP(A20,Sheet1!$A:$J,4,FALSE))-(VLOOKUP($B$1,Sheet1!$A:$J,4,FALSE))+Games!$C$542)/0.5,0)*0.5 -> -7 | N20: =ROUND(((VLOOKUP(A20,Sheet1!$A:$J,4,FALSE))-(VLOOKUP($B$1,Sheet1!$A:$J,4,FALSE))-Games!$C$542)/0.5,0)*0.5 -> -9.5 | O20: =VLOOKUP(A20,Sheet1!$A:$M,13,FALSE) -> MAAC | P20: =IF(K20<>0,VLOOKUP(A20,Sheet1!A:H,7,FALSE),"#N/A") -> 8.769230769 | Q20: =IF(K20<>0,VLOOKUP(A20,Sheet1!A:H,8,FALSE),"#N/A") -> 12.07692308 | R20: =IF(K20<>0,((COUNTIFS(Games!A:A,A20,Games!F:F,"W")+COUNTIFS(Games!B:B,A20,Games!F:F,"L")-COUNTIFS(Games!A:A,A20,Games!B:B,$B$1,Games!F:F,"W")-COUNTIFS(Games!$B:$B,A20,Games!$A:$A,$B$1,Games!F:F,"L"))/(COUNTIFS(Games!A:A,A20)+COUNTIF(Games!B:B,A20)-COUNTIFS(Games!A:A,A20,Games!B:B,$B$1)-COUNTIFS(Games!B:B,A20,Games!A:A,$B$1))),"#DIV/0!") -> 0.25 | S20: =VLOOKUP(A20,'RPI Nitty Gritty Report'!A:C,3,FALSE) -> 0.4342713847 | T20: =IF(K20<>0,VLOOKUP(A20,'RPI Nitty Gritty Report'!A:F,6,FALSE),"#N/A") -> 61 | V20: =IF(K20<>0,VLOOKUP(A20,'RPI Nitty Gritty Report'!$A:$P,6,FALSE),"#N/A") -> 61 | W20: FALSE | X20: FALSE | Y20: FALSE | Z20: YES | AB20: Actual Margin (All): | AC20: =SUM(K8:K33) -> 46
A21: UMBC | B21: 15 | C21: 14 | D21: W | E21: 0 | F21: A | G21: -5 | H21: =NORMDIST(0,G21,Games!$C$539,TRUE) -> 0.9159148385 | I21: =VLOOKUP(A21,Sheet1!A:K,5,FALSE) -> 52 | J21: W | K21: 1 | L21: =ROUND(((VLOOKUP(A21,Sheet1!$A:$J,4,FALSE))-(VLOOKUP($B$1,Sheet1!$A:$J,4,FALSE)))/0.5,0)*0.5 -> -6 | M21: =ROUND(((VLOOKUP(A21,Sheet1!$A:$J,4,FALSE))-(VLOOKUP($B$1,Sheet1!$A:$J,4,FALSE))+Games!$C$542)/0.5,0)*0.5 -> -5 | N21: =ROUND(((VLOOKUP(A21,Sheet1!$A:$J,4,FALSE))-(VLOOKUP($B$1,Sheet1!$A:$J,4,FALSE))-Games!$C$542)/0.5,0)*0.5 -> -7.5 | O21: =VLOOKUP(A21,Sheet1!$A:$M,13,FALSE) -> America East | P21: =IF(K21<>0,VLOOKUP(A21,Sheet1!A:H,7,FALSE),"#N/A") -> 9 | Q21: =IF(K21<>0,VLOOKUP(A21,Sheet1!A:H,8,FALSE),"#N/A") -> 11.71428571 | R21: =IF(K21<>0,((COUNTIFS(Games!A:A,A21,Games!F:F,"W")+COUNTIFS(Games!B:B,A21,Games!F:F,"L")-COUNTIFS(Games!A:A,A21,Games!B:B,$B$1,Games!F:F,"W")-COUNTIFS(Games!$B:$B,A21,Games!$A:$A,$B$1,Games!F:F,"L"))/(COUNTIFS(Games!A:A,A21)+COUNTIF(Games!B:B,A21)-COUNTIFS(Games!A:A,A21,Games!B:B,$B$1)-COUNTIFS(Games!B:B,A21,Games!A:A,$B$1))),"#DIV/0!") -> 0.3076923077 | S21: =VLOOKUP(A21,'RPI Nitty Gritty Report'!A:C,3,FALSE) -> 0.5195154985 | T21: =IF(K21<>0,VLOOKUP(A21,'RPI Nitty Gritty Report'!A:F,6,FALSE),"#N/A") -> 46 | V21: =IF(K21<>0,VLOOKUP(A21,'RPI Nitty Gritty Report'!$A:$P,6,FALSE),"#N/A") -> 46 | W21: FALSE | X21: FALSE | Y21: YES | Z21: FALSE | AB21: Predicted Margin (All): | AC21: =-SUMIFS(G8:G33,G8:G33,"<>#N/A",K8:K33,"<>0") -> 44
A22: Hartford | B22: 10 | C22: 11 | D22: 0 | E22: L | F22: H | G22: -5 | H22: =NORMDIST(0,G22,Games!$C$539,TRUE) -> 0.9159148385 | I22: =VLOOKUP(A22,Sheet1!A:K,5,FALSE) -> 37 | J22: W | K22: -1 | L22: =ROUND(((VLOOKUP(A22,Sheet1!$A:$J,4,FALSE))-(VLOOKUP($B$1,Sheet1!$A:$J,4,FALSE)))/0.5,0)*0.5 -> -4 | M22: =ROUND(((VLOOKUP(A22,Sheet1!$A:$J,4,FALSE))-(VLOOKUP($B$1,Sheet1!$A:$J,4,FALSE))+Games!$C$542)/0.5,0)*0.5 -> -2.5 | N22: =ROUND(((VLOOKUP(A22,Sheet1!$A:$J,4,FALSE))-(VLOOKUP($B$1,Sheet1!$A:$J,4,FALSE))-Games!$C$542)/0.5,0)*0.5 -> -5 | O22: =VLOOKUP(A22,Sheet1!$A:$M,13,FALSE) -> America East | P22: =IF(K22<>0,VLOOKUP(A22,Sheet1!A:H,7,FALSE),"#N/A") -> 10.83333333 | Q22: =IF(K22<>0,VLOOKUP(A22,Sheet1!A:H,8,FALSE),"#N/A") -> 10.16666667 | R22: =IF(K22<>0,((COUNTIFS(Games!A:A,A22,Games!F:F,"W")+COUNTIFS(Games!B:B,A22,Games!F:F,"L")-COUNTIFS(Games!A:A,A22,Games!B:B,$B$1,Games!F:F,"W")-COUNTIFS(Games!$B:$B,A22,Games!$A:$A,$B$1,Games!F:F,"L"))/(COUNTIFS(Games!A:A,A22)+COUNTIF(Games!B:B,A22)-COUNTIFS(Games!A:A,A22,Games!B:B,$B$1)-COUNTIFS(Games!B:B,A22,Games!A:A,$B$1))),"#DIV/0!") -> 0.625 | S22: =VLOOKUP(A22,'RPI Nitty Gritty Report'!A:C,3,FALSE) -> 0.4794261294 | T22: =IF(K22<>0,VLOOKUP(A22,'RPI Nitty Gritty Report'!A:F,6,FALSE),"#N/A") -> 31 | V22: =IF(K22<>0,VLOOKUP(A22,'RPI Nitty Gritty Report'!$A:$P,6,FALSE),"#N/A") -> 31 | W22: FALSE | X22: FALSE | Y22: YES | Z22: FALSE
A23: Syracuse | B23: 9 | C23: 11 | D23: 0 | E23: L | F23: A | G23: 2.5 | H23: =NORMDIST(0,G23,Games!$C$539,TRUE) -> 0.2453948352 | I23: =VLOOKUP(A23,Sheet1!A:K,5,FALSE) -> 5 | J23: L | K23: -2 | L23: =ROUND(((VLOOKUP(A23,Sheet1!$A:$J,4,FALSE))-(VLOOKUP($B$1,Sheet1!$A:$J,4,FALSE)))/0.5,0)*0.5 -> 1.5 | M23: =ROUND(((VLOOKUP(A23,Sheet1!$A:$J,4,FALSE))-(VLOOKUP($B$1,Sheet1!$A:$J,4,FALSE))+Games!$C$542)/0.5,0)*0.5 -> 2.5 | N23: =ROUND(((VLOOKUP(A23,Sheet1!$A:$J,4,FALSE))-(VLOOKUP($B$1,Sheet1!$A:$J,4,FALSE))-Games!$C$542)/0.5,0)*0.5 -> 0 | O23: =VLOOKUP(A23,Sheet1!$A:$M,13,FALSE) -> ACC | P23: =IF(K23<>0,VLOOKUP(A23,Sheet1!A:H,7,FALSE),"#N/A") -> 12.47058824 | Q23: =IF(K23<>0,VLOOKUP(A23,Sheet1!A:H,8,FALSE),"#N/A") -> 8.764705882 | R23: =IF(K23<>0,((COUNTIFS(Games!A:A,A23,Games!F:F,"W")+COUNTIFS(Games!B:B,A23,Games!F:F,"L")-COUNTIFS(Games!A:A,A23,Games!B:B,$B$1,Games!F:F,"W")-COUNTIFS(Games!$B:$B,A23,Games!$A:$A,$B$1,Games!F:F,"L"))/(COUNTIFS(Games!A:A,A23)+COUNTIF(Games!B:B,A23)-COUNTIFS(Games!A:A,A23,Games!B:B,$B$1)-COUNTIFS(Games!B:B,A23,Games!A:A,$B$1))),"#DIV/0!") -> 0.6666666667 | S23: =VLOOKUP(A23,'RPI Nitty Gritty Report'!A:C,3,FALSE) -> 0.564815519 | T23: =IF(K23<>0,VLOOKUP(A23,'RPI Nitty Gritty Report'!A:F,6,FALSE),"#N/A") -> 7 | V23: =IF(K23<>0,VLOOKUP(A23,'RPI Nitty Gritty Report'!$A:$P,6,FALSE),"#N/A") -> 7 | W23: YES | X23: FALSE | Y23: FALSE | Z23: FALSE | AB23: Actual Win % (Conf.): | AC23: =COUNTIFS(D8:D33,"W",O8:O33,B3)/(COUNTIFS(D8:D33,"W",O8:O33,B3)+(COUNTIFS(E8:E33,"L",O8:O33,B3))) -> 0.8571428571
D24: 0 | E24: 0 | H24: =NORMDIST(0,G24,Games!$C$539,TRUE) ->  | I24: =VLOOKUP(A24,Sheet1!A:K,5,FALSE) ->  | J24: #N/A | K24: 0 | L24: =ROUND(((VLOOKUP(A24,Sheet1!$A:$J,4,FALSE))-(VLOOKUP($B$1,Sheet1!$A:$J,4,FALSE)))/0.5,0)*0.5 ->  | M24: =ROUND(((VLOOKUP(A24,Sheet1!$A:$J,4,FALSE))-(VLOOKUP($B$1,Sheet1!$A:$J,4,FALSE))+Games!$C$542)/0.5,0)*0.5 ->  | N24: =ROUND(((VLOOKUP(A24,Sheet1!$A:$J,4,FALSE))-(VLOOKUP($B$1,Sheet1!$A:$J,4,FALSE))-Games!$C$542)/0.5,0)*0.5 ->  | O24: =VLOOKUP(A24,Sheet1!$A:$M,13,FALSE) ->  | P24: =IF(K24<>0,VLOOKUP(A24,Sheet1!A:H,7,FALSE),"#N/A") -> #N/A | Q24: =IF(K24<>0,VLOOKUP(A24,Sheet1!A:H,8,FALSE),"#N/A") -> #N/A | R24: =IF(K24<>0,((COUNTIFS(Games!A:A,A24,Games!F:F,"W")+COUNTIFS(Games!B:B,A24,Games!F:F,"L")-COUNTIFS(Games!A:A,A24,Games!B:B,$B$1,Games!F:F,"W")-COUNTIFS(Games!$B:$B,A24,Games!$A:$A,$B$1,Games!F:F,"L"))/(COUNTIFS(Games!A:A,A24)+COUNTIF(Games!B:B,A24)-COUNTIFS(Games!A:A,A24,Games!B:B,$B$1)-COUNTIFS(Games!B:B,A24,Games!A:A,$B$1))),"#DIV/0!") -> #DIV/0! | S24: =IF(K24<>0,VLOOKUP(A24,'RPI Nitty Gritty Report'!A:C,3,FALSE),"#N/A") -> #N/A | T24: =IF(K24<>0,VLOOKUP(A24,'RPI Nitty Gritty Report'!A:F,6,FALSE),"#N/A") -> #N/A | V24: =IF(K24<>0,VLOOKUP(A24,'RPI Nitty Gritty Report'!$A:$P,6,FALSE),"#N/A") -> #N/A | W24: FALSE | X24: FALSE | Y24: FALSE | Z24: FALSE | AB24: Expected SRS Win % (Conf.): | AC24: =SUMIFS(H8:H33,H8:H33,"<>N/A",K8:K33,"<>0",O8:O33,B3)/(COUNTIFS(K8:K33,"<>0",O8:O33,B3)) -> 0.8682632322
D25: 0 | E25: 0 | H25: =NORMDIST(0,G25,Games!$C$539,TRUE) ->  | I25: =VLOOKUP(A25,Sheet1!A:K,5,FALSE) ->  | J25: =IF(K25<>0,IF(H25>0.5,"W","L"),"#N/A") -> #N/A | K25: 0 | L25: =ROUND(((VLOOKUP(A25,Sheet1!$A:$J,4,FALSE))-(VLOOKUP($B$1,Sheet1!$A:$J,4,FALSE)))/0.5,0)*0.5 ->  | M25: =ROUND(((VLOOKUP(A25,Sheet1!$A:$J,4,FALSE))-(VLOOKUP($B$1,Sheet1!$A:$J,4,FALSE))+Games!$C$542)/0.5,0)*0.5 ->  | N25: =ROUND(((VLOOKUP(A25,Sheet1!$A:$J,4,FALSE))-(VLOOKUP($B$1,Sheet1!$A:$J,4,FALSE))-Games!$C$542)/0.5,0)*0.5 ->  | O25: =VLOOKUP(A25,Sheet1!$A:$M,13,FALSE) ->  | P25: =IF(K25<>0,VLOOKUP(A25,Sheet1!A:H,7,FALSE),"#N/A") -> #N/A | Q25: =IF(K25<>0,VLOOKUP(A25,Sheet1!A:H,8,FALSE),"#N/A") -> #N/A | R25: =IF(K25<>0,((COUNTIFS(Games!A:A,A25,Games!F:F,"W")+COUNTIFS(Games!B:B,A25,Games!F:F,"L")-COUNTIFS(Games!A:A,A25,Games!B:B,$B$1,Games!F:F,"W")-COUNTIFS(Games!$B:$B,A25,Games!$A:$A,$B$1,Games!F:F,"L"))/(COUNTIFS(Games!A:A,A25)+COUNTIF(Games!B:B,A25)-COUNTIFS(Games!A:A,A25,Games!B:B,$B$1)-COUNTIFS(Games!B:B,A25,Games!A:A,$B$1))),"#DIV/0!") -> #DIV/0! | S25: =IF(K25<>0,VLOOKUP(A25,'RPI Nitty Gritty Report'!A:C,3,FALSE),"#N/A") -> #N/A | T25: =IF(K25<>0,VLOOKUP(A25,'RPI Nitty Gritty Report'!A:F,6,FALSE),"#N/A") -> #N/A | V25: =IF(K25<>0,VLOOKUP(A25,'RPI Nitty Gritty Report'!$A:$P,6,FALSE),"#N/A") -> #N/A | W25: =IF(AND(V25>0,V25<11),IF(K25<>"#N/A","YES","NO")) -> FALSE | X25: FALSE | Y25: FALSE | Z25: FALSE | AB25: Wins +/- Expectation (Conf.): | AC25: =(AC23*(COUNTIFS(G8:G33,"<>#N/A",O8:O33,B3)))-(AC24*(COUNTIFS(G8:G33,"<>#N/A",O8:O33,B3))) -> -0.07784262536
D26: 0 | E26: 0 | H26: =NORMDIST(0,G26,Games!$C$539,TRUE) ->  | I26: =VLOOKUP(A26,Sheet1!A:K,5,FALSE) ->  | J26: #N/A | K26: 0 | L26: =(VLOOKUP(A26,Sheet1!$A:$J,4,FALSE))-(VLOOKUP($B$1,Sheet1!$A:$J,4,FALSE)) ->  | M26: =(VLOOKUP(A26,Sheet1!$A:$J,4,FALSE))-(VLOOKUP($B$1,Sheet1!$A:$J,4,FALSE))+Games!$C$542 ->  | N26: =(VLOOKUP(A26,Sheet1!$A:$J,4,FALSE))-(VLOOKUP($B$1,Sheet1!$A:$J,4,FALSE))-Games!$C$542 ->  | O26: =VLOOKUP(A26,Sheet1!$A:$M,13,FALSE) ->  | P26: =IF(K26<>0,VLOOKUP(A26,Sheet1!A:H,7,FALSE),"#N/A") -> #N/A | Q26: =IF(K26<>0,VLOOKUP(A26,Sheet1!A:H,8,FALSE),"#N/A") -> #N/A | R26: =IF(K26<>0,((COUNTIFS(Games!A:A,A26,Games!F:F,"W")+COUNTIFS(Games!B:B,A26,Games!F:F,"L")-COUNTIFS(Games!A:A,A26,Games!B:B,$B$1,Games!F:F,"W")-COUNTIFS(Games!$B:$B,A26,Games!$A:$A,$B$1,Games!F:F,"L"))/(COUNTIFS(Games!A:A,A26)+COUNTIF(Games!B:B,A26)-COUNTIFS(Games!A:A,A26,Games!B:B,$B$1)-COUNTIFS(Games!B:B,A26,Games!A:A,$B$1))),"#DIV/0!") -> #DIV/0! | S26: =IF(K26<>0,VLOOKUP(A26,'RPI Nitty Gritty Report'!A:C,3,FALSE),"#N/A") -> #N/A | T26: =IF(K26<>0,VLOOKUP(A26,'RPI Nitty Gritty Report'!A:F,6,FALSE),"#N/A") -> #N/A | V26: =IF(K26<>0,VLOOKUP(A26,'RPI Nitty Gritty Report'!$A:$P,6,FALSE),"#N/A") -> #N/A | W26: =IF(AND(V26>0,V26<11),"YES","NO") -> NO | X26: FALSE | Y26: FALSE | Z26: FALSE | AB26: Expected Remaining Wins (Conf.): | AC26: =SUMIFS(H8:H33,G8:G33,"<>#N/A",K8:K33,"0",O8:O33,B3) -> 0
D27: 0 | E27: 0 | H27: =NORMDIST(0,G27,Games!$C$539,TRUE) ->  | I27: =VLOOKUP(A27,Sheet1!A:K,5,FALSE) ->  | J27: #N/A | K27: 0 | L27: =(VLOOKUP(A27,Sheet1!$A:$J,4,FALSE))-(VLOOKUP($B$1,Sheet1!$A:$J,4,FALSE)) ->  | M27: =(VLOOKUP(A27,Sheet1!$A:$J,4,FALSE))-(VLOOKUP($B$1,Sheet1!$A:$J,4,FALSE))+Games!$C$542 ->  | N27: =(VLOOKUP(A27,Sheet1!$A:$J,4,FALSE))-(VLOOKUP($B$1,Sheet1!$A:$J,4,FALSE))-Games!$C$542 ->  | O27: =VLOOKUP(A27,Sheet1!$A:$M,13,FALSE) ->  | P27: =IF(K27<>0,VLOOKUP(A27,Sheet1!A:H,7,FALSE),"#N/A") -> #N/A | Q27: =IF(K27<>0,VLOOKUP(A27,Sheet1!A:H,8,FALSE),"#N/A") -> #N/A | R27: =IF(K27<>0,((COUNTIFS(Games!A:A,A27,Games!F:F,"W")+COUNTIFS(Games!B:B,A27,Games!F:F,"L")-COUNTIFS(Games!A:A,A27,Games!B:B,$B$1,Games!F:F,"W")-COUNTIFS(Games!$B:$B,A27,Games!$A:$A,$B$1,Games!F:F,"L"))/(COUNTIFS(Games!A:A,A27)+COUNTIF(Games!B:B,A27)-COUNTIFS(Games!A:A,A27,Games!B:B,$B$1)-COUNTIFS(Games!B:B,A27,Games!A:A,$B$1))),"#DIV/0!") -> #DIV/0! | S27: =IF(K27<>0,VLOOKUP(A27,'RPI Nitty Gritty Report'!A:C,3,FALSE),"#N/A") -> #N/A | T27: =IF(K27<>0,VLOOKUP(A27,'RPI Nitty Gritty Report'!A:F,6,FALSE),"#N/A") -> #N/A | V27: =IF(K27<>0,VLOOKUP(A27,'RPI Nitty Gritty Report'!$A:$P,6,FALSE),"#N/A") -> #N/A | W27: NO | X27: FALSE | Y27: FALSE | Z27: FALSE | AB27: Actual Margin (Conf.): | AC27: =SUMIFS(K8:K33,O8:O33,B3) -> 27
D28: 0 | E28: 0 | H28: =NORMDIST(0,G28,Games!$C$539,TRUE) ->  | I28: =VLOOKUP(A28,Sheet1!A:K,5,FALSE) ->  | J28: #N/A | K28: 0 | L28: =(VLOOKUP(A28,Sheet1!$A:$J,4,FALSE))-(VLOOKUP($B$1,Sheet1!$A:$J,4,FALSE)) ->  | M28: =(VLOOKUP(A28,Sheet1!$A:$J,4,FALSE))-(VLOOKUP($B$1,Sheet1!$A:$J,4,FALSE))+Games!$C$542 ->  | N28: =(VLOOKUP(A28,Sheet1!$A:$J,4,FALSE))-(VLOOKUP($B$1,Sheet1!$A:$J,4,FALSE))-Games!$C$542 ->  | O28: =VLOOKUP(A28,Sheet1!$A:$M,13,FALSE) ->  | P28: =IF(K28<>0,VLOOKUP(A28,Sheet1!A:H,7,FALSE),"#N/A") -> #N/A | Q28: =IF(K28<>0,VLOOKUP(A28,Sheet1!A:H,8,FALSE),"#N/A") -> #N/A | R28: =IF(K28<>0,((COUNTIFS(Games!A:A,A28,Games!F:F,"W")+COUNTIFS(Games!B:B,A28,Games!F:F,"L")-COUNTIFS(Games!A:A,A28,Games!B:B,$B$1,Games!F:F,"W")-COUNTIFS(Games!$B:$B,A28,Games!$A:$A,$B$1,Games!F:F,"L"))/(COUNTIFS(Games!A:A,A28)+COUNTIF(Games!B:B,A28)-COUNTIFS(Games!A:A,A28,Games!B:B,$B$1)-COUNTIFS(Games!B:B,A28,Games!A:A,$B$1))),"#DIV/0!") -> #DIV/0! | S28: =IF(K28<>0,VLOOKUP(A28,'RPI Nitty Gritty Report'!A:C,3,FALSE),"#N/A") -> #N/A | T28: =IF(K28<>0,VLOOKUP(A28,'RPI Nitty Gritty Report'!A:F,6,FALSE),"#N/A") -> #N/A | V28: =IF(K28<>0,VLOOKUP(A28,'RPI Nitty Gritty Report'!$A:$P,6,FALSE),"#N/A") -> #N/A | W28: NO | X28: FALSE | Y28: FALSE | Z28: FALSE | AB28: Predicted Margin (Conf.): | AC28: =-SUMIFS(G8:G33,G8:G33,"<>#N/A",K8:K33,"<>0",O8:O33,B3) -> 34
D29: 0 | E29: 0 | H29: =NORMDIST(0,G29,Games!$C$539,TRUE) ->  | I29: =VLOOKUP(A29,Sheet1!A:K,5,FALSE) ->  | J29: #N/A | K29: 0 | L29: =(VLOOKUP(A29,Sheet1!$A:$J,4,FALSE))-(VLOOKUP($B$1,Sheet1!$A:$J,4,FALSE)) ->  | M29: =(VLOOKUP(A29,Sheet1!$A:$J,4,FALSE))-(VLOOKUP($B$1,Sheet1!$A:$J,4,FALSE))+Games!$C$542 ->  | N29: =(VLOOKUP(A29,Sheet1!$A:$J,4,FALSE))-(VLOOKUP($B$1,Sheet1!$A:$J,4,FALSE))-Games!$C$542 ->  | O29: =VLOOKUP(A29,Sheet1!$A:$M,13,FALSE) ->  | P29: =IF(K29<>0,VLOOKUP(A29,Sheet1!A:H,7,FALSE),"#N/A") -> #N/A | Q29: =IF(K29<>0,VLOOKUP(A29,Sheet1!A:H,8,FALSE),"#N/A") -> #N/A | R29: =IF(K29<>0,((COUNTIFS(Games!A:A,A29,Games!F:F,"W")+COUNTIFS(Games!B:B,A29,Games!F:F,"L")-COUNTIFS(Games!A:A,A29,Games!B:B,$B$1,Games!F:F,"W")-COUNTIFS(Games!$B:$B,A29,Games!$A:$A,$B$1,Games!F:F,"L"))/(COUNTIFS(Games!A:A,A29)+COUNTIF(Games!B:B,A29)-COUNTIFS(Games!A:A,A29,Games!B:B,$B$1)-COUNTIFS(Games!B:B,A29,Games!A:A,$B$1))),"#DIV/0!") -> #DIV/0! | S29: =IF(K29<>0,VLOOKUP(A29,'RPI Nitty Gritty Report'!A:C,3,FALSE),"#N/A") -> #N/A | T29: =IF(K29<>0,VLOOKUP(A29,'RPI Nitty Gritty Report'!A:F,6,FALSE),"#N/A") -> #N/A | V29: =IF(K29<>0,VLOOKUP(A29,'RPI Nitty Gritty Report'!$A:$P,6,FALSE),"#N/A") -> #N/A | W29: NO | X29: FALSE | Y29: FALSE | Z29: FALSE
D30: 0 | E30: 0 | H30: =NORMDIST(0,G30,Games!$C$539,TRUE) ->  | I30: =VLOOKUP(A30,Sheet1!A:K,5,FALSE) ->  | J30: #N/A | K30: 0 | L30: =(VLOOKUP(A30,Sheet1!$A:$J,4,FALSE))-(VLOOKUP($B$1,Sheet1!$A:$J,4,FALSE)) ->  | M30: =(VLOOKUP(A30,Sheet1!$A:$J,4,FALSE))-(VLOOKUP($B$1,Sheet1!$A:$J,4,FALSE))+Games!$C$542 ->  | N30: =(VLOOKUP(A30,Sheet1!$A:$J,4,FALSE))-(VLOOKUP($B$1,Sheet1!$A:$J,4,FALSE))-Games!$C$542 ->  | O30: =VLOOKUP(A30,Sheet1!$A:$M,13,FALSE) ->  | P30: =IF(K30<>0,VLOOKUP(A30,Sheet1!A:H,7,FALSE),"#N/A") -> #N/A | Q30: =IF(K30<>0,VLOOKUP(A30,Sheet1!A:H,8,FALSE),"#N/A") -> #N/A | R30: =IF(K30<>0,((COUNTIFS(Games!A:A,A30,Games!F:F,"W")+COUNTIFS(Games!B:B,A30,Games!F:F,"L")-COUNTIFS(Games!A:A,A30,Games!B:B,$B$1,Games!F:F,"W")-COUNTIFS(Games!$B:$B,A30,Games!$A:$A,$B$1,Games!F:F,"L"))/(COUNTIFS(Games!A:A,A30)+COUNTIF(Games!B:B,A30)-COUNTIFS(Games!A:A,A30,Games!B:B,$B$1)-COUNTIFS(Games!B:B,A30,Games!A:A,$B$1))),"#DIV/0!") -> #DIV/0! | S30: =IF(K30<>0,VLOOKUP(A30,'RPI Nitty Gritty Report'!A:C,3,FALSE),"#N/A") -> #N/A | T30: =IF(K30<>0,VLOOKUP(A30,'RPI Nitty Gritty Report'!A:F,6,FALSE),"#N/A") -> #N/A | V30: =IF(K30<>0,VLOOKUP(A30,'RPI Nitty Gritty Report'!$A:$P,6,FALSE),"#N/A") -> #N/A | W30: NO | X30: FALSE | Y30: FALSE | Z30: FALSE | AB30: Avg. Goals For per Game (All): | AC30: =AVERAGEIF(K8:K33,"<>#N/A",B8:B33) -> 12.9375
D31: 0 | E31: 0 | H31: =NORMDIST(0,G31,Games!$C$539,TRUE) ->  | I31: =VLOOKUP(A31,Sheet1!A:K,5,FALSE) ->  | J31: #N/A | K31: 0 | L31: =(VLOOKUP(A31,Sheet1!$A:$J,4,FALSE))-(VLOOKUP($B$1,Sheet1!$A:$J,4,FALSE)) ->  | M31: =(VLOOKUP(A31,Sheet1!$A:$J,4,FALSE))-(VLOOKUP($B$1,Sheet1!$A:$J,4,FALSE))+Games!$C$542 ->  | N31: =(VLOOKUP(A31,Sheet1!$A:$J,4,FALSE))-(VLOOKUP($B$1,Sheet1!$A:$J,4,FALSE))-Games!$C$542 ->  | O31: =VLOOKUP(A31,Sheet1!$A:$M,13,FALSE) ->  | P31: =IF(K31<>0,VLOOKUP(A31,Sheet1!A:H,7,FALSE),"#N/A") -> #N/A | Q31: =IF(K31<>0,VLOOKUP(A31,Sheet1!A:H,8,FALSE),"#N/A") -> #N/A | R31: =IF(K31<>0,((COUNTIFS(Games!A:A,A31,Games!F:F,"W")+COUNTIFS(Games!B:B,A31,Games!F:F,"L")-COUNTIFS(Games!A:A,A31,Games!B:B,$B$1,Games!F:F,"W")-COUNTIFS(Games!$B:$B,A31,Games!$A:$A,$B$1,Games!F:F,"L"))/(COUNTIFS(Games!A:A,A31)+COUNTIF(Games!B:B,A31)-COUNTIFS(Games!A:A,A31,Games!B:B,$B$1)-COUNTIFS(Games!B:B,A31,Games!A:A,$B$1))),"#DIV/0!") -> #DIV/0! | S31: =IF(K31<>0,VLOOKUP(A31,'RPI Nitty Gritty Report'!A:C,3,FALSE),"#N/A") -> #N/A | T31: =IF(K31<>0,VLOOKUP(A31,'RPI Nitty Gritty Report'!A:F,6,FALSE),"#N/A") -> #N/A | V31: =IF(K31<>0,VLOOKUP(A31,'RPI Nitty Gritty Report'!$A:$P,6,FALSE),"#N/A") -> #N/A | W31: NO | X31: FALSE | Y31: FALSE | Z31: FALSE | AB31: Avg. Goals Against per Game (All): | AC31: =AVERAGEIF(K8:K33,"<>#N/A",C8:C33) -> 10.0625
D32: 0 | E32: 0 | H32: =NORMDIST(0,G32,Games!$C$539,TRUE) ->  | I32: =VLOOKUP(A32,Sheet1!A:K,5,FALSE) ->  | J32: #N/A | K32: 0 | L32: =(VLOOKUP(A32,Sheet1!$A:$J,4,FALSE))-(VLOOKUP($B$1,Sheet1!$A:$J,4,FALSE)) ->  | M32: =(VLOOKUP(A32,Sheet1!$A:$J,4,FALSE))-(VLOOKUP($B$1,Sheet1!$A:$J,4,FALSE))+Games!$C$542 ->  | N32: =(VLOOKUP(A32,Sheet1!$A:$J,4,FALSE))-(VLOOKUP($B$1,Sheet1!$A:$J,4,FALSE))-Games!$C$542 ->  | O32: =VLOOKUP(A32,Sheet1!$A:$M,13,FALSE) ->  | P32: =IF(K32<>0,VLOOKUP(A32,Sheet1!A:H,7,FALSE),"#N/A") -> #N/A | Q32: =IF(K32<>0,VLOOKUP(A32,Sheet1!A:H,8,FALSE),"#N/A") -> #N/A | R32: =IF(K32<>0,((COUNTIFS(Games!A:A,A32,Games!F:F,"W")+COUNTIFS(Games!B:B,A32,Games!F:F,"L")-COUNTIFS(Games!A:A,A32,Games!B:B,$B$1,Games!F:F,"W")-COUNTIFS(Games!$B:$B,A32,Games!$A:$A,$B$1,Games!F:F,"L"))/(COUNTIFS(Games!A:A,A32)+COUNTIF(Games!B:B,A32)-COUNTIFS(Games!A:A,A32,Games!B:B,$B$1)-COUNTIFS(Games!B:B,A32,Games!A:A,$B$1))),"#DIV/0!") -> #DIV/0! | S32: =IF(K32<>0,VLOOKUP(A32,'RPI Nitty Gritty Report'!A:C,3,FALSE),"#N/A") -> #N/A | T32: =IF(K32<>0,VLOOKUP(A32,'RPI Nitty Gritty Report'!A:F,6,FALSE),"#N/A") -> #N/A | V32: =IF(K32<>0,VLOOKUP(A32,'RPI Nitty Gritty Report'!$A:$P,6,FALSE),"#N/A") -> #N/A | W32: NO | X32: FALSE | Y32: FALSE | Z32: FALSE | AB32: Avg. Goals For per Game (Conf.): | AC32: =AVERAGEIFS(B8:B33,K8:K33,"<>#N/A",O8:O33,B3) -> 13.57142857
D33: 0 | E33: 0 | H33: =NORMDIST(0,G33,Games!$C$539,TRUE) ->  | I33: =VLOOKUP(A33,Sheet1!A:K,5,FALSE) ->  | J33: #N/A | K33: 0 | L33: =(VLOOKUP(A33,Sheet1!$A:$J,4,FALSE))-(VLOOKUP($B$1,Sheet1!$A:$J,4,FALSE)) ->  | M33: =(VLOOKUP(A33,Sheet1!$A:$J,4,FALSE))-(VLOOKUP($B$1,Sheet1!$A:$J,4,FALSE))+Games!$C$542 ->  | N33: =(VLOOKUP(A33,Sheet1!$A:$J,4,FALSE))-(VLOOKUP($B$1,Sheet1!$A:$J,4,FALSE))-Games!$C$542 ->  | O33: =VLOOKUP(A33,Sheet1!$A:$M,13,FALSE) ->  | P33: =IF(K33<>0,VLOOKUP(A33,Sheet1!A:H,7,FALSE),"#N/A") -> #N/A | Q33: =IF(K33<>0,VLOOKUP(A33,Sheet1!A:H,8,FALSE),"#N/A") -> #N/A | R33: =IF(K33<>0,((COUNTIFS(Games!A:A,A33,Games!F:F,"W")+COUNTIFS(Games!B:B,A33,Games!F:F,"L")-COUNTIFS(Games!A:A,A33,Games!B:B,$B$1,Games!F:F,"W")-COUNTIFS(Games!$B:$B,A33,Games!$A:$A,$B$1,Games!F:F,"L"))/(COUNTIFS(Games!A:A,A33)+COUNTIF(Games!B:B,A33)-COUNTIFS(Games!A:A,A33,Games!B:B,$B$1)-COUNTIFS(Games!B:B,A33,Games!A:A,$B$1))),"#DIV/0!") -> #DIV/0! | S33: =IF(K33<>0,VLOOKUP(A33,'RPI Nitty Gritty Report'!A:C,3,FALSE),"#N/A") -> #N/A | T33: =IF(K33<>0,VLOOKUP(A33,'RPI Nitty Gritty Report'!A:F,6,FALSE),"#N/A") -> #N/A | V33: =IF(K33<>0,VLOOKUP(A33,'RPI Nitty Gritty Report'!$A:$P,6,FALSE),"#N/A") -> #N/A | W33: NO | X33: FALSE | Y33: FALSE | Z33: FALSE | AB33: Avg. Goals Against per Game (Conf.): | AC33: =AVERAGEIFS(C8:C33,K8:K33,"<>#N/A",O8:O33,B3) -> 9.714285714
P34: =AVERAGEIF(P8:P33,"<>#N/A",P8:P33) -> 10.61161438 | Q34: =AVERAGEIF(Q8:Q33,"<>#N/A",Q8:Q33) -> 10.06723458 | R34: =AVERAGEIF(R8:R33,"<>#DIV/0!",R8:R33) -> 0.5388838949 | S34: =AVERAGEIF(S8:S33,"<>#N/A",S8:S33) -> 0.5144692667 | T34: =AVERAGE(SMALL(T8:T33,{1,2,3,4,5,6,7,8,9,10})) -> 19.1 | U34: =(COUNTIFS(F8:F33,"A",D8:D33,"W",K8:K33,"<>#N/A")&"-"&(COUNTIFS(F8:F33,"A",E8:E33,"L",K8:K33,"<>#N/A"))) -> 5-3 | W34: =(COUNTIFS(W8:W33,"YES",$K$8:$K$33,"<>#N/A",$D$8:$D$33,"W")&"-"&(COUNTIFS(W8:W33,"YES",$E$8:$E$33,"L",$K$8:$K$33,"<>#N/A"))) -> 1-3 | X34: =(COUNTIFS(X8:X33,"YES",$K$8:$K$33,"<>#N/A",$D$8:$D$33,"W")&"-"&(COUNTIFS(X8:X33,"YES",$E$8:$E$33,"L",$K$8:$K$33,"<>#N/A"))) -> 2-0 | Y34: 5-1 | Z34: 4-0

Sheet Army
A1: Team: | B1: Army
A2: Season: | B2: 2016
A3: Conference: | B3: Patriot
A5: 2016 Schedule | AB5: TEAM PROFILE
A7: Opponent | B7: =B1 -> Army | C7: Opponent | D7: Win | E7: Loss | F7: Site | G7: Pred. Spread | H7: Win Prob. % | I7: Opp. SRS Ranking | L7: Neutral | M7: Away | N7: Home | O7: League | P7: Opp.GF | Q7: Opp.GA | R7: Opp. Rec | S7: Opp Opp Rec | T7: OPP. RPI | U7: Road Record | V7: RPI Rank | W7: 2016-01-10 | X7: 2016-11-25 | Y7: 26-50 | Z7: 51-69 | AB7: All Record: | AC7: =(COUNTIF(D8:D33,"W")&"-"&(COUNTIF(E8:E33,"L"))) -> 10-7
A8: Massachusetts | B8: 9 | C8: 5 | D8: =IF(B8>0, IF(B8>C8,"W",0),0) -> W | E8: =IF(C8>0, IF(C8>B8,"L",0),0) -> 0 | F8: H | G8: =IF(F8="N",L8,IF(F8="A",M8,N8)) -> -3 | H8: =NORMDIST(0,G8,Games!$C$539,TRUE) -> 0.795842944 | I8: =VLOOKUP(A8,Sheet1!A:K,5,FALSE) -> 27 | J8: =IF(K8<>0,IF(H8>0.5,"W","L"),"#N/A") -> W | K8: =B8-C8 -> 4 | L8: =ROUND(((VLOOKUP(A8,Sheet1!$A:$J,4,FALSE))-(VLOOKUP($B$1,Sheet1!$A:$J,4,FALSE)))/0.5,0)*0.5 -> -2 | M8: =ROUND(((VLOOKUP(A8,Sheet1!$A:$J,4,FALSE))-(VLOOKUP($B$1,Sheet1!$A:$J,4,FALSE))+Games!$C$542)/0.5,0)*0.5 -> -0.5 | N8: =ROUND(((VLOOKUP(A8,Sheet1!$A:$J,4,FALSE))-(VLOOKUP($B$1,Sheet1!$A:$J,4,FALSE))-Games!$C$542)/0.5,0)*0.5 -> -3 | O8: =VLOOKUP(A8,Sheet1!$A:$M,13,FALSE) -> CAA | P8: =IF(K8<>0,VLOOKUP(A8,Sheet1!A:H,7,FALSE),"#N/A") -> 8.615384615 | Q8: =IF(K8<>0,VLOOKUP(A8,Sheet1!A:H,8,FALSE),"#N/A") -> 9.846153846 | R8: =IF(K8<>0,((COUNTIFS(Games!A:A,A8,Games!F:F,"W")+COUNTIFS(Games!B:B,A8,Games!F:F,"L")-COUNTIFS(Games!A:A,A8,Games!B:B,$B$1,Games!F:F,"W")-COUNTIFS(Games!$B:$B,A8,Games!$A:$A,$B$1,Games!F:F,"L"))/(COUNTIFS(Games!A:A,A8)+COUNTIF(Games!B:B,A8)-COUNTIFS(Games!A:A,A8,Games!B:B,$B$1)-COUNTIFS(Games!B:B,A8,Games!A:A,$B$1))),"#DIV/0!") -> 0.3333333333 | S8: =VLOOKUP(A8,'RPI Nitty Gritty Report'!A:C,3,FALSE) -> 0.5828943116 | T8: =IF(K8<>0,VLOOKUP(A8,'RPI Nitty Gritty Report'!A:F,6,FALSE),"#N/A") -> 37 | V8: =IF(K8<>0,VLOOKUP(A8,'RPI Nitty Gritty Report'!$A:$P,6,FALSE),"#N/A") -> 37 | W8: =IF(AND(V8>0,V8<11),IF(K8<>"#N/A","YES","NO")) -> FALSE | X8: =IF(AND(V8>10,V8<26),IF(K8<>"#N/A","YES","NO")) -> FALSE | Y8: =IF(AND(V8>25,V8<51),IF(K8<>"#N/A","YES","NO")) -> YES | Z8: =IF(AND(V8>50,V8<71),IF(K8<>"#N/A","YES","NO")) -> FALSE | AB8: Conf. Record: | AC8: =(COUNTIFS(D8:D33,"W",O8:O33,B3)&"-"&(COUNTIFS(E8:E33,"L",O8:O33,B3))) -> 7-4
A9: Rutgers | B9: 11 | C9: 13 | D9: =IF(B9>0, IF(B9>C9,"W",0),0) -> 0 | E9: =IF(C9>0, IF(C9>B9,"L",0),0) -> L | F9: H | G9: =IF(F9="N",L9,IF(F9="A",M9,N9)) -> -1.5 | H9: =NORMDIST(0,G9,Games!$C$539,TRUE) -> 0.6603549455 | I9: =VLOOKUP(A9,Sheet1!A:K,5,FALSE) -> 19 | J9: W | K9: =B9-C9 -> -2 | L9: =ROUND(((VLOOKUP(A9,Sheet1!$A:$J,4,FALSE))-(VLOOKUP($B$1,Sheet1!$A:$J,4,FALSE)))/0.5,0)*0.5 -> -0.5 | M9: =ROUND(((VLOOKUP(A9,Sheet1!$A:$J,4,FALSE))-(VLOOKUP($B$1,Sheet1!$A:$J,4,FALSE))+Games!$C$542)/0.5,0)*0.5 -> 1 | N9: =ROUND(((VLOOKUP(A9,Sheet1!$A:$J,4,FALSE))-(VLOOKUP($B$1,Sheet1!$A:$J,4,FALSE))-Games!$C$542)/0.5,0)*0.5 -> -1.5 | O9: =VLOOKUP(A9,Sheet1!$A:$M,13,FALSE) -> Big Ten | P9: =IF(K9<>0,VLOOKUP(A9,Sheet1!A:H,7,FALSE),"#N/A") -> 12.4375 | Q9: =IF(K9<>0,VLOOKUP(A9,Sheet1!A:H,8,FALSE),"#N/A") -> 9.875 | R9: =IF(K9<>0,((COUNTIFS(Games!A:A,A9,Games!F:F,"W")+COUNTIFS(Games!B:B,A9,Games!F:F,"L")-COUNTIFS(Games!A:A,A9,Games!B:B,$B$1,Games!F:F,"W")-COUNTIFS(Games!$B:$B,A9,Games!$A:$A,$B$1,Games!F:F,"L"))/(COUNTIFS(Games!A:A,A9)+COUNTIF(Games!B:B,A9)-COUNTIFS(Games!A:A,A9,Games!B:B,$B$1)-COUNTIFS(Games!B:B,A9,Games!A:A,$B$1))),"#DIV/0!") -> 0.6666666667 | S9: =VLOOKUP(A9,'RPI Nitty Gritty Report'!A:C,3,FALSE) -> 0.5021491529 | T9: =IF(K9<>0,VLOOKUP(A9,'RPI Nitty Gritty Report'!A:F,6,FALSE),"#N/A") -> 20 | V9: =IF(K9<>0,VLOOKUP(A9,'RPI Nitty Gritty Report'!$A:$P,6,FALSE),"#N/A") -> 20 | W9: FALSE | X9: =IF(AND(V9>10,V9<26),IF(K9<>"#N/A","YES","NO")) -> YES | Y9: =IF(AND(V9>25,V9<51),IF(K9<>"#N/A","YES","NO")) -> FALSE | Z9: =IF(AND(V9>50,V9<71),IF(K9<>"#N/A","YES","NO")) -> FALSE | AB9: SRS Value: | AC9: =VLOOKUP(B1,Sheet1!$A:$L,4,FALSE) -> 2.926934471
A10: VMI | B10: 22 | C10: 3 | D10: W | E10: 0 | F10: H | G10: -14 | H10: =NORMDIST(0,G10,Games!$C$539,TRUE) -> 0.9999430039 | I10: =VLOOKUP(A10,Sheet1!A:K,5,FALSE) -> 69 | J10: W | K10: 19 | L10: =ROUND(((VLOOKUP(A10,Sheet1!$A:$J,4,FALSE))-(VLOOKUP($B$1,Sheet1!$A:$J,4,FALSE)))/0.5,0)*0.5 -> -13 | M10: =ROUND(((VLOOKUP(A10,Sheet1!$A:$J,4,FALSE))-(VLOOKUP($B$1,Sheet1!$A:$J,4,FALSE))+Games!$C$542)/0.5,0)*0.5 -> -11.5 | N10: =ROUND(((VLOOKUP(A10,Sheet1!$A:$J,4,FALSE))-(VLOOKUP($B$1,Sheet1!$A:$J,4,FALSE))-Games!$C$542)/0.5,0)*0.5 -> -14 | O10: =VLOOKUP(A10,Sheet1!$A:$M,13,FALSE) -> Southern | P10: =IF(K10<>0,VLOOKUP(A10,Sheet1!A:H,7,FALSE),"#N/A") -> 6 | Q10: =IF(K10<>0,VLOOKUP(A10,Sheet1!A:H,8,FALSE),"#N/A") -> 13.9375 | R10: =IF(K10<>0,((COUNTIFS(Games!A:A,A10,Games!F:F,"W")+COUNTIFS(Games!B:B,A10,Games!F:F,"L")-COUNTIFS(Games!A:A,A10,Games!B:B,$B$1,Games!F:F,"W")-COUNTIFS(Games!$B:$B,A10,Games!$A:$A,$B$1,Games!F:F,"L"))/(COUNTIFS(Games!A:A,A10)+COUNTIF(Games!B:B,A10)-COUNTIFS(Games!A:A,A10,Games!B:B,$B$1)-COUNTIFS(Games!B:B,A10,Games!A:A,$B$1))),"#DIV/0!") -> 0.1333333333 | S10: =VLOOKUP(A10,'RPI Nitty Gritty Report'!A:C,3,FALSE) -> 0.3929340727 | T10: =IF(K10<>0,VLOOKUP(A10,'RPI Nitty Gritty Report'!A:F,6,FALSE),"#N/A") -> 68 | V10: =IF(K10<>0,VLOOKUP(A10,'RPI Nitty Gritty Report'!$A:$P,6,FALSE),"#N/A") -> 68 | W10: FALSE | X10: FALSE | Y10: FALSE | Z10: YES | AB10: SRS Ranking (NCAA): | AC10: =VLOOKUP(B1,Sheet1!A:J,5,FALSE) -> 17
A11: Syracuse | B11: 8 | C11: 9 | D11: 0 | E11: L | F11: A | G11: 3.5 | H11: =NORMDIST(0,G11,Games!$C$539,TRUE) -> 0.1673538743 | I11: =VLOOKUP(A11,Sheet1!A:K,5,FALSE) -> 5 | J11: L | K11: -1 | L11: =ROUND(((VLOOKUP(A11,Sheet1!$A:$J,4,FALSE))-(VLOOKUP($B$1,Sheet1!$A:$J,4,FALSE)))/0.5,0)*0.5 -> 2 | M11: =ROUND(((VLOOKUP(A11,Sheet1!$A:$J,4,FALSE))-(VLOOKUP($B$1,Sheet1!$A:$J,4,FALSE))+Games!$C$542)/0.5,0)*0.5 -> 3.5 | N11: =ROUND(((VLOOKUP(A11,Sheet1!$A:$J,4,FALSE))-(VLOOKUP($B$1,Sheet1!$A:$J,4,FALSE))-Games!$C$542)/0.5,0)*0.5 -> 0.5 | O11: =VLOOKUP(A11,Sheet1!$A:$M,13,FALSE) -> ACC | P11: =IF(K11<>0,VLOOKUP(A11,Sheet1!A:H,7,FALSE),"#N/A") -> 12.47058824 | Q11: =IF(K11<>0,VLOOKUP(A11,Sheet1!A:H,8,FALSE),"#N/A") -> 8.764705882 | R11: =IF(K11<>0,((COUNTIFS(Games!A:A,A11,Games!F:F,"W")+COUNTIFS(Games!B:B,A11,Games!F:F,"L")-COUNTIFS(Games!A:A,A11,Games!B:B,$B$1,Games!F:F,"W")-COUNTIFS(Games!$B:$B,A11,Games!$A:$A,$B$1,Games!F:F,"L"))/(COUNTIFS(Games!A:A,A11)+COUNTIF(Games!B:B,A11)-COUNTIFS(Games!A:A,A11,Games!B:B,$B$1)-COUNTIFS(Games!B:B,A11,Games!A:A,$B$1))),"#DIV/0!") -> 0.6875 | S11: =VLOOKUP(A11,'RPI Nitty Gritty Report'!A:C,3,FALSE) -> 0.564815519 | T11: =IF(K11<>0,VLOOKUP(A11,'RPI Nitty Gritty Report'!A:F,6,FALSE),"#N/A") -> 7 | V11: =IF(K11<>0,VLOOKUP(A11,'RPI Nitty Gritty Report'!$A:$P,6,FALSE),"#N/A") -> 7 | W11: YES | X11: FALSE | Y11: FALSE | Z11: FALSE | AB11: SRS Ranking (Conf.): | AC11: =1+SUMPRODUCT((Sheet1!M2:M71=B3)*(Sheet1!E2:E71<AC10)) -> 3
A12: Lafayette | B12: 14 | C12: 5 | D12: W | E12: 0 | F12: A | G12: -6.5 | H12: =NORMDIST(0,G12,Games!$C$539,TRUE) -> 0.963396564 | I12: =VLOOKUP(A12,Sheet1!A:K,5,FALSE) -> 61 | J12: W | K12: 9 | L12: =ROUND(((VLOOKUP(A12,Sheet1!$A:$J,4,FALSE))-(VLOOKUP($B$1,Sheet1!$A:$J,4,FALSE)))/0.5,0)*0.5 -> -7.5 | M12: =ROUND(((VLOOKUP(A12,Sheet1!$A:$J,4,FALSE))-(VLOOKUP($B$1,Sheet1!$A:$J,4,FALSE))+Games!$C$542)/0.5,0)*0.5 -> -6.5 | N12: =ROUND(((VLOOKUP(A12,Sheet1!$A:$J,4,FALSE))-(VLOOKUP($B$1,Sheet1!$A:$J,4,FALSE))-Games!$C$542)/0.5,0)*0.5 -> -9 | O12: =VLOOKUP(A12,Sheet1!$A:$M,13,FALSE) -> Patriot | P12: =IF(K12<>0,VLOOKUP(A12,Sheet1!A:H,7,FALSE),"#N/A") -> 7.714285714 | Q12: =IF(K12<>0,VLOOKUP(A12,Sheet1!A:H,8,FALSE),"#N/A") -> 11.5 | R12: =IF(K12<>0,((COUNTIFS(Games!A:A,A12,Games!F:F,"W")+COUNTIFS(Games!B:B,A12,Games!F:F,"L")-COUNTIFS(Games!A:A,A12,Games!B:B,$B$1,Games!F:F,"W")-COUNTIFS(Games!$B:$B,A12,Games!$A:$A,$B$1,Games!F:F,"L"))/(COUNTIFS(Games!A:A,A12)+COUNTIF(Games!B:B,A12)-COUNTIFS(Games!A:A,A12,Games!B:B,$B$1)-COUNTIFS(Games!B:B,A12,Games!A:A,$B$1))),"#DIV/0!") -> 0.2307692308 | S12: =VLOOKUP(A12,'RPI Nitty Gritty Report'!A:C,3,FALSE) -> 0.4159013605 | T12: =IF(K12<>0,VLOOKUP(A12,'RPI Nitty Gritty Report'!A:F,6,FALSE),"#N/A") -> 62 | V12: =IF(K12<>0,VLOOKUP(A12,'RPI Nitty Gritty Report'!$A:$P,6,FALSE),"#N/A") -> 62 | W12: FALSE | X12: FALSE | Y12: FALSE | Z12: YES | AB12: SRS SoS Value: | AC12: =VLOOKUP(B1,Sheet1!$A:$L,3,FALSE) -> 0.1622285887
A13: Lehigh | B13: 13 | C13: 10 | D13: W | E13: 0 | F13: H | G13: -5 | H13: =NORMDIST(0,G13,Games!$C$539,TRUE) -> 0.9159148385 | I13: =VLOOKUP(A13,Sheet1!A:K,5,FALSE) -> 40 | J13: W | K13: 3 | L13: =ROUND(((VLOOKUP(A13,Sheet1!$A:$J,4,FALSE))-(VLOOKUP($B$1,Sheet1!$A:$J,4,FALSE)))/0.5,0)*0.5 -> -4 | M13: =ROUND(((VLOOKUP(A13,Sheet1!$A:$J,4,FALSE))-(VLOOKUP($B$1,Sheet1!$A:$J,4,FALSE))+Games!$C$542)/0.5,0)*0.5 -> -2.5 | N13: =ROUND(((VLOOKUP(A13,Sheet1!$A:$J,4,FALSE))-(VLOOKUP($B$1,Sheet1!$A:$J,4,FALSE))-Games!$C$542)/0.5,0)*0.5 -> -5 | O13: =VLOOKUP(A13,Sheet1!$A:$M,13,FALSE) -> Patriot | P13: =IF(K13<>0,VLOOKUP(A13,Sheet1!A:H,7,FALSE),"#N/A") -> 10.26666667 | Q13: =IF(K13<>0,VLOOKUP(A13,Sheet1!A:H,8,FALSE),"#N/A") -> 10.86666667 | R13: =IF(K13<>0,((COUNTIFS(Games!A:A,A13,Games!F:F,"W")+COUNTIFS(Games!B:B,A13,Games!F:F,"L")-COUNTIFS(Games!A:A,A13,Games!B:B,$B$1,Games!F:F,"W")-COUNTIFS(Games!$B:$B,A13,Games!$A:$A,$B$1,Games!F:F,"L"))/(COUNTIFS(Games!A:A,A13)+COUNTIF(Games!B:B,A13)-COUNTIFS(Games!A:A,A13,Games!B:B,$B$1)-COUNTIFS(Games!B:B,A13,Games!A:A,$B$1))),"#DIV/0!") -> 0.4615384615 | S13: =VLOOKUP(A13,'RPI Nitty Gritty Report'!A:C,3,FALSE) -> 0.4574185999 | T13: =IF(K13<>0,VLOOKUP(A13,'RPI Nitty Gritty Report'!A:F,6,FALSE),"#N/A") -> 45 | V13: =IF(K13<>0,VLOOKUP(A13,'RPI Nitty Gritty Report'!$A:$P,6,FALSE),"#N/A") -> 45 | W13: FALSE | X13: FALSE | Y13: YES | Z13: FALSE | AB13: SRS SoS Ranking (NCAA): | AC13: =VLOOKUP(B1,Sheet1!A:J,6,FALSE) -> 34
A14: NJIT | B14: 16 | C14: 6 | D14: W | E14: 0 | F14: H | G14: -13 | H14: =NORMDIST(0,G14,Games!$C$539,TRUE) -> 0.9998302152 | I14: =VLOOKUP(A14,Sheet1!A:K,5,FALSE) -> 68 | J14: W | K14: 10 | L14: =ROUND(((VLOOKUP(A14,Sheet1!$A:$J,4,FALSE))-(VLOOKUP($B$1,Sheet1!$A:$J,4,FALSE)))/0.5,0)*0.5 -> -11.5 | M14: =ROUND(((VLOOKUP(A14,Sheet1!$A:$J,4,FALSE))-(VLOOKUP($B$1,Sheet1!$A:$J,4,FALSE))+Games!$C$542)/0.5,0)*0.5 -> -10.5 | N14: =ROUND(((VLOOKUP(A14,Sheet1!$A:$J,4,FALSE))-(VLOOKUP($B$1,Sheet1!$A:$J,4,FALSE))-Games!$C$542)/0.5,0)*0.5 -> -13 | O14: =VLOOKUP(A14,Sheet1!$A:$M,13,FALSE) -> Independent | P14: =IF(K14<>0,VLOOKUP(A14,Sheet1!A:H,7,FALSE),"#N/A") -> 5.866666667 | Q14: =IF(K14<>0,VLOOKUP(A14,Sheet1!A:H,8,FALSE),"#N/A") -> 13.8 | R14: =IF(K14<>0,((COUNTIFS(Games!A:A,A14,Games!F:F,"W")+COUNTIFS(Games!B:B,A14,Games!F:F,"L")-COUNTIFS(Games!A:A,A14,Games!B:B,$B$1,Games!F:F,"W")-COUNTIFS(Games!$B:$B,A14,Games!$A:$A,$B$1,Games!F:F,"L"))/(COUNTIFS(Games!A:A,A14)+COUNTIF(Games!B:B,A14)-COUNTIFS(Games!A:A,A14,Games!B:B,$B$1)-COUNTIFS(Games!B:B,A14,Games!A:A,$B$1))),"#DIV/0!") -> 0.07142857143 | S14: =VLOOKUP(A14,'RPI Nitty Gritty Report'!A:C,3,FALSE) -> 0.3811141636 | T14: =IF(K14<>0,VLOOKUP(A14,'RPI Nitty Gritty Report'!A:F,6,FALSE),"#N/A") -> 69 | V14: =IF(K14<>0,VLOOKUP(A14,'RPI Nitty Gritty Report'!$A:$P,6,FALSE),"#N/A") -> 69 | W14: FALSE | X14: FALSE | Y14: FALSE | Z14: YES | AB14: SRS SoS Ranking (Conf.): | AC14: =1+SUMPRODUCT((Sheet1!M2:M71=B3)*(Sheet1!F2:F71<AC13)) -> 7
A15: Holy Cross | B15: 16 | C15: 7 | D15: W | E15: 0 | F15: H | G15: -6 | H15: =NORMDIST(0,G15,Games!$C$539,TRUE) -> 0.9509086182 | I15: =VLOOKUP(A15,Sheet1!A:K,5,FALSE) -> 46 | J15: W | K15: 9 | L15: =ROUND(((VLOOKUP(A15,Sheet1!$A:$J,4,FALSE))-(VLOOKUP($B$1,Sheet1!$A:$J,4,FALSE)))/0.5,0)*0.5 -> -4.5 | M15: =ROUND(((VLOOKUP(A15,Sheet1!$A:$J,4,FALSE))-(VLOOKUP($B$1,Sheet1!$A:$J,4,FALSE))+Games!$C$542)/0.5,0)*0.5 -> -3.5 | N15: =ROUND(((VLOOKUP(A15,Sheet1!$A:$J,4,FALSE))-(VLOOKUP($B$1,Sheet1!$A:$J,4,FALSE))-Games!$C$542)/0.5,0)*0.5 -> -6 | O15: =VLOOKUP(A15,Sheet1!$A:$M,13,FALSE) -> Patriot | P15: =IF(K15<>0,VLOOKUP(A15,Sheet1!A:H,7,FALSE),"#N/A") -> 8.933333333 | Q15: =IF(K15<>0,VLOOKUP(A15,Sheet1!A:H,8,FALSE),"#N/A") -> 11.53333333 | R15: =IF(K15<>0,((COUNTIFS(Games!A:A,A15,Games!F:F,"W")+COUNTIFS(Games!B:B,A15,Games!F:F,"L")-COUNTIFS(Games!A:A,A15,Games!B:B,$B$1,Games!F:F,"W")-COUNTIFS(Games!$B:$B,A15,Games!$A:$A,$B$1,Games!F:F,"L"))/(COUNTIFS(Games!A:A,A15)+COUNTIF(Games!B:B,A15)-COUNTIFS(Games!A:A,A15,Games!B:B,$B$1)-COUNTIFS(Games!B:B,A15,Games!A:A,$B$1))),"#DIV/0!") -> 0.2857142857 | S15: =VLOOKUP(A15,'RPI Nitty Gritty Report'!A:C,3,FALSE) -> 0.5217815844 | T15: =IF(K15<>0,VLOOKUP(A15,'RPI Nitty Gritty Report'!A:F,6,FALSE),"#N/A") -> 47 | V15: =IF(K15<>0,VLOOKUP(A15,'RPI Nitty Gritty Report'!$A:$P,6,FALSE),"#N/A") -> 47 | W15: FALSE | X15: FALSE | Y15: YES | Z15: FALSE
A16: Colgate | B16: 11 | C16: 7 | D16: W | E16: 0 | F16: A | G16: -4 | H16: =NORMDIST(0,G16,Games!$C$539,TRUE) -> 0.8648746538 | I16: =VLOOKUP(A16,Sheet1!A:K,5,FALSE) -> 49 | J16: W | K16: 4 | L16: =ROUND(((VLOOKUP(A16,Sheet1!$A:$J,4,FALSE))-(VLOOKUP($B$1,Sheet1!$A:$J,4,FALSE)))/0.5,0)*0.5 -> -5 | M16: =ROUND(((VLOOKUP(A16,Sheet1!$A:$J,4,FALSE))-(VLOOKUP($B$1,Sheet1!$A:$J,4,FALSE))+Games!$C$542)/0.5,0)*0.5 -> -4 | N16: =ROUND(((VLOOKUP(A16,Sheet1!$A:$J,4,FALSE))-(VLOOKUP($B$1,Sheet1!$A:$J,4,FALSE))-Games!$C$542)/0.5,0)*0.5 -> -6.5 | O16: =VLOOKUP(A16,Sheet1!$A:$M,13,FALSE) -> Patriot | P16: =IF(K16<>0,VLOOKUP(A16,Sheet1!A:H,7,FALSE),"#N/A") -> 7.642857143 | Q16: =IF(K16<>0,VLOOKUP(A16,Sheet1!A:H,8,FALSE),"#N/A") -> 10.57142857 | R16: =IF(K16<>0,((COUNTIFS(Games!A:A,A16,Games!F:F,"W")+COUNTIFS(Games!B:B,A16,Games!F:F,"L")-COUNTIFS(Games!A:A,A16,Games!B:B,$B$1,Games!F:F,"W")-COUNTIFS(Games!$B:$B,A16,Games!$A:$A,$B$1,Games!F:F,"L"))/(COUNTIFS(Games!A:A,A16)+COUNTIF(Games!B:B,A16)-COUNTIFS(Games!A:A,A16,Games!B:B,$B$1)-COUNTIFS(Games!B:B,A16,Games!A:A,$B$1))),"#DIV/0!") -> 0.3076923077 | S16: =VLOOKUP(A16,'RPI Nitty Gritty Report'!A:C,3,FALSE) -> 0.4829768446 | T16: =IF(K16<>0,VLOOKUP(A16,'RPI Nitty Gritty Report'!A:F,6,FALSE),"#N/A") -> 53 | V16: =IF(K16<>0,VLOOKUP(A16,'RPI Nitty Gritty Report'!$A:$P,6,FALSE),"#N/A") -> 53 | W16: FALSE | X16: FALSE | Y16: FALSE | Z16: YES | AB16: Actual Win % (All): | AC16: =COUNTIF(D8:D33,"W")/(COUNTIF(D8:D33,"W")+(COUNTIF(E8:E33,"L"))) -> 0.5882352941
A17: Bucknell | B17: 7 | C17: 8 | D17: 0 | E17: L | F17: H | G17: -2 | H17: =NORMDIST(0,G17,Games!$C$539,TRUE) -> 0.7092663477 | I17: =VLOOKUP(A17,Sheet1!A:K,5,FALSE) -> 21 | J17: W | K17: -1 | L17: =ROUND(((VLOOKUP(A17,Sheet1!$A:$J,4,FALSE))-(VLOOKUP($B$1,Sheet1!$A:$J,4,FALSE)))/0.5,0)*0.5 -> -0.5 | M17: =ROUND(((VLOOKUP(A17,Sheet1!$A:$J,4,FALSE))-(VLOOKUP($B$1,Sheet1!$A:$J,4,FALSE))+Games!$C$542)/0.5,0)*0.5 -> 1 | N17: =ROUND(((VLOOKUP(A17,Sheet1!$A:$J,4,FALSE))-(VLOOKUP($B$1,Sheet1!$A:$J,4,FALSE))-Games!$C$542)/0.5,0)*0.5 -> -2 | O17: =VLOOKUP(A17,Sheet1!$A:$M,13,FALSE) -> Patriot | P17: =IF(K17<>0,VLOOKUP(A17,Sheet1!A:H,7,FALSE),"#N/A") -> 11.06666667 | Q17: =IF(K17<>0,VLOOKUP(A17,Sheet1!A:H,8,FALSE),"#N/A") -> 9.066666667 | R17: =IF(K17<>0,((COUNTIFS(Games!A:A,A17,Games!F:F,"W")+COUNTIFS(Games!B:B,A17,Games!F:F,"L")-COUNTIFS(Games!A:A,A17,Games!B:B,$B$1,Games!F:F,"W")-COUNTIFS(Games!$B:$B,A17,Games!$A:$A,$B$1,Games!F:F,"L"))/(COUNTIFS(Games!A:A,A17)+COUNTIF(Games!B:B,A17)-COUNTIFS(Games!A:A,A17,Games!B:B,$B$1)-COUNTIFS(Games!B:B,A17,Games!A:A,$B$1))),"#DIV/0!") -> 0.6428571429 | S17: =VLOOKUP(A17,'RPI Nitty Gritty Report'!A:C,3,FALSE) -> 0.5119627595 | T17: =IF(K17<>0,VLOOKUP(A17,'RPI Nitty Gritty Report'!A:F,6,FALSE),"#N/A") -> 21 | V17: =IF(K17<>0,VLOOKUP(A17,'RPI Nitty Gritty Report'!$A:$P,6,FALSE),"#N/A") -> 21 | W17: FALSE | X17: YES | Y17: FALSE | Z17: FALSE | AB17: Expected SRS Win % (All): | AC17: =SUMIFS(H8:H33,H8:H33,"<>N/A",K8:K33,"<>0")/(COUNTIF(K8:K33,"<>0")) -> 0.6648572931
A18: Boston | B18: 15 | C18: 4 | D18: W | E18: 0 | F18: A | G18: -2 | H18: =NORMDIST(0,G18,Games!$C$539,TRUE) -> 0.7092663477 | I18: =VLOOKUP(A18,Sheet1!A:K,5,FALSE) -> 38 | J18: W | K18: 11 | L18: =ROUND(((VLOOKUP(A18,Sheet1!$A:$J,4,FALSE))-(VLOOKUP($B$1,Sheet1!$A:$J,4,FALSE)))/0.5,0)*0.5 -> -3.5 | M18: =ROUND(((VLOOKUP(A18,Sheet1!$A:$J,4,FALSE))-(VLOOKUP($B$1,Sheet1!$A:$J,4,FALSE))+Games!$C$542)/0.5,0)*0.5 -> -2 | N18: =ROUND(((VLOOKUP(A18,Sheet1!$A:$J,4,FALSE))-(VLOOKUP($B$1,Sheet1!$A:$J,4,FALSE))-Games!$C$542)/0.5,0)*0.5 -> -4.5 | O18: =VLOOKUP(A18,Sheet1!$A:$M,13,FALSE) -> Patriot | P18: =IF(K18<>0,VLOOKUP(A18,Sheet1!A:H,7,FALSE),"#N/A") -> 9.333333333 | Q18: =IF(K18<>0,VLOOKUP(A18,Sheet1!A:H,8,FALSE),"#N/A") -> 9.866666667 | R18: =IF(K18<>0,((COUNTIFS(Games!A:A,A18,Games!F:F,"W")+COUNTIFS(Games!B:B,A18,Games!F:F,"L")-COUNTIFS(Games!A:A,A18,Games!B:B,$B$1,Games!F:F,"W")-COUNTIFS(Games!$B:$B,A18,Games!$A:$A,$B$1,Games!F:F,"L"))/(COUNTIFS(Games!A:A,A18)+COUNTIF(Games!B:B,A18)-COUNTIFS(Games!A:A,A18,Games!B:B,$B$1)-COUNTIFS(Games!B:B,A18,Games!A:A,$B$1))),"#DIV/0!") -> 0.5714285714 | S18: =VLOOKUP(A18,'RPI Nitty Gritty Report'!A:C,3,FALSE) -> 0.4852021073 | T18: =IF(K18<>0,VLOOKUP(A18,'RPI Nitty Gritty Report'!A:F,6,FALSE),"#N/A") -> 36 | V18: =IF(K18<>0,VLOOKUP(A18,'RPI Nitty Gritty Report'!$A:$P,6,FALSE),"#N/A") -> 36 | W18: FALSE | X18: FALSE | Y18: YES | Z18: FALSE | AB18: Wins +/- Expectation (All): | AC18: =(AC16*(COUNTIF(G8:G33,"<>#N/A")))-(AC17*(COUNTIF(G8:G33,"<>#N/A"))) -> -1.302573983
A19: Navy | B19: 10 | C19: 11 | D19: 0 | E19: L | F19: H | G19: -0.5 | H19: =NORMDIST(0,G19,Games!$C$539,TRUE) -> 0.5548049774 | I19: =VLOOKUP(A19,Sheet1!A:K,5,FALSE) -> 12 | J19: W | K19: -1 | L19: =ROUND(((VLOOKUP(A19,Sheet1!$A:$J,4,FALSE))-(VLOOKUP($B$1,Sheet1!$A:$J,4,FALSE)))/0.5,0)*0.5 -> 0.5 | M19: =ROUND(((VLOOKUP(A19,Sheet1!$A:$J,4,FALSE))-(VLOOKUP($B$1,Sheet1!$A:$J,4,FALSE))+Games!$C$542)/0.5,0)*0.5 -> 2 | N19: =ROUND(((VLOOKUP(A19,Sheet1!$A:$J,4,FALSE))-(VLOOKUP($B$1,Sheet1!$A:$J,4,FALSE))-Games!$C$542)/0.5,0)*0.5 -> -0.5 | O19: =VLOOKUP(A19,Sheet1!$A:$M,13,FALSE) -> Patriot | P19: =IF(K19<>0,VLOOKUP(A19,Sheet1!A:H,7,FALSE),"#N/A") -> 9.875 | Q19: =IF(K19<>0,VLOOKUP(A19,Sheet1!A:H,8,FALSE),"#N/A") -> 7.375 | R19: =IF(K19<>0,((COUNTIFS(Games!A:A,A19,Games!F:F,"W")+COUNTIFS(Games!B:B,A19,Games!F:F,"L")-COUNTIFS(Games!A:A,A19,Games!B:B,$B$1,Games!F:F,"W")-COUNTIFS(Games!$B:$B,A19,Games!$A:$A,$B$1,Games!F:F,"L"))/(COUNTIFS(Games!A:A,A19)+COUNTIF(Games!B:B,A19)-COUNTIFS(Games!A:A,A19,Games!B:B,$B$1)-COUNTIFS(Games!B:B,A19,Games!A:A,$B$1))),"#DIV/0!") -> 0.7142857143 | S19: =VLOOKUP(A19,'RPI Nitty Gritty Report'!A:C,3,FALSE) -> 0.5653896655 | T19: =IF(K19<>0,VLOOKUP(A19,'RPI Nitty Gritty Report'!A:F,6,FALSE),"#N/A") -> 13 | V19: =IF(K19<>0,VLOOKUP(A19,'RPI Nitty Gritty Report'!$A:$P,6,FALSE),"#N/A") -> 13 | W19: FALSE | X19: YES | Y19: FALSE | Z19: FALSE | AB19: Expected Remaining Wins (All): | AC19: =SUMIFS(H8:H33,G8:G33,"<>#N/A",K8:K33,"0") -> 0
A20: Loyola | B20: 6 | C20: 12 | D20: 0 | E20: L | F20: A | G20: 2.5 | H20: =NORMDIST(0,G20,Games!$C$539,TRUE) -> 0.2453948352 | I20: =VLOOKUP(A20,Sheet1!A:K,5,FALSE) -> 10 | J20: L | K20: -6 | L20: =ROUND(((VLOOKUP(A20,Sheet1!$A:$J,4,FALSE))-(VLOOKUP($B$1,Sheet1!$A:$J,4,FALSE)))/0.5,0)*0.5 -> 1 | M20: =ROUND(((VLOOKUP(A20,Sheet1!$A:$J,4,FALSE))-(VLOOKUP($B$1,Sheet1!$A:$J,4,FALSE))+Games!$C$542)/0.5,0)*0.5 -> 2.5 | N20: =ROUND(((VLOOKUP(A20,Sheet1!$A:$J,4,FALSE))-(VLOOKUP($B$1,Sheet1!$A:$J,4,FALSE))-Games!$C$542)/0.5,0)*0.5 -> 0 | O20: =VLOOKUP(A20,Sheet1!$A:$M,13,FALSE) -> Patriot | P20: =IF(K20<>0,VLOOKUP(A20,Sheet1!A:H,7,FALSE),"#N/A") -> 10.82352941 | Q20: =IF(K20<>0,VLOOKUP(A20,Sheet1!A:H,8,FALSE),"#N/A") -> 8.058823529 | R20: =IF(K20<>0,((COUNTIFS(Games!A:A,A20,Games!F:F,"W")+COUNTIFS(Games!B:B,A20,Games!F:F,"L")-COUNTIFS(Games!A:A,A20,Games!B:B,$B$1,Games!F:F,"W")-COUNTIFS(Games!$B:$B,A20,Games!$A:$A,$B$1,Games!F:F,"L"))/(COUNTIFS(Games!A:A,A20)+COUNTIF(Games!B:B,A20)-COUNTIFS(Games!A:A,A20,Games!B:B,$B$1)-COUNTIFS(Games!B:B,A20,Games!A:A,$B$1))),"#DIV/0!") -> 0.8 | S20: =VLOOKUP(A20,'RPI Nitty Gritty Report'!A:C,3,FALSE) -> 0.5605346211 | T20: =IF(K20<>0,VLOOKUP(A20,'RPI Nitty Gritty Report'!A:F,6,FALSE),"#N/A") -> 3 | V20: =IF(K20<>0,VLOOKUP(A20,'RPI Nitty Gritty Report'!$A:$P,6,FALSE),"#N/A") -> 3 | W20: YES | X20: FALSE | Y20: FALSE | Z20: FALSE | AB20: Actual Margin (All): | AC20: =SUM(K8:K33) -> 57
A21: Lehigh | B21: 13 | C21: 6 | D21: W | E21: 0 | F21: H | G21: -5 | H21: =NORMDIST(0,G21,Games!$C$539,TRUE) -> 0.9159148385 | I21: =VLOOKUP(A21,Sheet1!A:K,5,FALSE) -> 40 | J21: W | K21: 7 | L21: =ROUND(((VLOOKUP(A21,Sheet1!$A:$J,4,FALSE))-(VLOOKUP($B$1,Sheet1!$A:$J,4,FALSE)))/0.5,0)*0.5 -> -4 | M21: =ROUND(((VLOOKUP(A21,Sheet1!$A:$J,4,FALSE))-(VLOOKUP($B$1,Sheet1!$A:$J,4,FALSE))+Games!$C$542)/0.5,0)*0.5 -> -2.5 | N21: =ROUND(((VLOOKUP(A21,Sheet1!$A:$J,4,FALSE))-(VLOOKUP($B$1,Sheet1!$A:$J,4,FALSE))-Games!$C$542)/0.5,0)*0.5 -> -5 | O21: =VLOOKUP(A21,Sheet1!$A:$M,13,FALSE) -> Patriot | P21: =IF(K21<>0,VLOOKUP(A21,Sheet1!A:H,7,FALSE),"#N/A") -> 10.26666667 | Q21: =IF(K21<>0,VLOOKUP(A21,Sheet1!A:H,8,FALSE),"#N/A") -> 10.86666667 | R21: =IF(K21<>0,((COUNTIFS(Games!A:A,A21,Games!F:F,"W")+COUNTIFS(Games!B:B,A21,Games!F:F,"L")-COUNTIFS(Games!A:A,A21,Games!B:B,$B$1,Games!F:F,"W")-COUNTIFS(Games!$B:$B,A21,Games!$A:$A,$B$1,Games!F:F,"L"))/(COUNTIFS(Games!A:A,A21)+COUNTIF(Games!B:B,A21)-COUNTIFS(Games!A:A,A21,Games!B:B,$B$1)-COUNTIFS(Games!B:B,A21,Games!A:A,$B$1))),"#DIV/0!") -> 0.4615384615 | S21: =VLOOKUP(A21,'RPI Nitty Gritty Report'!A:C,3,FALSE) -> 0.4574185999 | T21: =IF(K21<>0,VLOOKUP(A21,'RPI Nitty Gritty Report'!A:F,6,FALSE),"#N/A") -> 45 | V21: =IF(K21<>0,VLOOKUP(A21,'RPI Nitty Gritty Report'!$A:$P,6,FALSE),"#N/A") -> 45 | W21: FALSE | X21: FALSE | Y21: YES | Z21: FALSE | AB21: Predicted Margin (All): | AC21: =-SUMIFS(G8:G33,G8:G33,"<>#N/A",K8:K33,"<>0") -> 50
A22: Navy | B22: 9 | C22: 3 | D22: W | E22: 0 | F22: A | G22: 2 | H22: =NORMDIST(0,G22,Games!$C$539,TRUE) -> 0.2907336523 | I22: =VLOOKUP(A22,Sheet1!A:K,5,FALSE) -> 12 | J22: L | K22: 6 | L22: =ROUND(((VLOOKUP(A22,Sheet1!$A:$J,4,FALSE))-(VLOOKUP($B$1,Sheet1!$A:$J,4,FALSE)))/0.5,0)*0.5 -> 0.5 | M22: =ROUND(((VLOOKUP(A22,Sheet1!$A:$J,4,FALSE))-(VLOOKUP($B$1,Sheet1!$A:$J,4,FALSE))+Games!$C$542)/0.5,0)*0.5 -> 2 | N22: =ROUND(((VLOOKUP(A22,Sheet1!$A:$J,4,FALSE))-(VLOOKUP($B$1,Sheet1!$A:$J,4,FALSE))-Games!$C$542)/0.5,0)*0.5 -> -0.5 | O22: =VLOOKUP(A22,Sheet1!$A:$M,13,FALSE) -> Patriot | P22: =IF(K22<>0,VLOOKUP(A22,Sheet1!A:H,7,FALSE),"#N/A") -> 9.875 | Q22: =IF(K22<>0,VLOOKUP(A22,Sheet1!A:H,8,FALSE),"#N/A") -> 7.375 | R22: =IF(K22<>0,((COUNTIFS(Games!A:A,A22,Games!F:F,"W")+COUNTIFS(Games!B:B,A22,Games!F:F,"L")-COUNTIFS(Games!A:A,A22,Games!B:B,$B$1,Games!F:F,"W")-COUNTIFS(Games!$B:$B,A22,Games!$A:$A,$B$1,Games!F:F,"L"))/(COUNTIFS(Games!A:A,A22)+COUNTIF(Games!B:B,A22)-COUNTIFS(Games!A:A,A22,Games!B:B,$B$1)-COUNTIFS(Games!B:B,A22,Games!A:A,$B$1))),"#DIV/0!") -> 0.7142857143 | S22: =VLOOKUP(A22,'RPI Nitty Gritty Report'!A:C,3,FALSE) -> 0.5653896655 | T22: =IF(K22<>0,VLOOKUP(A22,'RPI Nitty Gritty Report'!A:F,6,FALSE),"#N/A") -> 13 | V22: =IF(K22<>0,VLOOKUP(A22,'RPI Nitty Gritty Report'!$A:$P,6,FALSE),"#N/A") -> 13 | W22: FALSE | X22: YES | Y22: FALSE | Z22: FALSE
A23: Loyola | B23: 6 | C23: 14 | D23: 0 | E23: L | F23: N | G23: 1 | H23: =NORMDIST(0,G23,Games!$C$539,TRUE) -> 0.3914194526 | I23: =VLOOKUP(A23,Sheet1!A:K,5,FALSE) -> 10 | J23: L | K23: -8 | L23: =ROUND(((VLOOKUP(A23,Sheet1!$A:$J,4,FALSE))-(VLOOKUP($B$1,Sheet1!$A:$J,4,FALSE)))/0.5,0)*0.5 -> 1 | M23: =ROUND(((VLOOKUP(A23,Sheet1!$A:$J,4,FALSE))-(VLOOKUP($B$1,Sheet1!$A:$J,4,FALSE))+Games!$C$542)/0.5,0)*0.5 -> 2.5 | N23: =ROUND(((VLOOKUP(A23,Sheet1!$A:$J,4,FALSE))-(VLOOKUP($B$1,Sheet1!$A:$J,4,FALSE))-Games!$C$542)/0.5,0)*0.5 -> 0 | O23: =VLOOKUP(A23,Sheet1!$A:$M,13,FALSE) -> Patriot | P23: =IF(K23<>0,VLOOKUP(A23,Sheet1!A:H,7,FALSE),"#N/A") -> 10.82352941 | Q23: =IF(K23<>0,VLOOKUP(A23,Sheet1!A:H,8,FALSE),"#N/A") -> 8.058823529 | R23: =IF(K23<>0,((COUNTIFS(Games!A:A,A23,Games!F:F,"W")+COUNTIFS(Games!B:B,A23,Games!F:F,"L")-COUNTIFS(Games!A:A,A23,Games!B:B,$B$1,Games!F:F,"W")-COUNTIFS(Games!$B:$B,A23,Games!$A:$A,$B$1,Games!F:F,"L"))/(COUNTIFS(Games!A:A,A23)+COUNTIF(Games!B:B,A23)-COUNTIFS(Games!A:A,A23,Games!B:B,$B$1)-COUNTIFS(Games!B:B,A23,Games!A:A,$B$1))),"#DIV/0!") -> 0.8 | S23: =VLOOKUP(A23,'RPI Nitty Gritty Report'!A:C,3,FALSE) -> 0.5605346211 | T23: =IF(K23<>0,VLOOKUP(A23,'RPI Nitty Gritty Report'!A:F,6,FALSE),"#N/A") -> 3 | V23: =IF(K23<>0,VLOOKUP(A23,'RPI Nitty Gritty Report'!$A:$P,6,FALSE),"#N/A") -> 3 | W23: YES | X23: FALSE | Y23: FALSE | Z23: FALSE | AB23: Actual Win % (Conf.): | AC23: =COUNTIFS(D8:D33,"W",O8:O33,B3)/(COUNTIFS(D8:D33,"W",O8:O33,B3)+(COUNTIFS(E8:E33,"L",O8:O33,B3))) -> 0.6363636364
A24: Notre Dame | B24: 7 | C24: 13 | D24: 0 | E24: L | F24: A | G24: 3.5 | H24: =NORMDIST(0,G24,Games!$C$539,TRUE) -> 0.1673538743 | I24: =VLOOKUP(A24,Sheet1!A:K,5,FALSE) -> 3 | J24: L | K24: -6 | L24: =ROUND(((VLOOKUP(A24,Sheet1!$A:$J,4,FALSE))-(VLOOKUP($B$1,Sheet1!$A:$J,4,FALSE)))/0.5,0)*0.5 -> 2.5 | M24: =ROUND(((VLOOKUP(A24,Sheet1!$A:$J,4,FALSE))-(VLOOKUP($B$1,Sheet1!$A:$J,4,FALSE))+Games!$C$542)/0.5,0)*0.5 -> 3.5 | N24: =ROUND(((VLOOKUP(A24,Sheet1!$A:$J,4,FALSE))-(VLOOKUP($B$1,Sheet1!$A:$J,4,FALSE))-Games!$C$542)/0.5,0)*0.5 -> 1 | O24: =VLOOKUP(A24,Sheet1!$A:$M,13,FALSE) -> ACC | P24: =IF(K24<>0,VLOOKUP(A24,Sheet1!A:H,7,FALSE),"#N/A") -> 11 | Q24: =IF(K24<>0,VLOOKUP(A24,Sheet1!A:H,8,FALSE),"#N/A") -> 8 | R24: =IF(K24<>0,((COUNTIFS(Games!A:A,A24,Games!F:F,"W")+COUNTIFS(Games!B:B,A24,Games!F:F,"L")-COUNTIFS(Games!A:A,A24,Games!B:B,$B$1,Games!F:F,"W")-COUNTIFS(Games!$B:$B,A24,Games!$A:$A,$B$1,Games!F:F,"L"))/(COUNTIFS(Games!A:A,A24)+COUNTIF(Games!B:B,A24)-COUNTIFS(Games!A:A,A24,Games!B:B,$B$1)-COUNTIFS(Games!B:B,A24,Games!A:A,$B$1))),"#DIV/0!") -> 0.7142857143 | S24: =IF(K24<>0,VLOOKUP(A24,'RPI Nitty Gritty Report'!A:C,3,FALSE),"#N/A") -> 0.5876950827 | T24: =IF(K24<>0,VLOOKUP(A24,'RPI Nitty Gritty Report'!A:F,6,FALSE),"#N/A") -> 4 | V24: =IF(K24<>0,VLOOKUP(A24,'RPI Nitty Gritty Report'!$A:$P,6,FALSE),"#N/A") -> 4 | W24: YES | X24: FALSE | Y24: FALSE | Z24: FALSE | AB24: Expected SRS Win % (Conf.): | AC24: =SUMIFS(H8:H33,H8:H33,"<>N/A",K8:K33,"<>0",O8:O33,B3)/(COUNTIFS(K8:K33,"<>0",O8:O33,B3)) -> 0.6828995569
D25: 0 | E25: 0 | H25: =NORMDIST(0,G25,Games!$C$539,TRUE) ->  | I25: =VLOOKUP(A25,Sheet1!A:K,5,FALSE) ->  | J25: =IF(K25<>0,IF(H25>0.5,"W","L"),"#N/A") -> #N/A | K25: 0 | L25: =ROUND(((VLOOKUP(A25,Sheet1!$A:$J,4,FALSE))-(VLOOKUP($B$1,Sheet1!$A:$J,4,FALSE)))/0.5,0)*0.5 ->  | M25: =ROUND(((VLOOKUP(A25,Sheet1!$A:$J,4,FALSE))-(VLOOKUP($B$1,Sheet1!$A:$J,4,FALSE))+Games!$C$542)/0.5,0)*0.5 ->  | N25: =ROUND(((VLOOKUP(A25,Sheet1!$A:$J,4,FALSE))-(VLOOKUP($B$1,Sheet1!$A:$J,4,FALSE))-Games!$C$542)/0.5,0)*0.5 ->  | O25: =VLOOKUP(A25,Sheet1!$A:$M,13,FALSE) ->  | P25: =IF(K25<>0,VLOOKUP(A25,Sheet1!A:H,7,FALSE),"#N/A") -> #N/A | Q25: =IF(K25<>0,VLOOKUP(A25,Sheet1!A:H,8,FALSE),"#N/A") -> #N/A | R25: =IF(K25<>0,((COUNTIFS(Games!A:A,A25,Games!F:F,"W")+COUNTIFS(Games!B:B,A25,Games!F:F,"L")-COUNTIFS(Games!A:A,A25,Games!B:B,$B$1,Games!F:F,"W")-COUNTIFS(Games!$B:$B,A25,Games!$A:$A,$B$1,Games!F:F,"L"))/(COUNTIFS(Games!A:A,A25)+COUNTIF(Games!B:B,A25)-COUNTIFS(Games!A:A,A25,Games!B:B,$B$1)-COUNTIFS(Games!B:B,A25,Games!A:A,$B$1))),"#DIV/0!") -> #DIV/0! | S25: =IF(K25<>0,VLOOKUP(A25,'RPI Nitty Gritty Report'!A:C,3,FALSE),"#N/A") -> #N/A | T25: =IF(K25<>0,VLOOKUP(A25,'RPI Nitty Gritty Report'!A:F,6,FALSE),"#N/A") -> #N/A | V25: =IF(K25<>0,VLOOKUP(A25,'RPI Nitty Gritty Report'!$A:$P,6,FALSE),"#N/A") -> #N/A | W25: =IF(AND(V25>0,V25<11),IF(K25<>"#N/A","YES","NO")) -> FALSE | X25: FALSE | Y25: FALSE | Z25: FALSE | AB25: Wins +/- Expectation (Conf.): | AC25: =(AC23*(COUNTIFS(G8:G33,"<>#N/A",O8:O33,B3)))-(AC24*(COUNTIFS(G8:G33,"<>#N/A",O8:O33,B3))) -> -0.511895126
D26: 0 | E26: 0 | H26: =NORMDIST(0,G26,Games!$C$539,TRUE) ->  | I26: =VLOOKUP(A26,Sheet1!A:K,5,FALSE) ->  | J26: #N/A | K26: 0 | L26: =(VLOOKUP(A26,Sheet1!$A:$J,4,FALSE))-(VLOOKUP($B$1,Sheet1!$A:$J,4,FALSE)) ->  | M26: =(VLOOKUP(A26,Sheet1!$A:$J,4,FALSE))-(VLOOKUP($B$1,Sheet1!$A:$J,4,FALSE))+Games!$C$542 ->  | N26: =(VLOOKUP(A26,Sheet1!$A:$J,4,FALSE))-(VLOOKUP($B$1,Sheet1!$A:$J,4,FALSE))-Games!$C$542 ->  | O26: =VLOOKUP(A26,Sheet1!$A:$M,13,FALSE) ->  | P26: =IF(K26<>0,VLOOKUP(A26,Sheet1!A:H,7,FALSE),"#N/A") -> #N/A | Q26: =IF(K26<>0,VLOOKUP(A26,Sheet1!A:H,8,FALSE),"#N/A") -> #N/A | R26: =IF(K26<>0,((COUNTIFS(Games!A:A,A26,Games!F:F,"W")+COUNTIFS(Games!B:B,A26,Games!F:F,"L")-COUNTIFS(Games!A:A,A26,Games!B:B,$B$1,Games!F:F,"W")-COUNTIFS(Games!$B:$B,A26,Games!$A:$A,$B$1,Games!F:F,"L"))/(COUNTIFS(Games!A:A,A26)+COUNTIF(Games!B:B,A26)-COUNTIFS(Games!A:A,A26,Games!B:B,$B$1)-COUNTIFS(Games!B:B,A26,Games!A:A,$B$1))),"#DIV/0!") -> #DIV/0! | S26: =IF(K26<>0,VLOOKUP(A26,'RPI Nitty Gritty Report'!A:C,3,FALSE),"#N/A") -> #N/A | T26: =IF(K26<>0,VLOOKUP(A26,'RPI Nitty Gritty Report'!A:F,6,FALSE),"#N/A") -> #N/A | V26: =IF(K26<>0,VLOOKUP(A26,'RPI Nitty Gritty Report'!$A:$P,6,FALSE),"#N/A") -> #N/A | W26: =IF(AND(V26>0,V26<11),"YES","NO") -> NO | X26: FALSE | Y26: FALSE | Z26: FALSE | AB26: Expected Remaining Wins (Conf.): | AC26: =SUMIFS(H8:H33,G8:G33,"<>#N/A",K8:K33,"0",O8:O33,B3) -> 0
D27: 0 | E27: 0 | H27: =NORMDIST(0,G27,Games!$C$539,TRUE) ->  | I27: =VLOOKUP(A27,Sheet1!A:K,5,FALSE) ->  | J27: #N/A | K27: 0 | L27: =(VLOOKUP(A27,Sheet1!$A:$J,4,FALSE))-(VLOOKUP($B$1,Sheet1!$A:$J,4,FALSE)) ->  | M27: =(VLOOKUP(A27,Sheet1!$A:$J,4,FALSE))-(VLOOKUP($B$1,Sheet1!$A:$J,4,FALSE))+Games!$C$542 ->  | N27: =(VLOOKUP(A27,Sheet1!$A:$J,4,FALSE))-(VLOOKUP($B$1,Sheet1!$A:$J,4,FALSE))-Games!$C$542 ->  | O27: =VLOOKUP(A27,Sheet1!$A:$M,13,FALSE) ->  | P27: =IF(K27<>0,VLOOKUP(A27,Sheet1!A:H,7,FALSE),"#N/A") -> #N/A | Q27: =IF(K27<>0,VLOOKUP(A27,Sheet1!A:H,8,FALSE),"#N/A") -> #N/A | R27: =IF(K27<>0,((COUNTIFS(Games!A:A,A27,Games!F:F,"W")+COUNTIFS(Games!B:B,A27,Games!F:F,"L")-COUNTIFS(Games!A:A,A27,Games!B:B,$B$1,Games!F:F,"W")-COUNTIFS(Games!$B:$B,A27,Games!$A:$A,$B$1,Games!F:F,"L"))/(COUNTIFS(Games!A:A,A27)+COUNTIF(Games!B:B,A27)-COUNTIFS(Games!A:A,A27,Games!B:B,$B$1)-COUNTIFS(Games!B:B,A27,Games!A:A,$B$1))),"#DIV/0!") -> #DIV/0! | S27: =IF(K27<>0,VLOOKUP(A27,'RPI Nitty Gritty Report'!A:C,3,FALSE),"#N/A") -> #N/A | T27: =IF(K27<>0,VLOOKUP(A27,'RPI Nitty Gritty Report'!A:F,6,FALSE),"#N/A") -> #N/A | V27: =IF(K27<>0,VLOOKUP(A27,'RPI Nitty Gritty Report'!$A:$P,6,FALSE),"#N/A") -> #N/A | W27: NO | X27: FALSE | Y27: FALSE | Z27: FALSE | AB27: Actual Margin (Conf.): | AC27: =SUMIFS(K8:K33,O8:O33,B3) -> 33
D28: 0 | E28: 0 | H28: =NORMDIST(0,G28,Games!$C$539,TRUE) ->  | I28: =VLOOKUP(A28,Sheet1!A:K,5,FALSE) ->  | J28: #N/A | K28: 0 | L28: =(VLOOKUP(A28,Sheet1!$A:$J,4,FALSE))-(VLOOKUP($B$1,Sheet1!$A:$J,4,FALSE)) ->  | M28: =(VLOOKUP(A28,Sheet1!$A:$J,4,FALSE))-(VLOOKUP($B$1,Sheet1!$A:$J,4,FALSE))+Games!$C$542 ->  | N28: =(VLOOKUP(A28,Sheet1!$A:$J,4,FALSE))-(VLOOKUP($B$1,Sheet1!$A:$J,4,FALSE))-Games!$C$542 ->  | O28: =VLOOKUP(A28,Sheet1!$A:$M,13,FALSE) ->  | P28: =IF(K28<>0,VLOOKUP(A28,Sheet1!A:H,7,FALSE),"#N/A") -> #N/A | Q28: =IF(K28<>0,VLOOKUP(A28,Sheet1!A:H,8,FALSE),"#N/A") -> #N/A | R28: =IF(K28<>0,((COUNTIFS(Games!A:A,A28,Games!F:F,"W")+COUNTIFS(Games!B:B,A28,Games!F:F,"L")-COUNTIFS(Games!A:A,A28,Games!B:B,$B$1,Games!F:F,"W")-COUNTIFS(Games!$B:$B,A28,Games!$A:$A,$B$1,Games!F:F,"L"))/(COUNTIFS(Games!A:A,A28)+COUNTIF(Games!B:B,A28)-COUNTIFS(Games!A:A,A28,Games!B:B,$B$1)-COUNTIFS(Games!B:B,A28,Games!A:A,$B$1))),"#DIV/0!") -> #DIV/0! | S28: =IF(K28<>0,VLOOKUP(A28,'RPI Nitty Gritty Report'!A:C,3,FALSE),"#N/A") -> #N/A | T28: =IF(K28<>0,VLOOKUP(A28,'RPI Nitty Gritty Report'!A:F,6,FALSE),"#N/A") -> #N/A | V28: =IF(K28<>0,VLOOKUP(A28,'RPI Nitty Gritty Report'!$A:$P,6,FALSE),"#N/A") -> #N/A | W28: NO | X28: FALSE | Y28: FALSE | Z28: FALSE | AB28: Predicted Margin (Conf.): | AC28: =-SUMIFS(G8:G33,G8:G33,"<>#N/A",K8:K33,"<>0",O8:O33,B3) -> 25.5
D29: 0 | E29: 0 | H29: =NORMDIST(0,G29,Games!$C$539,TRUE) ->  | I29: =VLOOKUP(A29,Sheet1!A:K,5,FALSE) ->  | J29: #N/A | K29: 0 | L29: =(VLOOKUP(A29,Sheet1!$A:$J,4,FALSE))-(VLOOKUP($B$1,Sheet1!$A:$J,4,FALSE)) ->  | M29: =(VLOOKUP(A29,Sheet1!$A:$J,4,FALSE))-(VLOOKUP($B$1,Sheet1!$A:$J,4,FALSE))+Games!$C$542 ->  | N29: =(VLOOKUP(A29,Sheet1!$A:$J,4,FALSE))-(VLOOKUP($B$1,Sheet1!$A:$J,4,FALSE))-Games!$C$542 ->  | O29: =VLOOKUP(A29,Sheet1!$A:$M,13,FALSE) ->  | P29: =IF(K29<>0,VLOOKUP(A29,Sheet1!A:H,7,FALSE),"#N/A") -> #N/A | Q29: =IF(K29<>0,VLOOKUP(A29,Sheet1!A:H,8,FALSE),"#N/A") -> #N/A | R29: =IF(K29<>0,((COUNTIFS(Games!A:A,A29,Games!F:F,"W")+COUNTIFS(Games!B:B,A29,Games!F:F,"L")-COUNTIFS(Games!A:A,A29,Games!B:B,$B$1,Games!F:F,"W")-COUNTIFS(Games!$B:$B,A29,Games!$A:$A,$B$1,Games!F:F,"L"))/(COUNTIFS(Games!A:A,A29)+COUNTIF(Games!B:B,A29)-COUNTIFS(Games!A:A,A29,Games!B:B,$B$1)-COUNTIFS(Games!B:B,A29,Games!A:A,$B$1))),"#DIV/0!") -> #DIV/0! | S29: =IF(K29<>0,VLOOKUP(A29,'RPI Nitty Gritty Report'!A:C,3,FALSE),"#N/A") -> #N/A | T29: =IF(K29<>0,VLOOKUP(A29,'RPI Nitty Gritty Report'!A:F,6,FALSE),"#N/A") -> #N/A | V29: =IF(K29<>0,VLOOKUP(A29,'RPI Nitty Gritty Report'!$A:$P,6,FALSE),"#N/A") -> #N/A | W29: NO | X29: FALSE | Y29: FALSE | Z29: FALSE
D30: 0 | E30: 0 | H30: =NORMDIST(0,G30,Games!$C$539,TRUE) ->  | I30: =VLOOKUP(A30,Sheet1!A:K,5,FALSE) ->  | J30: #N/A | K30: 0 | L30: =(VLOOKUP(A30,Sheet1!$A:$J,4,FALSE))-(VLOOKUP($B$1,Sheet1!$A:$J,4,FALSE)) ->  | M30: =(VLOOKUP(A30,Sheet1!$A:$J,4,FALSE))-(VLOOKUP($B$1,Sheet1!$A:$J,4,FALSE))+Games!$C$542 ->  | N30: =(VLOOKUP(A30,Sheet1!$A:$J,4,FALSE))-(VLOOKUP($B$1,Sheet1!$A:$J,4,FALSE))-Games!$C$542 ->  | O30: =VLOOKUP(A30,Sheet1!$A:$M,13,FALSE) ->  | P30: =IF(K30<>0,VLOOKUP(A30,Sheet1!A:H,7,FALSE),"#N/A") -> #N/A | Q30: =IF(K30<>0,VLOOKUP(A30,Sheet1!A:H,8,FALSE),"#N/A") -> #N/A | R30: =IF(K30<>0,((COUNTIFS(Games!A:A,A30,Games!F:F,"W")+COUNTIFS(Games!B:B,A30,Games!F:F,"L")-COUNTIFS(Games!A:A,A30,Games!B:B,$B$1,Games!F:F,"W")-COUNTIFS(Games!$B:$B,A30,Games!$A:$A,$B$1,Games!F:F,"L"))/(COUNTIFS(Games!A:A,A30)+COUNTIF(Games!B:B,A30)-COUNTIFS(Games!A:A,A30,Games!B:B,$B$1)-COUNTIFS(Games!B:B,A30,Games!A:A,$B$1))),"#DIV/0!") -> #DIV/0! | S30: =IF(K30<>0,VLOOKUP(A30,'RPI Nitty Gritty Report'!A:C,3,FALSE),"#N/A") -> #N/A | T30: =IF(K30<>0,VLOOKUP(A30,'RPI Nitty Gritty Report'!A:F,6,FALSE),"#N/A") -> #N/A | V30: =IF(K30<>0,VLOOKUP(A30,'RPI Nitty Gritty Report'!$A:$P,6,FALSE),"#N/A") -> #N/A | W30: NO | X30: FALSE | Y30: FALSE | Z30: FALSE | AB30: Avg. Goals For per Game (All): | AC30: =AVERAGEIF(K8:K33,"<>#N/A",B8:B33) -> 11.35294118
